Workbook

Sheet Home

Sheet Input parameters
B6: INPUT PARAMETERS
B9: Yearly Flows | F9: Range
B10: Min Dry Weather Flow | C10: MinDWF | E10: 3.024 | G10: ML/d
B11: Ave Dry Weather Flow | C11: ADWF | E11: 13.248 | F11: - | G11: ML/d
B12: Peak Dry Weather Flow | C12: PDWF | E12: 20.736 | G12: ML/d
B13: Peak Wet Weather Flow | C13: PWWF | E13: 31.104 | F13: - | G13: ML/d
B14: Primary Settling Tank
B15: PST underflow as % of ADWF | C15: Qu_PS_%_ADWF | E15: 1 | G15: %
B16: PST Underflow | C16: Qu-PST | E16: ='Input_Waste Characteristics'!E121 -> 0.002160804896 | G16: %
B17: Influent COD | C17: Sti-PST | E17: =(1-(Sti_sett/Sti_raw))*100 -> 15.37931796 | G17: %
B18: Influent TKN | C18: Nti-PST | E18: =(1-(Nti_sett/Nti_Raw))*100 -> 11.04558808 | G18: %
B19: Influent TP | C19: Pti-PST | E19: =(1-(Pti_sett/Pti_Raw))*100 -> 20.20940192 | G19: %
B20: Influent TSS | C20: XO-PST | E20: =(1-('Input_Waste Characteristics'!F111/'Input_Waste Characteristics'!E111))*100 -> 49.39646282 | G20: %
B21: Overflow Rate at ADWF to be less than | E21: 1.2 | G21: m/h
B22: Overflow Rate at PWWF to be less than | E22: 2.4 | G22: m/h
B23: Ordinary Heterotrophs
B24: Yield Coefficient of Active Organisms | C24: YH | E24: 0.45 | G24: mgVSS/mgCOD
B25: Endogenous Decay/Respiration Rate | C25: bHT | E25: 0.24 | G25: d-1
B26: Organic Nitrogen Degradation Rate | C26: KrT | E26: 0.015 | G26: L/mgVSS/d
B27: Substrate utilisation rate at 20°C | C27: kvT | E27: 100 | G27: -
B28: Endogenous Residue Fraction | C28: f | E28: 0.2 | G28: mgVSS/mgVSS
B29: Endogenous respiration rate for OHOS at 20°C | C29: bH20 | E29: 0.24 | G29: /d
B31: Autotrophic Nitrifiers
B32: Maximum growth rate for nitrifiers at 20°C | C32: FNm20 | E32: 0.55 | G32: /d
B33: Endogenous Decay Rate of Nitrifiers | C33: bnT | E33: 0.04 | G33: d-1
B34: Half saturation constant for nitrification at 20°C | C34: Kn20 | E34: 1 | G34: mgN/L
B35: Yield for nitrifiers | C35: YA | E35: 0.1 | G35: mgVSS/mgN
B36: Temperature sensitivity for nitrification | C36: Theta_UA | E36: 1.123 | G36: Constant
B37: Ammonification rate at 20 C | C37: Kr | E37: 15 | G37: Constant
B39: Denitrification
B40: Temperature sensitivity for initial denitrification in primary anoxic reactor | C40: ThetaK1 | E40: 1.2 | G40: Constant
B41: Temperature sensitivity for second denitrification in primary anoxic reactor | C41: Theta K2 | E41: 1.08 | G41: Constant
B42: Temperature sensitivity for denitrification in secondary anoxic reactor | C42: ThetaK3 | E42: 1.029 | G42: Constant
B43: Initial rapid specific rate of denitrification in primary anoxic reactor at 20°C | C43: K120 | E43: 0.72 | G43: mgNO3N/mgAVSS,d
B44: Second specific rate of denitrification in primary anoxic reactor at 20°C | C44: k220 | E44: 0.255 | G44: mgNO3N/mgAVSS,d
B45: Specific rate of denitrification in secondary anoxic reactor at 20°C | C45: K320 | E45: 0.072 | G45: mgNO3N/mgAVSS,d
B46: Half saturation constant for RBCOD utilisation at 20°C | C46: Kc20 | E46: 0.06 | G46: 1/d
B48: PolyPhosphate Accumulating Oganisms
B49: Yield Coefficient of Poly P Organisms | C49: YG | E49: 0.45 | G49: mgVSS/mgCOD
B50: Endogenous Decay Rate for Poly P Organisms | C50: bGT | E50: 0.04 | G50: d-1
B51: First Order Rate for Conversion of RBCOD to SCFA | C51: KCT | E51: 0.06 | G51: d-1
B52: Fraction of Heterotrophic Non-Poly P Organisms Active Mass | C52: fxbhp | E52: 0.03 | G52: mgP/mgAVSS
B53: Fraction of Heterotrophic Non-PolyP Organisms Endogenous Mass | C53: fxehp | E53: 0.03 | G53: mgP/mgAVSS
B54: Fraction of Poly-P Organisms Active Mass | C54: fxbgp | E54: 0.38 | G54: mgP/mgAVSS
B55: Fraction of Poly-P Organisms Endogenous Mass | C55: fxegp | E55: 0.03 | G55: mgP/mgAVSS
B56: Inert Mass | C56: fxip | E56: 0.03 | G56: mgP/mgISS
B57: Unbiodegradable Particulate Fraction of Poly-P Organisms | C57: fepg | E57: 0.25 | G57: mgVSS/mgAVSS
B58: Unbiodegradable Particulate Fraction of Heterotrophic Non-Poly P Organisms | C58: feph | E58: 0.2 | G58: mgVSS/mgAVSS
B59: Inorganic Material Content of the PAO active biomass | C59: fiOHO | E59: 0.15 | G59: mgISS/mgVSS
B60: Inorganic Material Content of the PAO active biomass | C60: fiPAO | E60: 1.3001 | G60: mgISS/mgVSS
B61: Inorganic Material Content of the PAO active biomass | C61: fiPAOBM | E61: 0.15 | G61: mgISS/mgVSS
B62: P Content of the biomass Cell Mass | C62: fXBGPBM | E62: =fp_biomass -> 0.03 | G62: mgP/mgVSS
B63: ISS/P Ratio of polyphosphate | C63: fi_PP | E63: =MM_PP/31 -> 3.286741935 | G63: mgISS/mgP_PAO_PP
B64: ISS content of PAOs | C64: fi_PAO | E64: =0.05+E63*fXBG_P -> 1.298961935 | G64: mgISS/mgVSS
B65: General Input
B66: Parameter | C66: Abbreviation | D66: Value @ 20 oC | F66: Range | G66: Unit
D67: Raw WW | E67: Settled WW
B68: Design Sludge Age, SRT | C68: SRT | D68: 10 | E68: 10 | F68: 15 to 25 | G68: d
B69: factor of safety | C69: Sf | D69: 1.25 | E69: 1.25 | F69: 1.1 to 1.5 | G69: Constant
B70: dissolved oxygen concentration in a-recycle | C70: Oa_recy | D70: 2 | E70: 2 | G70: mgO/l
B71: dissolved oxygen concentration in s-recycle | C71: Os_recy | D71: 1 | E71: 1 | G71: mgO/l
B72: Maximum practical a -recycle ratio | C72: aprac | D72: 4 | E72: 4 | F72: 1 to 6 | G72: Constant
B73: Anoxic to anaerobic recycle ratio | C73: r_recy | D73: 1 | E73: 1 | F73: :1 w.r.t influent flow
B74: Sludge underflow recylce ratio | C74: S_recy | D74: 1 | E74: 1 | F74: :1 w.r.t influent flow
B75: Number of Anaerobic Reactors in Series | C75: Nana | D75: 2 | E75: 2 | F75: - | G75: -
B76: Population | C76: Popn | D76: 5000 | E76: 5000 | F76: - | G76: -
B77: Winter Temperature | C77: T_low | G77: °C
B78: Summer Temperature | C78: T_high | G78: °C
B79: Energy cost | D79: 62.03 | E79: 62.03 | F79: - | G79: c/kWh
B80: System Temperature | C80: Design Temp | D80: 18 | E80: 18 | F80: 15 to 25 | G80: °C
B81: Aeration
B82: Oxygen Transfer Correction Factor | C82: alpha_O2 | D82: 0.8 | E82: 0.8 | G82: Constant
B83: Salinity-Surface Tension Correction Factor | C83: beta_O2 | D83: 0.9 | E83: 0.9 | G83: Constant
B84: Theta | C84: theta_O2 | D84: 1.024 | E84: 1.024 | G84: Constant
B85: Mechanical Aerator: Standard OxygenTransfer Rate (20 oC and 1 atm) | C85: Rstd | D85: 2.5 | E85: 2.5 | G85: kgO2/kWh
B86: FBDA: Standard OxygenTransfer Rate (20 oC and 1 atm) | C86: ∆Rstd | D86: 4 | E86: 4 | G86: kgO2/kWh
B87: Gearbox Efficiency (%) | C87: GEFF | D87: 80 | E87: 80 | G87: %
B88: Blower Efficiency (%) | C88: BEFF | D88: 0.85 | E88: 0.85 | G88: %
B89: Motor Service Factor | C89: MSF | D89: 1.25 | E89: 1.25 | G89: -
B90: Reactor Operating DO Concentration | C90: C_L | D90: 2 | E90: 2 | G90: mgO/l
B91: DO Saturation in Clean Water at Standard Conditions (20 oC, 1 atm) | C91: CS-std | D91: 9.07 | E91: 9.07 | G91: mg/L
B92: Percentage Oxygen Concentration Leaving Reactor at Free Surface | C92: Ot | D92: 19 | E92: 19 | G92: %
B93: Diffuser Fouling Factor | C93: FF | D93: 0.9 | E93: 0.9 | G93: -
B94: Diffuset mounting above FFL | C94: dH | D94: 0.3 | E94: 0.3 | G94: m
B95: SOTE/m depth Submergence | C95: dSOTE | D95: 6 | E95: 6 | G95: %/m
B96: Gas Constant for Air | C96: Ra | D96: 8.314 | E96: 8.314 | G96: kJ/(kmol.K)
B97: Friction Losses in the Air Manifold | C97: hf | D97: 10 | E97: 10 | G97: m
B98: Blower Inlet Absolute Pressure | C98: P1 | D98: 1 | E98: 1 | G98: atm
B99: Blower Outlet Absolute Pressure | C99: P2 | D99: 2.435476075 | E99: 2.435476075 | G99: atm
B100: Aeration power | C100: P_O2 | D100: 1.2 | E100: 1.2 | F100: - | G100: kgO2/kWh
B101: Secondary Settling Tank
B102: Diluted Sludge Volume Index | C102: DSVI | D102: 160 | E102: 160 | F102: 150 to 250 | G102: mL/g
B103: Peak Factor for SST Sludge Design Concentration | C103: FX | G103: -
B104: peak factor (PWWF/ADWF) | C104: fq | D104: 2 | E104: 2 | F104: 2 to 4 | G104: -
B105: Peak Wet Weather Flow (PWWF) / Peak Dry Weather Flow (PDWF) | C105: fp | D105: 1.5 | E105: 1.5 | G105: -
B106: Design Factor of Safety | C106: FSST | D106: 1.2 | E106: 1.2 | G106: -
B107: Pressure Constants
B108: 760 mmHg, in mmH2O = | C108: mmH2O | D108: 9880 | E108: 9880
B109: Guage Press (mmH2O) | C109: mmH2O | D109: 30 | E109: 30
B110: Gas Pres. (atm) | C110: atm | D110: 1.003036437 | E110: 1.003036437
B111: R | D111: 0.082057 | E111: 0.082057
B112: Gas Temp. | C112: K | D112: 298 | E112: 298
B113: Temp | D113: 35 | E113: 35
B114: Conduct | C114: mS/m | D114: 0.04 | E114: 0.04
B116: Temp Dependency Coef. | C116: A | D116: 0.4869417 | E116: 0.4869417
B117: ionic strength | C117: μ | D117: 6.72e-06 | E117: 6.72e-06
B118: Species ion charge | C118: Zm | D118: 1 | E118: 1
B119: Species ion charge | C119: Zd | D119: 2 | E119: 2
B120: Species ion charge | C120: Zt | D120: 3 | E120: 3
B121: Activity of Mono valent (Nt) | C121: Log ƒm | D121: -0.001258051695 | E121: -0.001258051695
B122: Activity of Di valent (Mg) | C122: Log ƒd | D122: -0.005032206781 | E122: -0.005032206781
B123: Activity of Tri valent (Pt) | C123: Log ƒt | D123: -0.01132246526 | E123: -0.01132246526
B124: Activity of Mono valent (Nt) | C124: ƒm | D124: 0.9971074205 | E124: 0.9971074205
B125: Activity of Di valent (Mg) | C125: ƒd | D125: 0.9884797874 | E125: 0.9884797874
... 140 more rows

Sheet Measurements
AF1: Raw fluxes (g/d)
A2: Default weights | B2: 1 | C2: 1 | D2: 1 | E2: 1 | F2: 1 | G2: 1 | H2: 1 | I2: 1 | J2: 1 | K2: 1 | L2: 1 | M2: 1 | N2: 1 | O2: 1 | P2: 1 | Q2: 1 | R2: 1 | S2: 0.5 | T2: 1 | U2: 1 | V2: 1 | W2: 1 | X2: 0.5 | Y2: 0.5 | Z2: 1 | AA2: 1 | AB2: 0.5 | AC2: =B2 -> 1 | AD2: =C2 -> 1 | AE2: 1 | AF2: 1 | AG2: 1 | AH2: 1 | AI2: 1 | AJ2: 1 | AK2: 1 | AL2: 1 | AM2: =L2 -> 1 | AN2: =M2 -> 1 | AO2: 1 | AP2: 1 | AQ2: 1 | AR2: 1 | AS2: 1 | AT2: 0.5 | AU2: 1 | AV2: 1 | AW2: 1 | AX2: 1 | AY2: 0.5 | AZ2: 0.5 | BA2: 1 | BB2: 1 | BC2: 0.5
A3: Time | B3: Flowrate | C3: COD | D3: TKN | E3: TSS | F3: TP | G3: FSA | H3: OrthoP | I3: pH_in | J3: Alk_in | K3: Temperature | L3: Flow_SetSew | M3: COD SetSew | N3: TKN SetSew | O3: TSS SetSew | P3: TP SetSew | Q3: FSA SetSew | R3: OrthoP Set Sew | S3: Non-settlable solids | T3: Flow_PS | U3: PS % TS | V3: PS %VS | W3: PS %IS | X3: Settlable solids | Y3: Settlable IS | Z3: Effl COD | AA3: Effl TSS | AB3: COD_us | AC3: Flow | AD3: COD | AE3: TKN | AF3: TSS | AG3: TP | AH3: FSA | AI3: OrthoP | AJ3: pH_in | AK3: Alk_in | AL3: Temperature | AM3: Flow_setSew | AN3: COD SetSew | AO3: TKN SetSew | AP3: TSS SetSew | AQ3: TP SetSew | AR3: FSA SetSew | AS3: OrthoP Set Sew | AT3: Non-settlable solids | AU3: Flow_PS | AV3: PS % TS | AW3: PS %VS | AX3: PS %IS | AY3: Settlable solids | AZ3: Settlable IS | BA3: Effl COD | BB3: Effl TSS | BC3: COD_us
A4: Days/hours | B4: m3/d | C4: mg/l | D4: mg/l | E4: mg/l | F4: mg/l | G4: mg/l | H4: mg/l | I4: - | K4: °C | L4: m3/d | M4: mg/l | N4: mg/l | O4: mg/l | P4: mg/l | Q4: mg/l | R4: mg/l | S4: g/m3 | T4: m3/d | U4: % | V4: % | W4: % | X4: g/m3 | Z4: mg/l | AA4: mg/l | AB4: g/m3 | AU4: =STDEV(AU6:AU431) -> 
A5: Averages | B5: =AVERAGE(B6:B432) -> 16165.13661 | C5: =AVERAGE(C6:C432) -> 708.0814607 | D5: =AVERAGE(D6:D432) -> 49.00568182 | E5: 192.8351955 | F5: 6.200212766 | G5: 23.85714286 | H5: 2.855865922 | I5: 6.958953168 | J5: 258.8324176 | L5: =AVERAGE(L6:L432) ->  | M5: 544.25 | N5: 46.05116279 | O5: 90.41304348 | P5: 5.288888889 | Q5: 25.48958333 | R5: 3.117391304 | S5: 90.41304348 | U5: 4.74 | V5: 69.6625 | W5: 30.1 | Z5: 30.46760563 | AA5: 15.25 | AB5: 17.10784933 | AU5: =AVERAGE(AU6:AU431) ->  | EB5: 0
A6: 2015-09-01 | B6: 21700 | C6: 1149 | E6: 299 | G6: 33.8 | H6: 4.5 | I6: 7.1 | J6: 321 | S6: =IF(ISBLANK(O6),"",IF(ISBLANK(L6),O6,L6*O6/B6)) ->  | X6: =IF(OR(T6="",U6=""),"",T6*U6*10000/B6) ->  | Y6: =IF(OR(W6="",X6=""),"",X6*W6/100) ->  | Z6: 38 | AB6: =IF(AND(ISNUMBER(Z6),ISNUMBER(AA6)),IF(Z6-AA6*Factors!$R$10>0,Z6-AA6*Factors!$R$10,""),"") ->  | AC6: =B6 -> 21700 | AD6: =IF(ISNUMBER(C6),B6*C6,"") -> 24933300 | AE6: =IF(ISNUMBER(D6),$B6*D6,"") ->  | AF6: 6488300 | AH6: 733460 | AI6: 97650 | AJ6: =IF(ISNUMBER(I6),I6,"") -> 7.1 | AK6: =IF(ISNUMBER(J6),$B6*J6,"") -> 6965700 | AL6: =IF(ISNUMBER(K6),K6,"") ->  | AM6: =IF(ISNUMBER(L6),L6,"") ->  | AN6: =IF(ISNUMBER(M6),$B6*M6,"") ->  | AU6: =IF(ISNUMBER(T6),T6,"") ->  | BA6: 824600 | DZ6: 0 | EB6: 0
A7: 2015-09-02 | B7: 23600 | E7: 492 | G7: 28.7 | H7: 3.4 | I7: 7 | J7: 273 | X7: =IF(OR(T7="",U7=""),"",T7*U7*10000/B7) ->  | Y7: =IF(OR(W7="",X7=""),"",X7*W7/100) ->  | Z7: 38 | AB7: =IF(AND(ISNUMBER(Z7),ISNUMBER(AA7)),IF(Z7-AA7*Factors!$R$10>0,Z7-AA7*Factors!$R$10,""),"") ->  | AC7: =B7 -> 23600 | AD7: =IF(ISNUMBER(C7),B7*C7,"") ->  | AE7: =IF(ISNUMBER(D7),$B7*D7,"") ->  | AF7: =IF(ISNUMBER(E7),$B7*E7,"") -> 11611200 | AG7: =IF(ISNUMBER(F7),$B7*F7,"") ->  | AH7: =IF(ISNUMBER(G7),$B7*G7,"") -> 677320 | AI7: =IF(ISNUMBER(H7),$B7*H7,"") -> 80240 | AJ7: =IF(ISNUMBER(I7),I7,"") -> 7 | AK7: =IF(ISNUMBER(J7),$B7*J7,"") -> 6442800 | AL7: =IF(ISNUMBER(K7),K7,"") ->  | AM7: =IF(ISNUMBER(L7),L7,"") ->  | AN7: =IF(ISNUMBER(M7),$B7*M7,"") ->  | AO7: =IF(ISNUMBER(N7),$B7*N7,"") ->  | AP7: =IF(ISNUMBER(O7),$B7*O7,"") ->  | AQ7: =IF(ISNUMBER(P7),$B7*P7,"") ->  | AR7: =IF(ISNUMBER(Q7),$B7*Q7,"") ->  | AS7: =IF(ISNUMBER(R7),$B7*R7,"") ->  | AT7: =IF(ISNUMBER(S7),$B7*S7,"") ->  | AU7: =IF(ISNUMBER(T7),T7,"") ->  | AV7: =IF(ISNUMBER(U7),$B7*U7,"") ->  | AW7: =IF(ISNUMBER(V7),$B7*V7,"") ->  | AX7: =IF(ISNUMBER(W7),$B7*W7,"") ->  | AY7: =IF(ISNUMBER(X7),$B7*X7,"") ->  | AZ7: =IF(ISNUMBER(Y7),$B7*Y7,"") ->  | BA7: =IF(ISNUMBER(Z7),$B7*Z7,"") -> 896800 | BB7: =IF(ISNUMBER(AA7),$B7*AA7,"") ->  | BC7: =IF(ISNUMBER(AB7),$B7*AB7,"") ->  | DZ7: 0 | EB7: 0
A8: 2015-09-03 | B8: 21000 | C8: 879 | E8: 377 | G8: 27.2 | H8: 2.6 | I8: 6.9 | J8: 287 | Z8: 23 | AB8: =IF(AND(ISNUMBER(Z8),ISNUMBER(AA8)),IF(Z8-AA8*Factors!$R$10>0,Z8-AA8*Factors!$R$10,""),"") ->  | AC8: 21000 | AD8: 18459000 | AF8: 7917000 | AH8: 571200 | AI8: 54600 | AJ8: 6.9 | AK8: 6027000 | BA8: 483000 | DZ8: 0 | EB8: 0
A9: 2015-09-04 | B9: 19800 | E9: 382 | G9: 25.7 | H9: 4.2 | I9: 6.9 | J9: 234 | Z9: 34 | AB9: =IF(AND(ISNUMBER(Z9),ISNUMBER(AA9)),IF(Z9-AA9*Factors!$R$10>0,Z9-AA9*Factors!$R$10,""),"") ->  | AC9: 19800 | AF9: 7563600 | AH9: 508860 | AI9: 83160 | AJ9: 6.9 | AK9: 4633200 | BA9: 673200 | DZ9: 0 | EB9: 0
A10: 2015-09-05 | B10: 22900 | C10: 460 | E10: 71 | G10: 22.3 | H10: 2.2 | I10: 6.9 | J10: 178 | Z10: 10 | AB10: =IF(AND(ISNUMBER(Z10),ISNUMBER(AA10)),IF(Z10-AA10*Factors!$R$10>0,Z10-AA10*Factors!$R$10,""),"") ->  | AC10: 22900 | AD10: 10534000 | AF10: 1625900 | AH10: 510670 | AI10: 50380 | AJ10: 6.9 | AK10: 4076200 | BA10: 229000 | DZ10: 0 | EB10: 0
A11: 2015-09-06 | B11: 24300 | C11: 809 | E11: 314 | G11: 22 | H11: 2.1 | I11: 6.9 | J11: 205 | Z11: 21 | AB11: =IF(AND(ISNUMBER(Z11),ISNUMBER(AA11)),IF(Z11-AA11*Factors!$R$10>0,Z11-AA11*Factors!$R$10,""),"") ->  | AC11: 24300 | AD11: 19658700 | AF11: 7630200 | AH11: 534600 | AI11: 51030 | AJ11: 6.9 | AK11: 4981500 | BA11: 510300 | DZ11: 0 | EB11: 0
A12: 2015-09-07 | B12: 19800 | E12: 335 | G12: 25.5 | H12: 2.8 | I12: 7 | J12: 261 | Z12: 29 | AB12: =IF(AND(ISNUMBER(Z12),ISNUMBER(AA12)),IF(Z12-AA12*Factors!$R$10>0,Z12-AA12*Factors!$R$10,""),"") ->  | AC12: 19800 | AF12: 6633000 | AH12: 504900 | AI12: 55440 | AJ12: 7 | AK12: 5167800 | BA12: 574200 | DZ12: 0 | EB12: 0
A13: 2015-09-08 | B13: 16400 | C13: 761 | E13: 182 | G13: 25.6 | H13: 3.2 | I13: 6.9 | J13: 269 | AB13: =IF(AND(ISNUMBER(Z13),ISNUMBER(AA13)),IF(Z13-AA13*Factors!$R$10>0,Z13-AA13*Factors!$R$10,""),"") ->  | AC13: 16400 | AD13: 12480400 | AF13: 2984800 | AH13: 419840 | AI13: 52480 | AJ13: 6.9 | AK13: 4411600 | DZ13: 0 | EB13: 0
A14: 2015-09-09 | B14: 18400 | C14: 977 | D14: 55.5 | E14: 349 | F14: 8.9 | G14: 31.1 | H14: 3.9 | I14: 7 | J14: 305 | Z14: 26 | AB14: =IF(AND(ISNUMBER(Z14),ISNUMBER(AA14)),IF(Z14-AA14*Factors!$R$10>0,Z14-AA14*Factors!$R$10,""),"") ->  | AC14: 18400 | AD14: 17976800 | AE14: 1021200 | AF14: 6421600 | AG14: 163760 | AH14: 572240 | AI14: 71760 | AJ14: 7 | AK14: 5612000 | BA14: 478400 | DZ14: 0 | EB14: 0
A15: 2015-09-10 | B15: 18300 | C15: 755 | E15: 184 | G15: 28 | H15: 3.1 | I15: 6.9 | J15: 276 | Z15: 28 | AB15: =IF(AND(ISNUMBER(Z15),ISNUMBER(AA15)),IF(Z15-AA15*Factors!$R$10>0,Z15-AA15*Factors!$R$10,""),"") ->  | AC15: 18300 | AD15: 13816500 | AF15: 3367200 | AH15: 512400 | AI15: 56730 | AJ15: 6.9 | AK15: 5050800 | BA15: 512400 | DZ15: 0 | EB15: 0
A16: 2015-09-11 | B16: 18800 | C16: 1381 | E16: 371 | G16: 33.3 | H16: 5 | I16: 6.6 | J16: 284 | Z16: 31 | AB16: =IF(AND(ISNUMBER(Z16),ISNUMBER(AA16)),IF(Z16-AA16*Factors!$R$10>0,Z16-AA16*Factors!$R$10,""),"") ->  | AC16: 18800 | AD16: 25962800 | AF16: 6974800 | AH16: 626040 | AI16: 94000 | AJ16: 6.6 | AK16: 5339200 | BA16: 582800 | DZ16: 0 | EB16: 0
A17: 2015-09-12 | B17: 16500 | C17: 1248 | G17: 31.7 | H17: 5 | I17: 6.6 | J17: 321 | Z17: 17 | AB17: =IF(AND(ISNUMBER(Z17),ISNUMBER(AA17)),IF(Z17-AA17*Factors!$R$10>0,Z17-AA17*Factors!$R$10,""),"") ->  | AC17: 16500 | AD17: 20592000 | AH17: 523050 | AI17: 82500 | AJ17: 6.6 | AK17: 5296500 | BA17: 280500 | DZ17: 0 | EB17: 0
A18: 2015-09-13 | B18: 19200 | C18: 744 | E18: 281 | G18: 26.9 | H18: 3.1 | I18: 7 | J18: 265 | Z18: 10 | AB18: =IF(AND(ISNUMBER(Z18),ISNUMBER(AA18)),IF(Z18-AA18*Factors!$R$10>0,Z18-AA18*Factors!$R$10,""),"") ->  | AC18: 19200 | AD18: 14284800 | AF18: 5395200 | AH18: 516480 | AI18: 59520 | AJ18: 7 | AK18: 5088000 | BA18: 192000 | DZ18: 0 | EB18: 0
A19: 2015-09-14 | B19: 20300 | C19: 487 | E19: 34 | G19: 29.9 | H19: 3.3 | I19: 7.3 | J19: 288 | M19: 782 | N19: 40.9 | O19: 204 | P19: 3.8 | Q19: 23.3 | R19: 2.2 | S19: 204 | Z19: 36 | AB19: =IF(AND(ISNUMBER(Z19),ISNUMBER(AA19)),IF(Z19-AA19*Factors!$R$10>0,Z19-AA19*Factors!$R$10,""),"") ->  | AC19: 20300 | AD19: 9886100 | AF19: 690200 | AH19: 606970 | AI19: 66990 | AJ19: 7.3 | AK19: 5846400 | AN19: 15874600 | AO19: 830270 | AP19: 4141200 | AQ19: 77140 | AR19: 472990 | AS19: 44660 | AT19: 4141200 | BA19: 730800 | DZ19: 0 | EB19: 0
A20: 2015-09-15 | B20: 19800 | C20: 1070 | G20: 27.5 | H20: 3.9 | I20: 7 | J20: 269 | Z20: 30 | AB20: =IF(AND(ISNUMBER(Z20),ISNUMBER(AA20)),IF(Z20-AA20*Factors!$R$10>0,Z20-AA20*Factors!$R$10,""),"") ->  | AC20: 19800 | AD20: 21186000 | AH20: 544500 | AI20: 77220 | AJ20: 7 | AK20: 5326200 | BA20: 594000 | DZ20: 0 | EB20: 0
A21: 2015-09-16 | B21: 21800 | C21: 1326 | D21: 45.1 | E21: 441 | F21: 6.6 | G21: 29.4 | H21: 2.8 | I21: 6.9 | J21: 291 | Z21: 48 | AB21: =IF(AND(ISNUMBER(Z21),ISNUMBER(AA21)),IF(Z21-AA21*Factors!$R$10>0,Z21-AA21*Factors!$R$10,""),"") ->  | AC21: 21800 | AD21: 28906800 | AE21: 983180 | AF21: 9613800 | AG21: 143880 | AH21: 640920 | AI21: 61040 | AJ21: 6.9 | AK21: 6343800 | BA21: 1046400 | DZ21: 0 | EB21: 0
A22: 2015-09-17 | B22: 24400 | C22: 876 | E22: 90 | G22: 30.4 | H22: 3.1 | I22: 6.8 | J22: 294 | Z22: 28 | AB22: =IF(AND(ISNUMBER(Z22),ISNUMBER(AA22)),IF(Z22-AA22*Factors!$R$10>0,Z22-AA22*Factors!$R$10,""),"") ->  | AC22: 24400 | AD22: 21374400 | AF22: 2196000 | AH22: 741760 | AI22: 75640 | AJ22: 6.8 | AK22: 7173600 | BA22: 683200 | DZ22: 0 | EB22: 0
A23: 2015-09-18 | B23: 23300 | C23: 722 | G23: 29.9 | H23: 2.8 | I23: 6.9 | J23: 298 | Z23: 47 | AB23: =IF(AND(ISNUMBER(Z23),ISNUMBER(AA23)),IF(Z23-AA23*Factors!$R$10>0,Z23-AA23*Factors!$R$10,""),"") ->  | AC23: 23300 | AD23: 16822600 | AH23: 696670 | AI23: 65240 | AJ23: 6.9 | AK23: 6943400 | BA23: 1095100 | DZ23: 0 | EB23: 0
A24: 2015-09-19 | B24: 22100 | C24: 1331 | G24: 26.7 | H24: 2.7 | I24: 6.6 | J24: 285 | Z24: 40 | AA24: 11 | AB24: =IF(AND(ISNUMBER(Z24),ISNUMBER(AA24)),IF(Z24-AA24*Factors!$R$10>0,Z24-AA24*Factors!$R$10,""),"") -> 23.73026435 | AC24: 22100 | AD24: 29415100 | AH24: 590070 | AI24: 59670 | AJ24: 6.6 | AK24: 6298500 | BA24: 884000 | BB24: 243100 | BC24: 3335-11-10T20:12:48.959 | DZ24: 0 | EB24: 0
A25: 2015-09-20 | B25: 22100 | C25: 1496 | E25: 500 | G25: 27.4 | H25: 3.7 | I25: 7 | J25: 289 | Z25: 37 | AB25: =IF(AND(ISNUMBER(Z25),ISNUMBER(AA25)),IF(Z25-AA25*Factors!$R$10>0,Z25-AA25*Factors!$R$10,""),"") ->  | AC25: 22100 | AD25: 33061600 | AF25: 11050000 | AH25: 605540 | AI25: 81770 | AJ25: 7 | AK25: 6386900 | BA25: 817700 | DZ25: 0 | EB25: 0
A26: 2015-09-21 | B26: 21800 | C26: 1237 | E26: 321 | G26: 26.8 | H26: 3 | I26: 7 | J26: 291 | M26: 1106 | N26: 59 | O26: 286 | P26: 2.8 | Q26: 42.1 | R26: 2.9 | S26: 286 | Z26: 33 | AB26: =IF(AND(ISNUMBER(Z26),ISNUMBER(AA26)),IF(Z26-AA26*Factors!$R$10>0,Z26-AA26*Factors!$R$10,""),"") ->  | AC26: 21800 | AD26: 26966600 | AF26: 6997800 | AH26: 584240 | AI26: 65400 | AJ26: 7 | AK26: 6343800 | AN26: 24110800 | AO26: 1286200 | AP26: 6234800 | AQ26: 61040 | AR26: 917780 | AS26: 63220 | AT26: 6234800 | BA26: 719400 | DZ26: 0 | EB26: 0
A27: 2015-09-22 | B27: 16600 | C27: 872 | E27: 488 | G27: 27.4 | H27: 3.2 | J27: 331 | Z27: 46 | AA27: 24 | AB27: =IF(AND(ISNUMBER(Z27),ISNUMBER(AA27)),IF(Z27-AA27*Factors!$R$10>0,Z27-AA27*Factors!$R$10,""),"") -> 10.50239496 | AC27: 16600 | AD27: 14475200 | AF27: 8100800 | AH27: 454840 | AI27: 53120 | AK27: 5494600 | BA27: 763600 | BB27: 398400 | BC27: 2377-04-27T18:09:00.490 | DZ27: 0 | EB27: 0
A28: 2015-09-23 | B28: 16400 | C28: 952 | E28: 441 | G28: 31 | H28: 3.9 | I28: 7.2 | J28: 317 | Z28: 38 | AB28: =IF(AND(ISNUMBER(Z28),ISNUMBER(AA28)),IF(Z28-AA28*Factors!$R$10>0,Z28-AA28*Factors!$R$10,""),"") ->  | AC28: 16400 | AD28: 15612800 | AF28: 7232400 | AH28: 508400 | AI28: 63960 | AJ28: 7.2 | AK28: 5198800 | BA28: 623200 | DZ28: 0 | EB28: 0
A29: 2015-09-24 | B29: 17900 | C29: 963 | E29: 175 | G29: 27.4 | H29: 3.6 | I29: 6.7 | J29: 312 | Z29: 41 | AB29: =IF(AND(ISNUMBER(Z29),ISNUMBER(AA29)),IF(Z29-AA29*Factors!$R$10>0,Z29-AA29*Factors!$R$10,""),"") ->  | AC29: 17900 | AD29: 17237700 | AF29: 3132500 | AH29: 490460 | AI29: 64440 | AJ29: 6.7 | AK29: 5584800 | BA29: 733900 | DZ29: 0 | EB29: 0
A30: 2015-09-25 | B30: 31900 | C30: 648 | G30: 34 | H30: 4.1 | Z30: 55 | AB30: =IF(AND(ISNUMBER(Z30),ISNUMBER(AA30)),IF(Z30-AA30*Factors!$R$10>0,Z30-AA30*Factors!$R$10,""),"") ->  | AC30: 31900 | AD30: 20671200 | AH30: 1084600 | AI30: 130790 | BA30: 1754500 | DZ30: 0 | EB30: 0
A31: 2015-09-26 | B31: 26800 | C31: 630 | G31: 29.1 | H31: 3.8 | I31: 6.8 | J31: 311 | Z31: 10 | AB31: =IF(AND(ISNUMBER(Z31),ISNUMBER(AA31)),IF(Z31-AA31*Factors!$R$10>0,Z31-AA31*Factors!$R$10,""),"") ->  | AC31: 26800 | AD31: 16884000 | AH31: 779880 | AI31: 101840 | AJ31: 6.8 | AK31: 8334800 | BA31: 268000 | DZ31: 0 | EB31: 0
A32: 2015-09-27 | B32: 17600 | C32: 1057 | E32: 312 | G32: 28.8 | H32: 3 | I32: 7 | J32: 288 | Z32: 25 | AB32: =IF(AND(ISNUMBER(Z32),ISNUMBER(AA32)),IF(Z32-AA32*Factors!$R$10>0,Z32-AA32*Factors!$R$10,""),"") ->  | AC32: 17600 | AD32: 18603200 | AF32: 5491200 | AH32: 506880 | AI32: 52800 | AJ32: 7 | AK32: 5068800 | BA32: 440000 | DZ32: 0 | EB32: 0
A33: 2015-09-28 | B33: 17600 | C33: 617 | G33: 30.1 | H33: 3.5 | I33: 7 | J33: 262 | M33: 551 | N33: 68.5 | O33: 123 | P33: 6.4 | Q33: 34.3 | R33: 3.7 | S33: 123 | Z33: 28 | AB33: =IF(AND(ISNUMBER(Z33),ISNUMBER(AA33)),IF(Z33-AA33*Factors!$R$10>0,Z33-AA33*Factors!$R$10,""),"") ->  | AC33: 17600 | AD33: 10859200 | AH33: 529760 | AI33: 61600 | AJ33: 7 | AK33: 4611200 | AN33: 9697600 | AO33: 1205600 | AP33: 2164800 | AQ33: 112640 | AR33: 603680 | AS33: 65120 | AT33: 2164800 | BA33: 492800 | DZ33: 0 | EB33: 0
A34: 2015-09-29 | B34: 18900 | C34: 412 | E34: 94 | G34: 28.4 | H34: 3.1 | I34: 7 | J34: 284 | Z34: 24 | AB34: =IF(AND(ISNUMBER(Z34),ISNUMBER(AA34)),IF(Z34-AA34*Factors!$R$10>0,Z34-AA34*Factors!$R$10,""),"") ->  | AC34: 18900 | AD34: 7786800 | AF34: 1776600 | AH34: 536760 | AI34: 58590 | AJ34: 7 | AK34: 5367600 | BA34: 453600 | DZ34: 0 | EB34: 0
A35: 2015-09-30 | B35: 15100 | C35: 1521 | D35: 48.6 | E35: 450 | F35: 7.5 | G35: 21.5 | H35: 2.2 | I35: 6.8 | J35: 298 | Z35: 10 | AA35: 12 | AB35: =IF(AND(ISNUMBER(Z35),ISNUMBER(AA35)),IF(Z35-AA35*Factors!$R$10>0,Z35-AA35*Factors!$R$10,""),"") ->  | AC35: 15100 | AD35: 22967100 | AE35: 733860 | AF35: 6795000 | AG35: 113250 | AH35: 324650 | AI35: 33220 | AJ35: 6.8 | AK35: 4499800 | BA35: 151000 | BB35: 181200 | DZ35: 0 | EB35: 0
A36: 2015-10-01 | B36: 17500 | C36: 1395 | E36: 280 | G36: 36.5 | H36: 3.1 | I36: 7 | J36: 292 | Z36: 34 | AB36: =IF(AND(ISNUMBER(Z36),ISNUMBER(AA36)),IF(Z36-AA36*Factors!$R$10>0,Z36-AA36*Factors!$R$10,""),"") ->  | AC36: 17500 | AD36: 24412500 | AF36: 4900000 | AH36: 638750 | AI36: 54250 | AJ36: 7 | AK36: 5110000 | BA36: 595000 | DZ36: 0 | EB36: 0
A37: 2015-10-02 | B37: 22900 | C37: 735 | E37: 250 | G37: 26.3 | H37: 3 | I37: 6.8 | J37: 288 | Z37: 31 | AA37: 12 | AB37: =IF(AND(ISNUMBER(Z37),ISNUMBER(AA37)),IF(Z37-AA37*Factors!$R$10>0,Z37-AA37*Factors!$R$10,""),"") -> 13.25119748 | AC37: 22900 | AD37: 16831500 | AF37: 5725000 | AH37: 602270 | AI37: 68700 | AJ37: 6.8 | AK37: 6595200 | BA37: 709900 | BB37: 274800 | BC37: 2730-10-27T10:08:01.242 | DZ37: 0 | EB37: 0
A38: 2015-10-03 | B38: 24300 | C38: 727 | E38: 322 | G38: 26.3 | H38: 2.4 | I38: 6.8 | J38: 266 | Z38: 32 | AB38: =IF(AND(ISNUMBER(Z38),ISNUMBER(AA38)),IF(Z38-AA38*Factors!$R$10>0,Z38-AA38*Factors!$R$10,""),"") ->  | AC38: 24300 | AD38: 17666100 | AF38: 7824600 | AH38: 639090 | AI38: 58320 | AJ38: 6.8 | AK38: 6463800 | BA38: 777600 | DZ38: 0 | EB38: 0
A39: 2015-10-04 | B39: 19800 | C39: 1203 | E39: 313 | G39: 27.3 | H39: 2.9 | I39: 6.9 | J39: 276 | Z39: 37 | AB39: =IF(AND(ISNUMBER(Z39),ISNUMBER(AA39)),IF(Z39-AA39*Factors!$R$10>0,Z39-AA39*Factors!$R$10,""),"") ->  | AC39: 19800 | AD39: 23819400 | AF39: 6197400 | AH39: 540540 | AI39: 57420 | AJ39: 6.9 | AK39: 5464800 | BA39: 732600 | DZ39: 0 | EB39: 0
A40: 2015-10-05 | B40: 16400 | C40: 808 | E40: 275 | G40: 30.2 | H40: 3.2 | I40: 7.1 | J40: 279 | M40: 821 | N40: 54.4 | O40: 145 | P40: 6.1 | Q40: 38.5 | R40: 3.9 | S40: 145 | Z40: 24 | AB40: =IF(AND(ISNUMBER(Z40),ISNUMBER(AA40)),IF(Z40-AA40*Factors!$R$10>0,Z40-AA40*Factors!$R$10,""),"") ->  | AC40: 16400 | AD40: 13251200 | AF40: 4510000 | AH40: 495280 | AI40: 52480 | AJ40: 7.1 | AK40: 4575600 | AN40: 13464400 | AO40: 892160 | AP40: 2378000 | AQ40: 100040 | AR40: 631400 | AS40: 63960 | AT40: 2378000 | BA40: 393600 | DZ40: 0 | EB40: 0
A41: 2015-10-06 | B41: 18400 | C41: 529 | E41: 297 | G41: 23.3 | H41: 3.3 | I41: 6.7 | J41: 237 | Z41: 10 | AB41: =IF(AND(ISNUMBER(Z41),ISNUMBER(AA41)),IF(Z41-AA41*Factors!$R$10>0,Z41-AA41*Factors!$R$10,""),"") ->  | AC41: 18400 | AD41: 9733600 | AF41: 5464800 | AH41: 428720 | AI41: 60720 | AJ41: 6.7 | AK41: 4360800 | BA41: 184000 | DZ41: 0 | EB41: 0
A42: 2015-10-07 | B42: 18300 | C42: 629 | D42: 34.6 | E42: 210 | F42: 3.7 | G42: 26.2 | H42: 2.7 | I42: 7.3 | J42: 241 | Z42: 34 | AB42: =IF(AND(ISNUMBER(Z42),ISNUMBER(AA42)),IF(Z42-AA42*Factors!$R$10>0,Z42-AA42*Factors!$R$10,""),"") ->  | AC42: 18300 | AD42: 11510700 | AE42: 633180 | AF42: 3843000 | AG42: 67710 | AH42: 479460 | AI42: 49410 | AJ42: 7.3 | AK42: 4410300 | BA42: 622200 | DZ42: 0 | EB42: 0
A43: 2015-10-08 | B43: 18800 | C43: 1123 | E43: 235 | G43: 26.9 | H43: 3 | I43: 7.2 | J43: 281 | Z43: 38 | AB43: =IF(AND(ISNUMBER(Z43),ISNUMBER(AA43)),IF(Z43-AA43*Factors!$R$10>0,Z43-AA43*Factors!$R$10,""),"") ->  | AC43: 18800 | AD43: 21112400 | AF43: 4418000 | AH43: 505720 | AI43: 56400 | AJ43: 7.2 | AK43: 5282800 | BA43: 714400 | DZ43: 0 | EB43: 0
A44: 2015-10-09 | B44: 16500 | C44: 538 | E44: 143 | G44: 23 | H44: 2.5 | I44: 6.4 | J44: 231 | Z44: 25 | AB44: =IF(AND(ISNUMBER(Z44),ISNUMBER(AA44)),IF(Z44-AA44*Factors!$R$10>0,Z44-AA44*Factors!$R$10,""),"") ->  | AC44: 16500 | AD44: 8877000 | AF44: 2359500 | AH44: 379500 | AI44: 41250 | AJ44: 6.4 | AK44: 3811500 | BA44: 412500 | DZ44: 0 | EB44: 0
A45: 2015-10-10 | B45: 19200 | C45: 612 | E45: 166 | G45: 15.4 | H45: 1.2 | I45: 6.7 | J45: 191 | Z45: 53 | AB45: =IF(AND(ISNUMBER(Z45),ISNUMBER(AA45)),IF(Z45-AA45*Factors!$R$10>0,Z45-AA45*Factors!$R$10,""),"") ->  | AC45: 19200 | AD45: 11750400 | AF45: 3187200 | AH45: 295680 | AI45: 23040 | AJ45: 6.7 | AK45: 3667200 | BA45: 1017600 | DZ45: 0 | EB45: 0
A46: 2015-10-11 | B46: 20300 | E46: 344 | G46: 30.3 | H46: 3.5 | I46: 6.9 | J46: 284 | Z46: 14 | AB46: =IF(AND(ISNUMBER(Z46),ISNUMBER(AA46)),IF(Z46-AA46*Factors!$R$10>0,Z46-AA46*Factors!$R$10,""),"") ->  | AC46: 20300 | AF46: 6983200 | AH46: 615090 | AI46: 71050 | AJ46: 6.9 | AK46: 5765200 | BA46: 284200 | DZ46: 0 | EB46: 0
A47: 2015-10-12 | B47: 19800 | C47: 768 | E47: 187 | G47: 30.1 | H47: 3.7 | I47: 7.3 | J47: 303 | M47: 1171 | N47: 55.5 | O47: 93 | P47: 7.9 | Q47: 36.9 | R47: 4.2 | S47: 93 | Z47: 30 | AB47: =IF(AND(ISNUMBER(Z47),ISNUMBER(AA47)),IF(Z47-AA47*Factors!$R$10>0,Z47-AA47*Factors!$R$10,""),"") ->  | AC47: 19800 | AD47: 15206400 | AF47: 3702600 | AH47: 595980 | AI47: 73260 | AJ47: 7.3 | AK47: 5999400 | AN47: 23185800 | AO47: 1098900 | AP47: 1841400 | AQ47: 156420 | AR47: 730620 | AS47: 83160 | AT47: 1841400 | BA47: 594000 | DZ47: 0 | EB47: 0
A48: 2015-10-13 | B48: 21800 | C48: 1400 | E48: 267 | G48: 29.7 | H48: 3.4 | I48: 6.6 | J48: 303 | Z48: 22 | AB48: =IF(AND(ISNUMBER(Z48),ISNUMBER(AA48)),IF(Z48-AA48*Factors!$R$10>0,Z48-AA48*Factors!$R$10,""),"") ->  | AC48: 21800 | AD48: 30520000 | AF48: 5820600 | AH48: 647460 | AI48: 74120 | AJ48: 6.6 | AK48: 6605400 | BA48: 479600 | DZ48: 0 | EB48: 0
A49: 2015-10-14 | B49: 24400 | E49: 321 | G49: 28.3 | H49: 3.1 | I49: 7 | J49: 295 | Z49: 31 | AB49: =IF(AND(ISNUMBER(Z49),ISNUMBER(AA49)),IF(Z49-AA49*Factors!$R$10>0,Z49-AA49*Factors!$R$10,""),"") ->  | AC49: 24400 | AF49: 7832400 | AH49: 690520 | AI49: 75640 | AJ49: 7 | AK49: 7198000 | BA49: 756400 | DZ49: 0 | EB49: 0
A50: 2015-10-15 | B50: 23300 | C50: 882 | E50: 294 | G50: 21.1 | H50: 2.5 | I50: 7.3 | J50: 298 | Z50: 52 | AB50: =IF(AND(ISNUMBER(Z50),ISNUMBER(AA50)),IF(Z50-AA50*Factors!$R$10>0,Z50-AA50*Factors!$R$10,""),"") ->  | AC50: 23300 | AD50: 20550600 | AF50: 6850200 | AH50: 491630 | AI50: 58250 | AJ50: 7.3 | AK50: 6943400 | BA50: 1211600 | DZ50: 0 | EB50: 0
A51: 2015-10-16 | B51: 22100 | C51: 1060 | E51: 431 | G51: 28.1 | H51: 2.7 | I51: 6.9 | J51: 288 | Z51: 16 | AB51: =IF(AND(ISNUMBER(Z51),ISNUMBER(AA51)),IF(Z51-AA51*Factors!$R$10>0,Z51-AA51*Factors!$R$10,""),"") ->  | AC51: 22100 | AD51: 23426000 | AF51: 9525100 | AH51: 621010 | AI51: 59670 | AJ51: 6.9 | AK51: 6364800 | BA51: 353600 | DZ51: 0 | EB51: 0
A52: 2015-10-17 | B52: 22100 | C52: 1210 | E52: 354 | G52: 25 | H52: 3 | I52: 6.7 | J52: 268 | Z52: 32 | AB52: =IF(AND(ISNUMBER(Z52),ISNUMBER(AA52)),IF(Z52-AA52*Factors!$R$10>0,Z52-AA52*Factors!$R$10,""),"") ->  | AC52: 22100 | AD52: 26741000 | AF52: 7823400 | AH52: 552500 | AI52: 66300 | AJ52: 6.7 | AK52: 5922800 | BA52: 707200 | DZ52: 0 | EB52: 0
A53: 2015-10-18 | B53: 21800 | C53: 802 | E53: 113 | G53: 23.5 | H53: 2.1 | I53: 6.7 | J53: 245 | Z53: 37 | AB53: =IF(AND(ISNUMBER(Z53),ISNUMBER(AA53)),IF(Z53-AA53*Factors!$R$10>0,Z53-AA53*Factors!$R$10,""),"") ->  | AC53: 21800 | AD53: 17483600 | AF53: 2463400 | AH53: 512300 | AI53: 45780 | AJ53: 6.7 | AK53: 5341000 | BA53: 806600 | DZ53: 0 | EB53: 0
A54: 2015-10-19 | B54: 16600 | C54: 607 | E54: 180 | G54: 33.6 | H54: 3.8 | I54: 7.5 | J54: 292 | M54: 543 | N54: 65 | O54: 170 | P54: 8.3 | Q54: 39.5 | R54: 4.3 | S54: 170 | Z54: 27 | AB54: =IF(AND(ISNUMBER(Z54),ISNUMBER(AA54)),IF(Z54-AA54*Factors!$R$10>0,Z54-AA54*Factors!$R$10,""),"") ->  | AC54: 16600 | AD54: 10076200 | AF54: 2988000 | AH54: 557760 | AI54: 63080 | AJ54: 7.5 | AK54: 4847200 | AN54: 9013800 | AO54: 1079000 | AP54: 2822000 | AQ54: 137780 | AR54: 655700 | AS54: 71380 | AT54: 2822000 | BA54: 448200 | DZ54: 0 | EB54: 0
A55: 2015-10-20 | B55: 16400 | C55: 1188 | E55: 323 | G55: 27.5 | H55: 4 | I55: 6.9 | J55: 306 | Z55: 39 | AB55: =IF(AND(ISNUMBER(Z55),ISNUMBER(AA55)),IF(Z55-AA55*Factors!$R$10>0,Z55-AA55*Factors!$R$10,""),"") ->  | AC55: 16400 | AD55: 19483200 | AF55: 5297200 | AH55: 451000 | AI55: 65600 | AJ55: 6.9 | AK55: 5018400 | BA55: 639600 | DZ55: 0 | EB55: 0
A56: 2015-10-21 | B56: 17900 | C56: 799 | D56: 55.5 | E56: 225 | F56: 5.1 | G56: 29.3 | H56: 3.5 | I56: 7.2 | J56: 301 | Z56: 40 | AA56: 12 | AB56: =IF(AND(ISNUMBER(Z56),ISNUMBER(AA56)),IF(Z56-AA56*Factors!$R$10>0,Z56-AA56*Factors!$R$10,""),"") -> 22.25119748 | AC56: 17900 | AD56: 14302100 | AE56: 993450 | AF56: 4027500 | AG56: 91290 | AH56: 524470 | AI56: 62650 | AJ56: 7.2 | AK56: 5387900 | BA56: 716000 | BB56: 214800 | BC56: 2990-06-29T10:26:10.927 | DZ56: 0 | EB56: 0
A57: 2015-10-22 | B57: 31900 | C57: 1560 | E57: 128 | G57: 27.4 | H57: 3.4 | I57: 7 | J57: 341 | Z57: 39 | AA57: 12 | AB57: =IF(AND(ISNUMBER(Z57),ISNUMBER(AA57)),IF(Z57-AA57*Factors!$R$10>0,Z57-AA57*Factors!$R$10,""),"") -> 21.25119748 | AC57: 31900 | AD57: 49764000 | AF57: 4083200 | AH57: 874060 | AI57: 108460 | AJ57: 7 | AK57: 10877900 | BA57: 1244100 | BB57: 382800 | BC57: 3756-01-22T04:47:19.808 | DZ57: 0 | EB57: 0
A58: 2015-10-23 | B58: 26800 | C58: 531 | E58: 123 | G58: 23.8 | H58: 2.1 | I58: 6.8 | J58: 271 | Z58: 52 | AB58: =IF(AND(ISNUMBER(Z58),ISNUMBER(AA58)),IF(Z58-AA58*Factors!$R$10>0,Z58-AA58*Factors!$R$10,""),"") ->  | AC58: 26800 | AD58: 14230800 | AF58: 3296400 | AH58: 637840 | AI58: 56280 | AJ58: 6.8 | AK58: 7262800 | BA58: 1393600 | DZ58: 0 | EB58: 0
A59: 2015-10-24 | B59: 17600 | C59: 763 | E59: 303 | G59: 29.7 | H59: 3 | I59: 6.8 | J59: 290 | Z59: 27 | AA59: 25 | AB59: =IF(AND(ISNUMBER(Z59),ISNUMBER(AA59)),IF(Z59-AA59*Factors!$R$10>0,Z59-AA59*Factors!$R$10,""),"") ->  | AC59: 17600 | AD59: 13428800 | AF59: 5332800 | AH59: 522720 | AI59: 52800 | AJ59: 6.8 | AK59: 5104000 | BA59: 475200 | BB59: 440000 | DZ59: 0 | EB59: 0
A60: 2015-10-25 | B60: 17600 | C60: 1209 | E60: 61 | G60: 26.9 | H60: 4.9 | I60: 7.3 | J60: 263 | Z60: 15 | AB60: =IF(AND(ISNUMBER(Z60),ISNUMBER(AA60)),IF(Z60-AA60*Factors!$R$10>0,Z60-AA60*Factors!$R$10,""),"") ->  | AC60: 17600 | AD60: 21278400 | AF60: 1073600 | AH60: 473440 | AI60: 86240 | AJ60: 7.3 | AK60: 4628800 | BA60: 264000 | DZ60: 0 | EB60: 0
A61: 2015-10-26 | B61: 18900 | C61: 684 | E61: 147 | G61: 33.8 | H61: 3.4 | I61: 7 | J61: 303 | M61: 803 | N61: 59.5 | O61: 97 | P61: 4.7 | Q61: 27.1 | R61: 3 | S61: 97 | Z61: 28 | AB61: =IF(AND(ISNUMBER(Z61),ISNUMBER(AA61)),IF(Z61-AA61*Factors!$R$10>0,Z61-AA61*Factors!$R$10,""),"") ->  | AC61: 18900 | AD61: 12927600 | AF61: 2778300 | AH61: 638820 | AI61: 64260 | AJ61: 7 | AK61: 5726700 | AN61: 15176700 | AO61: 1124550 | AP61: 1833300 | AQ61: 88830 | AR61: 512190 | AS61: 56700 | AT61: 1833300 | BA61: 529200 | DZ61: 0 | EB61: 0
A62: 2015-10-27 | B62: 15100 | C62: 657 | E62: 125 | G62: 25.2 | H62: 3.7 | I62: 7.4 | J62: 342 | Z62: 27 | AB62: =IF(AND(ISNUMBER(Z62),ISNUMBER(AA62)),IF(Z62-AA62*Factors!$R$10>0,Z62-AA62*Factors!$R$10,""),"") ->  | AC62: 15100 | AD62: 9920700 | AF62: 1887500 | AH62: 380520 | AI62: 55870 | AJ62: 7.4 | AK62: 5164200 | BA62: 407700 | DZ62: 0 | EB62: 0
A63: 2015-10-28 | B63: 17500 | C63: 529 | D63: 38.8 | E63: 98 | F63: 5.3 | G63: 27.4 | H63: 3.1 | I63: 7.2 | J63: 287 | Z63: 33 | AB63: =IF(AND(ISNUMBER(Z63),ISNUMBER(AA63)),IF(Z63-AA63*Factors!$R$10>0,Z63-AA63*Factors!$R$10,""),"") ->  | AC63: 17500 | AD63: 9257500 | AE63: 679000 | AF63: 1715000 | AG63: 92750 | AH63: 479500 | AI63: 54250 | AJ63: 7.2 | AK63: 5022500 | BA63: 577500 | DZ63: 0 | EB63: 0
A64: 2015-10-29 | B64: 15930 | C64: 664 | E64: 213 | G64: 21.2 | H64: 2.8 | I64: 7 | J64: 324 | Z64: 35 | AB64: =IF(AND(ISNUMBER(Z64),ISNUMBER(AA64)),IF(Z64-AA64*Factors!$R$10>0,Z64-AA64*Factors!$R$10,""),"") ->  | AC64: 15930 | AD64: 10577520 | AF64: 3393090 | AH64: 337716 | AI64: 44604 | AJ64: 7 | AK64: 5161320 | BA64: 557550 | DZ64: 0 | EB64: 0
A65: 2015-10-30 | B65: 13600 | C65: 828 | E65: 154 | G65: 24 | H65: 3.2 | I65: 7.1 | J65: 305 | Z65: 30 | AA65: 12 | AB65: =IF(AND(ISNUMBER(Z65),ISNUMBER(AA65)),IF(Z65-AA65*Factors!$R$10>0,Z65-AA65*Factors!$R$10,""),"") -> 12.25119748 | AC65: 13600 | AD65: 11260800 | AF65: 2094400 | AH65: 326400 | AI65: 43520 | AJ65: 7.1 | AK65: 4148000 | BA65: 408000 | BB65: 163200 | BC65: 2356-03-05T06:51:24.056 | DZ65: 0 | EB65: 0
A66: 2015-10-31 | B66: 14100 | C66: 1142 | E66: 83 | G66: 26.3 | H66: 4.4 | I66: 7 | J66: 299 | Z66: 32 | AB66: =IF(AND(ISNUMBER(Z66),ISNUMBER(AA66)),IF(Z66-AA66*Factors!$R$10>0,Z66-AA66*Factors!$R$10,""),"") ->  | AC66: 14100 | AD66: 16102200 | AF66: 1170300 | AH66: 370830 | AI66: 62040 | AJ66: 7 | AK66: 4215900 | BA66: 451200 | DZ66: 0 | EB66: 0
A67: 2015-11-01 | B67: 17000 | C67: 956 | E67: 379 | G67: 30.2 | H67: 5.3 | I67: 7.2 | J67: 327 | Z67: 23 | AB67: =IF(AND(ISNUMBER(Z67),ISNUMBER(AA67)),IF(Z67-AA67*Factors!$R$10>0,Z67-AA67*Factors!$R$10,""),"") ->  | AC67: 17000 | AD67: 16252000 | AF67: 6443000 | AH67: 513400 | AI67: 90100 | AJ67: 7.2 | AK67: 5559000 | BA67: 391000 | DZ67: 0 | EB67: 0
A68: 2015-11-02 | B68: 18900 | C68: 715 | E68: 163 | I68: 7.3 | J68: 322 | M68: 535 | N68: 69.5 | O68: 37 | P68: 12.5 | Q68: 26.8 | R68: 3.5 | S68: 37 | Z68: 30 | AB68: =IF(AND(ISNUMBER(Z68),ISNUMBER(AA68)),IF(Z68-AA68*Factors!$R$10>0,Z68-AA68*Factors!$R$10,""),"") ->  | AC68: 18900 | AD68: 13513500 | AF68: 3080700 | AJ68: 7.3 | AK68: 6085800 | AN68: 10111500 | AO68: 1313550 | AP68: 699300 | AQ68: 236250 | AR68: 506520 | AS68: 66150 | AT68: 699300 | BA68: 567000 | DZ68: 0 | EB68: 0
A69: 2015-11-03 | B69: 19900 | C69: 1064 | E69: 279 | G69: 26.7 | H69: 3.7 | I69: 7.5 | J69: 276 | Z69: 33 | AB69: =IF(AND(ISNUMBER(Z69),ISNUMBER(AA69)),IF(Z69-AA69*Factors!$R$10>0,Z69-AA69*Factors!$R$10,""),"") ->  | AC69: 19900 | AD69: 21173600 | AF69: 5552100 | AH69: 531330 | AI69: 73630 | AJ69: 7.5 | AK69: 5492400 | BA69: 656700 | DZ69: 0 | EB69: 0
A70: 2015-11-04 | B70: 20300 | C70: 639 | D70: 56.5 | E70: 146 | F70: 7.3 | G70: 26.6 | H70: 3.2 | I70: 7.7 | J70: 315 | S70: =IF(ISBLANK(O70),"",IF(ISBLANK(L70),O70,L70*O70/B70)) ->  | Z70: 32 | AA70: 16 | AB70: =IF(AND(ISNUMBER(Z70),ISNUMBER(AA70)),IF(Z70-AA70*Factors!$R$10>0,Z70-AA70*Factors!$R$10,""),"") -> 8.33492997 | AC70: 20300 | AD70: 12971700 | AE70: 1146950 | AF70: 2963800 | AG70: 148190 | AH70: 539980 | AI70: 64960 | AJ70: 7.7 | AK70: 6394500 | BA70: 649600 | BB70: 324800 | BC70: 2363-04-01T01:52:53.171 | DZ70: 0 | EB70: 0
A71: 2015-11-05 | B71: 20800 | C71: 1098 | E71: 274 | G71: 29.5 | H71: 4.2 | I71: 7.3 | J71: 282 | X71: =IF(OR(T71="",U71=""),"",T71*U71*10000/B71) ->  | Y71: =IF(OR(W71="",X71=""),"",X71*W71/100) ->  | Z71: 27 | AB71: =IF(AND(ISNUMBER(Z71),ISNUMBER(AA71)),IF(Z71-AA71*Factors!$R$10>0,Z71-AA71*Factors!$R$10,""),"") ->  | AC71: =B71 -> 20800 | AD71: =IF(ISNUMBER(C71),B71*C71,"") -> 22838400 | AE71: =IF(ISNUMBER(D71),$B71*D71,"") ->  | AF71: =IF(ISNUMBER(E71),$B71*E71,"") -> 5699200 | AG71: =IF(ISNUMBER(F71),$B71*F71,"") ->  | AH71: =IF(ISNUMBER(G71),$B71*G71,"") -> 613600 | AI71: =IF(ISNUMBER(H71),$B71*H71,"") -> 87360 | AJ71: =IF(ISNUMBER(I71),I71,"") -> 7.3 | AK71: =IF(ISNUMBER(J71),$B71*J71,"") -> 5865600 | AL71: =IF(ISNUMBER(K71),K71,"") ->  | AM71: =IF(ISNUMBER(L71),L71,"") ->  | AN71: =IF(ISNUMBER(M71),$B71*M71,"") ->  | AO71: =IF(ISNUMBER(N71),$B71*N71,"") ->  | AP71: =IF(ISNUMBER(O71),$B71*O71,"") ->  | AQ71: =IF(ISNUMBER(P71),$B71*P71,"") ->  | AR71: =IF(ISNUMBER(Q71),$B71*Q71,"") ->  | AS71: =IF(ISNUMBER(R71),$B71*R71,"") ->  | AT71: =IF(ISNUMBER(S71),$B71*S71,"") ->  | AU71: =IF(ISNUMBER(T71),T71,"") ->  | AV71: =IF(ISNUMBER(U71),$B71*U71,"") ->  | AW71: =IF(ISNUMBER(V71),$B71*V71,"") ->  | AX71: =IF(ISNUMBER(W71),$B71*W71,"") ->  | AY71: =IF(ISNUMBER(X71),$B71*X71,"") ->  | AZ71: =IF(ISNUMBER(Y71),$B71*Y71,"") ->  | BA71: =IF(ISNUMBER(Z71),$B71*Z71,"") -> 561600 | BB71: =IF(ISNUMBER(AA71),$B71*AA71,"") ->  | BC71: =IF(ISNUMBER(AB71),$B71*AB71,"") ->  | DZ71: 0 | EB71: 0
A72: 2015-11-06 | B72: 20900 | C72: 1453 | E72: 473 | G72: 25.9 | H72: 3.5 | I72: 6.4 | J72: 297 | Z72: 46 | AB72: =IF(AND(ISNUMBER(Z72),ISNUMBER(AA72)),IF(Z72-AA72*Factors!$R$10>0,Z72-AA72*Factors!$R$10,""),"") ->  | AC72: 20900 | AD72: 30367700 | AF72: 9885700 | AH72: 541310 | AI72: 73150 | AJ72: 6.4 | AK72: 6207300 | BA72: 961400 | DZ72: 0 | EB72: 0
A73: 2015-11-07 | B73: 25300 | C73: 1083 | E73: 447 | G73: 27.6 | H73: 3.5 | I73: 7.2 | J73: 309 | Z73: 32 | AB73: =IF(AND(ISNUMBER(Z73),ISNUMBER(AA73)),IF(Z73-AA73*Factors!$R$10>0,Z73-AA73*Factors!$R$10,""),"") ->  | AC73: 25300 | AD73: 27399900 | AF73: 11309100 | AH73: 698280 | AI73: 88550 | AJ73: 7.2 | AK73: 7817700 | BA73: 809600 | DZ73: 0 | EB73: 0
A74: 2015-11-08 | B74: 23100 | C74: 1479 | E74: 300 | G74: 30.9 | H74: 3.9 | I74: 7.3 | J74: 293 | Z74: 30 | AB74: =IF(AND(ISNUMBER(Z74),ISNUMBER(AA74)),IF(Z74-AA74*Factors!$R$10>0,Z74-AA74*Factors!$R$10,""),"") ->  | AC74: 23100 | AD74: 34164900 | AF74: 6930000 | AH74: 713790 | AI74: 90090 | AJ74: 7.3 | AK74: 6768300 | BA74: 693000 | DZ74: 0 | EB74: 0
A75: 2015-11-09 | B75: 18600 | C75: 750 | E75: 170 | G75: 31.6 | H75: 4.3 | I75: 7.4 | J75: 310 | M75: 572 | N75: 62 | O75: 105 | P75: 7.4 | Q75: 27.1 | R75: 2.5 | S75: 105 | Z75: 27 | AB75: =IF(AND(ISNUMBER(Z75),ISNUMBER(AA75)),IF(Z75-AA75*Factors!$R$10>0,Z75-AA75*Factors!$R$10,""),"") ->  | AC75: 18600 | AD75: 13950000 | AF75: 3162000 | AH75: 587760 | AI75: 79980 | AJ75: 7.4 | AK75: 5766000 | AN75: 10639200 | AO75: 1153200 | AP75: 1953000 | AQ75: 137640 | AR75: 504060 | AS75: 46500 | AT75: 1953000 | BA75: 502200 | DZ75: 0 | EB75: 0
A76: 2015-11-10 | B76: 20100 | E76: 278 | G76: 29.1 | H76: 3.8 | I76: 7.1 | J76: 301 | Z76: 30 | AB76: =IF(AND(ISNUMBER(Z76),ISNUMBER(AA76)),IF(Z76-AA76*Factors!$R$10>0,Z76-AA76*Factors!$R$10,""),"") ->  | AC76: 20100 | AF76: 5587800 | AH76: 584910 | AI76: 76380 | AJ76: 7.1 | AK76: 6050100 | BA76: 603000 | DZ76: 0 | EB76: 0
A77: 2015-11-11 | B77: 18800 | D77: 33.2 | E77: 322 | F77: 6.1 | G77: 31.8 | H77: 4.2 | I77: 7.5 | J77: 282 | Z77: 26 | AA77: 16 | AB77: =IF(AND(ISNUMBER(Z77),ISNUMBER(AA77)),IF(Z77-AA77*Factors!$R$10>0,Z77-AA77*Factors!$R$10,""),"") -> 2.33492997 | AC77: 18800 | AE77: 624160 | AF77: 6053600 | AG77: 114680 | AH77: 597840 | AI77: 78960 | AJ77: 7.5 | AK77: 5301600 | BA77: 488800 | BB77: 300800 | BC77: 2020-03-06T16:24:09.045 | DZ77: 0 | EB77: 0
A78: 2015-11-12 | B78: 18800 | C78: 838 | E78: 288 | G78: 34.3 | H78: 1.8 | I78: 7.6 | J78: 255 | Z78: 33 | AB78: =IF(AND(ISNUMBER(Z78),ISNUMBER(AA78)),IF(Z78-AA78*Factors!$R$10>0,Z78-AA78*Factors!$R$10,""),"") ->  | AC78: 18800 | AD78: 15754400 | AF78: 5414400 | AH78: 644840 | AI78: 33840 | AJ78: 7.6 | AK78: 4794000 | BA78: 620400 | DZ78: 0 | EB78: 0
A79: 2015-11-13 | B79: 20400 | C79: 790 | E79: 324 | G79: 27.9 | H79: 2.5 | I79: 6.6 | J79: 289 | Z79: 29 | AB79: =IF(AND(ISNUMBER(Z79),ISNUMBER(AA79)),IF(Z79-AA79*Factors!$R$10>0,Z79-AA79*Factors!$R$10,""),"") ->  | AC79: 20400 | AD79: 16116000 | AF79: 6609600 | AH79: 569160 | AI79: 51000 | AJ79: 6.6 | AK79: 5895600 | BA79: 591600 | DZ79: 0 | EB79: 0
A80: 2015-11-14 | B80: 28600 | C80: 799 | E80: 383 | G80: 28.9 | H80: 3.5 | I80: 6.3 | J80: 273 | Z80: 22 | AB80: =IF(AND(ISNUMBER(Z80),ISNUMBER(AA80)),IF(Z80-AA80*Factors!$R$10>0,Z80-AA80*Factors!$R$10,""),"") ->  | AC80: 28600 | AD80: 22851400 | AF80: 10953800 | AH80: 826540 | AI80: 100100 | AJ80: 6.3 | AK80: 7807800 | BA80: 629200 | DZ80: 0 | EB80: 0
A81: 2015-11-15 | B81: 27000 | C81: 680 | E81: 419 | G81: 25.9 | H81: 2.4 | I81: 7.4 | J81: 235 | Z81: 25 | AB81: =IF(AND(ISNUMBER(Z81),ISNUMBER(AA81)),IF(Z81-AA81*Factors!$R$10>0,Z81-AA81*Factors!$R$10,""),"") ->  | AC81: 27000 | AD81: 18360000 | AF81: 11313000 | AH81: 699300 | AI81: 64800 | AJ81: 7.4 | AK81: 6345000 | BA81: 675000 | DZ81: 0 | EB81: 0
A82: 2015-11-16 | B82: 27000 | C82: 770 | E82: 328 | G82: 28.4 | H82: 4.2 | I82: 7.4 | J82: 237 | M82: 516 | O82: 168 | Q82: 25.9 | R82: 2.8 | S82: 168 | Z82: 32 | AB82: =IF(AND(ISNUMBER(Z82),ISNUMBER(AA82)),IF(Z82-AA82*Factors!$R$10>0,Z82-AA82*Factors!$R$10,""),"") ->  | AC82: 27000 | AD82: 20790000 | AF82: 8856000 | AH82: 766800 | AI82: 113400 | AJ82: 7.4 | AK82: 6399000 | AN82: 13932000 | AP82: 4536000 | AR82: 699300 | AS82: 75600 | AT82: 4536000 | BA82: 864000 | DZ82: 0 | EB82: 0
A83: 2015-11-17 | B83: 29000 | E83: 232 | G83: 25.4 | H83: 3 | I83: 7.5 | J83: 171 | Z83: 30 | AB83: =IF(AND(ISNUMBER(Z83),ISNUMBER(AA83)),IF(Z83-AA83*Factors!$R$10>0,Z83-AA83*Factors!$R$10,""),"") ->  | AC83: 29000 | AF83: 6728000 | AH83: 736600 | AI83: 87000 | AJ83: 7.5 | AK83: 4959000 | BA83: 870000 | DZ83: 0 | EB83: 0
A84: 2015-11-18 | B84: 15420 | C84: 1387 | E84: 403 | F84: 7.2 | G84: 25.7 | H84: 3.1 | I84: 7.4 | J84: 224 | Z84: 28 | AB84: =IF(AND(ISNUMBER(Z84),ISNUMBER(AA84)),IF(Z84-AA84*Factors!$R$10>0,Z84-AA84*Factors!$R$10,""),"") ->  | AC84: 15420 | AD84: 21387540 | AF84: 6214260 | AG84: 111024 | AH84: 396294 | AI84: 47802 | AJ84: 7.4 | AK84: 3454080 | BA84: 431760 | DZ84: 0 | EB84: 0
A85: 2015-11-19 | B85: 18240 | C85: 1169 | E85: 454 | G85: 25.6 | H85: 2.8 | I85: 6.8 | J85: 243 | Z85: 19 | AB85: =IF(AND(ISNUMBER(Z85),ISNUMBER(AA85)),IF(Z85-AA85*Factors!$R$10>0,Z85-AA85*Factors!$R$10,""),"") ->  | AC85: 18240 | AD85: 21322560 | AF85: 8280960 | AH85: 466944 | AI85: 51072 | AJ85: 6.8 | AK85: 4432320 | BA85: 346560 | DZ85: 0 | EB85: 0
A86: 2015-11-20 | B86: 15930 | C86: 797 | E86: 388 | I86: 6.9 | J86: 227 | Z86: 11 | AB86: =IF(AND(ISNUMBER(Z86),ISNUMBER(AA86)),IF(Z86-AA86*Factors!$R$10>0,Z86-AA86*Factors!$R$10,""),"") ->  | AC86: 15930 | AD86: 12696210 | AF86: 6180840 | AJ86: 6.9 | AK86: 3616110 | BA86: 175230 | DZ86: 0 | EB86: 0
A87: 2015-11-21 | B87: 13600 | C87: 748 | E87: 335 | G87: 26.6 | H87: 3.2 | I87: 6.9 | J87: 233 | Z87: 26 | AB87: =IF(AND(ISNUMBER(Z87),ISNUMBER(AA87)),IF(Z87-AA87*Factors!$R$10>0,Z87-AA87*Factors!$R$10,""),"") ->  | AC87: 13600 | AD87: 10172800 | AF87: 4556000 | AH87: 361760 | AI87: 43520 | AJ87: 6.9 | AK87: 3168800 | BA87: 353600 | DZ87: 0 | EB87: 0
A88: 2015-11-22 | B88: 14100 | C88: 1464 | E88: 289 | G88: 27.1 | H88: 3.2 | I88: 7.4 | J88: 269 | Z88: 14 | AB88: =IF(AND(ISNUMBER(Z88),ISNUMBER(AA88)),IF(Z88-AA88*Factors!$R$10>0,Z88-AA88*Factors!$R$10,""),"") ->  | AC88: 14100 | AD88: 20642400 | AF88: 4074900 | AH88: 382110 | AI88: 45120 | AJ88: 7.4 | AK88: 3792900 | BA88: 197400 | DZ88: 0 | EB88: 0
A89: 2015-11-23 | B89: 13500 | C89: 660 | E89: 209 | G89: 26.4 | H89: 2.8 | I89: 7.1 | J89: 233 | M89: 409 | N89: 55.5 | O89: 102 | P89: 5.3 | Q89: 26 | R89: 3.1 | S89: 102 | Z89: 25 | AB89: =IF(AND(ISNUMBER(Z89),ISNUMBER(AA89)),IF(Z89-AA89*Factors!$R$10>0,Z89-AA89*Factors!$R$10,""),"") ->  | AC89: 13500 | AD89: 8910000 | AF89: 2821500 | AH89: 356400 | AI89: 37800 | AJ89: 7.1 | AK89: 3145500 | AN89: 5521500 | AO89: 749250 | AP89: 1377000 | AQ89: 71550 | AR89: 351000 | AS89: 41850 | AT89: 1377000 | BA89: 337500 | DZ89: 0 | EB89: 0
A90: 2015-11-24 | B90: 12800 | C90: 921 | E90: 275 | G90: 36 | H90: 3.6 | I90: 7.2 | J90: 234 | Z90: 29 | AB90: =IF(AND(ISNUMBER(Z90),ISNUMBER(AA90)),IF(Z90-AA90*Factors!$R$10>0,Z90-AA90*Factors!$R$10,""),"") ->  | AC90: 12800 | AD90: 11788800 | AF90: 3520000 | AH90: 460800 | AI90: 46080 | AJ90: 7.2 | AK90: 2995200 | BA90: 371200 | DZ90: 0 | EB90: 0
A91: 2015-11-25 | B91: 13300 | C91: 687 | D91: 55.5 | E91: 190 | F91: 7.1 | G91: 28.8 | H91: 3.4 | I91: 7.4 | J91: 219 | Z91: 31 | AB91: =IF(AND(ISNUMBER(Z91),ISNUMBER(AA91)),IF(Z91-AA91*Factors!$R$10>0,Z91-AA91*Factors!$R$10,""),"") ->  | AC91: 13300 | AD91: 9137100 | AE91: 738150 | AF91: 2527000 | AG91: 94430 | AH91: 383040 | AI91: 45220 | AJ91: 7.4 | AK91: 2912700 | BA91: 412300 | DZ91: 0 | EB91: 0
A92: 2015-11-26 | B92: 13400 | C92: 919 | E92: 248 | G92: 26.4 | H92: 2.8 | I92: 7.3 | J92: 249 | Z92: 24 | AB92: =IF(AND(ISNUMBER(Z92),ISNUMBER(AA92)),IF(Z92-AA92*Factors!$R$10>0,Z92-AA92*Factors!$R$10,""),"") ->  | AC92: 13400 | AD92: 12314600 | AF92: 3323200 | AH92: 353760 | AI92: 37520 | AJ92: 7.3 | AK92: 3336600 | BA92: 321600 | DZ92: 0
A93: 2015-11-27 | B93: 13300 | C93: 740 | E93: 130 | G93: 25.6 | H93: 3.5 | I93: 7.1 | J93: 258 | Z93: 10 | AB93: =IF(AND(ISNUMBER(Z93),ISNUMBER(AA93)),IF(Z93-AA93*Factors!$R$10>0,Z93-AA93*Factors!$R$10,""),"") ->  | AC93: 13300 | AD93: 9842000 | AF93: 1729000 | AH93: 340480 | AI93: 46550 | AJ93: 7.1 | AK93: 3431400 | BA93: 133000
A94: 2015-11-28 | B94: 14100 | C94: 809 | E94: 144 | G94: 25.9 | H94: 3.4 | I94: 7.3 | J94: 262 | Z94: 27 | AB94: =IF(AND(ISNUMBER(Z94),ISNUMBER(AA94)),IF(Z94-AA94*Factors!$R$10>0,Z94-AA94*Factors!$R$10,""),"") ->  | AC94: 14100 | AD94: 11406900 | AF94: 2030400 | AH94: 365190 | AI94: 47940 | AJ94: 7.3 | AK94: 3694200 | BA94: 380700
A95: 2015-11-29 | B95: 14900 | C95: 1023 | E95: 266 | G95: 27.7 | H95: 3.8 | I95: 7.1 | J95: 273 | Z95: 103 | AB95: =IF(AND(ISNUMBER(Z95),ISNUMBER(AA95)),IF(Z95-AA95*Factors!$R$10>0,Z95-AA95*Factors!$R$10,""),"") ->  | AC95: 14900 | AD95: 15242700 | AF95: 3963400 | AH95: 412730 | AI95: 56620 | AJ95: 7.1 | AK95: 4067700 | BA95: 1534700
A96: 2015-11-30 | B96: 16700 | C96: 1133 | E96: 274 | G96: 25.4 | H96: 3.1 | I96: 7.3 | J96: 303 | M96: 503 | N96: 59.5 | O96: 97 | P96: 6 | Q96: 28.8 | R96: 3.6 | S96: 97 | Z96: 19 | AB96: =IF(AND(ISNUMBER(Z96),ISNUMBER(AA96)),IF(Z96-AA96*Factors!$R$10>0,Z96-AA96*Factors!$R$10,""),"") ->  | AC96: 16700 | AD96: 18921100 | AF96: 4575800 | AH96: 424180 | AI96: 51770 | AJ96: 7.3 | AK96: 5060100 | AN96: 8400100 | AO96: 993650 | AP96: 1619900 | AQ96: 100200 | AR96: 480960 | AS96: 60120 | AT96: 1619900 | BA96: 317300
A97: 2015-12-01 | B97: 16700 | C97: 1038 | E97: 332 | G97: 25.5 | H97: 3.1 | I97: 7.5 | J97: 277 | Z97: 29 | AB97: =IF(AND(ISNUMBER(Z97),ISNUMBER(AA97)),IF(Z97-AA97*Factors!$R$10>0,Z97-AA97*Factors!$R$10,""),"") ->  | AC97: 16700 | AD97: 17334600 | AF97: 5544400 | AH97: 425850 | AI97: 51770 | AJ97: 7.5 | AK97: 4625900 | BA97: 484300
A98: 2015-12-02 | B98: 21100 | C98: 858 | D98: 66.5 | E98: 245 | F98: 7.5 | G98: 25.8 | H98: 2.9 | I98: 7.3 | J98: 265 | Z98: 32 | AB98: =IF(AND(ISNUMBER(Z98),ISNUMBER(AA98)),IF(Z98-AA98*Factors!$R$10>0,Z98-AA98*Factors!$R$10,""),"") ->  | AC98: 21100 | AD98: 18103800 | AE98: 1403150 | AF98: 5169500 | AG98: 158250 | AH98: 544380 | AI98: 61190 | AJ98: 7.3 | AK98: 5591500 | BA98: 675200
A99: 2015-12-03 | B99: 18300 | C99: 1090 | E99: 357 | G99: 20.4 | H99: 2.5 | I99: 6.7 | J99: 254 | Z99: 43 | AB99: =IF(AND(ISNUMBER(Z99),ISNUMBER(AA99)),IF(Z99-AA99*Factors!$R$10>0,Z99-AA99*Factors!$R$10,""),"") ->  | AC99: 18300 | AD99: 19947000 | AF99: 6533100 | AH99: 373320 | AI99: 45750 | AJ99: 6.7 | AK99: 4648200 | BA99: 786900
A100: 2015-12-04 | B100: 16300 | C100: 554 | E100: 115 | G100: 24.8 | H100: 2.6 | I100: 7.4 | J100: 243 | Z100: 34 | AB100: =IF(AND(ISNUMBER(Z100),ISNUMBER(AA100)),IF(Z100-AA100*Factors!$R$10>0,Z100-AA100*Factors!$R$10,""),"") ->  | AC100: 16300 | AD100: 9030200 | AF100: 1874500 | AH100: 404240 | AI100: 42380 | AJ100: 7.4 | AK100: 3960900 | BA100: 554200
A101: 2015-12-05 | B101: 16500 | C101: 644 | E101: 220 | G101: 26.2 | H101: 3.1 | I101: 7.1 | J101: 274 | Z101: 40 | AB101: =IF(AND(ISNUMBER(Z101),ISNUMBER(AA101)),IF(Z101-AA101*Factors!$R$10>0,Z101-AA101*Factors!$R$10,""),"") ->  | AC101: 16500 | AD101: 10626000 | AF101: 3630000 | AH101: 432300 | AI101: 51150 | AJ101: 7.1 | AK101: 4521000 | BA101: 660000
A102: 2015-12-06 | B102: 16400 | C102: 616 | E102: 271 | G102: 24.5 | H102: 5.5 | I102: 7.3 | J102: 280 | Z102: 18 | AB102: =IF(AND(ISNUMBER(Z102),ISNUMBER(AA102)),IF(Z102-AA102*Factors!$R$10>0,Z102-AA102*Factors!$R$10,""),"") ->  | AC102: 16400 | AD102: 10102400 | AF102: 4444400 | AH102: 401800 | AI102: 90200 | AJ102: 7.3 | AK102: 4592000 | BA102: 295200
A103: 2015-12-07 | B103: 24800 | C103: 949 | E103: 366 | G103: 41.1 | H103: 5.2 | I103: 7.4 | J103: 300 | M103: 732 | N103: 48.1 | O103: 199 | P103: 8.3 | Q103: 30.3 | R103: 4.6 | S103: 199 | Z103: 32 | AB103: =IF(AND(ISNUMBER(Z103),ISNUMBER(AA103)),IF(Z103-AA103*Factors!$R$10>0,Z103-AA103*Factors!$R$10,""),"") ->  | AC103: 24800 | AD103: 23535200 | AF103: 9076800 | AH103: 1019280 | AI103: 128960 | AJ103: 7.4 | AK103: 7440000 | AN103: 18153600 | AO103: 1192880 | AP103: 4935200 | AQ103: 205840 | AR103: 751440 | AS103: 114080 | AT103: 4935200 | BA103: 793600
A104: 2015-12-08 | B104: 20500 | C104: 680 | E104: 270 | G104: 28.9 | H104: 3.6 | I104: 7.4 | J104: 262 | Z104: 21 | AB104: =IF(AND(ISNUMBER(Z104),ISNUMBER(AA104)),IF(Z104-AA104*Factors!$R$10>0,Z104-AA104*Factors!$R$10,""),"") ->  | AC104: 20500 | AD104: 13940000 | AF104: 5535000 | AH104: 592450 | AI104: 73800 | AJ104: 7.4 | AK104: 5371000 | BA104: 430500
A105: 2015-12-09 | B105: 21900 | C105: 762 | D105: 70.5 | E105: 197 | F105: 9.2 | G105: 32.9 | H105: 3.7 | I105: 6.6 | J105: 267 | Z105: 28 | AA105: 11 | AB105: =IF(AND(ISNUMBER(Z105),ISNUMBER(AA105)),IF(Z105-AA105*Factors!$R$10>0,Z105-AA105*Factors!$R$10,""),"") -> 11.73026435 | AC105: 21900 | AD105: 16687800 | AE105: 1543950 | AF105: 4314300 | AG105: 201480 | AH105: 720510 | AI105: 81030 | AJ105: 6.6 | AK105: 5847300 | BA105: 613200 | BB105: 240900 | BC105: 2603-05-06T18:56:40.914
A106: 2015-12-10 | B106: 17600 | C106: 581 | E106: 150 | G106: 30.7 | H106: 3.6 | I106: 6.7 | J106: 261 | Z106: 44 | AB106: =IF(AND(ISNUMBER(Z106),ISNUMBER(AA106)),IF(Z106-AA106*Factors!$R$10>0,Z106-AA106*Factors!$R$10,""),"") ->  | AC106: 17600 | AD106: 10225600 | AF106: 2640000 | AH106: 540320 | AI106: 63360 | AJ106: 6.7 | AK106: 4593600 | BA106: 774400
A107: 2015-12-11 | B107: 17200 | C107: 687 | E107: 167 | G107: 29.9 | H107: 4 | I107: 6.9 | J107: 258 | Z107: 34 | AB107: =IF(AND(ISNUMBER(Z107),ISNUMBER(AA107)),IF(Z107-AA107*Factors!$R$10>0,Z107-AA107*Factors!$R$10,""),"") ->  | AC107: 17200 | AD107: 11816400 | AF107: 2872400 | AH107: 514280 | AI107: 68800 | AJ107: 6.9 | AK107: 4437600 | BA107: 584800
A108: 2015-12-12 | B108: 15900 | C108: 728 | E108: 240 | G108: 25.8 | H108: 4.6 | I108: 6.5 | J108: 256 | Z108: 33 | AB108: =IF(AND(ISNUMBER(Z108),ISNUMBER(AA108)),IF(Z108-AA108*Factors!$R$10>0,Z108-AA108*Factors!$R$10,""),"") ->  | AC108: 15900 | AD108: 11575200 | AF108: 3816000 | AH108: 410220 | AI108: 73140 | AJ108: 6.5 | AK108: 4070400 | BA108: 524700
A109: 2015-12-13 | B109: 14000 | C109: 1092 | E109: 188 | G109: 30.3 | H109: 5.4 | I109: 7.3 | J109: 241 | Z109: 27 | AA109: 16 | AB109: =IF(AND(ISNUMBER(Z109),ISNUMBER(AA109)),IF(Z109-AA109*Factors!$R$10>0,Z109-AA109*Factors!$R$10,""),"") -> 3.33492997 | AC109: 14000 | AD109: 15288000 | AF109: 2632000 | AH109: 424200 | AI109: 75600 | AJ109: 7.3 | AK109: 3374000 | BA109: 378000 | BB109: 224000 | BC109: 2027-10-29T00:28:11.842
A110: 2015-12-14 | B110: 28800 | C110: 671 | E110: 151 | G110: 29.5 | H110: 3.9 | I110: 7.4 | J110: 259 | M110: 498 | N110: 59 | O110: 45 | P110: 6.3 | Q110: 29.2 | R110: 4.5 | S110: 45 | Z110: 28 | AB110: =IF(AND(ISNUMBER(Z110),ISNUMBER(AA110)),IF(Z110-AA110*Factors!$R$10>0,Z110-AA110*Factors!$R$10,""),"") ->  | AC110: 28800 | AD110: 19324800 | AF110: 4348800 | AH110: 849600 | AI110: 112320 | AJ110: 7.4 | AK110: 7459200 | AN110: 14342400 | AO110: 1699200 | AP110: 1296000 | AQ110: 181440 | AR110: 840960 | AS110: 129600 | AT110: 1296000 | BA110: 806400
A111: 2015-12-15 | B111: 14600 | C111: 785 | E111: 294 | G111: 26.9 | H111: 3.4 | I111: 6.7 | J111: 268 | Z111: 26 | AB111: =IF(AND(ISNUMBER(Z111),ISNUMBER(AA111)),IF(Z111-AA111*Factors!$R$10>0,Z111-AA111*Factors!$R$10,""),"") ->  | AC111: 14600 | AD111: 11461000 | AF111: 4292400 | AH111: 392740 | AI111: 49640 | AJ111: 6.7 | AK111: 3912800 | BA111: 379600
A112: 2015-12-16 | B112: 18200 | C112: 593 | D112: 53.5 | E112: 198 | F112: 7.2 | G112: 18.2 | H112: 2.3 | I112: 5.8 | J112: 179 | Z112: 23 | AB112: =IF(AND(ISNUMBER(Z112),ISNUMBER(AA112)),IF(Z112-AA112*Factors!$R$10>0,Z112-AA112*Factors!$R$10,""),"") ->  | AC112: 18200 | AD112: 10792600 | AE112: 973700 | AF112: 3603600 | AG112: 131040 | AH112: 331240 | AI112: 41860 | AJ112: 5.8 | AK112: 3257800 | BA112: 418600
A113: 2015-12-17 | B113: 16600 | C113: 611 | E113: 212 | G113: 29.4 | H113: 3.4 | I113: 7.2 | J113: 262 | Z113: 23 | AB113: =IF(AND(ISNUMBER(Z113),ISNUMBER(AA113)),IF(Z113-AA113*Factors!$R$10>0,Z113-AA113*Factors!$R$10,""),"") ->  | AC113: 16600 | AD113: 10142600 | AF113: 3519200 | AH113: 488040 | AI113: 56440 | AJ113: 7.2 | AK113: 4349200 | BA113: 381800
A114: 2015-12-18 | B114: 14400 | C114: 407 | E114: 112 | G114: 23.1 | H114: 2.7 | I114: 6.9 | J114: 257 | Z114: 20 | AB114: =IF(AND(ISNUMBER(Z114),ISNUMBER(AA114)),IF(Z114-AA114*Factors!$R$10>0,Z114-AA114*Factors!$R$10,""),"") ->  | AC114: 14400 | AD114: 5860800 | AF114: 1612800 | AH114: 332640 | AI114: 38880 | AJ114: 6.9 | AK114: 3700800 | BA114: 288000
A115: 2015-12-19 | B115: 22100 | C115: 636 | E115: 220 | G115: 27.5 | H115: 3.3 | I115: 6.6 | J115: 314 | Z115: 27 | AB115: =IF(AND(ISNUMBER(Z115),ISNUMBER(AA115)),IF(Z115-AA115*Factors!$R$10>0,Z115-AA115*Factors!$R$10,""),"") ->  | AC115: 22100 | AD115: 14055600 | AF115: 4862000 | AH115: 607750 | AI115: 72930 | AJ115: 6.6 | AK115: 6939400 | BA115: 596700
A116: 2015-12-20 | B116: 14800 | C116: 606 | E116: 158 | G116: 26.9 | H116: 2.9 | I116: 7 | J116: 268 | Z116: 37 | AB116: =IF(AND(ISNUMBER(Z116),ISNUMBER(AA116)),IF(Z116-AA116*Factors!$R$10>0,Z116-AA116*Factors!$R$10,""),"") ->  | AC116: 14800 | AD116: 8968800 | AF116: 2338400 | AH116: 398120 | AI116: 42920 | AJ116: 7 | AK116: 3966400 | BA116: 547600
A117: 2015-12-21 | B117: 18100 | C117: 541 | E117: 65 | G117: 29.1 | H117: 3.3 | I117: 7.4 | J117: 294 | M117: 395 | N117: 54 | O117: 41 | P117: 5.3 | Q117: 26.7 | R117: 3.1 | S117: 41 | Z117: 20 | AB117: =IF(AND(ISNUMBER(Z117),ISNUMBER(AA117)),IF(Z117-AA117*Factors!$R$10>0,Z117-AA117*Factors!$R$10,""),"") ->  | AC117: 18100 | AD117: 9792100 | AF117: 1176500 | AH117: 526710 | AI117: 59730 | AJ117: 7.4 | AK117: 5321400 | AN117: 7149500 | AO117: 977400 | AP117: 742100 | AQ117: 95930 | AR117: 483270 | AS117: 56110 | AT117: 742100 | BA117: 362000
A118: 2015-12-22 | B118: 16100 | C118: 361 | E118: 139 | G118: 20.3 | H118: 2.3 | I118: 7 | J118: 214 | Z118: 16 | AB118: =IF(AND(ISNUMBER(Z118),ISNUMBER(AA118)),IF(Z118-AA118*Factors!$R$10>0,Z118-AA118*Factors!$R$10,""),"") ->  | AC118: 16100 | AD118: 5812100 | AF118: 2237900 | AH118: 326830 | AI118: 37030 | AJ118: 7 | AK118: 3445400 | BA118: 257600
A119: 2015-12-23 | B119: 15100 | C119: 643 | D119: 48.7 | E119: 98 | F119: 6.5 | G119: 23.2 | H119: 2.7 | I119: 7.1 | J119: 242 | Z119: 27 | AB119: =IF(AND(ISNUMBER(Z119),ISNUMBER(AA119)),IF(Z119-AA119*Factors!$R$10>0,Z119-AA119*Factors!$R$10,""),"") ->  | AC119: 15100 | AD119: 9709300 | AE119: 735370 | AF119: 1479800 | AG119: 98150 | AH119: 350320 | AI119: 40770 | AJ119: 7.1 | AK119: 3654200 | BA119: 407700
A120: 2015-12-24 | B120: 14200 | C120: 538 | E120: 149 | G120: 24.7 | H120: 3.2 | I120: 6.9 | J120: 263 | Z120: 10 | AB120: =IF(AND(ISNUMBER(Z120),ISNUMBER(AA120)),IF(Z120-AA120*Factors!$R$10>0,Z120-AA120*Factors!$R$10,""),"") ->  | AC120: 14200 | AD120: 7639600 | AF120: 2115800 | AH120: 350740 | AI120: 45440 | AJ120: 6.9 | AK120: 3734600 | BA120: 142000
A121: 2015-12-25 | B121: 14600 | C121: 389 | E121: 224 | G121: 20.3 | H121: 2.4 | I121: 7 | J121: 264 | Z121: 28 | AB121: =IF(AND(ISNUMBER(Z121),ISNUMBER(AA121)),IF(Z121-AA121*Factors!$R$10>0,Z121-AA121*Factors!$R$10,""),"") ->  | AC121: 14600 | AD121: 5679400 | AF121: 3270400 | AH121: 296380 | AI121: 35040 | AJ121: 7 | AK121: 3854400 | BA121: 408800
A122: 2015-12-26 | B122: 15600 | C122: 422 | E122: 158 | G122: 21.4 | H122: 2.7 | I122: 6.9 | J122: 268 | Z122: 24 | AB122: =IF(AND(ISNUMBER(Z122),ISNUMBER(AA122)),IF(Z122-AA122*Factors!$R$10>0,Z122-AA122*Factors!$R$10,""),"") ->  | AC122: 15600 | AD122: 6583200 | AF122: 2464800 | AH122: 333840 | AI122: 42120 | AJ122: 6.9 | AK122: 4180800 | BA122: 374400
A123: 2015-12-27 | B123: 16300 | C123: 325 | E123: 149 | G123: 18.9 | H123: 2.4 | I123: 7 | J123: 196 | Z123: 19 | AB123: =IF(AND(ISNUMBER(Z123),ISNUMBER(AA123)),IF(Z123-AA123*Factors!$R$10>0,Z123-AA123*Factors!$R$10,""),"") ->  | AC123: 16300 | AD123: 5297500 | AF123: 2428700 | AH123: 308070 | AI123: 39120 | AJ123: 7 | AK123: 3194800 | BA123: 309700
A124: 2015-12-28 | B124: 15000 | C124: 255 | E124: 126 | G124: 18.7 | H124: 2 | I124: 7.2 | J124: 213 | Z124: 16 | AB124: =IF(AND(ISNUMBER(Z124),ISNUMBER(AA124)),IF(Z124-AA124*Factors!$R$10>0,Z124-AA124*Factors!$R$10,""),"") ->  | AC124: 15000 | AD124: 3825000 | AF124: 1890000 | AH124: 280500 | AI124: 30000 | AJ124: 7.2 | AK124: 3195000 | BA124: 240000
A125: 2015-12-29 | B125: 14800 | C125: 481 | E125: 273 | G125: 18.9 | H125: 2.3 | I125: 6.2 | J125: 230 | Z125: 34 | AB125: =IF(AND(ISNUMBER(Z125),ISNUMBER(AA125)),IF(Z125-AA125*Factors!$R$10>0,Z125-AA125*Factors!$R$10,""),"") ->  | AC125: 14800 | AD125: 7118800 | AF125: 4040400 | AH125: 279720 | AI125: 34040 | AJ125: 6.2 | AK125: 3404000 | BA125: 503200
... 153 more rows

Sheet Plant Configuration

Sheet PST Solids Balance (hidden)
D1: COD | F1: TSS | I1: Typical range | M1: Based on TSS
C2: reduction | D2: =(1-Measurements!M5/Measurements!C5) -> 0.2313737469 | F2: =1-Measurements!O5/Measurements!E5 -> 0.5311382695 | K2: Balance check | M2: raw flux | N2: settled sewage | O2: PS | P2: Reduction
K3: =N3+O3 -> 3114049.178 | M3: =Measurements!B5*Measurements!E5 -> 3117207.279 | N3: =Measurements!O5*Measurements!B5*'PST Solids Balance'!F8 -> 1458381.098 | O3: =Measurements!U5*10000*(1-'PST Solids Balance'!F8)*Measurements!B5 -> 1655668.08 | P3: =O3/M3 -> 0.5311382695 | Q3: based on measurements
A4: average TSS flux removed | F4: =F2*Measurements!B5*Measurements!E5 -> 1655668.08 | G4: g/d | K4: =N4+O4 -> 5743408.817 | M4: =Estimation!B5*Estimation!E5 -> 5743408.817 | N4: =Estimation!Q5*Estimation!O5 -> 2604917.473 | O4: =Estimation!W5*Estimation!B5 -> 3138491.344 | P4: =O4/M4 -> 0.5464509743 | Q4: based on estimates
A5: avg PS conc | F5: =Measurements!U5 -> 4.74 | G5: % | K5: =N5+O5 -> 3623172.851 | M5: =Measurements!B5*Fitting!BD5 -> 3623172.851 | N5: =Measurements!B5*'PST Solids Balance'!F8*Fitting!BS5 -> 1762867.057 | O5: =Measurements!B5*Fitting!BU5 -> 1860305.794 | P5: =O5/M5 -> 0.5134466034 | Q5: based on fitted
A6: as mg/L | F6: =F5*10000 -> 47400 | G6: g/m3
A7: corresponding average PS flow | F7: =F4/F6 -> 34.92970633 | G7: m3/d | M7: Based on COD
A8: correspondig f_settseflow | F8: =1-F7/Measurements!B5 -> 0.9978391951 | M8: raw flux | N8: settled sewage | O8: PS
A9: average ISS settlable | F9: =F4*Measurements!W5/100/Measurements!B5 -> 30.82906777 | K9: =N9+O9 -> 11446233.54 | M9: =Measurements!B5*Measurements!C5 -> 11446233.54 | N9: =Measurements!B5*Measurements!M5*'PST Solids Balance'!F8 -> 8778865.108 | O9: =M9-N9 -> 2667368.436 | P9: =O9/M9 -> 0.2330345983 | Q9: based on measurements
A10: estimated iss | F10: =F9/(1-f_iss_ns) -> 33.3484888 | K10: =N10+O10 -> 11478411.69 | M10: =Estimation!B5*Estimation!C5 -> 11486817.63 | N10: =Estimation!O5*Estimation!P5 -> 7956502.863 | O10: =Estimation!C5*((1-f_up_ns)+(1-f_bp_ns)*Factors!B47)*f_codup*Estimation!B5 -> 3521908.83 | P10: =O10/M10 -> 0.3066044001 | Q10: based on estimates
A11: f_iss | F11: =F10/Measurements!E5 -> 0.1729377706 | K11: =N11+O11 -> 11174690.75 | M11: =Measurements!B5*Fitting!BB5 -> 11189425.82 | N11: =Measurements!B5*'PST Solids Balance'!F8*Fitting!BQ5 -> 9608304.097 | O11: =Measurements!B5*(Fitting!BN5-Fitting!BO5+(Fitting!BB5-Fitting!BJ5-Fitting!BN5-Fitting!BP5)) -> 1566386.657 | P11: =O11/M11 -> 0.1399881175 | Q11: based on fitted
A13: Average PS flow from "Measurement" page | F13: =Measurements!T5 -> 
A14: Average PS flow from data | F14: 64.68313934 | G14: m3/d | H14: Calculated from original data in Waterval Data Summary V2 - Joanna
H15: Because of the large discrepancy in the PS flow estimated by mass balance
H16: the PS flow measurements have been deleted from the Measurement sheet
H17: PS sludge is sometimes pumped intermittently and if measurements are missing
H18: it is very difficult to get an accurate estimate of the average flow

Sheet Interpolation (hidden)
G2: Interpolated values | CL2: Interpolated fluxes
AE3: Indiviual measurement weights | BJ3: Analysis weights
A4: #.t | B4: InFlow | C4: COD | D4: TKN | E4: TSS | F4: TP | G4: FSA | H4: OrthoP | I4: pH_in | J4: Alk_in | K4: Temperature | L4: Flow_setSew | M4: COD SetSew | N4: TKN SetSew | O4: TSS SetSew | P4: TP SetSew | Q4: FSA SetSew | R4: OrthoP Set Sew | S4: Non-settlable solids | T4: Flow_PS | U4: % TS | V4: %VS | W4: %IS | X4: Settlable solids | Y4: Settlable IS | Z4: Effl TSS | AA4: Effl COD | AB4: COD_us | AC4: InFlow | AD4: COD | AE4: TKN | AF4: TSS | AG4: TP | AH4: FSA | AI4: OrthoP | AJ4: pH_in | AK4: Alk_in | AL4: Temperature | AM4: Flow_setSew | AN4: COD SetSew | AO4: TKN SetSew | AP4: TSS SetSew | AQ4: TP SetSew | AR4: FSA SetSew | AS4: OrthoP Set Sew | AT4: Non-settlable solids | AU4: Flow_PS | AV4: % TS | AW4: %VS | AX4: %IS | AY4: Settlable solids | AZ4: Settlable IS | BA4: Effl TSS | BB4: Effl COD | BC4: COD_us | BD4: InFlow | BE4: COD | BF4: TKN | BG4: TSS | BH4: TP | BI4: FSA | BJ4: OrthoP | BK4: pH_in | BL4: Alk_in | BM4: Temperature | BN4: Flow_setSew | BO4: COD SetSew | BP4: TKN SetSew | BQ4: TSS SetSew | BR4: TP SetSew | BS4: FSA SetSew | BT4: OrthoP Set Sew | BU4: Non-settlable solids | BV4: Flow_PS | BW4: % TS | BX4: %VS | BY4: %IS | BZ4: Settlable solids | CA4: Settlable IS | CB4: Effl TSS | CC4: Effl COD | CD4: COD_us | CE4: %VS | CF4: %IS | CG4: Effl TSS | CH4: Effl COD | CJ4: day | CK4: InFlow | CL4: COD | CM4: TKN | CN4: TSS | CO4: TP | CP4: FSA | CQ4: OrthoP | CR4: pH_in | CS4: Alk_in | CT4: Temperature | CU4: Flow_setSew | CV4: COD SetSew | CW4: TKN SetSew | CX4: TSS SetSew | CY4: TP SetSew | CZ4: FSA SetSew | DA4: OrthoP Set Sew | DB4: Non-settlable solids | DC4: Flow_PS | DD4: % TS | DE4: %VS | DF4: %IS | DG4: Settlable solids | DH4: Settlable IS | DI4: Effl TSS | DJ4: Effl COD | DK4: COD_us
A5: #d | B5: m3/d | C5: g/m3 | D5: g/m3 | E5: g/m3 | F5: g/m3 | G5: g/m3 | H5: g/m3 | I5: - | J5: g/m3 CaCO3 | K5: °C | L5: m3/d | M5: g/m3 | N5: g/m3 | O5: g/m3 | P5: g/m3 | Q5: g/m3 | R5: g/m3 | S5: g/m3 | T5: m3/d | X5: g/m3 | AB5: g/m3 | CK5: m3/d | CL5: g/d | CM5: g/d | CN5: g/d | CO5: g/d | CP5: g/d | CQ5: g/d | CR5: - | CS5: g/d | CT5: °C | CU5: g/d | CV5: g/d | CW5: g/d | CX5: g/d | CY5: g/d | CZ5: g/d | DA5: g/d | DB5: g/d | DC5: g/d | DD5: g/d | DE5: g/d | DF5: g/d | DG5: g/d | DH5: g/d | DI5: g/d | DJ5: g/d | DK5: g/d
A6: =Measurements!A6 -> 2015-09-01 | B6: 20090 | C6: =IF(NOT(ISBLANK(Measurements!B6)),CL6/$CK6,"") -> 1149 | D6: =CM6/$CK6 -> 36.19343842 | E6: 299 | F6: 4.6094372 | G6: 33.8 | H6: 4.5 | I6: =CR6 -> 7.1 | J6: =CS6/$CK6 -> 321 | K6: =CT6 -> 0 | L6: =CU6/$CK6 -> 0 | M6: 417.9716782 | N6: 35.88962598 | O6: 74.33209778 | P6: 4.087219662 | Q6: 19.6811828 | R6: 2.417491485 | S6: 74.33209778 | T6: 0 | U6: 2.818064516 | V6: 41.75613479 | W6: 18.37399194 | X6: 0 | Y6: 0 | Z6: 38 | AA6: 10.28787442 | AB6: 11.34222868 | AC6: 1 | AD6: 1 | AE6: 0.1 | AF6: 1 | AG6: 0.1 | AH6: 1 | AI6: 1 | AJ6: 1 | AK6: 1 | AL6: 0.1 | AM6: 0.1 | AN6: 0.1 | AO6: 0.1 | AP6: 0.1 | AQ6: 0.1 | AR6: 0.1 | AS6: 0.1 | AT6: 0.05 | AU6: 0.1 | AV6: 0.1 | AW6: 0.1 | AX6: 0.1 | AY6: 0.05 | AZ6: 0.05 | BA6: 1 | BB6: 0.1 | BC6: 0.05 | CJ6: =Measurements!A6 -> 2015-09-01 | CK6: 21700 | CL6: 24933300 | CM6: 785397.6136 | CN6: 6488300 | CO6: 100024.7872 | CP6: 733460 | CQ6: 97650 | CR6: 7.1 | CS6: 6965700 | CV6: 9069985.417 | CW6: 778804.8837 | CX6: 1613006.522 | CY6: 88692.66667 | CZ6: 427081.6667 | DA6: 52459.56522 | DB6: 1613006.522 | DD6: 61152 | DE6: 906108.125 | DF6: 398715.625 | DI6: 824600 | DJ6: 223246.875 | DK6: 246126.3624 | EZ6: 0 | FE6: 0
A7: =Measurements!A7 -> 2015-09-02 | B7: 20091 | C7: =IF(NOT(ISBLANK(Measurements!B7)),CL7/$CK7,"") -> 1056.495763 | D7: =CM7/$CK7 -> 33.2795599 | E7: =CN7/$CK7 -> 492 | F7: =CO7/$CK7 -> 4.238338442 | G7: =CP7/$CK7 -> 28.7 | H7: =CQ7/$CK7 -> 3.4 | I7: =CR7 -> 7 | J7: =CS7/$CK7 -> 273 | K7: =CT7 -> 0 | L7: =CU7/$CK7 -> 0 | M7: =CV7/$CK7 -> 384.321416 | N7: =CW7/$CK7 -> 33.00020694 | O7: =CX7/$CK7 -> 68.34773397 | P7: =CY7/$CK7 -> 3.758163842 | Q7: =CZ7/$CK7 -> 18.09668079 | R7: =DA7/$CK7 -> 2.222862933 | S7: =DB7/$CK7 -> 68.34773397 | T7: =DC7/$CK7 -> 0 | U7: =DD7/$CK7 -> 2.591186441 | V7: =DE7/$CK7 -> 38.39441208 | W7: =DF7/$CK7 -> 16.89472987 | X7: =DG7/$CK7 -> 0 | Y7: =DH7/$CK7 -> 0 | Z7: =DI7/$CK7 -> 38 | AA7: =DJ7/$CK7 -> 9.459613347 | AB7: =DK7/$CK7 -> 10.42908315 | AC7: 1 | AD7: 0.1 | AE7: 0.1 | AF7: 1 | AG7: 0.1 | AH7: 1 | AI7: 1 | AJ7: 1 | AK7: 1 | AL7: 0.1 | AM7: 0.1 | AN7: 0.1 | AO7: 0.1 | AP7: 0.1 | AQ7: 0.1 | AR7: 0.1 | AS7: 0.1 | AT7: 0.05 | AU7: 0.1 | AV7: 0.1 | AW7: 0.1 | AX7: 0.1 | AY7: 0.05 | AZ7: 0.05 | BA7: 1 | BB7: 0.1 | BC7: 0.05 | CJ7: =Measurements!A7 -> 2015-09-02 | CK7: 23600 | CL7: 24933300 | CM7: 785397.6136 | CN7: 11611200 | CO7: 100024.7872 | CP7: 677320 | CQ7: 80240 | CR7: 7 | CS7: 6442800 | CT7: 0 | CU7: 0 | CV7: 9069985.417 | CW7: 778804.8837 | CX7: 1613006.522 | CY7: 88692.66667 | CZ7: 427081.6667 | DA7: 52459.56522 | DB7: 1613006.522 | DC7: 0 | DD7: 61152 | DE7: 906108.125 | DF7: 398715.625 | DG7: 0 | DH7: 0 | DI7: 896800 | DJ7: 223246.875 | DK7: 2573-11-12T08:41:53.625 | EZ7: 0 | FE7: 0
A8: =Measurements!A8 -> 2015-09-03 | B8: 20092 | C8: =IF(NOT(ISBLANK(Measurements!B8)),CL8/$CK8,"") -> 879 | D8: 37.39988636 | E8: 377 | F8: 4.763085106 | G8: 27.2 | H8: 2.6 | I8: 6.9 | J8: 287 | K8: 0 | L8: 0 | M8: 431.9040675 | N8: 37.08594684 | O8: 76.80983437 | P8: 4.223460317 | Q8: 20.33722222 | R8: 2.498074534 | S8: 76.80983437 | T8: 0 | U8: 2.912 | V8: 43.14800595 | W8: 18.98645833 | X8: 0 | Y8: 0 | Z8: 23 | AA8: 10.63080357 | AB8: 11.72030297 | AC8: 1 | AD8: 1 | AE8: 0.1 | AF8: 1 | AG8: 0.1 | AH8: 1 | AI8: 1 | AJ8: 1 | AK8: 1 | AL8: 0.1 | AM8: 0.1 | AN8: 0.1 | AO8: 0.1 | AP8: 0.1 | AQ8: 0.1 | AR8: 0.1 | AS8: 0.1 | AT8: 0.05 | AU8: 0.1 | AV8: 0.1 | AW8: 0.1 | AX8: 0.1 | AY8: 0.05 | AZ8: 0.05 | BA8: 1 | BB8: 0.1 | BC8: 0.05 | CJ8: =Measurements!A8 -> 2015-09-03 | CK8: 21000 | CL8: 18459000 | CM8: 785397.6136 | CN8: 7917000 | CO8: 100024.7872 | CP8: 571200 | CQ8: 54600 | CR8: 6.9 | CS8: 6027000 | CT8: 0 | CU8: 0 | CV8: 9069985.417 | CW8: 778804.8837 | CX8: 1613006.522 | CY8: 88692.66667 | CZ8: 427081.6667 | DA8: 52459.56522 | DB8: 1613006.522 | DC8: 0 | DD8: 61152 | DE8: 906108.125 | DF8: 398715.625 | DG8: 0 | DH8: 0 | DI8: 483000 | DJ8: 223246.875 | DK8: 2573-11-12T08:41:53.625 | EZ8: 0 | FE8: 0
A9: =Measurements!A9 -> 2015-09-04 | B9: 20093 | C9: =IF(NOT(ISBLANK(Measurements!B9)),CL9/$CK9,"") -> 932.2727273 | D9: 39.66654614 | E9: 382 | F9: 5.051756931 | G9: 25.7 | H9: 4.2 | I9: 6.9 | J9: 234 | K9: 0 | L9: 0 | M9: 458.0800715 | N9: 39.33357999 | O9: 81.46497585 | P9: 4.479427609 | Q9: 21.56978114 | R9: 2.649472991 | S9: 81.46497585 | T9: 0 | U9: 3.088484848 | V9: 45.76303662 | W9: 20.13715278 | X9: 0 | Y9: 0 | Z9: 34 | AA9: 11.2750947 | AB9: 12.43062436 | AC9: 1 | AD9: 0.1 | AE9: 0.1 | AF9: 1 | AG9: 0.1 | AH9: 1 | AI9: 1 | AJ9: 1 | AK9: 1 | AL9: 0.1 | AM9: 0.1 | AN9: 0.1 | AO9: 0.1 | AP9: 0.1 | AQ9: 0.1 | AR9: 0.1 | AS9: 0.1 | AT9: 0.05 | AU9: 0.1 | AV9: 0.1 | AW9: 0.1 | AX9: 0.1 | AY9: 0.05 | AZ9: 0.05 | BA9: 1 | BB9: 0.1 | BC9: 0.05 | CJ9: =Measurements!A9 -> 2015-09-04 | CK9: 19800 | CL9: 18459000 | CM9: 785397.6136 | CN9: 7563600 | CO9: 100024.7872 | CP9: 508860 | CQ9: 83160 | CR9: 6.9 | CS9: 4633200 | CT9: 0 | CU9: 0 | CV9: 9069985.417 | CW9: 778804.8837 | CX9: 1613006.522 | CY9: 88692.66667 | CZ9: 427081.6667 | DA9: 52459.56522 | DB9: 1613006.522 | DC9: 0 | DD9: 61152 | DE9: 906108.125 | DF9: 398715.625 | DG9: 0 | DH9: 0 | DI9: 673200 | DJ9: 223246.875 | DK9: 2573-11-12T08:41:53.625 | EZ9: 0 | FE9: 0
A10: =Measurements!A10 -> 2015-09-05 | B10: 20094 | C10: =IF(NOT(ISBLANK(Measurements!B10)),CL10/$CK10,"") -> 460 | D10: 34.29683902 | E10: 71 | F10: 4.367894639 | G10: 22.3 | H10: 2.2 | I10: 6.9 | J10: 178 | K10: 0 | L10: 0 | M10: 396.0692322 | N10: 34.00894689 | O10: 70.43696601 | P10: 3.873042213 | Q10: 18.64985444 | R10: 2.290810708 | S10: 70.43696601 | T10: 0 | U10: 2.670393013 | V10: 39.56804039 | W10: 17.41116266 | X10: 0 | Y10: 0 | Z10: 10 | AA10: 9.748771834 | AB10: 10.74787609 | AC10: 1 | AD10: 1 | AE10: 0.1 | AF10: 1 | AG10: 0.1 | AH10: 1 | AI10: 1 | AJ10: 1 | AK10: 1 | AL10: 0.1 | AM10: 0.1 | AN10: 0.1 | AO10: 0.1 | AP10: 0.1 | AQ10: 0.1 | AR10: 0.1 | AS10: 0.1 | AT10: 0.05 | AU10: 0.1 | AV10: 0.1 | AW10: 0.1 | AX10: 0.1 | AY10: 0.05 | AZ10: 0.05 | BA10: 1 | BB10: 0.1 | BC10: 0.05 | CJ10: =Measurements!A10 -> 2015-09-05 | CK10: 22900 | CL10: 10534000 | CM10: 785397.6136 | CN10: 1625900 | CO10: 100024.7872 | CP10: 510670 | CQ10: 50380 | CR10: 6.9 | CS10: 4076200 | CT10: 0 | CU10: 0 | CV10: 9069985.417 | CW10: 778804.8837 | CX10: 1613006.522 | CY10: 88692.66667 | CZ10: 427081.6667 | DA10: 52459.56522 | DB10: 1613006.522 | DC10: 0 | DD10: 61152 | DE10: 906108.125 | DF10: 398715.625 | DG10: 0 | DH10: 0 | DI10: 229000 | DJ10: 223246.875 | DK10: 2573-11-12T08:41:53.625 | EZ10: 0 | FE10: 0
A11: =Measurements!A11 -> 2015-09-06 | B11: 20095 | C11: =IF(NOT(ISBLANK(Measurements!B11)),CL11/$CK11,"") -> 809 | D11: 32.32088945 | E11: 314 | F11: 4.116246388 | G11: 22 | H11: 2.1 | I11: 6.9 | J11: 205 | K11: 0 | L11: 0 | M11: 373.2504287 | N11: 32.04958369 | O11: 66.37886921 | P11: 3.649903978 | Q11: 17.57537723 | R11: 2.158829844 | S11: 66.37886921 | T11: 0 | U11: 2.51654321 | V11: 37.28840021 | W11: 16.40805041 | X11: 0 | Y11: 0 | Z11: 21 | AA11: 9.187114198 | AB11: 10.12865689 | AC11: 1 | AD11: 1 | AE11: 0.1 | AF11: 1 | AG11: 0.1 | AH11: 1 | AI11: 1 | AJ11: 1 | AK11: 1 | AL11: 0.1 | AM11: 0.1 | AN11: 0.1 | AO11: 0.1 | AP11: 0.1 | AQ11: 0.1 | AR11: 0.1 | AS11: 0.1 | AT11: 0.05 | AU11: 0.1 | AV11: 0.1 | AW11: 0.1 | AX11: 0.1 | AY11: 0.05 | AZ11: 0.05 | BA11: 1 | BB11: 0.1 | BC11: 0.05 | CJ11: =Measurements!A11 -> 2015-09-06 | CK11: 24300 | CL11: 19658700 | CM11: 785397.6136 | CN11: 7630200 | CO11: 100024.7872 | CP11: 534600 | CQ11: 51030 | CR11: 6.9 | CS11: 4981500 | CT11: 0 | CU11: 0 | CV11: 9069985.417 | CW11: 778804.8837 | CX11: 1613006.522 | CY11: 88692.66667 | CZ11: 427081.6667 | DA11: 52459.56522 | DB11: 1613006.522 | DC11: 0 | DD11: 61152 | DE11: 906108.125 | DF11: 398715.625 | DG11: 0 | DH11: 0 | DI11: 510300 | DJ11: 223246.875 | DK11: 2573-11-12T08:41:53.625 | EZ11: 0 | FE11: 0
A12: =Measurements!A12 -> 2015-09-07 | B12: 20096 | C12: =IF(NOT(ISBLANK(Measurements!B12)),CL12/$CK12,"") -> 992.8636364 | D12: 39.66654614 | E12: 335 | F12: 5.051756931 | G12: 25.5 | H12: 2.8 | I12: 7 | J12: 261 | K12: 0 | L12: 0 | M12: 458.0800715 | N12: 39.33357999 | O12: 81.46497585 | P12: 4.479427609 | Q12: 21.56978114 | R12: 2.649472991 | S12: 81.46497585 | T12: 0 | U12: 3.088484848 | V12: 45.76303662 | W12: 20.13715278 | X12: 0 | Y12: 0 | Z12: 29 | AA12: 11.2750947 | AB12: 12.43062436 | AC12: 1 | AD12: 0.1 | AE12: 0.1 | AF12: 1 | AG12: 0.1 | AH12: 1 | AI12: 1 | AJ12: 1 | AK12: 1 | AL12: 0.1 | AM12: 0.1 | AN12: 0.1 | AO12: 0.1 | AP12: 0.1 | AQ12: 0.1 | AR12: 0.1 | AS12: 0.1 | AT12: 0.05 | AU12: 0.1 | AV12: 0.1 | AW12: 0.1 | AX12: 0.1 | AY12: 0.05 | AZ12: 0.05 | BA12: 1 | BB12: 0.1 | BC12: 0.05 | CJ12: =Measurements!A12 -> 2015-09-07 | CK12: 19800 | CL12: 19658700 | CM12: 785397.6136 | CN12: 6633000 | CO12: 100024.7872 | CP12: 504900 | CQ12: 55440 | CR12: 7 | CS12: 5167800 | CT12: 0 | CU12: 0 | CV12: 9069985.417 | CW12: 778804.8837 | CX12: 1613006.522 | CY12: 88692.66667 | CZ12: 427081.6667 | DA12: 52459.56522 | DB12: 1613006.522 | DC12: 0 | DD12: 61152 | DE12: 906108.125 | DF12: 398715.625 | DG12: 0 | DH12: 0 | DI12: 574200 | DJ12: 223246.875 | DK12: 2573-11-12T08:41:53.625 | EZ12: 0 | FE12: 0
A13: =Measurements!A13 -> 2015-09-08 | B13: 20097 | C13: =IF(NOT(ISBLANK(Measurements!B13)),CL13/$CK13,"") -> 761 | D13: 47.89009839 | E13: 182 | F13: 6.099072392 | G13: 25.6 | H13: 3.2 | I13: 6.9 | J13: 269 | K13: 0 | L13: 0 | M13: 553.0478913 | N13: 47.48810267 | O13: 98.3540562 | P13: 5.408089431 | Q13: 26.04156504 | R13: 3.198753977 | S13: 98.3540562 | T13: 0 | U13: 3.728780488 | V13: 55.25049543 | W13: 24.31192835 | X13: 0 | Y13: 0 | Z13: 35.01219512 | AA13: 13.61261433 | AB13: 15.00770503 | AC13: 1 | AD13: 1 | AE13: 0.1 | AF13: 1 | AG13: 0.1 | AH13: 1 | AI13: 1 | AJ13: 1 | AK13: 1 | AL13: 0.1 | AM13: 0.1 | AN13: 0.1 | AO13: 0.1 | AP13: 0.1 | AQ13: 0.1 | AR13: 0.1 | AS13: 0.1 | AT13: 0.05 | AU13: 0.1 | AV13: 0.1 | AW13: 0.1 | AX13: 0.1 | AY13: 0.05 | AZ13: 0.05 | BA13: 0.1 | BB13: 0.1 | BC13: 0.05 | CJ13: =Measurements!A13 -> 2015-09-08 | CK13: 16400 | CL13: 12480400 | CM13: 785397.6136 | CN13: 2984800 | CO13: 100024.7872 | CP13: 419840 | CQ13: 52480 | CR13: 6.9 | CS13: 4411600 | CT13: 0 | CU13: 0 | CV13: 9069985.417 | CW13: 778804.8837 | CX13: 1613006.522 | CY13: 88692.66667 | CZ13: 427081.6667 | DA13: 52459.56522 | DB13: 1613006.522 | DC13: 0 | DD13: 61152 | DE13: 906108.125 | DF13: 398715.625 | DG13: 0 | DH13: 0 | DI13: 574200 | DJ13: 223246.875 | DK13: 2573-11-12T08:41:53.625 | EZ13: 0 | FE13: 0
A14: =Measurements!A14 -> 2015-09-09 | B14: 20098 | C14: =IF(NOT(ISBLANK(Measurements!B14)),CL14/$CK14,"") -> 977 | D14: 55.5 | E14: 349 | F14: 8.9 | G14: 31.1 | H14: 3.9 | I14: 7 | J14: 305 | K14: 0 | L14: 0 | M14: 492.93399 | N14: 42.32635238 | O14: 87.66339792 | P14: 4.820253623 | Q14: 23.21096014 | R14: 2.851063327 | S14: 87.66339792 | T14: 0 | U14: 3.323478261 | V14: 49.24500679 | W14: 21.66932745 | X14: 0 | Y14: 0 | Z14: 26 | AA14: 12.13298234 | AB14: 13.37643274 | AC14: 1 | AD14: 1 | AE14: 1 | AF14: 1 | AG14: 1 | AH14: 1 | AI14: 1 | AJ14: 1 | AK14: 1 | AL14: 0.1 | AM14: 0.1 | AN14: 0.1 | AO14: 0.1 | AP14: 0.1 | AQ14: 0.1 | AR14: 0.1 | AS14: 0.1 | AT14: 0.05 | AU14: 0.1 | AV14: 0.1 | AW14: 0.1 | AX14: 0.1 | AY14: 0.05 | AZ14: 0.05 | BA14: 1 | BB14: 0.1 | BC14: 0.05 | CJ14: =Measurements!A14 -> 2015-09-09 | CK14: 18400 | CL14: 17976800 | CM14: 1021200 | CN14: 6421600 | CO14: 163760 | CP14: 572240 | CQ14: 71760 | CR14: 7 | CS14: 5612000 | CT14: 0 | CU14: 0 | CV14: 9069985.417 | CW14: 778804.8837 | CX14: 1613006.522 | CY14: 88692.66667 | CZ14: 427081.6667 | DA14: 52459.56522 | DB14: 1613006.522 | DC14: 0 | DD14: 61152 | DE14: 906108.125 | DF14: 398715.625 | DG14: 0 | DH14: 0 | DI14: 478400 | DJ14: 223246.875 | DK14: 2573-11-12T08:41:53.625 | EZ14: 0 | FE14: 0
A15: =Measurements!A15 -> 2015-09-10 | B15: 20099 | C15: =IF(NOT(ISBLANK(Measurements!B15)),CL15/$CK15,"") -> 755 | D15: 55.80327869 | E15: 184 | F15: 8.94863388 | G15: 28 | H15: 3.1 | I15: 6.9 | J15: 276 | K15: 0 | L15: 0 | M15: 495.6276184 | N15: 42.55764392 | O15: 88.14243288 | P15: 4.846593807 | Q15: 23.33779599 | R15: 2.866642908 | S15: 88.14243288 | T15: 0 | U15: 3.341639344 | V15: 49.51410519 | W15: 21.78773907 | X15: 0 | Y15: 0 | Z15: 28 | AA15: 12.19928279 | AB15: 13.449528 | AC15: 1 | AD15: 1 | AE15: 0.1 | AF15: 1 | AG15: 0.1 | AH15: 1 | AI15: 1 | AJ15: 1 | AK15: 1 | AL15: 0.1 | AM15: 0.1 | AN15: 0.1 | AO15: 0.1 | AP15: 0.1 | AQ15: 0.1 | AR15: 0.1 | AS15: 0.1 | AT15: 0.05 | AU15: 0.1 | AV15: 0.1 | AW15: 0.1 | AX15: 0.1 | AY15: 0.05 | AZ15: 0.05 | BA15: 1 | BB15: 0.1 | BC15: 0.05 | CJ15: =Measurements!A15 -> 2015-09-10 | CK15: 18300 | CL15: 13816500 | CM15: 1021200 | CN15: 3367200 | CO15: 163760 | CP15: 512400 | CQ15: 56730 | CR15: 6.9 | CS15: 5050800 | CT15: 0 | CU15: 0 | CV15: 9069985.417 | CW15: 778804.8837 | CX15: 1613006.522 | CY15: 88692.66667 | CZ15: 427081.6667 | DA15: 52459.56522 | DB15: 1613006.522 | DC15: 0 | DD15: 61152 | DE15: 906108.125 | DF15: 398715.625 | DG15: 0 | DH15: 0 | DI15: 512400 | DJ15: 223246.875 | DK15: 2573-11-12T08:41:53.625 | EZ15: 0 | FE15: 0
A16: =Measurements!A16 -> 2015-09-11 | B16: 20100 | C16: =IF(NOT(ISBLANK(Measurements!B16)),CL16/$CK16,"") -> 1381 | D16: 54.31914894 | E16: 371 | F16: 8.710638298 | G16: 33.3 | H16: 5 | I16: 6.6 | J16: 284 | K16: 0 | L16: 0 | M16: 482.4460328 | N16: 41.42579169 | O16: 85.79821924 | P16: 4.717695035 | Q16: 22.71710993 | R16: 2.790402405 | S16: 85.79821924 | T16: 0 | U16: 3.252765957 | V16: 48.19724069 | W16: 21.20827793 | X16: 0 | Y16: 0 | Z16: 31 | AA16: 11.87483378 | AB16: 13.09182779 | AC16: 1 | AD16: 1 | AE16: 0.1 | AF16: 1 | AG16: 0.1 | AH16: 1 | AI16: 1 | AJ16: 1 | AK16: 1 | AL16: 0.1 | AM16: 0.1 | AN16: 0.1 | AO16: 0.1 | AP16: 0.1 | AQ16: 0.1 | AR16: 0.1 | AS16: 0.1 | AT16: 0.05 | AU16: 0.1 | AV16: 0.1 | AW16: 0.1 | AX16: 0.1 | AY16: 0.05 | AZ16: 0.05 | BA16: 1 | BB16: 0.1 | BC16: 0.05 | CJ16: =Measurements!A16 -> 2015-09-11 | CK16: 18800 | CL16: 25962800 | CM16: 1021200 | CN16: 6974800 | CO16: 163760 | CP16: 626040 | CQ16: 94000 | CR16: 6.6 | CS16: 5339200 | CT16: 0 | CU16: 0 | CV16: 9069985.417 | CW16: 778804.8837 | CX16: 1613006.522 | CY16: 88692.66667 | CZ16: 427081.6667 | DA16: 52459.56522 | DB16: 1613006.522 | DC16: 0 | DD16: 61152 | DE16: 906108.125 | DF16: 398715.625 | DG16: 0 | DH16: 0 | DI16: 582800 | DJ16: 223246.875 | DK16: 2573-11-12T08:41:53.625 | EZ16: 0 | FE16: 0
A17: =Measurements!A17 -> 2015-09-12 | B17: 20101 | C17: =IF(NOT(ISBLANK(Measurements!B17)),CL17/$CK17,"") -> 1248 | D17: 61.89090909 | E17: 422.7151515 | F17: 9.924848485 | G17: 31.7 | H17: 5 | I17: 6.6 | J17: 321 | K17: 0 | L17: 0 | M17: 549.6960859 | N17: 47.20029598 | O17: 97.75797101 | P17: 5.375313131 | Q17: 25.88373737 | R17: 3.179367589 | S17: 97.75797101 | T17: 0 | U17: 3.706181818 | V17: 54.91564394 | W17: 24.16458333 | X17: 0 | Y17: 0 | Z17: 17 | AA17: 13.53011364 | AB17: 14.91674924 | AC17: 1 | AD17: 1 | AE17: 0.1 | AF17: 0.1 | AG17: 0.1 | AH17: 1 | AI17: 1 | AJ17: 1 | AK17: 1 | AL17: 0.1 | AM17: 0.1 | AN17: 0.1 | AO17: 0.1 | AP17: 0.1 | AQ17: 0.1 | AR17: 0.1 | AS17: 0.1 | AT17: 0.05 | AU17: 0.1 | AV17: 0.1 | AW17: 0.1 | AX17: 0.1 | AY17: 0.05 | AZ17: 0.05 | BA17: 1 | BB17: 0.1 | BC17: 0.05 | CJ17: =Measurements!A17 -> 2015-09-12 | CK17: 16500 | CL17: 20592000 | CM17: 1021200 | CN17: 6974800 | CO17: 163760 | CP17: 523050 | CQ17: 82500 | CR17: 6.6 | CS17: 5296500 | CT17: 0 | CU17: 0 | CV17: 9069985.417 | CW17: 778804.8837 | CX17: 1613006.522 | CY17: 88692.66667 | CZ17: 427081.6667 | DA17: 52459.56522 | DB17: 1613006.522 | DC17: 0 | DD17: 61152 | DE17: 906108.125 | DF17: 398715.625 | DG17: 0 | DH17: 0 | DI17: 280500 | DJ17: 223246.875 | DK17: 2573-11-12T08:41:53.625 | EZ17: 0 | FE17: 0
A18: =Measurements!A18 -> 2015-09-13 | B18: 20102 | C18: =IF(NOT(ISBLANK(Measurements!B18)),CL18/$CK18,"") -> 744 | D18: 53.1875 | E18: 281 | F18: 8.529166667 | G18: 26.9 | H18: 3.1 | I18: 7 | J18: 265 | K18: 0 | L18: 0 | M18: 472.3950738 | N18: 40.56275436 | O18: 84.01075634 | P18: 4.619409722 | Q18: 22.24383681 | R18: 2.732269022 | S18: 84.01075634 | T18: 0 | U18: 3.185 | V18: 47.19313151 | W18: 20.7664388 | X18: 0 | Y18: 0 | Z18: 10 | AA18: 11.62744141 | AB18: 12.81908138 | AC18: 1 | AD18: 1 | AE18: 0.1 | AF18: 1 | AG18: 0.1 | AH18: 1 | AI18: 1 | AJ18: 1 | AK18: 1 | AL18: 0.1 | AM18: 0.1 | AN18: 0.1 | AO18: 0.1 | AP18: 0.1 | AQ18: 0.1 | AR18: 0.1 | AS18: 0.1 | AT18: 0.05 | AU18: 0.1 | AV18: 0.1 | AW18: 0.1 | AX18: 0.1 | AY18: 0.05 | AZ18: 0.05 | BA18: 1 | BB18: 0.1 | BC18: 0.05 | CJ18: =Measurements!A18 -> 2015-09-13 | CK18: 19200 | CL18: 14284800 | CM18: 1021200 | CN18: 5395200 | CO18: 163760 | CP18: 516480 | CQ18: 59520 | CR18: 7 | CS18: 5088000 | CT18: 0 | CU18: 0 | CV18: 9069985.417 | CW18: 778804.8837 | CX18: 1613006.522 | CY18: 88692.66667 | CZ18: 427081.6667 | DA18: 52459.56522 | DB18: 1613006.522 | DC18: 0 | DD18: 61152 | DE18: 906108.125 | DF18: 398715.625 | DG18: 0 | DH18: 0 | DI18: 192000 | DJ18: 223246.875 | DK18: 2573-11-12T08:41:53.625 | EZ18: 0 | FE18: 0
A19: =Measurements!A19 -> 2015-09-14 | B19: 20103 | C19: =IF(NOT(ISBLANK(Measurements!B19)),CL19/$CK19,"") -> 487 | D19: 50.30541872 | E19: 34 | F19: 8.066995074 | G19: 29.9 | H19: 3.3 | I19: 7.3 | J19: 288 | K19: 0 | L19: 0 | M19: 782 | N19: 40.9 | O19: 204 | P19: 3.8 | Q19: 23.3 | R19: 2.2 | S19: 204 | T19: 0 | U19: 3.012413793 | V19: 44.63586823 | W19: 19.64116379 | X19: 0 | Y19: 0 | Z19: 36 | AA19: 10.997383 | AB19: 12.12445135 | AC19: 1 | AD19: 1 | AE19: 0.1 | AF19: 1 | AG19: 0.1 | AH19: 1 | AI19: 1 | AJ19: 1 | AK19: 1 | AL19: 0.1 | AM19: 0.1 | AN19: 1 | AO19: 1 | AP19: 1 | AQ19: 1 | AR19: 1 | AS19: 1 | AT19: 0.5 | AU19: 0.1 | AV19: 0.1 | AW19: 0.1 | AX19: 0.1 | AY19: 0.05 | AZ19: 0.05 | BA19: 1 | BB19: 0.1 | BC19: 0.05 | CJ19: =Measurements!A19 -> 2015-09-14 | CK19: 20300 | CL19: 9886100 | CM19: 1021200 | CN19: 690200 | CO19: 163760 | CP19: 606970 | CQ19: 66990 | CR19: 7.3 | CS19: 5846400 | CT19: 0 | CU19: 0 | CV19: 15874600 | CW19: 830270 | CX19: 4141200 | CY19: 77140 | CZ19: 472990 | DA19: 44660 | DB19: 4141200 | DC19: 0 | DD19: 61152 | DE19: 906108.125 | DF19: 398715.625 | DG19: 0 | DH19: 0 | DI19: 730800 | DJ19: 223246.875 | DK19: 2573-11-12T08:41:53.625 | EZ19: 0 | FE19: 0
A20: =Measurements!A20 -> 2015-09-15 | B20: 20104 | C20: =IF(NOT(ISBLANK(Measurements!B20)),CL20/$CK20,"") -> 1070 | D20: 51.57575758 | E20: 34.85858586 | F20: 8.270707071 | G20: 27.5 | H20: 3.9 | I20: 7 | J20: 269 | K20: 0 | L20: 0 | M20: 801.7474747 | N20: 41.93282828 | O20: 209.1515152 | P20: 3.895959596 | Q20: 23.88838384 | R20: 2.255555556 | S20: 209.1515152 | T20: 0 | U20: 3.088484848 | V20: 45.76303662 | W20: 20.13715278 | X20: 0 | Y20: 0 | Z20: 30 | AA20: 11.2750947 | AB20: 12.43062436 | AC20: 1 | AD20: 1 | AE20: 0.1 | AF20: 0.1 | AG20: 0.1 | AH20: 1 | AI20: 1 | AJ20: 1 | AK20: 1 | AL20: 0.1 | AM20: 0.1 | AN20: 0.1 | AO20: 0.1 | AP20: 0.1 | AQ20: 0.1 | AR20: 0.1 | AS20: 0.1 | AT20: 0.05 | AU20: 0.1 | AV20: 0.1 | AW20: 0.1 | AX20: 0.1 | AY20: 0.05 | AZ20: 0.05 | BA20: 1 | BB20: 0.1 | BC20: 0.05 | CJ20: =Measurements!A20 -> 2015-09-15 | CK20: 19800 | CL20: 21186000 | CM20: 1021200 | CN20: 690200 | CO20: 163760 | CP20: 544500 | CQ20: 77220 | CR20: 7 | CS20: 5326200 | CT20: 0 | CU20: 0 | CV20: 15874600 | CW20: 830270 | CX20: 4141200 | CY20: 77140 | CZ20: 472990 | DA20: 44660 | DB20: 4141200 | DC20: 0 | DD20: 61152 | DE20: 906108.125 | DF20: 398715.625 | DG20: 0 | DH20: 0 | DI20: 594000 | DJ20: 223246.875 | DK20: 2573-11-12T08:41:53.625 | EZ20: 0 | FE20: 0
A21: =Measurements!A21 -> 2015-09-16 | B21: 20105 | C21: =IF(NOT(ISBLANK(Measurements!B21)),CL21/$CK21,"") -> 1326 | D21: 45.1 | E21: 441 | F21: 6.6 | G21: 29.4 | H21: 2.8 | I21: 6.9 | J21: 291 | K21: 0 | L21: 0 | M21: 728.1926606 | N21: 38.08577982 | O21: 189.9633028 | P21: 3.53853211 | Q21: 21.69678899 | R21: 2.048623853 | S21: 189.9633028 | T21: 0 | U21: 2.805137615 | V21: 41.56459289 | W21: 18.28970757 | X21: 0 | Y21: 0 | Z21: 48 | AA21: 10.24068234 | AB21: 11.29020011 | AC21: 1 | AD21: 1 | AE21: 1 | AF21: 1 | AG21: 1 | AH21: 1 | AI21: 1 | AJ21: 1 | AK21: 1 | AL21: 0.1 | AM21: 0.1 | AN21: 0.1 | AO21: 0.1 | AP21: 0.1 | AQ21: 0.1 | AR21: 0.1 | AS21: 0.1 | AT21: 0.05 | AU21: 0.1 | AV21: 0.1 | AW21: 0.1 | AX21: 0.1 | AY21: 0.05 | AZ21: 0.05 | BA21: 1 | BB21: 0.1 | BC21: 0.05 | CJ21: =Measurements!A21 -> 2015-09-16 | CK21: 21800 | CL21: 28906800 | CM21: 983180 | CN21: 9613800 | CO21: 143880 | CP21: 640920 | CQ21: 61040 | CR21: 6.9 | CS21: 6343800 | CT21: 0 | CU21: 0 | CV21: 15874600 | CW21: 830270 | CX21: 4141200 | CY21: 77140 | CZ21: 472990 | DA21: 44660 | DB21: 4141200 | DC21: 0 | DD21: 61152 | DE21: 906108.125 | DF21: 398715.625 | DG21: 0 | DH21: 0 | DI21: 1046400 | DJ21: 223246.875 | DK21: 2573-11-12T08:41:53.625 | EZ21: 0 | FE21: 0
A22: =Measurements!A22 -> 2015-09-17 | B22: 20106 | C22: =IF(NOT(ISBLANK(Measurements!B22)),CL22/$CK22,"") -> 876 | D22: 40.2942623 | E22: 90 | F22: 5.896721311 | G22: 30.4 | H22: 3.1 | I22: 6.8 | J22: 294 | K22: 0 | L22: 0 | M22: 650.5983607 | N22: 34.02745902 | O22: 169.7213115 | P22: 3.16147541 | Q22: 19.38483607 | R22: 1.830327869 | S22: 169.7213115 | T22: 0 | U22: 2.506229508 | V22: 37.13557889 | W22: 16.3408043 | X22: 0 | Y22: 0 | Z22: 28 | AA22: 9.14946209 | AB22: 10.087146 | AC22: 1 | AD22: 1 | AE22: 0.1 | AF22: 1 | AG22: 0.1 | AH22: 1 | AI22: 1 | AJ22: 1 | AK22: 1 | AL22: 0.1 | AM22: 0.1 | AN22: 0.1 | AO22: 0.1 | AP22: 0.1 | AQ22: 0.1 | AR22: 0.1 | AS22: 0.1 | AT22: 0.05 | AU22: 0.1 | AV22: 0.1 | AW22: 0.1 | AX22: 0.1 | AY22: 0.05 | AZ22: 0.05 | BA22: 1 | BB22: 0.1 | BC22: 0.05 | CJ22: =Measurements!A22 -> 2015-09-17 | CK22: 24400 | CL22: 21374400 | CM22: 983180 | CN22: 2196000 | CO22: 143880 | CP22: 741760 | CQ22: 75640 | CR22: 6.8 | CS22: 7173600 | CT22: 0 | CU22: 0 | CV22: 15874600 | CW22: 830270 | CX22: 4141200 | CY22: 77140 | CZ22: 472990 | DA22: 44660 | DB22: 4141200 | DC22: 0 | DD22: 61152 | DE22: 906108.125 | DF22: 398715.625 | DG22: 0 | DH22: 0 | DI22: 683200 | DJ22: 223246.875 | DK22: 2573-11-12T08:41:53.625 | EZ22: 0 | FE22: 0
A23: =Measurements!A23 -> 2015-09-18 | B23: 20107 | C23: =IF(NOT(ISBLANK(Measurements!B23)),CL23/$CK23,"") -> 722 | D23: 42.19656652 | E23: 94.24892704 | F23: 6.175107296 | G23: 29.9 | H23: 2.8 | I23: 6.9 | J23: 298 | K23: 0 | L23: 0 | M23: 681.3133047 | N23: 35.63390558 | O23: 177.7339056 | P23: 3.310729614 | Q23: 20.3 | R23: 1.916738197 | S23: 177.7339056 | T23: 0 | U23: 2.624549356 | V23: 38.88876073 | W23: 17.11225858 | X23: 0 | Y23: 0 | Z23: 47 | AA23: 9.581410944 | AB23: 10.56336319 | AC23: 1 | AD23: 1 | AE23: 0.1 | AF23: 0.1 | AG23: 0.1 | AH23: 1 | AI23: 1 | AJ23: 1 | AK23: 1 | AL23: 0.1 | AM23: 0.1 | AN23: 0.1 | AO23: 0.1 | AP23: 0.1 | AQ23: 0.1 | AR23: 0.1 | AS23: 0.1 | AT23: 0.05 | AU23: 0.1 | AV23: 0.1 | AW23: 0.1 | AX23: 0.1 | AY23: 0.05 | AZ23: 0.05 | BA23: 1 | BB23: 0.1 | BC23: 0.05 | CJ23: =Measurements!A23 -> 2015-09-18 | CK23: 23300 | CL23: 16822600 | CM23: 983180 | CN23: 2196000 | CO23: 143880 | CP23: 696670 | CQ23: 65240 | CR23: 6.9 | CS23: 6943400 | CT23: 0 | CU23: 0 | CV23: 15874600 | CW23: 830270 | CX23: 4141200 | CY23: 77140 | CZ23: 472990 | DA23: 44660 | DB23: 4141200 | DC23: 0 | DD23: 61152 | DE23: 906108.125 | DF23: 398715.625 | DG23: 0 | DH23: 0 | DI23: 1095100 | DJ23: 223246.875 | DK23: 2573-11-12T08:41:53.625 | EZ23: 0 | FE23: 0
A24: =Measurements!A24 -> 2015-09-19 | B24: 20108 | C24: =IF(NOT(ISBLANK(Measurements!B24)),CL24/$CK24,"") -> 1331 | D24: 44.48778281 | E24: 99.36651584 | F24: 6.51040724 | G24: 26.7 | H24: 2.7 | I24: 6.6 | J24: 285 | K24: 0 | L24: 0 | M24: 718.3076923 | N24: 37.56877828 | O24: 187.3846154 | P24: 3.490497738 | Q24: 21.40226244 | R24: 2.02081448 | S24: 187.3846154 | T24: 0 | U24: 2.767058824 | V24: 41.00036765 | W24: 18.041431 | X24: 0 | Y24: 0 | Z24: 40 | AA24: 11 | AB24: 23.73026435 | AC24: 1 | AD24: 1 | AE24: 0.1 | AF24: 0.1 | AG24: 0.1 | AH24: 1 | AI24: 1 | AJ24: 1 | AK24: 1 | AL24: 0.1 | AM24: 0.1 | AN24: 0.1 | AO24: 0.1 | AP24: 0.1 | AQ24: 0.1 | AR24: 0.1 | AS24: 0.1 | AT24: 0.05 | AU24: 0.1 | AV24: 0.1 | AW24: 0.1 | AX24: 0.1 | AY24: 0.05 | AZ24: 0.05 | BA24: 1 | BB24: 1 | BC24: 0.5 | CJ24: =Measurements!A24 -> 2015-09-19 | CK24: 22100 | CL24: 29415100 | CM24: 983180 | CN24: 2196000 | CO24: 143880 | CP24: 590070 | CQ24: 59670 | CR24: 6.6 | CS24: 6298500 | CT24: 0 | CU24: 0 | CV24: 15874600 | CW24: 830270 | CX24: 4141200 | CY24: 77140 | CZ24: 472990 | DA24: 44660 | DB24: 4141200 | DC24: 0 | DD24: 61152 | DE24: 906108.125 | DF24: 398715.625 | DG24: 0 | DH24: 0 | DI24: 884000 | DJ24: 243100 | DK24: 3335-11-10T20:12:49 | EZ24: 0 | FE24: 0
A25: =Measurements!A25 -> 2015-09-20 | B25: 20109 | C25: =IF(NOT(ISBLANK(Measurements!B25)),CL25/$CK25,"") -> 1496 | D25: 44.48778281 | E25: 500 | F25: 6.51040724 | G25: 27.4 | H25: 3.7 | I25: 7 | J25: 289 | K25: 0 | L25: 0 | M25: 718.3076923 | N25: 37.56877828 | O25: 187.3846154 | P25: 3.490497738 | Q25: 21.40226244 | R25: 2.02081448 | S25: 187.3846154 | T25: 0 | U25: 2.767058824 | V25: 41.00036765 | W25: 18.041431 | X25: 0 | Y25: 0 | Z25: 37 | AA25: 11 | AB25: 23.73026435 | AC25: 1 | AD25: 1 | AE25: 0.1 | AF25: 1 | AG25: 0.1 | AH25: 1 | AI25: 1 | AJ25: 1 | AK25: 1 | AL25: 0.1 | AM25: 0.1 | AN25: 0.1 | AO25: 0.1 | AP25: 0.1 | AQ25: 0.1 | AR25: 0.1 | AS25: 0.1 | AT25: 0.05 | AU25: 0.1 | AV25: 0.1 | AW25: 0.1 | AX25: 0.1 | AY25: 0.05 | AZ25: 0.05 | BA25: 1 | BB25: 0.1 | BC25: 0.05 | CJ25: =Measurements!A25 -> 2015-09-20 | CK25: 22100 | CL25: 33061600 | CM25: 983180 | CN25: 11050000 | CO25: 143880 | CP25: 605540 | CQ25: 81770 | CR25: 7 | CS25: 6386900 | CT25: 0 | CU25: 0 | CV25: 15874600 | CW25: 830270 | CX25: 4141200 | CY25: 77140 | CZ25: 472990 | DA25: 44660 | DB25: 4141200 | DC25: 0 | DD25: 61152 | DE25: 906108.125 | DF25: 398715.625 | DG25: 0 | DH25: 0 | DI25: 817700 | DJ25: 243100 | DK25: 3335-11-10T20:12:48.959 | EZ25: 0 | FE25: 0
A26: =Measurements!A26 -> 2015-09-21 | B26: 20110 | C26: =IF(NOT(ISBLANK(Measurements!B26)),CL26/$CK26,"") -> 1237 | D26: 45.1 | E26: 321 | F26: 6.6 | G26: 26.8 | H26: 3 | I26: 7 | J26: 291 | K26: 0 | L26: 0 | M26: 1106 | N26: 59 | O26: 286 | P26: 2.8 | Q26: 42.1 | R26: 2.9 | S26: 286 | T26: 0 | U26: 2.805137615 | V26: 41.56459289 | W26: 18.28970757 | X26: 0 | Y26: 0 | Z26: 33 | AA26: 11.15137615 | AB26: 24.05682763 | AC26: 1 | AD26: 1 | AE26: 0.1 | AF26: 1 | AG26: 0.1 | AH26: 1 | AI26: 1 | AJ26: 1 | AK26: 1 | AL26: 0.1 | AM26: 0.1 | AN26: 1 | AO26: 1 | AP26: 1 | AQ26: 1 | AR26: 1 | AS26: 1 | AT26: 0.5 | AU26: 0.1 | AV26: 0.1 | AW26: 0.1 | AX26: 0.1 | AY26: 0.05 | AZ26: 0.05 | BA26: 1 | BB26: 0.1 | BC26: 0.05 | CJ26: =Measurements!A26 -> 2015-09-21 | CK26: 21800 | CL26: 26966600 | CM26: 983180 | CN26: 6997800 | CO26: 143880 | CP26: 584240 | CQ26: 65400 | CR26: 7 | CS26: 6343800 | CT26: 0 | CU26: 0 | CV26: 24110800 | CW26: 1286200 | CX26: 6234800 | CY26: 61040 | CZ26: 917780 | DA26: 63220 | DB26: 6234800 | DC26: 0 | DD26: 61152 | DE26: 906108.125 | DF26: 398715.625 | DG26: 0 | DH26: 0 | DI26: 719400 | DJ26: 243100 | DK26: 3335-11-10T20:12:48.959 | EZ26: 0 | FE26: 0
A27: =Measurements!A27 -> 2015-09-22 | B27: 20111 | C27: =IF(NOT(ISBLANK(Measurements!B27)),CL27/$CK27,"") -> 872 | D27: 59.22771084 | E27: 488 | F27: 8.66746988 | G27: 27.4 | H27: 3.2 | I27: 7 | J27: 331 | K27: 0 | L27: 0 | M27: 1452.457831 | N27: 77.48192771 | O27: 375.5903614 | P27: 3.677108434 | Q27: 55.28795181 | R27: 3.808433735 | S27: 375.5903614 | T27: 0 | U27: 3.683855422 | V27: 54.58482681 | W27: 24.01901355 | X27: 0 | Y27: 0 | Z27: 46 | AA27: 24 | AB27: 10.50239495 | AC27: 1 | AD27: 1 | AE27: 0.1 | AF27: 1 | AG27: 0.1 | AH27: 1 | AI27: 1 | AJ27: 0.1 | AK27: 1 | AL27: 0.1 | AM27: 0.1 | AN27: 0.1 | AO27: 0.1 | AP27: 0.1 | AQ27: 0.1 | AR27: 0.1 | AS27: 0.1 | AT27: 0.05 | AU27: 0.1 | AV27: 0.1 | AW27: 0.1 | AX27: 0.1 | AY27: 0.05 | AZ27: 0.05 | BA27: 1 | BB27: 1 | BC27: 0.5 | CJ27: =Measurements!A27 -> 2015-09-22 | CK27: 16600 | CL27: 14475200 | CM27: 983180 | CN27: 8100800 | CO27: 143880 | CP27: 454840 | CQ27: 53120 | CR27: 7 | CS27: 5494600 | CT27: 0 | CU27: 0 | CV27: 24110800 | CW27: 1286200 | CX27: 6234800 | CY27: 61040 | CZ27: 917780 | DA27: 63220 | DB27: 6234800 | DC27: 0 | DD27: 61152 | DE27: 906108.125 | DF27: 398715.625 | DG27: 0 | DH27: 0 | DI27: 763600 | DJ27: 398400 | DK27: 2377-04-27T18:09:00 | EZ27: 0 | FE27: 0
A28: =Measurements!A28 -> 2015-09-23 | B28: 20112 | C28: =IF(NOT(ISBLANK(Measurements!B28)),CL28/$CK28,"") -> 952 | D28: 59.95 | E28: 441 | F28: 8.773170732 | G28: 31 | H28: 3.9 | I28: 7.2 | J28: 317 | K28: 0 | L28: 0 | M28: 1470.170732 | N28: 78.42682927 | O28: 380.1707317 | P28: 3.72195122 | Q28: 55.96219512 | R28: 3.854878049 | S28: 380.1707317 | T28: 0 | U28: 3.728780488 | V28: 55.25049543 | W28: 24.31192835 | X28: 0 | Y28: 0 | Z28: 38 | AA28: 24.29268293 | AB28: 10.63047294 | AC28: 1 | AD28: 1 | AE28: 0.1 | AF28: 1 | AG28: 0.1 | AH28: 1 | AI28: 1 | AJ28: 1 | AK28: 1 | AL28: 0.1 | AM28: 0.1 | AN28: 0.1 | AO28: 0.1 | AP28: 0.1 | AQ28: 0.1 | AR28: 0.1 | AS28: 0.1 | AT28: 0.05 | AU28: 0.1 | AV28: 0.1 | AW28: 0.1 | AX28: 0.1 | AY28: 0.05 | AZ28: 0.05 | BA28: 1 | BB28: 0.1 | BC28: 0.05 | CJ28: =Measurements!A28 -> 2015-09-23 | CK28: 16400 | CL28: 15612800 | CM28: 983180 | CN28: 7232400 | CO28: 143880 | CP28: 508400 | CQ28: 63960 | CR28: 7.2 | CS28: 5198800 | CT28: 0 | CU28: 0 | CV28: 24110800 | CW28: 1286200 | CX28: 6234800 | CY28: 61040 | CZ28: 917780 | DA28: 63220 | DB28: 6234800 | DC28: 0 | DD28: 61152 | DE28: 906108.125 | DF28: 398715.625 | DG28: 0 | DH28: 0 | DI28: 623200 | DJ28: 398400 | DK28: 2377-04-27T18:09:00.490 | EZ28: 0 | FE28: 0
A29: =Measurements!A29 -> 2015-09-24 | B29: 20113 | C29: =IF(NOT(ISBLANK(Measurements!B29)),CL29/$CK29,"") -> 963 | D29: 54.92625698 | E29: 175 | F29: 8.037988827 | G29: 27.4 | H29: 3.6 | I29: 6.7 | J29: 312 | K29: 0 | L29: 0 | M29: 1346.972067 | N29: 71.8547486 | O29: 348.3128492 | P29: 3.410055866 | Q29: 51.2726257 | R29: 3.531843575 | S29: 348.3128492 | T29: 0 | U29: 3.416312849 | V29: 50.62056564 | W29: 22.27461592 | X29: 0 | Y29: 0 | Z29: 41 | AA29: 22.25698324 | AB29: 9.739651187 | AC29: 1 | AD29: 1 | AE29: 0.1 | AF29: 1 | AG29: 0.1 | AH29: 1 | AI29: 1 | AJ29: 1 | AK29: 1 | AL29: 0.1 | AM29: 0.1 | AN29: 0.1 | AO29: 0.1 | AP29: 0.1 | AQ29: 0.1 | AR29: 0.1 | AS29: 0.1 | AT29: 0.05 | AU29: 0.1 | AV29: 0.1 | AW29: 0.1 | AX29: 0.1 | AY29: 0.05 | AZ29: 0.05 | BA29: 1 | BB29: 0.1 | BC29: 0.05 | CJ29: =Measurements!A29 -> 2015-09-24 | CK29: 17900 | CL29: 17237700 | CM29: 983180 | CN29: 3132500 | CO29: 143880 | CP29: 490460 | CQ29: 64440 | CR29: 6.7 | CS29: 5584800 | CT29: 0 | CU29: 0 | CV29: 24110800 | CW29: 1286200 | CX29: 6234800 | CY29: 61040 | CZ29: 917780 | DA29: 63220 | DB29: 6234800 | DC29: 0 | DD29: 61152 | DE29: 906108.125 | DF29: 398715.625 | DG29: 0 | DH29: 0 | DI29: 733900 | DJ29: 398400 | DK29: 2377-04-27T18:09:00.490 | EZ29: 0 | FE29: 0
A30: =Measurements!A30 -> 2015-09-25 | B30: 20114 | C30: =IF(NOT(ISBLANK(Measurements!B30)),CL30/$CK30,"") -> 648 | D30: 30.82068966 | E30: 98.19749216 | F30: 4.510344828 | G30: 34 | H30: 4.1 | I30: 6.7 | J30: 175.0721003 | K30: 0 | L30: 0 | M30: 755.8244514 | N30: 40.31974922 | O30: 195.4482759 | P30: 1.913479624 | Q30: 28.77053292 | R30: 1.981818182 | S30: 195.4482759 | T30: 0 | U30: 1.916990596 | V30: 28.40464342 | W30: 12.49892241 | X30: 0 | Y30: 0 | Z30: 55 | AA30: 12.48902821 | AB30: 5.465196121 | AC30: 1 | AD30: 1 | AE30: 0.1 | AF30: 0.1 | AG30: 0.1 | AH30: 1 | AI30: 1 | AJ30: 0.1 | AK30: 0.1 | AL30: 0.1 | AM30: 0.1 | AN30: 0.1 | AO30: 0.1 | AP30: 0.1 | AQ30: 0.1 | AR30: 0.1 | AS30: 0.1 | AT30: 0.05 | AU30: 0.1 | AV30: 0.1 | AW30: 0.1 | AX30: 0.1 | AY30: 0.05 | AZ30: 0.05 | BA30: 1 | BB30: 0.1 | BC30: 0.05 | CJ30: =Measurements!A30 -> 2015-09-25 | CK30: 31900 | CL30: 20671200 | CM30: 983180 | CN30: 3132500 | CO30: 143880 | CP30: 1084600 | CQ30: 130790 | CR30: 6.7 | CS30: 5584800 | CT30: 0 | CU30: 0 | CV30: 24110800 | CW30: 1286200 | CX30: 6234800 | CY30: 61040 | CZ30: 917780 | DA30: 63220 | DB30: 6234800 | DC30: 0 | DD30: 61152 | DE30: 906108.125 | DF30: 398715.625 | DG30: 0 | DH30: 0 | DI30: 1754500 | DJ30: 398400 | DK30: 2377-04-27T18:09:00.490 | EZ30: 0 | FE30: 0
A31: =Measurements!A31 -> 2015-09-26 | B31: 20115 | C31: =IF(NOT(ISBLANK(Measurements!B31)),CL31/$CK31,"") -> 630 | D31: 36.6858209 | E31: 116.8843284 | F31: 5.368656716 | G31: 29.1 | H31: 3.8 | I31: 6.8 | J31: 311 | K31: 0 | L31: 0 | M31: 899.6567164 | N31: 47.99253731 | O31: 232.641791 | P31: 2.27761194 | Q31: 34.24552239 | R31: 2.358955224 | S31: 232.641791 | T31: 0 | U31: 2.281791045 | V31: 33.81000466 | W31: 14.87744869 | X31: 0 | Y31: 0 | Z31: 10 | AA31: 14.86567164 | AB31: 6.505214786 | AC31: 1 | AD31: 1 | AE31: 0.1 | AF31: 0.1 | AG31: 0.1 | AH31: 1 | AI31: 1 | AJ31: 1 | AK31: 1 | AL31: 0.1 | AM31: 0.1 | AN31: 0.1 | AO31: 0.1 | AP31: 0.1 | AQ31: 0.1 | AR31: 0.1 | AS31: 0.1 | AT31: 0.05 | AU31: 0.1 | AV31: 0.1 | AW31: 0.1 | AX31: 0.1 | AY31: 0.05 | AZ31: 0.05 | BA31: 1 | BB31: 0.1 | BC31: 0.05 | CJ31: =Measurements!A31 -> 2015-09-26 | CK31: 26800 | CL31: 16884000 | CM31: 983180 | CN31: 3132500 | CO31: 143880 | CP31: 779880 | CQ31: 101840 | CR31: 6.8 | CS31: 8334800 | CT31: 0 | CU31: 0 | CV31: 24110800 | CW31: 1286200 | CX31: 6234800 | CY31: 61040 | CZ31: 917780 | DA31: 63220 | DB31: 6234800 | DC31: 0 | DD31: 61152 | DE31: 906108.125 | DF31: 398715.625 | DG31: 0 | DH31: 0 | DI31: 268000 | DJ31: 398400 | DK31: 2377-04-27T18:09:00.490 | EZ31: 0 | FE31: 0
A32: =Measurements!A32 -> 2015-09-27 | B32: 20116 | C32: =IF(NOT(ISBLANK(Measurements!B32)),CL32/$CK32,"") -> 1057 | D32: 55.8625 | E32: 312 | F32: 8.175 | G32: 28.8 | H32: 3 | I32: 7 | J32: 288 | K32: 0 | L32: 0 | M32: 1369.931818 | N32: 73.07954545 | O32: 354.25 | P32: 3.468181818 | Q32: 52.14659091 | R32: 3.592045455 | S32: 354.25 | T32: 0 | U32: 3.474545455 | V32: 51.48341619 | W32: 22.65429688 | X32: 0 | Y32: 0 | Z32: 25 | AA32: 22.63636364 | AB32: 9.905667969 | AC32: 1 | AD32: 1 | AE32: 0.1 | AF32: 1 | AG32: 0.1 | AH32: 1 | AI32: 1 | AJ32: 1 | AK32: 1 | AL32: 0.1 | AM32: 0.1 | AN32: 0.1 | AO32: 0.1 | AP32: 0.1 | AQ32: 0.1 | AR32: 0.1 | AS32: 0.1 | AT32: 0.05 | AU32: 0.1 | AV32: 0.1 | AW32: 0.1 | AX32: 0.1 | AY32: 0.05 | AZ32: 0.05 | BA32: 1 | BB32: 0.1 | BC32: 0.05 | CJ32: =Measurements!A32 -> 2015-09-27 | CK32: 17600 | CL32: 18603200 | CM32: 983180 | CN32: 5491200 | CO32: 143880 | CP32: 506880 | CQ32: 52800 | CR32: 7 | CS32: 5068800 | CT32: 0 | CU32: 0 | CV32: 24110800 | CW32: 1286200 | CX32: 6234800 | CY32: 61040 | CZ32: 917780 | DA32: 63220 | DB32: 6234800 | DC32: 0 | DD32: 61152 | DE32: 906108.125 | DF32: 398715.625 | DG32: 0 | DH32: 0 | DI32: 440000 | DJ32: 398400 | DK32: 2377-04-27T18:09:00.490 | EZ32: 0 | FE32: 0
A33: =Measurements!A33 -> 2015-09-28 | B33: 20117 | C33: =IF(NOT(ISBLANK(Measurements!B33)),CL33/$CK33,"") -> 617 | D33: 55.8625 | E33: 312 | F33: 8.175 | G33: 30.1 | H33: 3.5 | I33: 7 | J33: 262 | K33: 0 | L33: 0 | M33: 551 | N33: 68.5 | O33: 123 | P33: 6.4 | Q33: 34.3 | R33: 3.7 | S33: 123 | T33: 0 | U33: 3.474545455 | V33: 51.48341619 | W33: 22.65429688 | X33: 0 | Y33: 0 | Z33: 28 | AA33: 22.63636364 | AB33: 9.905667969 | AC33: 1 | AD33: 1 | AE33: 0.1 | AF33: 0.1 | AG33: 0.1 | AH33: 1 | AI33: 1 | AJ33: 1 | AK33: 1 | AL33: 0.1 | AM33: 0.1 | AN33: 1 | AO33: 1 | AP33: 1 | AQ33: 1 | AR33: 1 | AS33: 1 | AT33: 0.5 | AU33: 0.1 | AV33: 0.1 | AW33: 0.1 | AX33: 0.1 | AY33: 0.05 | AZ33: 0.05 | BA33: 1 | BB33: 0.1 | BC33: 0.05 | CJ33: =Measurements!A33 -> 2015-09-28 | CK33: 17600 | CL33: 10859200 | CM33: 983180 | CN33: 5491200 | CO33: 143880 | CP33: 529760 | CQ33: 61600 | CR33: 7 | CS33: 4611200 | CT33: 0 | CU33: 0 | CV33: 9697600 | CW33: 1205600 | CX33: 2164800 | CY33: 112640 | CZ33: 603680 | DA33: 65120 | DB33: 2164800 | DC33: 0 | DD33: 61152 | DE33: 906108.125 | DF33: 398715.625 | DG33: 0 | DH33: 0 | DI33: 492800 | DJ33: 398400 | DK33: 2377-04-27T18:09:00.490 | EZ33: 0 | FE33: 0
A34: =Measurements!A34 -> 2015-09-29 | B34: 20118 | C34: =IF(NOT(ISBLANK(Measurements!B34)),CL34/$CK34,"") -> 412 | D34: 52.02010582 | E34: 94 | F34: 7.612698413 | G34: 28.4 | H34: 3.1 | I34: 7 | J34: 284 | K34: 0 | L34: 0 | M34: 513.1005291 | N34: 63.78835979 | O34: 114.5396825 | P34: 5.95978836 | Q34: 31.94074074 | R34: 3.445502646 | S34: 114.5396825 | T34: 0 | U34: 3.235555556 | V34: 47.94222884 | W34: 21.09606481 | X34: 0 | Y34: 0 | Z34: 24 | AA34: 21.07936508 | AB34: 9.224325728 | AC34: 1 | AD34: 1 | AE34: 0.1 | AF34: 1 | AG34: 0.1 | AH34: 1 | AI34: 1 | AJ34: 1 | AK34: 1 | AL34: 0.1 | AM34: 0.1 | AN34: 0.1 | AO34: 0.1 | AP34: 0.1 | AQ34: 0.1 | AR34: 0.1 | AS34: 0.1 | AT34: 0.05 | AU34: 0.1 | AV34: 0.1 | AW34: 0.1 | AX34: 0.1 | AY34: 0.05 | AZ34: 0.05 | BA34: 1 | BB34: 0.1 | BC34: 0.05 | CJ34: =Measurements!A34 -> 2015-09-29 | CK34: 18900 | CL34: 7786800 | CM34: 983180 | CN34: 1776600 | CO34: 143880 | CP34: 536760 | CQ34: 58590 | CR34: 7 | CS34: 5367600 | CT34: 0 | CU34: 0 | CV34: 9697600 | CW34: 1205600 | CX34: 2164800 | CY34: 112640 | CZ34: 603680 | DA34: 65120 | DB34: 2164800 | DC34: 0 | DD34: 61152 | DE34: 906108.125 | DF34: 398715.625 | DG34: 0 | DH34: 0 | DI34: 453600 | DJ34: 398400 | DK34: 2377-04-27T18:09:00.490 | EZ34: 0 | FE34: 0
A35: =Measurements!A35 -> 2015-09-30 | B35: 20119 | C35: =IF(NOT(ISBLANK(Measurements!B35)),CL35/$CK35,"") -> 1521 | D35: 48.6 | E35: 450 | F35: 7.5 | G35: 21.5 | H35: 2.2 | I35: 6.8 | J35: 298 | K35: 0 | L35: 0 | M35: 642.2251656 | N35: 79.8410596 | O35: 143.3642384 | P35: 7.459602649 | Q35: 39.97880795 | R35: 4.312582781 | S35: 143.3642384 | T35: 0 | U35: 4.049801325 | V35: 60.0071606 | W35: 26.40500828 | X35: 0 | Y35: 0 | Z35: 10 | AA35: 12 | AB35: 11.54567922 | AC35: 1 | AD35: 1 | AE35: 1 | AF35: 1 | AG35: 1 | AH35: 1 | AI35: 1 | AJ35: 1 | AK35: 1 | AL35: 0.1 | AM35: 0.1 | AN35: 0.1 | AO35: 0.1 | AP35: 0.1 | AQ35: 0.1 | AR35: 0.1 | AS35: 0.1 | AT35: 0.05 | AU35: 0.1 | AV35: 0.1 | AW35: 0.1 | AX35: 0.1 | AY35: 0.05 | AZ35: 0.05 | BA35: 1 | BB35: 1 | BC35: 0.05 | CJ35: =Measurements!A35 -> 2015-09-30 | CK35: 15100 | CL35: 22967100 | CM35: 733860 | CN35: 6795000 | CO35: 113250 | CP35: 324650 | CQ35: 33220 | CR35: 6.8 | CS35: 4499800 | CT35: 0 | CU35: 0 | CV35: 9697600 | CW35: 1205600 | CX35: 2164800 | CY35: 112640 | CZ35: 603680 | DA35: 65120 | DB35: 2164800 | DC35: 0 | DD35: 61152 | DE35: 906108.125 | DF35: 398715.625 | DG35: 0 | DH35: 0 | DI35: 151000 | DJ35: 181200 | DK35: 2377-04-27T18:09:00.490 | EZ35: 0 | FE35: 0
A36: =Measurements!A36 -> 2015-10-01 | B36: 20120 | C36: =IF(NOT(ISBLANK(Measurements!B36)),CL36/$CK36,"") -> 1395 | D36: 41.93485714 | E36: 280 | F36: 6.471428571 | G36: 36.5 | H36: 3.1 | I36: 7 | J36: 292 | K36: 0 | L36: 0 | M36: 554.1485714 | N36: 68.89142857 | O36: 123.7028571 | P36: 6.436571429 | Q36: 34.496 | R36: 3.721142857 | S36: 123.7028571 | T36: 0 | U36: 3.4944 | V36: 51.77760714 | W36: 22.78375 | X36: 0 | Y36: 0 | Z36: 34 | AA36: 10.35428571 | AB36: 9.962271786 | AC36: 1 | AD36: 1 | AE36: 0.1 | AF36: 1 | AG36: 0.1 | AH36: 1 | AI36: 1 | AJ36: 1 | AK36: 1 | AL36: 0.1 | AM36: 0.1 | AN36: 0.1 | AO36: 0.1 | AP36: 0.1 | AQ36: 0.1 | AR36: 0.1 | AS36: 0.1 | AT36: 0.05 | AU36: 0.1 | AV36: 0.1 | AW36: 0.1 | AX36: 0.1 | AY36: 0.05 | AZ36: 0.05 | BA36: 1 | BB36: 0.1 | BC36: 0.05 | CJ36: =Measurements!A36 -> 2015-10-01 | CK36: 17500 | CL36: 24412500 | CM36: 733860 | CN36: 4900000 | CO36: 113250 | CP36: 638750 | CQ36: 54250 | CR36: 7 | CS36: 5110000 | CT36: 0 | CU36: 0 | CV36: 9697600 | CW36: 1205600 | CX36: 2164800 | CY36: 112640 | CZ36: 603680 | DA36: 65120 | DB36: 2164800 | DC36: 0 | DD36: 61152 | DE36: 906108.125 | DF36: 398715.625 | DG36: 0 | DH36: 0 | DI36: 595000 | DJ36: 181200 | DK36: 2377-04-27T18:09:00.490 | EZ36: 0 | FE36: 0
A37: =Measurements!A37 -> 2015-10-02 | B37: 20121 | C37: =IF(NOT(ISBLANK(Measurements!B37)),CL37/$CK37,"") -> 735 | D37: 32.04628821 | E37: 250 | F37: 4.945414847 | G37: 26.3 | H37: 3 | I37: 6.8 | J37: 288 | K37: 0 | L37: 0 | M37: 423.4759825 | N37: 52.64628821 | O37: 94.53275109 | P37: 4.918777293 | Q37: 26.36157205 | R37: 2.843668122 | S37: 94.53275109 | T37: 0 | U37: 2.670393013 | V37: 39.56804039 | W37: 17.41116266 | X37: 0 | Y37: 0 | Z37: 31 | AA37: 12 | AB37: 13.25119748 | AC37: 1 | AD37: 1 | AE37: 0.1 | AF37: 1 | AG37: 0.1 | AH37: 1 | AI37: 1 | AJ37: 1 | AK37: 1 | AL37: 0.1 | AM37: 0.1 | AN37: 0.1 | AO37: 0.1 | AP37: 0.1 | AQ37: 0.1 | AR37: 0.1 | AS37: 0.1 | AT37: 0.05 | AU37: 0.1 | AV37: 0.1 | AW37: 0.1 | AX37: 0.1 | AY37: 0.05 | AZ37: 0.05 | BA37: 1 | BB37: 1 | BC37: 0.5 | CJ37: =Measurements!A37 -> 2015-10-02 | CK37: 22900 | CL37: 16831500 | CM37: 733860 | CN37: 5725000 | CO37: 113250 | CP37: 602270 | CQ37: 68700 | CR37: 6.8 | CS37: 6595200 | CT37: 0 | CU37: 0 | CV37: 9697600 | CW37: 1205600 | CX37: 2164800 | CY37: 112640 | CZ37: 603680 | DA37: 65120 | DB37: 2164800 | DC37: 0 | DD37: 61152 | DE37: 906108.125 | DF37: 398715.625 | DG37: 0 | DH37: 0 | DI37: 709900 | DJ37: 274800 | DK37: 2730-10-27T10:08:01 | EZ37: 0 | FE37: 0
A38: =Measurements!A38 -> 2015-10-03 | B38: 20122 | C38: =IF(NOT(ISBLANK(Measurements!B38)),CL38/$CK38,"") -> 727 | D38: 30.2 | E38: 322 | F38: 4.660493827 | G38: 26.3 | H38: 2.4 | I38: 6.8 | J38: 266 | K38: 0 | L38: 0 | M38: 399.0781893 | N38: 49.61316872 | O38: 89.08641975 | P38: 4.635390947 | Q38: 24.84279835 | R38: 2.679835391 | S38: 89.08641975 | T38: 0 | U38: 2.51654321 | V38: 37.28840021 | W38: 16.40805041 | X38: 0 | Y38: 0 | Z38: 32 | AA38: 11.30864198 | AB38: 12.487754 | AC38: 1 | AD38: 1 | AE38: 0.1 | AF38: 1 | AG38: 0.1 | AH38: 1 | AI38: 1 | AJ38: 1 | AK38: 1 | AL38: 0.1 | AM38: 0.1 | AN38: 0.1 | AO38: 0.1 | AP38: 0.1 | AQ38: 0.1 | AR38: 0.1 | AS38: 0.1 | AT38: 0.05 | AU38: 0.1 | AV38: 0.1 | AW38: 0.1 | AX38: 0.1 | AY38: 0.05 | AZ38: 0.05 | BA38: 1 | BB38: 0.1 | BC38: 0.05 | CJ38: =Measurements!A38 -> 2015-10-03 | CK38: 24300 | CL38: 17666100 | CM38: 733860 | CN38: 7824600 | CO38: 113250 | CP38: 639090 | CQ38: 58320 | CR38: 6.8 | CS38: 6463800 | CT38: 0 | CU38: 0 | CV38: 9697600 | CW38: 1205600 | CX38: 2164800 | CY38: 112640 | CZ38: 603680 | DA38: 65120 | DB38: 2164800 | DC38: 0 | DD38: 61152 | DE38: 906108.125 | DF38: 398715.625 | DG38: 0 | DH38: 0 | DI38: 777600 | DJ38: 274800 | DK38: 2730-10-27T10:08:01.242 | EZ38: 0 | FE38: 0
A39: =Measurements!A39 -> 2015-10-04 | B39: 20123 | C39: =IF(NOT(ISBLANK(Measurements!B39)),CL39/$CK39,"") -> 1203 | D39: 37.06363636 | E39: 313 | F39: 5.71969697 | G39: 27.3 | H39: 2.9 | I39: 6.9 | J39: 276 | K39: 0 | L39: 0 | M39: 489.7777778 | N39: 60.88888889 | O39: 109.3333333 | P39: 5.688888889 | Q39: 30.48888889 | R39: 3.288888889 | S39: 109.3333333 | T39: 0 | U39: 3.088484848 | V39: 45.76303662 | W39: 20.13715278 | X39: 0 | Y39: 0 | Z39: 37 | AA39: 13.87878788 | AB39: 15.32587991 | AC39: 1 | AD39: 1 | AE39: 0.1 | AF39: 1 | AG39: 0.1 | AH39: 1 | AI39: 1 | AJ39: 1 | AK39: 1 | AL39: 0.1 | AM39: 0.1 | AN39: 0.1 | AO39: 0.1 | AP39: 0.1 | AQ39: 0.1 | AR39: 0.1 | AS39: 0.1 | AT39: 0.05 | AU39: 0.1 | AV39: 0.1 | AW39: 0.1 | AX39: 0.1 | AY39: 0.05 | AZ39: 0.05 | BA39: 1 | BB39: 0.1 | BC39: 0.05 | CJ39: =Measurements!A39 -> 2015-10-04 | CK39: 19800 | CL39: 23819400 | CM39: 733860 | CN39: 6197400 | CO39: 113250 | CP39: 540540 | CQ39: 57420 | CR39: 6.9 | CS39: 5464800 | CT39: 0 | CU39: 0 | CV39: 9697600 | CW39: 1205600 | CX39: 2164800 | CY39: 112640 | CZ39: 603680 | DA39: 65120 | DB39: 2164800 | DC39: 0 | DD39: 61152 | DE39: 906108.125 | DF39: 398715.625 | DG39: 0 | DH39: 0 | DI39: 732600 | DJ39: 274800 | DK39: 2730-10-27T10:08:01.242 | EZ39: 0 | FE39: 0
A40: =Measurements!A40 -> 2015-10-05 | B40: 20124 | C40: =IF(NOT(ISBLANK(Measurements!B40)),CL40/$CK40,"") -> 808 | D40: 44.74756098 | E40: 275 | F40: 6.905487805 | G40: 30.2 | H40: 3.2 | I40: 7.1 | J40: 279 | K40: 0 | L40: 0 | M40: 821 | N40: 54.4 | O40: 145 | P40: 6.1 | Q40: 38.5 | R40: 3.9 | S40: 145 | T40: 0 | U40: 3.728780488 | V40: 55.25049543 | W40: 24.31192835 | X40: 0 | Y40: 0 | Z40: 24 | AA40: 16.75609756 | AB40: 18.50319648 | AC40: 1 | AD40: 1 | AE40: 0.1 | AF40: 1 | AG40: 0.1 | AH40: 1 | AI40: 1 | AJ40: 1 | AK40: 1 | AL40: 0.1 | AM40: 0.1 | AN40: 1 | AO40: 1 | AP40: 1 | AQ40: 1 | AR40: 1 | AS40: 1 | AT40: 0.5 | AU40: 0.1 | AV40: 0.1 | AW40: 0.1 | AX40: 0.1 | AY40: 0.05 | AZ40: 0.05 | BA40: 1 | BB40: 0.1 | BC40: 0.05 | CJ40: =Measurements!A40 -> 2015-10-05 | CK40: 16400 | CL40: 13251200 | CM40: 733860 | CN40: 4510000 | CO40: 113250 | CP40: 495280 | CQ40: 52480 | CR40: 7.1 | CS40: 4575600 | CT40: 0 | CU40: 0 | CV40: 13464400 | CW40: 892160 | CX40: 2378000 | CY40: 100040 | CZ40: 631400 | DA40: 63960 | DB40: 2378000 | DC40: 0 | DD40: 61152 | DE40: 906108.125 | DF40: 398715.625 | DG40: 0 | DH40: 0 | DI40: 393600 | DJ40: 274800 | DK40: 2730-10-27T10:08:01.242 | EZ40: 0 | FE40: 0
A41: =Measurements!A41 -> 2015-10-06 | B41: 20125 | C41: =IF(NOT(ISBLANK(Measurements!B41)),CL41/$CK41,"") -> 529 | D41: 39.88369565 | E41: 297 | F41: 6.154891304 | G41: 23.3 | H41: 3.3 | I41: 6.7 | J41: 237 | K41: 0 | L41: 0 | M41: 731.7608696 | N41: 48.48695652 | O41: 129.2391304 | P41: 5.436956522 | Q41: 34.31521739 | R41: 3.476086957 | S41: 129.2391304 | T41: 0 | U41: 3.323478261 | V41: 49.24500679 | W41: 21.66932745 | X41: 0 | Y41: 0 | Z41: 10 | AA41: 14.93478261 | AB41: 16.49197947 | AC41: 1 | AD41: 1 | AE41: 0.1 | AF41: 1 | AG41: 0.1 | AH41: 1 | AI41: 1 | AJ41: 1 | AK41: 1 | AL41: 0.1 | AM41: 0.1 | AN41: 0.1 | AO41: 0.1 | AP41: 0.1 | AQ41: 0.1 | AR41: 0.1 | AS41: 0.1 | AT41: 0.05 | AU41: 0.1 | AV41: 0.1 | AW41: 0.1 | AX41: 0.1 | AY41: 0.05 | AZ41: 0.05 | BA41: 1 | BB41: 0.1 | BC41: 0.05 | CJ41: =Measurements!A41 -> 2015-10-06 | CK41: 18400 | CL41: 9733600 | CM41: 733860 | CN41: 5464800 | CO41: 113250 | CP41: 428720 | CQ41: 60720 | CR41: 6.7 | CS41: 4360800 | CT41: 0 | CU41: 0 | CV41: 13464400 | CW41: 892160 | CX41: 2378000 | CY41: 100040 | CZ41: 631400 | DA41: 63960 | DB41: 2378000 | DC41: 0 | DD41: 61152 | DE41: 906108.125 | DF41: 398715.625 | DG41: 0 | DH41: 0 | DI41: 184000 | DJ41: 274800 | DK41: 2730-10-27T10:08:01.242 | EZ41: 0 | FE41: 0
A42: =Measurements!A42 -> 2015-10-07 | B42: 20126 | C42: =IF(NOT(ISBLANK(Measurements!B42)),CL42/$CK42,"") -> 629 | D42: 34.6 | E42: 210 | F42: 3.7 | G42: 26.2 | H42: 2.7 | I42: 7.3 | J42: 241 | K42: 0 | L42: 0 | M42: 735.7595628 | N42: 48.75191257 | O42: 129.9453552 | P42: 5.466666667 | Q42: 34.50273224 | R42: 3.495081967 | S42: 129.9453552 | T42: 0 | U42: 3.341639344 | V42: 49.51410519 | W42: 21.78773907 | X42: 0 | Y42: 0 | Z42: 34 | AA42: 15.01639344 | AB42: 16.58209958 | AC42: 1 | AD42: 1 | AE42: 1 | AF42: 1 | AG42: 1 | AH42: 1 | AI42: 1 | AJ42: 1 | AK42: 1 | AL42: 0.1 | AM42: 0.1 | AN42: 0.1 | AO42: 0.1 | AP42: 0.1 | AQ42: 0.1 | AR42: 0.1 | AS42: 0.1 | AT42: 0.05 | AU42: 0.1 | AV42: 0.1 | AW42: 0.1 | AX42: 0.1 | AY42: 0.05 | AZ42: 0.05 | BA42: 1 | BB42: 0.1 | BC42: 0.05 | CJ42: =Measurements!A42 -> 2015-10-07 | CK42: 18300 | CL42: 11510700 | CM42: 633180 | CN42: 3843000 | CO42: 67710 | CP42: 479460 | CQ42: 49410 | CR42: 7.3 | CS42: 4410300 | CT42: 0 | CU42: 0 | CV42: 13464400 | CW42: 892160 | CX42: 2378000 | CY42: 100040 | CZ42: 631400 | DA42: 63960 | DB42: 2378000 | DC42: 0 | DD42: 61152 | DE42: 906108.125 | DF42: 398715.625 | DG42: 0 | DH42: 0 | DI42: 622200 | DJ42: 274800 | DK42: 2730-10-27T10:08:01.242 | EZ42: 0 | FE42: 0
A43: =Measurements!A43 -> 2015-10-08 | B43: 20127 | C43: =IF(NOT(ISBLANK(Measurements!B43)),CL43/$CK43,"") -> 1123 | D43: 33.67978723 | E43: 235 | F43: 3.601595745 | G43: 26.9 | H43: 3 | I43: 7.2 | J43: 281 | K43: 0 | L43: 0 | M43: 716.1914894 | N43: 47.45531915 | O43: 126.4893617 | P43: 5.321276596 | Q43: 33.58510638 | R43: 3.40212766 | S43: 126.4893617 | T43: 0 | U43: 3.252765957 | V43: 48.19724069 | W43: 21.20827793 | X43: 0 | Y43: 0 | Z43: 38 | AA43: 14.61702128 | AB43: 16.14108629 | AC43: 1 | AD43: 1 | AE43: 0.1 | AF43: 1 | AG43: 0.1 | AH43: 1 | AI43: 1 | AJ43: 1 | AK43: 1 | AL43: 0.1 | AM43: 0.1 | AN43: 0.1 | AO43: 0.1 | AP43: 0.1 | AQ43: 0.1 | AR43: 0.1 | AS43: 0.1 | AT43: 0.05 | AU43: 0.1 | AV43: 0.1 | AW43: 0.1 | AX43: 0.1 | AY43: 0.05 | AZ43: 0.05 | BA43: 1 | BB43: 0.1 | BC43: 0.05 | CJ43: =Measurements!A43 -> 2015-10-08 | CK43: 18800 | CL43: 21112400 | CM43: 633180 | CN43: 4418000 | CO43: 67710 | CP43: 505720 | CQ43: 56400 | CR43: 7.2 | CS43: 5282800 | CT43: 0 | CU43: 0 | CV43: 13464400 | CW43: 892160 | CX43: 2378000 | CY43: 100040 | CZ43: 631400 | DA43: 63960 | DB43: 2378000 | DC43: 0 | DD43: 61152 | DE43: 906108.125 | DF43: 398715.625 | DG43: 0 | DH43: 0 | DI43: 714400 | DJ43: 274800 | DK43: 2730-10-27T10:08:01.242 | EZ43: 0 | FE43: 0
A44: =Measurements!A44 -> 2015-10-09 | B44: 20128 | C44: =IF(NOT(ISBLANK(Measurements!B44)),CL44/$CK44,"") -> 538 | D44: 38.37454545 | E44: 143 | F44: 4.103636364 | G44: 23 | H44: 2.5 | I44: 6.4 | J44: 231 | K44: 0 | L44: 0 | M44: 816.0242424 | N44: 54.07030303 | O44: 144.1212121 | P44: 6.063030303 | Q44: 38.26666667 | R44: 3.876363636 | S44: 144.1212121 | T44: 0 | U44: 3.706181818 | V44: 54.91564394 | W44: 24.16458333 | X44: 0 | Y44: 0 | Z44: 25 | AA44: 16.65454545 | AB44: 18.39105589 | AC44: 1 | AD44: 1 | AE44: 0.1 | AF44: 1 | AG44: 0.1 | AH44: 1 | AI44: 1 | AJ44: 1 | AK44: 1 | AL44: 0.1 | AM44: 0.1 | AN44: 0.1 | AO44: 0.1 | AP44: 0.1 | AQ44: 0.1 | AR44: 0.1 | AS44: 0.1 | AT44: 0.05 | AU44: 0.1 | AV44: 0.1 | AW44: 0.1 | AX44: 0.1 | AY44: 0.05 | AZ44: 0.05 | BA44: 1 | BB44: 0.1 | BC44: 0.05 | CJ44: =Measurements!A44 -> 2015-10-09 | CK44: 16500 | CL44: 8877000 | CM44: 633180 | CN44: 2359500 | CO44: 67710 | CP44: 379500 | CQ44: 41250 | CR44: 6.4 | CS44: 3811500 | CT44: 0 | CU44: 0 | CV44: 13464400 | CW44: 892160 | CX44: 2378000 | CY44: 100040 | CZ44: 631400 | DA44: 63960 | DB44: 2378000 | DC44: 0 | DD44: 61152 | DE44: 906108.125 | DF44: 398715.625 | DG44: 0 | DH44: 0 | DI44: 412500 | DJ44: 274800 | DK44: 2730-10-27T10:08:01.242 | EZ44: 0 | FE44: 0
A45: =Measurements!A45 -> 2015-10-10 | B45: 20129 | C45: =IF(NOT(ISBLANK(Measurements!B45)),CL45/$CK45,"") -> 612 | D45: 32.978125 | E45: 166 | F45: 3.5265625 | G45: 15.4 | H45: 1.2 | I45: 6.7 | J45: 191 | K45: 0 | L45: 0 | M45: 701.2708333 | N45: 46.46666667 | O45: 123.8541667 | P45: 5.210416667 | Q45: 32.88541667 | R45: 3.33125 | S45: 123.8541667 | T45: 0 | U45: 3.185 | V45: 47.19313151 | W45: 20.7664388 | X45: 0 | Y45: 0 | Z45: 53 | AA45: 14.3125 | AB45: 15.80481366 | AC45: 1 | AD45: 1 | AE45: 0.1 | AF45: 1 | AG45: 0.1 | AH45: 1 | AI45: 1 | AJ45: 1 | AK45: 1 | AL45: 0.1 | AM45: 0.1 | AN45: 0.1 | AO45: 0.1 | AP45: 0.1 | AQ45: 0.1 | AR45: 0.1 | AS45: 0.1 | AT45: 0.05 | AU45: 0.1 | AV45: 0.1 | AW45: 0.1 | AX45: 0.1 | AY45: 0.05 | AZ45: 0.05 | BA45: 1 | BB45: 0.1 | BC45: 0.05 | CJ45: =Measurements!A45 -> 2015-10-10 | CK45: 19200 | CL45: 11750400 | CM45: 633180 | CN45: 3187200 | CO45: 67710 | CP45: 295680 | CQ45: 23040 | CR45: 6.7 | CS45: 3667200 | CT45: 0 | CU45: 0 | CV45: 13464400 | CW45: 892160 | CX45: 2378000 | CY45: 100040 | CZ45: 631400 | DA45: 63960 | DB45: 2378000 | DC45: 0 | DD45: 61152 | DE45: 906108.125 | DF45: 398715.625 | DG45: 0 | DH45: 0 | DI45: 1017600 | DJ45: 274800 | DK45: 2730-10-27T10:08:01.242 | EZ45: 0 | FE45: 0
A46: =Measurements!A46 -> 2015-10-11 | B46: 20130 | C46: =IF(NOT(ISBLANK(Measurements!B46)),CL46/$CK46,"") -> 578.8374384 | D46: 31.191133 | E46: 344 | F46: 3.33546798 | G46: 30.3 | H46: 3.5 | I46: 6.9 | J46: 284 | K46: 0 | L46: 0 | M46: 663.270936 | N46: 43.94876847 | O46: 117.1428571 | P46: 4.928078818 | Q46: 31.10344828 | R46: 3.150738916 | S46: 117.1428571 | T46: 0 | U46: 3.012413793 | V46: 44.63586823 | W46: 19.64116379 | X46: 0 | Y46: 0 | Z46: 14 | AA46: 13.53694581 | AB46: 14.94839518 | AC46: 1 | AD46: 0.1 | AE46: 0.1 | AF46: 1 | AG46: 0.1 | AH46: 1 | AI46: 1 | AJ46: 1 | AK46: 1 | AL46: 0.1 | AM46: 0.1 | AN46: 0.1 | AO46: 0.1 | AP46: 0.1 | AQ46: 0.1 | AR46: 0.1 | AS46: 0.1 | AT46: 0.05 | AU46: 0.1 | AV46: 0.1 | AW46: 0.1 | AX46: 0.1 | AY46: 0.05 | AZ46: 0.05 | BA46: 1 | BB46: 0.1 | BC46: 0.05 | CJ46: =Measurements!A46 -> 2015-10-11 | CK46: 20300 | CL46: 11750400 | CM46: 633180 | CN46: 6983200 | CO46: 67710 | CP46: 615090 | CQ46: 71050 | CR46: 6.9 | CS46: 5765200 | CT46: 0 | CU46: 0 | CV46: 13464400 | CW46: 892160 | CX46: 2378000 | CY46: 100040 | CZ46: 631400 | DA46: 63960 | DB46: 2378000 | DC46: 0 | DD46: 61152 | DE46: 906108.125 | DF46: 398715.625 | DG46: 0 | DH46: 0 | DI46: 284200 | DJ46: 274800 | DK46: 2730-10-27T10:08:01.242 | EZ46: 0 | FE46: 0
A47: =Measurements!A47 -> 2015-10-12 | B47: 20131 | C47: =IF(NOT(ISBLANK(Measurements!B47)),CL47/$CK47,"") -> 768 | D47: 31.97878788 | E47: 187 | F47: 3.41969697 | G47: 30.1 | H47: 3.7 | I47: 7.3 | J47: 303 | K47: 0 | L47: 0 | M47: 1171 | N47: 55.5 | O47: 93 | P47: 7.9 | Q47: 36.9 | R47: 4.2 | S47: 93 | T47: 0 | U47: 3.088484848 | V47: 45.76303662 | W47: 20.13715278 | X47: 0 | Y47: 0 | Z47: 30 | AA47: 13.87878788 | AB47: 15.32587991 | AC47: 1 | AD47: 1 | AE47: 0.1 | AF47: 1 | AG47: 0.1 | AH47: 1 | AI47: 1 | AJ47: 1 | AK47: 1 | AL47: 0.1 | AM47: 0.1 | AN47: 1 | AO47: 1 | AP47: 1 | AQ47: 1 | AR47: 1 | AS47: 1 | AT47: 0.5 | AU47: 0.1 | AV47: 0.1 | AW47: 0.1 | AX47: 0.1 | AY47: 0.05 | AZ47: 0.05 | BA47: 1 | BB47: 0.1 | BC47: 0.05 | CJ47: =Measurements!A47 -> 2015-10-12 | CK47: 19800 | CL47: 15206400 | CM47: 633180 | CN47: 3702600 | CO47: 67710 | CP47: 595980 | CQ47: 73260 | CR47: 7.3 | CS47: 5999400 | CT47: 0 | CU47: 0 | CV47: 23185800 | CW47: 1098900 | CX47: 1841400 | CY47: 156420 | CZ47: 730620 | DA47: 83160 | DB47: 1841400 | DC47: 0 | DD47: 61152 | DE47: 906108.125 | DF47: 398715.625 | DG47: 0 | DH47: 0 | DI47: 594000 | DJ47: 274800 | DK47: 2730-10-27T10:08:01.242 | EZ47: 0 | FE47: 0
A48: =Measurements!A48 -> 2015-10-13 | B48: 20132 | C48: =IF(NOT(ISBLANK(Measurements!B48)),CL48/$CK48,"") -> 1400 | D48: 29.04495413 | E48: 267 | F48: 3.105963303 | G48: 29.7 | H48: 3.4 | I48: 6.6 | J48: 303 | K48: 0 | L48: 0 | M48: 1063.568807 | N48: 50.40825688 | O48: 84.46788991 | P48: 7.175229358 | Q48: 33.5146789 | R48: 3.814678899 | S48: 84.46788991 | T48: 0 | U48: 2.805137615 | V48: 41.56459289 | W48: 18.28970757 | X48: 0 | Y48: 0 | Z48: 22 | AA48: 12.60550459 | AB48: 13.91983588 | AC48: 1 | AD48: 1 | AE48: 0.1 | AF48: 1 | AG48: 0.1 | AH48: 1 | AI48: 1 | AJ48: 1 | AK48: 1 | AL48: 0.1 | AM48: 0.1 | AN48: 0.1 | AO48: 0.1 | AP48: 0.1 | AQ48: 0.1 | AR48: 0.1 | AS48: 0.1 | AT48: 0.05 | AU48: 0.1 | AV48: 0.1 | AW48: 0.1 | AX48: 0.1 | AY48: 0.05 | AZ48: 0.05 | BA48: 1 | BB48: 0.1 | BC48: 0.05 | CJ48: =Measurements!A48 -> 2015-10-13 | CK48: 21800 | CL48: 30520000 | CM48: 633180 | CN48: 5820600 | CO48: 67710 | CP48: 647460 | CQ48: 74120 | CR48: 6.6 | CS48: 6605400 | CT48: 0 | CU48: 0 | CV48: 23185800 | CW48: 1098900 | CX48: 1841400 | CY48: 156420 | CZ48: 730620 | DA48: 83160 | DB48: 1841400 | DC48: 0 | DD48: 61152 | DE48: 906108.125 | DF48: 398715.625 | DG48: 0 | DH48: 0 | DI48: 479600 | DJ48: 274800 | DK48: 2730-10-27T10:08:01.242 | EZ48: 0 | FE48: 0
A49: =Measurements!A49 -> 2015-10-14 | B49: 20133 | C49: =IF(NOT(ISBLANK(Measurements!B49)),CL49/$CK49,"") -> 1250.819672 | D49: 25.95 | E49: 321 | F49: 2.775 | G49: 28.3 | H49: 3.1 | I49: 7 | J49: 295 | K49: 0 | L49: 0 | M49: 950.2377049 | N49: 45.03688525 | O49: 75.46721311 | P49: 6.410655738 | Q49: 29.94344262 | R49: 3.408196721 | S49: 75.46721311 | T49: 0 | U49: 2.506229508 | V49: 37.13557889 | W49: 16.3408043 | X49: 0 | Y49: 0 | Z49: 31 | AA49: 11.26229508 | AB49: 12.43657468 | AC49: 1 | AD49: 0.1 | AE49: 0.1 | AF49: 1 | AG49: 0.1 | AH49: 1 | AI49: 1 | AJ49: 1 | AK49: 1 | AL49: 0.1 | AM49: 0.1 | AN49: 0.1 | AO49: 0.1 | AP49: 0.1 | AQ49: 0.1 | AR49: 0.1 | AS49: 0.1 | AT49: 0.05 | AU49: 0.1 | AV49: 0.1 | AW49: 0.1 | AX49: 0.1 | AY49: 0.05 | AZ49: 0.05 | BA49: 1 | BB49: 0.1 | BC49: 0.05 | CJ49: =Measurements!A49 -> 2015-10-14 | CK49: 24400 | CL49: 30520000 | CM49: 633180 | CN49: 7832400 | CO49: 67710 | CP49: 690520 | CQ49: 75640 | CR49: 7 | CS49: 7198000 | CT49: 0 | CU49: 0 | CV49: 23185800 | CW49: 1098900 | CX49: 1841400 | CY49: 156420 | CZ49: 730620 | DA49: 83160 | DB49: 1841400 | DC49: 0 | DD49: 61152 | DE49: 906108.125 | DF49: 398715.625 | DG49: 0 | DH49: 0 | DI49: 756400 | DJ49: 274800 | DK49: 2730-10-27T10:08:01.242 | EZ49: 0 | FE49: 0
A50: =Measurements!A50 -> 2015-10-15 | B50: 20134 | C50: =IF(NOT(ISBLANK(Measurements!B50)),CL50/$CK50,"") -> 882 | D50: 27.1751073 | E50: 294 | F50: 2.906008584 | G50: 21.1 | H50: 2.5 | I50: 7.3 | J50: 298 | K50: 0 | L50: 0 | M50: 995.0987124 | N50: 47.16309013 | O50: 79.03004292 | P50: 6.713304721 | Q50: 31.35708155 | R50: 3.569098712 | S50: 79.03004292 | T50: 0 | U50: 2.624549356 | V50: 38.88876073 | W50: 17.11225858 | X50: 0 | Y50: 0 | Z50: 52 | AA50: 11.79399142 | AB50: 13.02370911 | AC50: 1 | AD50: 1 | AE50: 0.1 | AF50: 1 | AG50: 0.1 | AH50: 1 | AI50: 1 | AJ50: 1 | AK50: 1 | AL50: 0.1 | AM50: 0.1 | AN50: 0.1 | AO50: 0.1 | AP50: 0.1 | AQ50: 0.1 | AR50: 0.1 | AS50: 0.1 | AT50: 0.05 | AU50: 0.1 | AV50: 0.1 | AW50: 0.1 | AX50: 0.1 | AY50: 0.05 | AZ50: 0.05 | BA50: 1 | BB50: 0.1 | BC50: 0.05 | CJ50: =Measurements!A50 -> 2015-10-15 | CK50: 23300 | CL50: 20550600 | CM50: 633180 | CN50: 6850200 | CO50: 67710 | CP50: 491630 | CQ50: 58250 | CR50: 7.3 | CS50: 6943400 | CT50: 0 | CU50: 0 | CV50: 23185800 | CW50: 1098900 | CX50: 1841400 | CY50: 156420 | CZ50: 730620 | DA50: 83160 | DB50: 1841400 | DC50: 0 | DD50: 61152 | DE50: 906108.125 | DF50: 398715.625 | DG50: 0 | DH50: 0 | DI50: 1211600 | DJ50: 274800 | DK50: 2730-10-27T10:08:01.242 | EZ50: 0 | FE50: 0
A51: =Measurements!A51 -> 2015-10-16 | B51: 20135 | C51: =IF(NOT(ISBLANK(Measurements!B51)),CL51/$CK51,"") -> 1060 | D51: 28.65067873 | E51: 431 | F51: 3.063800905 | G51: 28.1 | H51: 2.7 | I51: 6.9 | J51: 288 | K51: 0 | L51: 0 | M51: 1049.131222 | N51: 49.7239819 | O51: 83.32126697 | P51: 7.077828054 | Q51: 33.05972851 | R51: 3.762895928 | S51: 83.32126697 | T51: 0 | U51: 2.767058824 | V51: 41.00036765 | W51: 18.041431 | X51: 0 | Y51: 0 | Z51: 16 | AA51: 12.43438914 | AB51: 13.73087883 | AC51: 1 | AD51: 1 | AE51: 0.1 | AF51: 1 | AG51: 0.1 | AH51: 1 | AI51: 1 | AJ51: 1 | AK51: 1 | AL51: 0.1 | AM51: 0.1 | AN51: 0.1 | AO51: 0.1 | AP51: 0.1 | AQ51: 0.1 | AR51: 0.1 | AS51: 0.1 | AT51: 0.05 | AU51: 0.1 | AV51: 0.1 | AW51: 0.1 | AX51: 0.1 | AY51: 0.05 | AZ51: 0.05 | BA51: 1 | BB51: 0.1 | BC51: 0.05 | CJ51: =Measurements!A51 -> 2015-10-16 | CK51: 22100 | CL51: 23426000 | CM51: 633180 | CN51: 9525100 | CO51: 67710 | CP51: 621010 | CQ51: 59670 | CR51: 6.9 | CS51: 6364800 | CT51: 0 | CU51: 0 | CV51: 23185800 | CW51: 1098900 | CX51: 1841400 | CY51: 156420 | CZ51: 730620 | DA51: 83160 | DB51: 1841400 | DC51: 0 | DD51: 61152 | DE51: 906108.125 | DF51: 398715.625 | DG51: 0 | DH51: 0 | DI51: 353600 | DJ51: 274800 | DK51: 2730-10-27T10:08:01.242 | EZ51: 0 | FE51: 0
A52: =Measurements!A52 -> 2015-10-17 | B52: 20136 | C52: =IF(NOT(ISBLANK(Measurements!B52)),CL52/$CK52,"") -> 1210 | D52: 28.65067873 | E52: 354 | F52: 3.063800905 | G52: 25 | H52: 3 | I52: 6.7 | J52: 268 | K52: 0 | L52: 0 | M52: 1049.131222 | N52: 49.7239819 | O52: 83.32126697 | P52: 7.077828054 | Q52: 33.05972851 | R52: 3.762895928 | S52: 83.32126697 | T52: 0 | U52: 2.767058824 | V52: 41.00036765 | W52: 18.041431 | X52: 0 | Y52: 0 | Z52: 32 | AA52: 12.43438914 | AB52: 13.73087883 | AC52: 1 | AD52: 1 | AE52: 0.1 | AF52: 1 | AG52: 0.1 | AH52: 1 | AI52: 1 | AJ52: 1 | AK52: 1 | AL52: 0.1 | AM52: 0.1 | AN52: 0.1 | AO52: 0.1 | AP52: 0.1 | AQ52: 0.1 | AR52: 0.1 | AS52: 0.1 | AT52: 0.05 | AU52: 0.1 | AV52: 0.1 | AW52: 0.1 | AX52: 0.1 | AY52: 0.05 | AZ52: 0.05 | BA52: 1 | BB52: 0.1 | BC52: 0.05 | CJ52: =Measurements!A52 -> 2015-10-17 | CK52: 22100 | CL52: 26741000 | CM52: 633180 | CN52: 7823400 | CO52: 67710 | CP52: 552500 | CQ52: 66300 | CR52: 6.7 | CS52: 5922800 | CT52: 0 | CU52: 0 | CV52: 23185800 | CW52: 1098900 | CX52: 1841400 | CY52: 156420 | CZ52: 730620 | DA52: 83160 | DB52: 1841400 | DC52: 0 | DD52: 61152 | DE52: 906108.125 | DF52: 398715.625 | DG52: 0 | DH52: 0 | DI52: 707200 | DJ52: 274800 | DK52: 2730-10-27T10:08:01.242 | EZ52: 0 | FE52: 0
A53: =Measurements!A53 -> 2015-10-18 | B53: 20137 | C53: =IF(NOT(ISBLANK(Measurements!B53)),CL53/$CK53,"") -> 802 | D53: 29.04495413 | E53: 113 | F53: 3.105963303 | G53: 23.5 | H53: 2.1 | I53: 6.7 | J53: 245 | K53: 0 | L53: 0 | M53: 1063.568807 | N53: 50.40825688 | O53: 84.46788991 | P53: 7.175229358 | Q53: 33.5146789 | R53: 3.814678899 | S53: 84.46788991 | T53: 0 | U53: 2.805137615 | V53: 41.56459289 | W53: 18.28970757 | X53: 0 | Y53: 0 | Z53: 37 | AA53: 12.60550459 | AB53: 13.91983588 | AC53: 1 | AD53: 1 | AE53: 0.1 | AF53: 1 | AG53: 0.1 | AH53: 1 | AI53: 1 | AJ53: 1 | AK53: 1 | AL53: 0.1 | AM53: 0.1 | AN53: 0.1 | AO53: 0.1 | AP53: 0.1 | AQ53: 0.1 | AR53: 0.1 | AS53: 0.1 | AT53: 0.05 | AU53: 0.1 | AV53: 0.1 | AW53: 0.1 | AX53: 0.1 | AY53: 0.05 | AZ53: 0.05 | BA53: 1 | BB53: 0.1 | BC53: 0.05 | CJ53: =Measurements!A53 -> 2015-10-18 | CK53: 21800 | CL53: 17483600 | CM53: 633180 | CN53: 2463400 | CO53: 67710 | CP53: 512300 | CQ53: 45780 | CR53: 6.7 | CS53: 5341000 | CT53: 0 | CU53: 0 | CV53: 23185800 | CW53: 1098900 | CX53: 1841400 | CY53: 156420 | CZ53: 730620 | DA53: 83160 | DB53: 1841400 | DC53: 0 | DD53: 61152 | DE53: 906108.125 | DF53: 398715.625 | DG53: 0 | DH53: 0 | DI53: 806600 | DJ53: 274800 | DK53: 2730-10-27T10:08:01.242 | EZ53: 0 | FE53: 0
A54: =Measurements!A54 -> 2015-10-19 | B54: 20138 | C54: =IF(NOT(ISBLANK(Measurements!B54)),CL54/$CK54,"") -> 607 | D54: 38.14337349 | E54: 180 | F54: 4.078915663 | G54: 33.6 | H54: 3.8 | I54: 7.5 | J54: 292 | K54: 0 | L54: 0 | M54: 543 | N54: 65 | O54: 170 | P54: 8.3 | Q54: 39.5 | R54: 4.3 | S54: 170 | T54: 0 | U54: 3.683855422 | V54: 54.58482681 | W54: 24.01901355 | X54: 0 | Y54: 0 | Z54: 27 | AA54: 16.55421687 | AB54: 18.2802664 | AC54: 1 | AD54: 1 | AE54: 0.1 | AF54: 1 | AG54: 0.1 | AH54: 1 | AI54: 1 | AJ54: 1 | AK54: 1 | AL54: 0.1 | AM54: 0.1 | AN54: 1 | AO54: 1 | AP54: 1 | AQ54: 1 | AR54: 1 | AS54: 1 | AT54: 0.5 | AU54: 0.1 | AV54: 0.1 | AW54: 0.1 | AX54: 0.1 | AY54: 0.05 | AZ54: 0.05 | BA54: 1 | BB54: 0.1 | BC54: 0.05 | CJ54: =Measurements!A54 -> 2015-10-19 | CK54: 16600 | CL54: 10076200 | CM54: 633180 | CN54: 2988000 | CO54: 67710 | CP54: 557760 | CQ54: 63080 | CR54: 7.5 | CS54: 4847200 | CT54: 0 | CU54: 0 | CV54: 9013800 | CW54: 1079000 | CX54: 2822000 | CY54: 137780 | CZ54: 655700 | DA54: 71380 | DB54: 2822000 | DC54: 0 | DD54: 61152 | DE54: 906108.125 | DF54: 398715.625 | DG54: 0 | DH54: 0 | DI54: 448200 | DJ54: 274800 | DK54: 2730-10-27T10:08:01.242 | EZ54: 0 | FE54: 0
A55: =Measurements!A55 -> 2015-10-20 | B55: 20139 | C55: =IF(NOT(ISBLANK(Measurements!B55)),CL55/$CK55,"") -> 1188 | D55: 38.60853659 | E55: 323 | F55: 4.128658537 | G55: 27.5 | H55: 4 | I55: 6.9 | J55: 306 | K55: 0 | L55: 0 | M55: 549.6219512 | N55: 65.79268293 | O55: 172.0731707 | P55: 8.401219512 | Q55: 39.98170732 | R55: 4.352439024 | S55: 172.0731707 | T55: 0 | U55: 3.728780488 | V55: 55.25049543 | W55: 24.31192835 | X55: 0 | Y55: 0 | Z55: 39 | AA55: 16.75609756 | AB55: 18.50319648 | AC55: 1 | AD55: 1 | AE55: 0.1 | AF55: 1 | AG55: 0.1 | AH55: 1 | AI55: 1 | AJ55: 1 | AK55: 1 | AL55: 0.1 | AM55: 0.1 | AN55: 0.1 | AO55: 0.1 | AP55: 0.1 | AQ55: 0.1 | AR55: 0.1 | AS55: 0.1 | AT55: 0.05 | AU55: 0.1 | AV55: 0.1 | AW55: 0.1 | AX55: 0.1 | AY55: 0.05 | AZ55: 0.05 | BA55: 1 | BB55: 0.1 | BC55: 0.05 | CJ55: =Measurements!A55 -> 2015-10-20 | CK55: 16400 | CL55: 19483200 | CM55: 633180 | CN55: 5297200 | CO55: 67710 | CP55: 451000 | CQ55: 65600 | CR55: 6.9 | CS55: 5018400 | CT55: 0 | CU55: 0 | CV55: 9013800 | CW55: 1079000 | CX55: 2822000 | CY55: 137780 | CZ55: 655700 | DA55: 71380 | DB55: 2822000 | DC55: 0 | DD55: 61152 | DE55: 906108.125 | DF55: 398715.625 | DG55: 0 | DH55: 0 | DI55: 639600 | DJ55: 274800 | DK55: 2730-10-27T10:08:01.242 | EZ55: 0 | FE55: 0
A56: =Measurements!A56 -> 2015-10-21 | B56: 20140 | C56: =IF(NOT(ISBLANK(Measurements!B56)),CL56/$CK56,"") -> 799 | D56: 55.5 | E56: 225 | F56: 5.1 | G56: 29.3 | H56: 3.5 | I56: 7.2 | J56: 301 | K56: 0 | L56: 0 | M56: 503.5642458 | N56: 60.27932961 | O56: 157.6536313 | P56: 7.697206704 | Q56: 36.63128492 | R56: 3.987709497 | S56: 157.6536313 | T56: 0 | U56: 3.416312849 | V56: 50.62056564 | W56: 22.27461592 | X56: 0 | Y56: 0 | Z56: 40 | AA56: 12 | AB56: 22.25119748 | AC56: 1 | AD56: 1 | AE56: 1 | AF56: 1 | AG56: 1 | AH56: 1 | AI56: 1 | AJ56: 1 | AK56: 1 | AL56: 0.1 | AM56: 0.1 | AN56: 0.1 | AO56: 0.1 | AP56: 0.1 | AQ56: 0.1 | AR56: 0.1 | AS56: 0.1 | AT56: 0.05 | AU56: 0.1 | AV56: 0.1 | AW56: 0.1 | AX56: 0.1 | AY56: 0.05 | AZ56: 0.05 | BA56: 1 | BB56: 1 | BC56: 0.5 | CJ56: =Measurements!A56 -> 2015-10-21 | CK56: 17900 | CL56: 14302100 | CM56: 993450 | CN56: 4027500 | CO56: 91290 | CP56: 524470 | CQ56: 62650 | CR56: 7.2 | CS56: 5387900 | CT56: 0 | CU56: 0 | CV56: 9013800 | CW56: 1079000 | CX56: 2822000 | CY56: 137780 | CZ56: 655700 | DA56: 71380 | DB56: 2822000 | DC56: 0 | DD56: 61152 | DE56: 906108.125 | DF56: 398715.625 | DG56: 0 | DH56: 0 | DI56: 716000 | DJ56: 214800 | DK56: 2990-06-29T10:26:11 | EZ56: 0 | FE56: 0
A57: =Measurements!A57 -> 2015-10-22 | B57: 20141 | C57: =IF(NOT(ISBLANK(Measurements!B57)),CL57/$CK57,"") -> 1560 | D57: 31.14263323 | E57: 128 | F57: 2.861755486 | G57: 27.4 | H57: 3.4 | I57: 7 | J57: 341 | K57: 0 | L57: 0 | M57: 282.5642633 | N57: 33.82445141 | O57: 88.46394984 | P57: 4.319122257 | Q57: 20.55485893 | R57: 2.237617555 | S57: 88.46394984 | T57: 0 | U57: 1.916990596 | V57: 28.40464342 | W57: 12.49892241 | X57: 0 | Y57: 0 | Z57: 39 | AA57: 12 | AB57: 21.25119748 | AC57: 1 | AD57: 1 | AE57: 0.1 | AF57: 1 | AG57: 0.1 | AH57: 1 | AI57: 1 | AJ57: 1 | AK57: 1 | AL57: 0.1 | AM57: 0.1 | AN57: 0.1 | AO57: 0.1 | AP57: 0.1 | AQ57: 0.1 | AR57: 0.1 | AS57: 0.1 | AT57: 0.05 | AU57: 0.1 | AV57: 0.1 | AW57: 0.1 | AX57: 0.1 | AY57: 0.05 | AZ57: 0.05 | BA57: 1 | BB57: 1 | BC57: 0.5 | CJ57: =Measurements!A57 -> 2015-10-22 | CK57: 31900 | CL57: 49764000 | CM57: 993450 | CN57: 4083200 | CO57: 91290 | CP57: 874060 | CQ57: 108460 | CR57: 7 | CS57: 10877900 | CT57: 0 | CU57: 0 | CV57: 9013800 | CW57: 1079000 | CX57: 2822000 | CY57: 137780 | CZ57: 655700 | DA57: 71380 | DB57: 2822000 | DC57: 0 | DD57: 61152 | DE57: 906108.125 | DF57: 398715.625 | DG57: 0 | DH57: 0 | DI57: 1244100 | DJ57: 382800 | DK57: 3756-01-22T04:47:20 | EZ57: 0 | FE57: 0
A58: =Measurements!A58 -> 2015-10-23 | B58: 20142 | C58: =IF(NOT(ISBLANK(Measurements!B58)),CL58/$CK58,"") -> 531 | D58: 37.06902985 | E58: 123 | F58: 3.406343284 | G58: 23.8 | H58: 2.1 | I58: 6.8 | J58: 271 | K58: 0 | L58: 0 | M58: 336.3358209 | N58: 40.26119403 | O58: 105.2985075 | P58: 5.141044776 | Q58: 24.46641791 | R58: 2.663432836 | S58: 105.2985075 | T58: 0 | U58: 2.281791045 | V58: 33.81000466 | W58: 14.87744869 | X58: 0 | Y58: 0 | Z58: 52 | AA58: 14.28358209 | AB58: 25.29526864 | AC58: 1 | AD58: 1 | AE58: 0.1 | AF58: 1 | AG58: 0.1 | AH58: 1 | AI58: 1 | AJ58: 1 | AK58: 1 | AL58: 0.1 | AM58: 0.1 | AN58: 0.1 | AO58: 0.1 | AP58: 0.1 | AQ58: 0.1 | AR58: 0.1 | AS58: 0.1 | AT58: 0.05 | AU58: 0.1 | AV58: 0.1 | AW58: 0.1 | AX58: 0.1 | AY58: 0.05 | AZ58: 0.05 | BA58: 1 | BB58: 0.1 | BC58: 0.05 | CJ58: =Measurements!A58 -> 2015-10-23 | CK58: 26800 | CL58: 14230800 | CM58: 993450 | CN58: 3296400 | CO58: 91290 | CP58: 637840 | CQ58: 56280 | CR58: 6.8 | CS58: 7262800 | CT58: 0 | CU58: 0 | CV58: 9013800 | CW58: 1079000 | CX58: 2822000 | CY58: 137780 | CZ58: 655700 | DA58: 71380 | DB58: 2822000 | DC58: 0 | DD58: 61152 | DE58: 906108.125 | DF58: 398715.625 | DG58: 0 | DH58: 0 | DI58: 1393600 | DJ58: 382800 | DK58: 3756-01-22T04:47:19.808 | EZ58: 0 | FE58: 0
A59: =Measurements!A59 -> 2015-10-24 | B59: 20143 | C59: =IF(NOT(ISBLANK(Measurements!B59)),CL59/$CK59,"") -> 763 | D59: 56.44602273 | E59: 303 | F59: 5.186931818 | G59: 29.7 | H59: 3 | I59: 6.8 | J59: 290 | K59: 0 | L59: 0 | M59: 512.1477273 | N59: 61.30681818 | O59: 160.3409091 | P59: 7.828409091 | Q59: 37.25568182 | R59: 4.055681818 | S59: 160.3409091 | T59: 0 | U59: 3.474545455 | V59: 51.48341619 | W59: 22.65429688 | X59: 0 | Y59: 0 | Z59: 27 | AA59: 25 | AB59: 38.51779543 | AC59: 1 | AD59: 1 | AE59: 0.1 | AF59: 1 | AG59: 0.1 | AH59: 1 | AI59: 1 | AJ59: 1 | AK59: 1 | AL59: 0.1 | AM59: 0.1 | AN59: 0.1 | AO59: 0.1 | AP59: 0.1 | AQ59: 0.1 | AR59: 0.1 | AS59: 0.1 | AT59: 0.05 | AU59: 0.1 | AV59: 0.1 | AW59: 0.1 | AX59: 0.1 | AY59: 0.05 | AZ59: 0.05 | BA59: 1 | BB59: 1 | BC59: 0.05 | CJ59: =Measurements!A59 -> 2015-10-24 | CK59: 17600 | CL59: 13428800 | CM59: 993450 | CN59: 5332800 | CO59: 91290 | CP59: 522720 | CQ59: 52800 | CR59: 6.8 | CS59: 5104000 | CT59: 0 | CU59: 0 | CV59: 9013800 | CW59: 1079000 | CX59: 2822000 | CY59: 137780 | CZ59: 655700 | DA59: 71380 | DB59: 2822000 | DC59: 0 | DD59: 61152 | DE59: 906108.125 | DF59: 398715.625 | DG59: 0 | DH59: 0 | DI59: 475200 | DJ59: 440000 | DK59: 3756-01-22T04:47:19.808 | EZ59: 0 | FE59: 0
A60: =Measurements!A60 -> 2015-10-25 | B60: 20144 | C60: =IF(NOT(ISBLANK(Measurements!B60)),CL60/$CK60,"") -> 1209 | D60: 56.44602273 | E60: 61 | F60: 5.186931818 | G60: 26.9 | H60: 4.9 | I60: 7.3 | J60: 263 | K60: 0 | L60: 0 | M60: 512.1477273 | N60: 61.30681818 | O60: 160.3409091 | P60: 7.828409091 | Q60: 37.25568182 | R60: 4.055681818 | S60: 160.3409091 | T60: 0 | U60: 3.474545455 | V60: 51.48341619 | W60: 22.65429688 | X60: 0 | Y60: 0 | Z60: 15 | AA60: 25 | AB60: 38.51779543 | AC60: 1 | AD60: 1 | AE60: 0.1 | AF60: 1 | AG60: 0.1 | AH60: 1 | AI60: 1 | AJ60: 1 | AK60: 1 | AL60: 0.1 | AM60: 0.1 | AN60: 0.1 | AO60: 0.1 | AP60: 0.1 | AQ60: 0.1 | AR60: 0.1 | AS60: 0.1 | AT60: 0.05 | AU60: 0.1 | AV60: 0.1 | AW60: 0.1 | AX60: 0.1 | AY60: 0.05 | AZ60: 0.05 | BA60: 1 | BB60: 0.1 | BC60: 0.05 | CJ60: =Measurements!A60 -> 2015-10-25 | CK60: 17600 | CL60: 21278400 | CM60: 993450 | CN60: 1073600 | CO60: 91290 | CP60: 473440 | CQ60: 86240 | CR60: 7.3 | CS60: 4628800 | CT60: 0 | CU60: 0 | CV60: 9013800 | CW60: 1079000 | CX60: 2822000 | CY60: 137780 | CZ60: 655700 | DA60: 71380 | DB60: 2822000 | DC60: 0 | DD60: 61152 | DE60: 906108.125 | DF60: 398715.625 | DG60: 0 | DH60: 0 | DI60: 264000 | DJ60: 440000 | DK60: 3756-01-22T04:47:19.808 | EZ60: 0 | FE60: 0
A61: =Measurements!A61 -> 2015-10-26 | B61: 20145 | C61: =IF(NOT(ISBLANK(Measurements!B61)),CL61/$CK61,"") -> 684 | D61: 52.56349206 | E61: 147 | F61: 4.83015873 | G61: 33.8 | H61: 3.4 | I61: 7 | J61: 303 | K61: 0 | L61: 0 | M61: 803 | N61: 59.5 | O61: 97 | P61: 4.7 | Q61: 27.1 | R61: 3 | S61: 97 | T61: 0 | U61: 3.235555556 | V61: 47.94222884 | W61: 21.09606481 | X61: 0 | Y61: 0 | Z61: 28 | AA61: 23.28042328 | AB61: 35.86842326 | AC61: 1 | AD61: 1 | AE61: 0.1 | AF61: 1 | AG61: 0.1 | AH61: 1 | AI61: 1 | AJ61: 1 | AK61: 1 | AL61: 0.1 | AM61: 0.1 | AN61: 1 | AO61: 1 | AP61: 1 | AQ61: 1 | AR61: 1 | AS61: 1 | AT61: 0.5 | AU61: 0.1 | AV61: 0.1 | AW61: 0.1 | AX61: 0.1 | AY61: 0.05 | AZ61: 0.05 | BA61: 1 | BB61: 0.1 | BC61: 0.05 | CJ61: =Measurements!A61 -> 2015-10-26 | CK61: 18900 | CL61: 12927600 | CM61: 993450 | CN61: 2778300 | CO61: 91290 | CP61: 638820 | CQ61: 64260 | CR61: 7 | CS61: 5726700 | CT61: 0 | CU61: 0 | CV61: 15176700 | CW61: 1124550 | CX61: 1833300 | CY61: 88830 | CZ61: 512190 | DA61: 56700 | DB61: 1833300 | DC61: 0 | DD61: 61152 | DE61: 906108.125 | DF61: 398715.625 | DG61: 0 | DH61: 0 | DI61: 529200 | DJ61: 440000 | DK61: 3756-01-22T04:47:19.808 | EZ61: 0 | FE61: 0
A62: =Measurements!A62 -> 2015-10-27 | B62: 20146 | C62: =IF(NOT(ISBLANK(Measurements!B62)),CL62/$CK62,"") -> 657 | D62: 65.79139073 | E62: 125 | F62: 6.045695364 | G62: 25.2 | H62: 3.7 | I62: 7.4 | J62: 342 | K62: 0 | L62: 0 | M62: 1005.07947 | N62: 74.47350993 | O62: 121.410596 | P62: 5.882781457 | Q62: 33.91986755 | R62: 3.754966887 | S62: 121.410596 | T62: 0 | U62: 4.049801325 | V62: 60.0071606 | W62: 26.40500828 | X62: 0 | Y62: 0 | Z62: 27 | AA62: 29.13907285 | AB62: 44.89491388 | AC62: 1 | AD62: 1 | AE62: 0.1 | AF62: 1 | AG62: 0.1 | AH62: 1 | AI62: 1 | AJ62: 1 | AK62: 1 | AL62: 0.1 | AM62: 0.1 | AN62: 0.1 | AO62: 0.1 | AP62: 0.1 | AQ62: 0.1 | AR62: 0.1 | AS62: 0.1 | AT62: 0.05 | AU62: 0.1 | AV62: 0.1 | AW62: 0.1 | AX62: 0.1 | AY62: 0.05 | AZ62: 0.05 | BA62: 1 | BB62: 0.1 | BC62: 0.05 | CJ62: =Measurements!A62 -> 2015-10-27 | CK62: 15100 | CL62: 9920700 | CM62: 993450 | CN62: 1887500 | CO62: 91290 | CP62: 380520 | CQ62: 55870 | CR62: 7.4 | CS62: 5164200 | CT62: 0 | CU62: 0 | CV62: 15176700 | CW62: 1124550 | CX62: 1833300 | CY62: 88830 | CZ62: 512190 | DA62: 56700 | DB62: 1833300 | DC62: 0 | DD62: 61152 | DE62: 906108.125 | DF62: 398715.625 | DG62: 0 | DH62: 0 | DI62: 407700 | DJ62: 440000 | DK62: 3756-01-22T04:47:19.808 | EZ62: 0 | FE62: 0
A63: =Measurements!A63 -> 2015-10-28 | B63: 20147 | C63: =IF(NOT(ISBLANK(Measurements!B63)),CL63/$CK63,"") -> 529 | D63: 38.8 | E63: 98 | F63: 5.3 | G63: 27.4 | H63: 3.1 | I63: 7.2 | J63: 287 | K63: 0 | L63: 0 | M63: 867.24 | N63: 64.26 | O63: 104.76 | P63: 5.076 | Q63: 29.268 | R63: 3.24 | S63: 104.76 | T63: 0 | U63: 3.4944 | V63: 51.77760714 | W63: 22.78375 | X63: 0 | Y63: 0 | Z63: 33 | AA63: 25.14285714 | AB63: 38.73789712 | AC63: 1 | AD63: 1 | AE63: 1 | AF63: 1 | AG63: 1 | AH63: 1 | AI63: 1 | AJ63: 1 | AK63: 1 | AL63: 0.1 | AM63: 0.1 | AN63: 0.1 | AO63: 0.1 | AP63: 0.1 | AQ63: 0.1 | AR63: 0.1 | AS63: 0.1 | AT63: 0.05 | AU63: 0.1 | AV63: 0.1 | AW63: 0.1 | AX63: 0.1 | AY63: 0.05 | AZ63: 0.05 | BA63: 1 | BB63: 0.1 | BC63: 0.05 | CJ63: =Measurements!A63 -> 2015-10-28 | CK63: 17500 | CL63: 9257500 | CM63: 679000 | CN63: 1715000 | CO63: 92750 | CP63: 479500 | CQ63: 54250 | CR63: 7.2 | CS63: 5022500 | CT63: 0 | CU63: 0 | CV63: 15176700 | CW63: 1124550 | CX63: 1833300 | CY63: 88830 | CZ63: 512190 | DA63: 56700 | DB63: 1833300 | DC63: 0 | DD63: 61152 | DE63: 906108.125 | DF63: 398715.625 | DG63: 0 | DH63: 0 | DI63: 577500 | DJ63: 440000 | DK63: 3756-01-22T04:47:19.808 | EZ63: 0 | FE63: 0
A64: =Measurements!A64 -> 2015-10-29 | B64: 20148 | C64: =IF(NOT(ISBLANK(Measurements!B64)),CL64/$CK64,"") -> 664 | D64: 42.62397991 | E64: 213 | F64: 5.822347772 | G64: 21.2 | H64: 2.8 | I64: 7 | J64: 324 | K64: 0 | L64: 0 | M64: 952.7118644 | N64: 70.59322034 | O64: 115.0847458 | P64: 5.576271186 | Q64: 32.15254237 | R64: 3.559322034 | S64: 115.0847458 | T64: 0 | U64: 3.838794727 | V64: 56.88061048 | W64: 25.02922944 | X64: 0 | Y64: 0 | Z64: 35 | AA64: 27.62084118 | AB64: 42.55575641 | AC64: 1 | AD64: 1 | AE64: 0.1 | AF64: 1 | AG64: 0.1 | AH64: 1 | AI64: 1 | AJ64: 1 | AK64: 1 | AL64: 0.1 | AM64: 0.1 | AN64: 0.1 | AO64: 0.1 | AP64: 0.1 | AQ64: 0.1 | AR64: 0.1 | AS64: 0.1 | AT64: 0.05 | AU64: 0.1 | AV64: 0.1 | AW64: 0.1 | AX64: 0.1 | AY64: 0.05 | AZ64: 0.05 | BA64: 1 | BB64: 0.1 | BC64: 0.05 | CJ64: =Measurements!A64 -> 2015-10-29 | CK64: 15930 | CL64: 10577520 | CM64: 679000 | CN64: 3393090 | CO64: 92750 | CP64: 337716 | CQ64: 44604 | CR64: 7 | CS64: 5161320 | CT64: 0 | CU64: 0 | CV64: 15176700 | CW64: 1124550 | CX64: 1833300 | CY64: 88830 | CZ64: 512190 | DA64: 56700 | DB64: 1833300 | DC64: 0 | DD64: 61152 | DE64: 906108.125 | DF64: 398715.625 | DG64: 0 | DH64: 0 | DI64: 557550 | DJ64: 440000 | DK64: 3756-01-22T04:47:19.808 | EZ64: 0 | FE64: 0
A65: =Measurements!A65 -> 2015-10-30 | B65: 20149 | C65: =IF(NOT(ISBLANK(Measurements!B65)),CL65/$CK65,"") -> 828 | D65: 49.92647059 | E65: 154 | F65: 6.819852941 | G65: 24 | H65: 3.2 | I65: 7.1 | J65: 305 | K65: 0 | L65: 0 | M65: 1115.933824 | N65: 82.6875 | O65: 134.8014706 | P65: 6.531617647 | Q65: 37.66102941 | R65: 4.169117647 | S65: 134.8014706 | T65: 0 | U65: 4.496470588 | V65: 66.62559743 | W65: 29.31732537 | X65: 0 | Y65: 0 | Z65: 30 | AA65: 12 | AB65: 12.25119748 | AC65: 1 | AD65: 1 | AE65: 0.1 | AF65: 1 | AG65: 0.1 | AH65: 1 | AI65: 1 | AJ65: 1 | AK65: 1 | AL65: 0.1 | AM65: 0.1 | AN65: 0.1 | AO65: 0.1 | AP65: 0.1 | AQ65: 0.1 | AR65: 0.1 | AS65: 0.1 | AT65: 0.05 | AU65: 0.1 | AV65: 0.1 | AW65: 0.1 | AX65: 0.1 | AY65: 0.05 | AZ65: 0.05 | BA65: 1 | BB65: 1 | BC65: 0.5 | CJ65: =Measurements!A65 -> 2015-10-30 | CK65: 13600 | CL65: 11260800 | CM65: 679000 | CN65: 2094400 | CO65: 92750 | CP65: 326400 | CQ65: 43520 | CR65: 7.1 | CS65: 4148000 | CT65: 0 | CU65: 0 | CV65: 15176700 | CW65: 1124550 | CX65: 1833300 | CY65: 88830 | CZ65: 512190 | DA65: 56700 | DB65: 1833300 | DC65: 0 | DD65: 61152 | DE65: 906108.125 | DF65: 398715.625 | DG65: 0 | DH65: 0 | DI65: 408000 | DJ65: 163200 | DK65: 2356-03-05T06:51:24 | EZ65: 0 | FE65: 0
A66: =Measurements!A66 -> 2015-10-31 | B66: 20150 | C66: =IF(NOT(ISBLANK(Measurements!B66)),CL66/$CK66,"") -> 1142 | D66: 48.15602837 | E66: 83 | F66: 6.578014184 | G66: 26.3 | H66: 4.4 | I66: 7 | J66: 299 | K66: 0 | L66: 0 | M66: 1076.361702 | N66: 79.75531915 | O66: 130.0212766 | P66: 6.3 | Q66: 36.32553191 | R66: 4.021276596 | S66: 130.0212766 | T66: 0 | U66: 4.337021277 | V66: 64.26298759 | W66: 28.2777039 | X66: 0 | Y66: 0 | Z66: 32 | AA66: 11.57446809 | AB66: 11.81675785 | AC66: 1 | AD66: 1 | AE66: 0.1 | AF66: 1 | AG66: 0.1 | AH66: 1 | AI66: 1 | AJ66: 1 | AK66: 1 | AL66: 0.1 | AM66: 0.1 | AN66: 0.1 | AO66: 0.1 | AP66: 0.1 | AQ66: 0.1 | AR66: 0.1 | AS66: 0.1 | AT66: 0.05 | AU66: 0.1 | AV66: 0.1 | AW66: 0.1 | AX66: 0.1 | AY66: 0.05 | AZ66: 0.05 | BA66: 1 | BB66: 0.1 | BC66: 0.05 | CJ66: =Measurements!A66 -> 2015-10-31 | CK66: 14100 | CL66: 16102200 | CM66: 679000 | CN66: 1170300 | CO66: 92750 | CP66: 370830 | CQ66: 62040 | CR66: 7 | CS66: 4215900 | CT66: 0 | CU66: 0 | CV66: 15176700 | CW66: 1124550 | CX66: 1833300 | CY66: 88830 | CZ66: 512190 | DA66: 56700 | DB66: 1833300 | DC66: 0 | DD66: 61152 | DE66: 906108.125 | DF66: 398715.625 | DG66: 0 | DH66: 0 | DI66: 451200 | DJ66: 163200 | DK66: 2356-03-05T06:51:24.056 | EZ66: 0 | FE66: 0
A67: =Measurements!A67 -> 2015-11-01 | B67: 20151 | C67: =IF(NOT(ISBLANK(Measurements!B67)),CL67/$CK67,"") -> 956 | D67: 39.94117647 | E67: 379 | F67: 5.455882353 | G67: 30.2 | H67: 5.3 | I67: 7.2 | J67: 327 | K67: 0 | L67: 0 | M67: 892.7470588 | N67: 66.15 | O67: 107.8411765 | P67: 5.225294118 | Q67: 30.12882353 | R67: 3.335294118 | S67: 107.8411765 | T67: 0 | U67: 3.597176471 | V67: 53.30047794 | W67: 23.45386029 | X67: 0 | Y67: 0 | Z67: 23 | AA67: 9.6 | AB67: 9.800957982 | AC67: 1 | AD67: 1 | AE67: 0.1 | AF67: 1 | AG67: 0.1 | AH67: 1 | AI67: 1 | AJ67: 1 | AK67: 1 | AL67: 0.1 | AM67: 0.1 | AN67: 0.1 | AO67: 0.1 | AP67: 0.1 | AQ67: 0.1 | AR67: 0.1 | AS67: 0.1 | AT67: 0.05 | AU67: 0.1 | AV67: 0.1 | AW67: 0.1 | AX67: 0.1 | AY67: 0.05 | AZ67: 0.05 | BA67: 1 | BB67: 0.1 | BC67: 0.05 | CJ67: =Measurements!A67 -> 2015-11-01 | CK67: 17000 | CL67: 16252000 | CM67: 679000 | CN67: 6443000 | CO67: 92750 | CP67: 513400 | CQ67: 90100 | CR67: 7.2 | CS67: 5559000 | CT67: 0 | CU67: 0 | CV67: 15176700 | CW67: 1124550 | CX67: 1833300 | CY67: 88830 | CZ67: 512190 | DA67: 56700 | DB67: 1833300 | DC67: 0 | DD67: 61152 | DE67: 906108.125 | DF67: 398715.625 | DG67: 0 | DH67: 0 | DI67: 391000 | DJ67: 163200 | DK67: 2356-03-05T06:51:24.056 | EZ67: 0 | FE67: 0
A68: =Measurements!A68 -> 2015-11-02 | B68: 20152 | C68: =IF(NOT(ISBLANK(Measurements!B68)),CL68/$CK68,"") -> 715 | D68: 35.92592593 | E68: 163 | F68: 4.907407407 | G68: 27.16402116 | H68: 4.767195767 | I68: 7.3 | J68: 322 | K68: 0 | L68: 0 | M68: 535 | N68: 69.5 | O68: 37 | P68: 12.5 | Q68: 26.8 | R68: 3.5 | S68: 37 | T68: 0 | U68: 3.235555556 | V68: 47.94222884 | W68: 21.09606481 | X68: 0 | Y68: 0 | Z68: 30 | AA68: 8.634920635 | AB68: 8.815676492 | AC68: 1 | AD68: 1 | AE68: 0.1 | AF68: 1 | AG68: 0.1 | AH68: 0.1 | AI68: 0.1 | AJ68: 1 | AK68: 1 | AL68: 0.1 | AM68: 0.1 | AN68: 1 | AO68: 1 | AP68: 1 | AQ68: 1 | AR68: 1 | AS68: 1 | AT68: 0.5 | AU68: 0.1 | AV68: 0.1 | AW68: 0.1 | AX68: 0.1 | AY68: 0.05 | AZ68: 0.05 | BA68: 1 | BB68: 0.1 | BC68: 0.05 | CJ68: =Measurements!A68 -> 2015-11-02 | CK68: 18900 | CL68: 13513500 | CM68: 679000 | CN68: 3080700 | CO68: 92750 | CP68: 513400 | CQ68: 90100 | CR68: 7.3 | CS68: 6085800 | CT68: 0 | CU68: 0 | CV68: 10111500 | CW68: 1313550 | CX68: 699300 | CY68: 236250 | CZ68: 506520 | DA68: 66150 | DB68: 699300 | DC68: 0 | DD68: 61152 | DE68: 906108.125 | DF68: 398715.625 | DG68: 0 | DH68: 0 | DI68: 567000 | DJ68: 163200 | DK68: 2356-03-05T06:51:24.056 | EZ68: 0 | FE68: 0
A69: =Measurements!A69 -> 2015-11-03 | B69: 20153 | C69: =IF(NOT(ISBLANK(Measurements!B69)),CL69/$CK69,"") -> 1064 | D69: 34.12060302 | E69: 279 | F69: 4.66080402 | G69: 26.7 | H69: 3.7 | I69: 7.5 | J69: 276 | K69: 0 | L69: 0 | M69: 508.1155779 | N69: 66.00753769 | O69: 35.14070352 | P69: 11.8718593 | Q69: 25.45326633 | R69: 3.324120603 | S69: 35.14070352 | T69: 0 | U69: 3.072964824 | V69: 45.53307161 | W69: 20.03596106 | X69: 0 | Y69: 0 | Z69: 33 | AA69: 8.201005025 | AB69: 8.372677673 | AC69: 1 | AD69: 1 | AE69: 0.1 | AF69: 1 | AG69: 0.1 | AH69: 1 | AI69: 1 | AJ69: 1 | AK69: 1 | AL69: 0.1 | AM69: 0.1 | AN69: 0.1 | AO69: 0.1 | AP69: 0.1 | AQ69: 0.1 | AR69: 0.1 | AS69: 0.1 | AT69: 0.05 | AU69: 0.1 | AV69: 0.1 | AW69: 0.1 | AX69: 0.1 | AY69: 0.05 | AZ69: 0.05 | BA69: 1 | BB69: 0.1 | BC69: 0.05 | CJ69: =Measurements!A69 -> 2015-11-03 | CK69: 19900 | CL69: 21173600 | CM69: 679000 | CN69: 5552100 | CO69: 92750 | CP69: 531330 | CQ69: 73630 | CR69: 7.5 | CS69: 5492400 | CT69: 0 | CU69: 0 | CV69: 10111500 | CW69: 1313550 | CX69: 699300 | CY69: 236250 | CZ69: 506520 | DA69: 66150 | DB69: 699300 | DC69: 0 | DD69: 61152 | DE69: 906108.125 | DF69: 398715.625 | DG69: 0 | DH69: 0 | DI69: 656700 | DJ69: 163200 | DK69: 2356-03-05T06:51:24.056 | EZ69: 0 | FE69: 0
A70: =Measurements!A70 -> 2015-11-04 | B70: 20154 | C70: =IF(NOT(ISBLANK(Measurements!B70)),CL70/$CK70,"") -> 639 | D70: 56.5 | E70: 146 | F70: 7.3 | G70: 26.6 | H70: 3.2 | I70: 7.7 | J70: 315 | K70: 0 | L70: 0 | M70: 498.1034483 | N70: 64.70689655 | O70: 34.44827586 | P70: 11.63793103 | Q70: 24.95172414 | R70: 3.25862069 | S70: 34.44827586 | T70: 0 | U70: 3.012413793 | V70: 44.63586823 | W70: 19.64116379 | X70: 0 | Y70: 0 | Z70: 32 | AA70: 16 | AB70: 8.33492997 | AC70: 1 | AD70: 1 | AE70: 1 | AF70: 1 | AG70: 1 | AH70: 1 | AI70: 1 | AJ70: 1 | AK70: 1 | AL70: 0.1 | AM70: 0.1 | AN70: 0.1 | AO70: 0.1 | AP70: 0.1 | AQ70: 0.1 | AR70: 0.1 | AS70: 0.1 | AT70: 0.05 | AU70: 0.1 | AV70: 0.1 | AW70: 0.1 | AX70: 0.1 | AY70: 0.05 | AZ70: 0.05 | BA70: 1 | BB70: 1 | BC70: 0.5 | CJ70: =Measurements!A70 -> 2015-11-04 | CK70: 20300 | CL70: 12971700 | CM70: 1146950 | CN70: 2963800 | CO70: 148190 | CP70: 539980 | CQ70: 64960 | CR70: 7.7 | CS70: 6394500 | CT70: 0 | CU70: 0 | CV70: 10111500 | CW70: 1313550 | CX70: 699300 | CY70: 236250 | CZ70: 506520 | DA70: 66150 | DB70: 699300 | DC70: 0 | DD70: 61152 | DE70: 906108.125 | DF70: 398715.625 | DG70: 0 | DH70: 0 | DI70: 649600 | DJ70: 324800 | DK70: 2363-04-01T01:52:53 | EZ70: 0 | FE70: 0
A71: =Measurements!A71 -> 2015-11-05 | B71: 20155 | C71: =IF(NOT(ISBLANK(Measurements!B71)),CL71/$CK71,"") -> 1098 | D71: =CM71/$CK71 -> 55.14182692 | E71: =CN71/$CK71 -> 274 | F71: =CO71/$CK71 -> 7.124519231 | G71: =CP71/$CK71 -> 29.5 | H71: =CQ71/$CK71 -> 4.2 | I71: =CR71 -> 7.3 | J71: =CS71/$CK71 -> 282 | K71: =CT71 -> 0 | L71: =CU71/$CK71 -> 0 | M71: =CV71/$CK71 -> 486.1298077 | N71: =CW71/$CK71 -> 63.15144231 | O71: =CX71/$CK71 -> 33.62019231 | P71: =CY71/$CK71 -> 11.35817308 | Q71: =CZ71/$CK71 -> 24.35192308 | R71: =DA71/$CK71 -> 3.180288462 | S71: =DB71/$CK71 -> 33.62019231 | T71: =DC71/$CK71 -> 0 | U71: =DD71/$CK71 -> 2.94 | V71: =DE71/$CK71 -> 43.56289063 | W71: =DF71/$CK71 -> 19.16902043 | X71: =DG71/$CK71 -> 0 | Y71: =DH71/$CK71 -> 0 | Z71: =DI71/$CK71 -> 27 | AA71: =DJ71/$CK71 -> 15.61538462 | AB71: =DK71/$CK71 -> 8.134571077 | AC71: 1 | AD71: 1 | AE71: 0.1 | AF71: 1 | AG71: 0.1 | AH71: 1 | AI71: 1 | AJ71: 1 | AK71: 1 | AL71: 0.1 | AM71: 0.1 | AN71: 0.1 | AO71: 0.1 | AP71: 0.1 | AQ71: 0.1 | AR71: 0.1 | AS71: 0.1 | AT71: 0.05 | AU71: 0.1 | AV71: 0.1 | AW71: 0.1 | AX71: 0.1 | AY71: 0.05 | AZ71: 0.05 | BA71: 1 | BB71: 0.1 | BC71: 0.05 | CJ71: =Measurements!A71 -> 2015-11-05 | CK71: 20800 | CL71: 22838400 | CM71: 1146950 | CN71: 5699200 | CO71: 148190 | CP71: 613600 | CQ71: 87360 | CR71: 7.3 | CS71: 5865600 | CT71: 0 | CU71: 0 | CV71: 10111500 | CW71: 1313550 | CX71: 699300 | CY71: 236250 | CZ71: 506520 | DA71: 66150 | DB71: 699300 | DC71: 0 | DD71: 61152 | DE71: 906108.125 | DF71: 398715.625 | DG71: 0 | DH71: 0 | DI71: 561600 | DJ71: 324800 | DK71: 2363-04-01T01:52:53.171 | EZ71: 0 | FE71: 0
A72: =Measurements!A72 -> 2015-11-06 | B72: 20156 | C72: =IF(NOT(ISBLANK(Measurements!B72)),CL72/$CK72,"") -> 1453 | D72: 54.87799043 | E72: 473 | F72: 7.090430622 | G72: 25.9 | H72: 3.5 | I72: 6.4 | J72: 297 | K72: 0 | L72: 0 | M72: 483.8038278 | N72: 62.8492823 | O72: 33.45933014 | P72: 11.30382775 | Q72: 24.2354067 | R72: 3.16507177 | S72: 33.45933014 | T72: 0 | U72: 2.925933014 | V72: 43.35445574 | W72: 19.07730263 | X72: 0 | Y72: 0 | Z72: 46 | AA72: 15.54066986 | AB72: 8.095649684 | AC72: 1 | AD72: 1 | AE72: 0.1 | AF72: 1 | AG72: 0.1 | AH72: 1 | AI72: 1 | AJ72: 1 | AK72: 1 | AL72: 0.1 | AM72: 0.1 | AN72: 0.1 | AO72: 0.1 | AP72: 0.1 | AQ72: 0.1 | AR72: 0.1 | AS72: 0.1 | AT72: 0.05 | AU72: 0.1 | AV72: 0.1 | AW72: 0.1 | AX72: 0.1 | AY72: 0.05 | AZ72: 0.05 | BA72: 1 | BB72: 0.1 | BC72: 0.05 | CJ72: =Measurements!A72 -> 2015-11-06 | CK72: 20900 | CL72: 30367700 | CM72: 1146950 | CN72: 9885700 | CO72: 148190 | CP72: 541310 | CQ72: 73150 | CR72: 6.4 | CS72: 6207300 | CT72: 0 | CU72: 0 | CV72: 10111500 | CW72: 1313550 | CX72: 699300 | CY72: 236250 | CZ72: 506520 | DA72: 66150 | DB72: 699300 | DC72: 0 | DD72: 61152 | DE72: 906108.125 | DF72: 398715.625 | DG72: 0 | DH72: 0 | DI72: 961400 | DJ72: 324800 | DK72: 2363-04-01T01:52:53.171 | EZ72: 0 | FE72: 0
A73: =Measurements!A73 -> 2015-11-07 | B73: 20157 | C73: =IF(NOT(ISBLANK(Measurements!B73)),CL73/$CK73,"") -> 1083 | D73: 45.33399209 | E73: 447 | F73: 5.857312253 | G73: 27.6 | H73: 3.5 | I73: 7.2 | J73: 309 | K73: 0 | L73: 0 | M73: 399.6640316 | N73: 51.91897233 | O73: 27.64031621 | P73: 9.337944664 | Q73: 20.02055336 | R73: 2.614624506 | S73: 27.64031621 | T73: 0 | U73: 2.417075099 | V73: 35.8145504 | W73: 15.75951087 | X73: 0 | Y73: 0 | Z73: 32 | AA73: 12.83794466 | AB73: 6.687710608 | AC73: 1 | AD73: 1 | AE73: 0.1 | AF73: 1 | AG73: 0.1 | AH73: 1 | AI73: 1 | AJ73: 1 | AK73: 1 | AL73: 0.1 | AM73: 0.1 | AN73: 0.1 | AO73: 0.1 | AP73: 0.1 | AQ73: 0.1 | AR73: 0.1 | AS73: 0.1 | AT73: 0.05 | AU73: 0.1 | AV73: 0.1 | AW73: 0.1 | AX73: 0.1 | AY73: 0.05 | AZ73: 0.05 | BA73: 1 | BB73: 0.1 | BC73: 0.05 | CJ73: =Measurements!A73 -> 2015-11-07 | CK73: 25300 | CL73: 27399900 | CM73: 1146950 | CN73: 11309100 | CO73: 148190 | CP73: 698280 | CQ73: 88550 | CR73: 7.2 | CS73: 7817700 | CT73: 0 | CU73: 0 | CV73: 10111500 | CW73: 1313550 | CX73: 699300 | CY73: 236250 | CZ73: 506520 | DA73: 66150 | DB73: 699300 | DC73: 0 | DD73: 61152 | DE73: 906108.125 | DF73: 398715.625 | DG73: 0 | DH73: 0 | DI73: 809600 | DJ73: 324800 | DK73: 2363-04-01T01:52:53.171 | EZ73: 0 | FE73: 0
A74: =Measurements!A74 -> 2015-11-08 | B74: 20158 | C74: =IF(NOT(ISBLANK(Measurements!B74)),CL74/$CK74,"") -> 1479 | D74: 49.65151515 | E74: 300 | F74: 6.415151515 | G74: 30.9 | H74: 3.9 | I74: 7.3 | J74: 293 | K74: 0 | L74: 0 | M74: 437.7272727 | N74: 56.86363636 | O74: 30.27272727 | P74: 10.22727273 | Q74: 21.92727273 | R74: 2.863636364 | S74: 30.27272727 | T74: 0 | U74: 2.647272727 | V74: 39.22545996 | W74: 17.26041667 | X74: 0 | Y74: 0 | Z74: 30 | AA74: 14.06060606 | AB74: 7.324635428 | AC74: 1 | AD74: 1 | AE74: 0.1 | AF74: 1 | AG74: 0.1 | AH74: 1 | AI74: 1 | AJ74: 1 | AK74: 1 | AL74: 0.1 | AM74: 0.1 | AN74: 0.1 | AO74: 0.1 | AP74: 0.1 | AQ74: 0.1 | AR74: 0.1 | AS74: 0.1 | AT74: 0.05 | AU74: 0.1 | AV74: 0.1 | AW74: 0.1 | AX74: 0.1 | AY74: 0.05 | AZ74: 0.05 | BA74: 1 | BB74: 0.1 | BC74: 0.05 | CJ74: =Measurements!A74 -> 2015-11-08 | CK74: 23100 | CL74: 34164900 | CM74: 1146950 | CN74: 6930000 | CO74: 148190 | CP74: 713790 | CQ74: 90090 | CR74: 7.3 | CS74: 6768300 | CT74: 0 | CU74: 0 | CV74: 10111500 | CW74: 1313550 | CX74: 699300 | CY74: 236250 | CZ74: 506520 | DA74: 66150 | DB74: 699300 | DC74: 0 | DD74: 61152 | DE74: 906108.125 | DF74: 398715.625 | DG74: 0 | DH74: 0 | DI74: 693000 | DJ74: 324800 | DK74: 2363-04-01T01:52:53.171 | EZ74: 0 | FE74: 0
A75: =Measurements!A75 -> 2015-11-09 | B75: 20159 | C75: =IF(NOT(ISBLANK(Measurements!B75)),CL75/$CK75,"") -> 750 | D75: 61.66397849 | E75: 170 | F75: 7.967204301 | G75: 31.6 | H75: 4.3 | I75: 7.4 | J75: 310 | K75: 0 | L75: 0 | M75: 572 | N75: 62 | O75: 105 | P75: 7.4 | Q75: 27.1 | R75: 2.5 | S75: 105 | T75: 0 | U75: 3.287741935 | V75: 48.71549059 | W75: 21.43632392 | X75: 0 | Y75: 0 | Z75: 27 | AA75: 17.46236559 | AB75: 9.096724645 | AC75: 1 | AD75: 1 | AE75: 0.1 | AF75: 1 | AG75: 0.1 | AH75: 1 | AI75: 1 | AJ75: 1 | AK75: 1 | AL75: 0.1 | AM75: 0.1 | AN75: 1 | AO75: 1 | AP75: 1 | AQ75: 1 | AR75: 1 | AS75: 1 | AT75: 0.5 | AU75: 0.1 | AV75: 0.1 | AW75: 0.1 | AX75: 0.1 | AY75: 0.05 | AZ75: 0.05 | BA75: 1 | BB75: 0.1 | BC75: 0.05 | CJ75: =Measurements!A75 -> 2015-11-09 | CK75: 18600 | CL75: 13950000 | CM75: 1146950 | CN75: 3162000 | CO75: 148190 | CP75: 587760 | CQ75: 79980 | CR75: 7.4 | CS75: 5766000 | CT75: 0 | CU75: 0 | CV75: 10639200 | CW75: 1153200 | CX75: 1953000 | CY75: 137640 | CZ75: 504060 | DA75: 46500 | DB75: 1953000 | DC75: 0 | DD75: 61152 | DE75: 906108.125 | DF75: 398715.625 | DG75: 0 | DH75: 0 | DI75: 502200 | DJ75: 324800 | DK75: 2363-04-01T01:52:53.171 | EZ75: 0 | FE75: 0
A76: =Measurements!A76 -> 2015-11-10 | B76: 20160 | C76: =IF(NOT(ISBLANK(Measurements!B76)),CL76/$CK76,"") -> 694.0298507 | D76: 57.06218905 | E76: 278 | F76: 7.372636816 | G76: 29.1 | H76: 3.8 | I76: 7.1 | J76: 301 | K76: 0 | L76: 0 | M76: 529.3134328 | N76: 57.37313433 | O76: 97.1641791 | P76: 6.847761194 | Q76: 25.07761194 | R76: 2.313432836 | S76: 97.1641791 | T76: 0 | U76: 3.04238806 | V76: 45.08000622 | W76: 19.83659826 | X76: 0 | Y76: 0 | Z76: 30 | AA76: 16.15920398 | AB76: 8.417864597 | AC76: 1 | AD76: 0.1 | AE76: 0.1 | AF76: 1 | AG76: 0.1 | AH76: 1 | AI76: 1 | AJ76: 1 | AK76: 1 | AL76: 0.1 | AM76: 0.1 | AN76: 0.1 | AO76: 0.1 | AP76: 0.1 | AQ76: 0.1 | AR76: 0.1 | AS76: 0.1 | AT76: 0.05 | AU76: 0.1 | AV76: 0.1 | AW76: 0.1 | AX76: 0.1 | AY76: 0.05 | AZ76: 0.05 | BA76: 1 | BB76: 0.1 | BC76: 0.05 | CJ76: =Measurements!A76 -> 2015-11-10 | CK76: 20100 | CL76: 13950000 | CM76: 1146950 | CN76: 5587800 | CO76: 148190 | CP76: 584910 | CQ76: 76380 | CR76: 7.1 | CS76: 6050100 | CT76: 0 | CU76: 0 | CV76: 10639200 | CW76: 1153200 | CX76: 1953000 | CY76: 137640 | CZ76: 504060 | DA76: 46500 | DB76: 1953000 | DC76: 0 | DD76: 61152 | DE76: 906108.125 | DF76: 398715.625 | DG76: 0 | DH76: 0 | DI76: 603000 | DJ76: 324800 | DK76: 2363-04-01T01:52:53.171 | EZ76: 0 | FE76: 0
A77: =Measurements!A77 -> 2015-11-11 | B77: 20161 | C77: =IF(NOT(ISBLANK(Measurements!B77)),CL77/$CK77,"") -> 742.0212766 | D77: 33.2 | E77: 322 | F77: 6.1 | G77: 31.8 | H77: 4.2 | I77: 7.5 | J77: 282 | K77: 0 | L77: 0 | M77: 565.9148936 | N77: 61.34042553 | O77: 103.8829787 | P77: 7.321276596 | Q77: 26.81170213 | R77: 2.473404255 | S77: 103.8829787 | T77: 0 | U77: 3.252765957 | V77: 48.19724069 | W77: 21.20827793 | X77: 0 | Y77: 0 | Z77: 26 | AA77: 16 | AB77: 2.33492997 | AC77: 1 | AD77: 0.1 | AE77: 1 | AF77: 1 | AG77: 1 | AH77: 1 | AI77: 1 | AJ77: 1 | AK77: 1 | AL77: 0.1 | AM77: 0.1 | AN77: 0.1 | AO77: 0.1 | AP77: 0.1 | AQ77: 0.1 | AR77: 0.1 | AS77: 0.1 | AT77: 0.05 | AU77: 0.1 | AV77: 0.1 | AW77: 0.1 | AX77: 0.1 | AY77: 0.05 | AZ77: 0.05 | BA77: 1 | BB77: 1 | BC77: 0.5 | CJ77: =Measurements!A77 -> 2015-11-11 | CK77: 18800 | CL77: 13950000 | CM77: 624160 | CN77: 6053600 | CO77: 114680 | CP77: 597840 | CQ77: 78960 | CR77: 7.5 | CS77: 5301600 | CT77: 0 | CU77: 0 | CV77: 10639200 | CW77: 1153200 | CX77: 1953000 | CY77: 137640 | CZ77: 504060 | DA77: 46500 | DB77: 1953000 | DC77: 0 | DD77: 61152 | DE77: 906108.125 | DF77: 398715.625 | DG77: 0 | DH77: 0 | DI77: 488800 | DJ77: 300800 | DK77: 2020-03-06T16:24:09 | EZ77: 0 | FE77: 0
A78: =Measurements!A78 -> 2015-11-12 | B78: 20162 | C78: =IF(NOT(ISBLANK(Measurements!B78)),CL78/$CK78,"") -> 838 | D78: 33.2 | E78: 288 | F78: 6.1 | G78: 34.3 | H78: 1.8 | I78: 7.6 | J78: 255 | K78: 0 | L78: 0 | M78: 565.9148936 | N78: 61.34042553 | O78: 103.8829787 | P78: 7.321276596 | Q78: 26.81170213 | R78: 2.473404255 | S78: 103.8829787 | T78: 0 | U78: 3.252765957 | V78: 48.19724069 | W78: 21.20827793 | X78: 0 | Y78: 0 | Z78: 33 | AA78: 16 | AB78: 2.33492997 | AC78: 1 | AD78: 1 | AE78: 0.1 | AF78: 1 | AG78: 0.1 | AH78: 1 | AI78: 1 | AJ78: 1 | AK78: 1 | AL78: 0.1 | AM78: 0.1 | AN78: 0.1 | AO78: 0.1 | AP78: 0.1 | AQ78: 0.1 | AR78: 0.1 | AS78: 0.1 | AT78: 0.05 | AU78: 0.1 | AV78: 0.1 | AW78: 0.1 | AX78: 0.1 | AY78: 0.05 | AZ78: 0.05 | BA78: 1 | BB78: 0.1 | BC78: 0.05 | CJ78: =Measurements!A78 -> 2015-11-12 | CK78: 18800 | CL78: 15754400 | CM78: 624160 | CN78: 5414400 | CO78: 114680 | CP78: 644840 | CQ78: 33840 | CR78: 7.6 | CS78: 4794000 | CT78: 0 | CU78: 0 | CV78: 10639200 | CW78: 1153200 | CX78: 1953000 | CY78: 137640 | CZ78: 504060 | DA78: 46500 | DB78: 1953000 | DC78: 0 | DD78: 61152 | DE78: 906108.125 | DF78: 398715.625 | DG78: 0 | DH78: 0 | DI78: 620400 | DJ78: 300800 | DK78: 2020-03-06T16:24:09.045 | EZ78: 0 | FE78: 0
A79: =Measurements!A79 -> 2015-11-13 | B79: 20163 | C79: =IF(NOT(ISBLANK(Measurements!B79)),CL79/$CK79,"") -> 790 | D79: 30.59607843 | E79: 324 | F79: 5.621568627 | G79: 27.9 | H79: 2.5 | I79: 6.6 | J79: 289 | K79: 0 | L79: 0 | M79: 521.5294118 | N79: 56.52941176 | O79: 95.73529412 | P79: 6.747058824 | Q79: 24.70882353 | R79: 2.279411765 | S79: 95.73529412 | T79: 0 | U79: 2.997647059 | V79: 44.41706495 | W79: 19.54488358 | X79: 0 | Y79: 0 | Z79: 29 | AA79: 14.74509804 | AB79: 2.151798208 | AC79: 1 | AD79: 1 | AE79: 0.1 | AF79: 1 | AG79: 0.1 | AH79: 1 | AI79: 1 | AJ79: 1 | AK79: 1 | AL79: 0.1 | AM79: 0.1 | AN79: 0.1 | AO79: 0.1 | AP79: 0.1 | AQ79: 0.1 | AR79: 0.1 | AS79: 0.1 | AT79: 0.05 | AU79: 0.1 | AV79: 0.1 | AW79: 0.1 | AX79: 0.1 | AY79: 0.05 | AZ79: 0.05 | BA79: 1 | BB79: 0.1 | BC79: 0.05 | CJ79: =Measurements!A79 -> 2015-11-13 | CK79: 20400 | CL79: 16116000 | CM79: 624160 | CN79: 6609600 | CO79: 114680 | CP79: 569160 | CQ79: 51000 | CR79: 6.6 | CS79: 5895600 | CT79: 0 | CU79: 0 | CV79: 10639200 | CW79: 1153200 | CX79: 1953000 | CY79: 137640 | CZ79: 504060 | DA79: 46500 | DB79: 1953000 | DC79: 0 | DD79: 61152 | DE79: 906108.125 | DF79: 398715.625 | DG79: 0 | DH79: 0 | DI79: 591600 | DJ79: 300800 | DK79: 2020-03-06T16:24:09.045 | EZ79: 0 | FE79: 0
A80: =Measurements!A80 -> 2015-11-14 | B80: 20164 | C80: =IF(NOT(ISBLANK(Measurements!B80)),CL80/$CK80,"") -> 799 | D80: 21.82377622 | E80: 383 | F80: 4.00979021 | G80: 28.9 | H80: 3.5 | I80: 6.3 | J80: 273 | K80: 0 | L80: 0 | M80: 372 | N80: 40.32167832 | O80: 68.28671329 | P80: 4.812587413 | Q80: 17.62447552 | R80: 1.625874126 | S80: 68.28671329 | T80: 0 | U80: 2.138181818 | V80: 31.68210227 | W80: 13.94110577 | X80: 0 | Y80: 0 | Z80: 22 | AA80: 10.51748252 | AB80: 1.534849071 | AC80: 1 | AD80: 1 | AE80: 0.1 | AF80: 1 | AG80: 0.1 | AH80: 1 | AI80: 1 | AJ80: 1 | AK80: 1 | AL80: 0.1 | AM80: 0.1 | AN80: 0.1 | AO80: 0.1 | AP80: 0.1 | AQ80: 0.1 | AR80: 0.1 | AS80: 0.1 | AT80: 0.05 | AU80: 0.1 | AV80: 0.1 | AW80: 0.1 | AX80: 0.1 | AY80: 0.05 | AZ80: 0.05 | BA80: 1 | BB80: 0.1 | BC80: 0.05 | CJ80: =Measurements!A80 -> 2015-11-14 | CK80: 28600 | CL80: 22851400 | CM80: 624160 | CN80: 10953800 | CO80: 114680 | CP80: 826540 | CQ80: 100100 | CR80: 6.3 | CS80: 7807800 | CT80: 0 | CU80: 0 | CV80: 10639200 | CW80: 1153200 | CX80: 1953000 | CY80: 137640 | CZ80: 504060 | DA80: 46500 | DB80: 1953000 | DC80: 0 | DD80: 61152 | DE80: 906108.125 | DF80: 398715.625 | DG80: 0 | DH80: 0 | DI80: 629200 | DJ80: 300800 | DK80: 2020-03-06T16:24:09.045 | EZ80: 0 | FE80: 0
A81: =Measurements!A81 -> 2015-11-15 | B81: 20165 | C81: =IF(NOT(ISBLANK(Measurements!B81)),CL81/$CK81,"") -> 680 | D81: 23.11703704 | E81: 419 | F81: 4.247407407 | G81: 25.9 | H81: 2.4 | I81: 7.4 | J81: 235 | K81: 0 | L81: 0 | M81: 394.0444444 | N81: 42.71111111 | O81: 72.33333333 | P81: 5.097777778 | Q81: 18.66888889 | R81: 1.722222222 | S81: 72.33333333 | T81: 0 | U81: 2.264888889 | V81: 33.55956019 | W81: 14.76724537 | X81: 0 | Y81: 0 | Z81: 25 | AA81: 11.14074074 | AB81: 1.62580309 | AC81: 1 | AD81: 1 | AE81: 0.1 | AF81: 1 | AG81: 0.1 | AH81: 1 | AI81: 1 | AJ81: 1 | AK81: 1 | AL81: 0.1 | AM81: 0.1 | AN81: 0.1 | AO81: 0.1 | AP81: 0.1 | AQ81: 0.1 | AR81: 0.1 | AS81: 0.1 | AT81: 0.05 | AU81: 0.1 | AV81: 0.1 | AW81: 0.1 | AX81: 0.1 | AY81: 0.05 | AZ81: 0.05 | BA81: 1 | BB81: 0.1 | BC81: 0.05 | CJ81: =Measurements!A81 -> 2015-11-15 | CK81: 27000 | CL81: 18360000 | CM81: 624160 | CN81: 11313000 | CO81: 114680 | CP81: 699300 | CQ81: 64800 | CR81: 7.4 | CS81: 6345000 | CT81: 0 | CU81: 0 | CV81: 10639200 | CW81: 1153200 | CX81: 1953000 | CY81: 137640 | CZ81: 504060 | DA81: 46500 | DB81: 1953000 | DC81: 0 | DD81: 61152 | DE81: 906108.125 | DF81: 398715.625 | DG81: 0 | DH81: 0 | DI81: 675000 | DJ81: 300800 | DK81: 2020-03-06T16:24:09.045 | EZ81: 0 | FE81: 0
A82: =Measurements!A82 -> 2015-11-16 | B82: 20166 | C82: =IF(NOT(ISBLANK(Measurements!B82)),CL82/$CK82,"") -> 770 | D82: 23.11703704 | E82: 328 | F82: 4.247407407 | G82: 28.4 | H82: 4.2 | I82: 7.4 | J82: 237 | K82: 0 | L82: 0 | M82: 516 | N82: 42.71111111 | O82: 168 | P82: 5.097777778 | Q82: 25.9 | R82: 2.8 | S82: 168 | T82: 0 | U82: 2.264888889 | V82: 33.55956019 | W82: 14.76724537 | X82: 0 | Y82: 0 | Z82: 32 | AA82: 11.14074074 | AB82: 1.62580309 | AC82: 1 | AD82: 1 | AE82: 0.1 | AF82: 1 | AG82: 0.1 | AH82: 1 | AI82: 1 | AJ82: 1 | AK82: 1 | AL82: 0.1 | AM82: 0.1 | AN82: 1 | AO82: 0.1 | AP82: 1 | AQ82: 0.1 | AR82: 1 | AS82: 1 | AT82: 0.5 | AU82: 0.1 | AV82: 0.1 | AW82: 0.1 | AX82: 0.1 | AY82: 0.05 | AZ82: 0.05 | BA82: 1 | BB82: 0.1 | BC82: 0.05 | CJ82: =Measurements!A82 -> 2015-11-16 | CK82: 27000 | CL82: 20790000 | CM82: 624160 | CN82: 8856000 | CO82: 114680 | CP82: 766800 | CQ82: 113400 | CR82: 7.4 | CS82: 6399000 | CT82: 0 | CU82: 0 | CV82: 13932000 | CW82: 1153200 | CX82: 4536000 | CY82: 137640 | CZ82: 699300 | DA82: 75600 | DB82: 4536000 | DC82: 0 | DD82: 61152 | DE82: 906108.125 | DF82: 398715.625 | DG82: 0 | DH82: 0 | DI82: 864000 | DJ82: 300800 | DK82: 2020-03-06T16:24:09.045 | EZ82: 0 | FE82: 0
A83: =Measurements!A83 -> 2015-11-17 | B83: 20167 | C83: =IF(NOT(ISBLANK(Measurements!B83)),CL83/$CK83,"") -> 716.8965517 | D83: 21.52275862 | E83: 232 | F83: 3.954482759 | G83: 25.4 | H83: 3 | I83: 7.5 | J83: 171 | K83: 0 | L83: 0 | M83: 480.4137931 | N83: 39.76551724 | O83: 156.4137931 | P83: 4.746206897 | Q83: 24.1137931 | R83: 2.606896552 | S83: 156.4137931 | T83: 0 | U83: 2.108689655 | V83: 31.24510776 | W83: 13.74881466 | X83: 0 | Y83: 0 | Z83: 30 | AA83: 10.37241379 | AB83: 1.513678739 | AC83: 1 | AD83: 0.1 | AE83: 0.1 | AF83: 1 | AG83: 0.1 | AH83: 1 | AI83: 1 | AJ83: 1 | AK83: 1 | AL83: 0.1 | AM83: 0.1 | AN83: 0.1 | AO83: 0.1 | AP83: 0.1 | AQ83: 0.1 | AR83: 0.1 | AS83: 0.1 | AT83: 0.05 | AU83: 0.1 | AV83: 0.1 | AW83: 0.1 | AX83: 0.1 | AY83: 0.05 | AZ83: 0.05 | BA83: 1 | BB83: 0.1 | BC83: 0.05 | CJ83: =Measurements!A83 -> 2015-11-17 | CK83: 29000 | CL83: 20790000 | CM83: 624160 | CN83: 6728000 | CO83: 114680 | CP83: 736600 | CQ83: 87000 | CR83: 7.5 | CS83: 4959000 | CT83: 0 | CU83: 0 | CV83: 13932000 | CW83: 1153200 | CX83: 4536000 | CY83: 137640 | CZ83: 699300 | DA83: 75600 | DB83: 4536000 | DC83: 0 | DD83: 61152 | DE83: 906108.125 | DF83: 398715.625 | DG83: 0 | DH83: 0 | DI83: 870000 | DJ83: 300800 | DK83: 2020-03-06T16:24:09.045 | EZ83: 0 | FE83: 0
A84: =Measurements!A84 -> 2015-11-18 | B84: 20168 | C84: =IF(NOT(ISBLANK(Measurements!B84)),CL84/$CK84,"") -> 1387 | D84: 40.4773022 | E84: 403 | F84: 7.2 | G84: 25.7 | H84: 3.1 | I84: 7.4 | J84: 224 | K84: 0 | L84: 0 | M84: 903.5019455 | N84: 74.78599222 | O84: 294.1634241 | P84: 8.926070039 | Q84: 45.35019455 | R84: 4.902723735 | S84: 294.1634241 | T84: 0 | U84: 3.965758755 | V84: 58.76187581 | W84: 25.85704442 | X84: 0 | Y84: 0 | Z84: 28 | AA84: 19.50713359 | AB84: 2.846736929 | AC84: 1 | AD84: 1 | AE84: 0.1 | AF84: 1 | AG84: 1 | AH84: 1 | AI84: 1 | AJ84: 1 | AK84: 1 | AL84: 0.1 | AM84: 0.1 | AN84: 0.1 | AO84: 0.1 | AP84: 0.1 | AQ84: 0.1 | AR84: 0.1 | AS84: 0.1 | AT84: 0.05 | AU84: 0.1 | AV84: 0.1 | AW84: 0.1 | AX84: 0.1 | AY84: 0.05 | AZ84: 0.05 | BA84: 1 | BB84: 0.1 | BC84: 0.05 | CJ84: =Measurements!A84 -> 2015-11-18 | CK84: 15420 | CL84: 21387540 | CM84: 624160 | CN84: 6214260 | CO84: 111024 | CP84: 396294 | CQ84: 47802 | CR84: 7.4 | CS84: 3454080 | CT84: 0 | CU84: 0 | CV84: 13932000 | CW84: 1153200 | CX84: 4536000 | CY84: 137640 | CZ84: 699300 | DA84: 75600 | DB84: 4536000 | DC84: 0 | DD84: 61152 | DE84: 906108.125 | DF84: 398715.625 | DG84: 0 | DH84: 0 | DI84: 431760 | DJ84: 300800 | DK84: 2020-03-06T16:24:09.045 | EZ84: 0 | FE84: 0
A85: =Measurements!A85 -> 2015-11-19 | B85: 20169 | C85: =IF(NOT(ISBLANK(Measurements!B85)),CL85/$CK85,"") -> 1169 | D85: 34.21929825 | E85: 454 | F85: 6.086842105 | G85: 25.6 | H85: 2.8 | I85: 6.8 | J85: 243 | K85: 0 | L85: 0 | M85: 763.8157895 | N85: 63.22368421 | O85: 248.6842105 | P85: 7.546052632 | Q85: 38.33881579 | R85: 4.144736842 | S85: 248.6842105 | T85: 0 | U85: 3.352631579 | V85: 49.67698054 | W85: 21.85940927 | X85: 0 | Y85: 0 | Z85: 19 | AA85: 16.49122807 | AB85: 2.406616417 | AC85: 1 | AD85: 1 | AE85: 0.1 | AF85: 1 | AG85: 0.1 | AH85: 1 | AI85: 1 | AJ85: 1 | AK85: 1 | AL85: 0.1 | AM85: 0.1 | AN85: 0.1 | AO85: 0.1 | AP85: 0.1 | AQ85: 0.1 | AR85: 0.1 | AS85: 0.1 | AT85: 0.05 | AU85: 0.1 | AV85: 0.1 | AW85: 0.1 | AX85: 0.1 | AY85: 0.05 | AZ85: 0.05 | BA85: 1 | BB85: 0.1 | BC85: 0.05 | CJ85: =Measurements!A85 -> 2015-11-19 | CK85: 18240 | CL85: 21322560 | CM85: 624160 | CN85: 8280960 | CO85: 111024 | CP85: 466944 | CQ85: 51072 | CR85: 6.8 | CS85: 4432320 | CT85: 0 | CU85: 0 | CV85: 13932000 | CW85: 1153200 | CX85: 4536000 | CY85: 137640 | CZ85: 699300 | DA85: 75600 | DB85: 4536000 | DC85: 0 | DD85: 61152 | DE85: 906108.125 | DF85: 398715.625 | DG85: 0 | DH85: 0 | DI85: 346560 | DJ85: 300800 | DK85: 2020-03-06T16:24:09.045 | EZ85: 0 | FE85: 0
A86: =Measurements!A86 -> 2015-11-20 | B86: 20170 | C86: =IF(NOT(ISBLANK(Measurements!B86)),CL86/$CK86,"") -> 797 | D86: 39.18141871 | E86: 388 | F86: 6.969491525 | G86: 29.31224105 | H86: 3.206026365 | I86: 6.9 | J86: 227 | K86: 0 | L86: 0 | M86: 874.5762712 | N86: 72.39171375 | O86: 284.7457627 | P86: 8.640301318 | Q86: 43.89830508 | R86: 4.745762712 | S86: 284.7457627 | T86: 0 | U86: 3.838794727 | V86: 56.88061048 | W86: 25.02922944 | X86: 0 | Y86: 0 | Z86: 11 | AA86: 18.88261142 | AB86: 2.755598458 | AC86: 1 | AD86: 1 | AE86: 0.1 | AF86: 1 | AG86: 0.1 | AH86: 0.1 | AI86: 0.1 | AJ86: 1 | AK86: 1 | AL86: 0.1 | AM86: 0.1 | AN86: 0.1 | AO86: 0.1 | AP86: 0.1 | AQ86: 0.1 | AR86: 0.1 | AS86: 0.1 | AT86: 0.05 | AU86: 0.1 | AV86: 0.1 | AW86: 0.1 | AX86: 0.1 | AY86: 0.05 | AZ86: 0.05 | BA86: 1 | BB86: 0.1 | BC86: 0.05 | CJ86: =Measurements!A86 -> 2015-11-20 | CK86: 15930 | CL86: 12696210 | CM86: 624160 | CN86: 6180840 | CO86: 111024 | CP86: 466944 | CQ86: 51072 | CR86: 6.9 | CS86: 3616110 | CT86: 0 | CU86: 0 | CV86: 13932000 | CW86: 1153200 | CX86: 4536000 | CY86: 137640 | CZ86: 699300 | DA86: 75600 | DB86: 4536000 | DC86: 0 | DD86: 61152 | DE86: 906108.125 | DF86: 398715.625 | DG86: 0 | DH86: 0 | DI86: 175230 | DJ86: 300800 | DK86: 2020-03-06T16:24:09.045 | EZ86: 0 | FE86: 0
A87: =Measurements!A87 -> 2015-11-21 | B87: 20171 | C87: =IF(NOT(ISBLANK(Measurements!B87)),CL87/$CK87,"") -> 748 | D87: 45.89411765 | E87: 335 | F87: 8.163529412 | G87: 26.6 | H87: 3.2 | I87: 6.9 | J87: 233 | K87: 0 | L87: 0 | M87: 1024.411765 | N87: 84.79411765 | O87: 333.5294118 | P87: 10.12058824 | Q87: 51.41911765 | R87: 5.558823529 | S87: 333.5294118 | T87: 0 | U87: 4.496470588 | V87: 66.62559743 | W87: 29.31732537 | X87: 0 | Y87: 0 | Z87: 26 | AA87: 22.11764706 | AB87: 3.227697312 | AC87: 1 | AD87: 1 | AE87: 0.1 | AF87: 1 | AG87: 0.1 | AH87: 1 | AI87: 1 | AJ87: 1 | AK87: 1 | AL87: 0.1 | AM87: 0.1 | AN87: 0.1 | AO87: 0.1 | AP87: 0.1 | AQ87: 0.1 | AR87: 0.1 | AS87: 0.1 | AT87: 0.05 | AU87: 0.1 | AV87: 0.1 | AW87: 0.1 | AX87: 0.1 | AY87: 0.05 | AZ87: 0.05 | BA87: 1 | BB87: 0.1 | BC87: 0.05 | CJ87: =Measurements!A87 -> 2015-11-21 | CK87: 13600 | CL87: 10172800 | CM87: 624160 | CN87: 4556000 | CO87: 111024 | CP87: 361760 | CQ87: 43520 | CR87: 6.9 | CS87: 3168800 | CT87: 0 | CU87: 0 | CV87: 13932000 | CW87: 1153200 | CX87: 4536000 | CY87: 137640 | CZ87: 699300 | DA87: 75600 | DB87: 4536000 | DC87: 0 | DD87: 61152 | DE87: 906108.125 | DF87: 398715.625 | DG87: 0 | DH87: 0 | DI87: 353600 | DJ87: 300800 | DK87: 2020-03-06T16:24:09.045 | EZ87: 0 | FE87: 0
A88: =Measurements!A88 -> 2015-11-22 | B88: 20172 | C88: =IF(NOT(ISBLANK(Measurements!B88)),CL88/$CK88,"") -> 1464 | D88: 44.26666667 | E88: 289 | F88: 7.874042553 | G88: 27.1 | H88: 3.2 | I88: 7.4 | J88: 269 | K88: 0 | L88: 0 | M88: 988.0851064 | N88: 81.78723404 | O88: 321.7021277 | P88: 9.761702128 | Q88: 49.59574468 | R88: 5.361702128 | S88: 321.7021277 | T88: 0 | U88: 4.337021277 | V88: 64.26298759 | W88: 28.2777039 | X88: 0 | Y88: 0 | Z88: 14 | AA88: 21.33333333 | AB88: 3.11323996 | AC88: 1 | AD88: 1 | AE88: 0.1 | AF88: 1 | AG88: 0.1 | AH88: 1 | AI88: 1 | AJ88: 1 | AK88: 1 | AL88: 0.1 | AM88: 0.1 | AN88: 0.1 | AO88: 0.1 | AP88: 0.1 | AQ88: 0.1 | AR88: 0.1 | AS88: 0.1 | AT88: 0.05 | AU88: 0.1 | AV88: 0.1 | AW88: 0.1 | AX88: 0.1 | AY88: 0.05 | AZ88: 0.05 | BA88: 1 | BB88: 0.1 | BC88: 0.05 | CJ88: =Measurements!A88 -> 2015-11-22 | CK88: 14100 | CL88: 20642400 | CM88: 624160 | CN88: 4074900 | CO88: 111024 | CP88: 382110 | CQ88: 45120 | CR88: 7.4 | CS88: 3792900 | CT88: 0 | CU88: 0 | CV88: 13932000 | CW88: 1153200 | CX88: 4536000 | CY88: 137640 | CZ88: 699300 | DA88: 75600 | DB88: 4536000 | DC88: 0 | DD88: 61152 | DE88: 906108.125 | DF88: 398715.625 | DG88: 0 | DH88: 0 | DI88: 197400 | DJ88: 300800 | DK88: 2020-03-06T16:24:09.045 | EZ88: 0 | FE88: 0
A89: =Measurements!A89 -> 2015-11-23 | B89: 20173 | C89: =IF(NOT(ISBLANK(Measurements!B89)),CL89/$CK89,"") -> 660 | D89: 46.23407407 | E89: 209 | F89: 8.224 | G89: 26.4 | H89: 2.8 | I89: 7.1 | J89: 233 | K89: 0 | L89: 0 | M89: 409 | N89: 55.5 | O89: 102 | P89: 5.3 | Q89: 26 | R89: 3.1 | S89: 102 | T89: 0 | U89: 4.529777778 | V89: 67.11912037 | W89: 29.53449074 | X89: 0 | Y89: 0 | Z89: 25 | AA89: 22.28148148 | AB89: 3.251606181 | AC89: 1 | AD89: 1 | AE89: 0.1 | AF89: 1 | AG89: 0.1 | AH89: 1 | AI89: 1 | AJ89: 1 | AK89: 1 | AL89: 0.1 | AM89: 0.1 | AN89: 1 | AO89: 1 | AP89: 1 | AQ89: 1 | AR89: 1 | AS89: 1 | AT89: 0.5 | AU89: 0.1 | AV89: 0.1 | AW89: 0.1 | AX89: 0.1 | AY89: 0.05 | AZ89: 0.05 | BA89: 1 | BB89: 0.1 | BC89: 0.05 | CJ89: =Measurements!A89 -> 2015-11-23 | CK89: 13500 | CL89: 8910000 | CM89: 624160 | CN89: 2821500 | CO89: 111024 | CP89: 356400 | CQ89: 37800 | CR89: 7.1 | CS89: 3145500 | CT89: 0 | CU89: 0 | CV89: 5521500 | CW89: 749250 | CX89: 1377000 | CY89: 71550 | CZ89: 351000 | DA89: 41850 | DB89: 1377000 | DC89: 0 | DD89: 61152 | DE89: 906108.125 | DF89: 398715.625 | DG89: 0 | DH89: 0 | DI89: 337500 | DJ89: 300800 | DK89: 2020-03-06T16:24:09.045 | EZ89: 0 | FE89: 0
A90: =Measurements!A90 -> 2015-11-24 | B90: 20174 | C90: =IF(NOT(ISBLANK(Measurements!B90)),CL90/$CK90,"") -> 921 | D90: 48.7625 | E90: 275 | F90: 8.67375 | G90: 36 | H90: 3.6 | I90: 7.2 | J90: 234 | K90: 0 | L90: 0 | M90: 431.3671875 | N90: 58.53515625 | O90: 107.578125 | P90: 5.58984375 | Q90: 27.421875 | R90: 3.26953125 | S90: 107.578125 | T90: 0 | U90: 4.7775 | V90: 70.78969727 | W90: 31.1496582 | X90: 0 | Y90: 0 | Z90: 29 | AA90: 23.5 | AB90: 3.429428394 | AC90: 1 | AD90: 1 | AE90: 0.1 | AF90: 1 | AG90: 0.1 | AH90: 1 | AI90: 1 | AJ90: 1 | AK90: 1 | AL90: 0.1 | AM90: 0.1 | AN90: 0.1 | AO90: 0.1 | AP90: 0.1 | AQ90: 0.1 | AR90: 0.1 | AS90: 0.1 | AT90: 0.05 | AU90: 0.1 | AV90: 0.1 | AW90: 0.1 | AX90: 0.1 | AY90: 0.05 | AZ90: 0.05 | BA90: 1 | BB90: 0.1 | BC90: 0.05 | CJ90: =Measurements!A90 -> 2015-11-24 | CK90: 12800 | CL90: 11788800 | CM90: 624160 | CN90: 3520000 | CO90: 111024 | CP90: 460800 | CQ90: 46080 | CR90: 7.2 | CS90: 2995200 | CT90: 0 | CU90: 0 | CV90: 5521500 | CW90: 749250 | CX90: 1377000 | CY90: 71550 | CZ90: 351000 | DA90: 41850 | DB90: 1377000 | DC90: 0 | DD90: 61152 | DE90: 906108.125 | DF90: 398715.625 | DG90: 0 | DH90: 0 | DI90: 371200 | DJ90: 300800 | DK90: 2020-03-06T16:24:09.045 | EZ90: 0 | FE90: 0
A91: =Measurements!A91 -> 2015-11-25 | B91: 20175 | C91: =IF(NOT(ISBLANK(Measurements!B91)),CL91/$CK91,"") -> 687 | D91: 55.5 | E91: 190 | F91: 7.1 | G91: 28.8 | H91: 3.4 | I91: 7.4 | J91: 219 | K91: 0 | L91: 0 | M91: 415.1503759 | N91: 56.33458647 | O91: 103.5338346 | P91: 5.379699248 | Q91: 26.39097744 | R91: 3.146616541 | S91: 103.5338346 | T91: 0 | U91: 4.597894737 | V91: 68.12843045 | W91: 29.97861842 | X91: 0 | Y91: 0 | Z91: 31 | AA91: 22.61654135 | AB91: 3.300502514 | AC91: 1 | AD91: 1 | AE91: 1 | AF91: 1 | AG91: 1 | AH91: 1 | AI91: 1 | AJ91: 1 | AK91: 1 | AL91: 0.1 | AM91: 0.1 | AN91: 0.1 | AO91: 0.1 | AP91: 0.1 | AQ91: 0.1 | AR91: 0.1 | AS91: 0.1 | AT91: 0.05 | AU91: 0.1 | AV91: 0.1 | AW91: 0.1 | AX91: 0.1 | AY91: 0.05 | AZ91: 0.05 | BA91: 1 | BB91: 0.1 | BC91: 0.05 | CJ91: =Measurements!A91 -> 2015-11-25 | CK91: 13300 | CL91: 9137100 | CM91: 738150 | CN91: 2527000 | CO91: 94430 | CP91: 383040 | CQ91: 45220 | CR91: 7.4 | CS91: 2912700 | CT91: 0 | CU91: 0 | CV91: 5521500 | CW91: 749250 | CX91: 1377000 | CY91: 71550 | CZ91: 351000 | DA91: 41850 | DB91: 1377000 | DC91: 0 | DD91: 61152 | DE91: 906108.125 | DF91: 398715.625 | DG91: 0 | DH91: 0 | DI91: 412300 | DJ91: 300800 | DK91: 2020-03-06T16:24:09.045 | EZ91: 0 | FE91: 0
A92: =Measurements!A92 -> 2015-11-26 | B92: 20176 | C92: =IF(NOT(ISBLANK(Measurements!B92)),CL92/$CK92,"") -> 919 | D92: 55.0858209 | E92: 248 | F92: 7.047014925 | G92: 26.4 | H92: 2.8 | I92: 7.3 | J92: 249 | K92: 0 | L92: 0 | M92: 412.0522388 | N92: 55.9141791 | O92: 102.761194 | P92: 5.339552239 | Q92: 26.19402985 | R92: 3.123134328 | S92: 102.761194 | T92: 0 | U92: 4.56358209 | V92: 67.62000933 | W92: 29.75489739 | X92: 0 | Y92: 0 | Z92: 24 | AA92: 22.44776119 | AB92: 3.275871898 | AC92: 1 | AD92: 1 | AE92: 0.1 | AF92: 1 | AG92: 0.1 | AH92: 1 | AI92: 1 | AJ92: 1 | AK92: 1 | AL92: 0.1 | AM92: 0.1 | AN92: 0.1 | AO92: 0.1 | AP92: 0.1 | AQ92: 0.1 | AR92: 0.1 | AS92: 0.1 | AT92: 0.05 | AU92: 0.1 | AV92: 0.1 | AW92: 0.1 | AX92: 0.1 | AY92: 0.05 | AZ92: 0.05 | BA92: 1 | BB92: 0.1 | BC92: 0.05 | CJ92: =Measurements!A92 -> 2015-11-26 | CK92: 13400 | CL92: 12314600 | CM92: 738150 | CN92: 3323200 | CO92: 94430 | CP92: 353760 | CQ92: 37520 | CR92: 7.3 | CS92: 3336600 | CT92: 0 | CU92: 0 | CV92: 5521500 | CW92: 749250 | CX92: 1377000 | CY92: 71550 | CZ92: 351000 | DA92: 41850 | DB92: 1377000 | DC92: 0 | DD92: 61152 | DE92: 906108.125 | DF92: 398715.625 | DG92: 0 | DH92: 0 | DI92: 321600 | DJ92: 300800 | DK92: 2020-03-06T16:24:09.045 | EZ92: 0 | FE92: 0
A93: =Measurements!A93 -> 2015-11-27 | B93: 20177 | C93: =IF(NOT(ISBLANK(Measurements!B93)),CL93/$CK93,"") -> 740 | D93: 55.5 | E93: 130 | F93: 7.1 | G93: 25.6 | H93: 3.5 | I93: 7.1 | J93: 258 | K93: 0 | L93: 0 | M93: 415.1503759 | N93: 56.33458647 | O93: 103.5338346 | P93: 5.379699248 | Q93: 26.39097744 | R93: 3.146616541 | S93: 103.5338346 | T93: 0 | U93: 4.597894737 | V93: 68.12843045 | W93: 29.97861842 | X93: 0 | Y93: 0 | Z93: 10 | AA93: 22.61654135 | AB93: 3.300502514 | AC93: 1 | AD93: 1 | AE93: 0.1 | AF93: 1 | AG93: 0.1 | AH93: 1 | AI93: 1 | AJ93: 1 | AK93: 1 | AL93: 0.1 | AM93: 0.1 | AN93: 0.1 | AO93: 0.1 | AP93: 0.1 | AQ93: 0.1 | AR93: 0.1 | AS93: 0.1 | AT93: 0.05 | AU93: 0.1 | AV93: 0.1 | AW93: 0.1 | AX93: 0.1 | AY93: 0.05 | AZ93: 0.05 | BA93: 1 | BB93: 0.1 | BC93: 0.05 | CJ93: =Measurements!A93 -> 2015-11-27 | CK93: 13300 | CL93: 9842000 | CM93: 738150 | CN93: 1729000 | CO93: 94430 | CP93: 340480 | CQ93: 46550 | CR93: 7.1 | CS93: 3431400 | CT93: 0 | CU93: 0 | CV93: 5521500 | CW93: 749250 | CX93: 1377000 | CY93: 71550 | CZ93: 351000 | DA93: 41850 | DB93: 1377000 | DC93: 0 | DD93: 61152 | DE93: 906108.125 | DF93: 398715.625 | DG93: 0 | DH93: 0 | DI93: 133000 | DJ93: 300800 | DK93: 2020-03-06T16:24:09.045
A94: =Measurements!A94 -> 2015-11-28 | B94: 20178 | C94: =IF(NOT(ISBLANK(Measurements!B94)),CL94/$CK94,"") -> 809 | D94: 52.35106383 | E94: 144 | F94: 6.697163121 | G94: 25.9 | H94: 3.4 | I94: 7.3 | J94: 262 | K94: 0 | L94: 0 | M94: 391.5957447 | N94: 53.13829787 | O94: 97.65957447 | P94: 5.074468085 | Q94: 24.89361702 | R94: 2.968085106 | S94: 97.65957447 | T94: 0 | U94: 4.337021277 | V94: 64.26298759 | W94: 28.2777039 | X94: 0 | Y94: 0 | Z94: 27 | AA94: 21.33333333 | AB94: 3.11323996 | AC94: 1 | AD94: 1 | AE94: 0.1 | AF94: 1 | AG94: 0.1 | AH94: 1 | AI94: 1 | AJ94: 1 | AK94: 1 | AL94: 0.1 | AM94: 0.1 | AN94: 0.1 | AO94: 0.1 | AP94: 0.1 | AQ94: 0.1 | AR94: 0.1 | AS94: 0.1 | AT94: 0.05 | AU94: 0.1 | AV94: 0.1 | AW94: 0.1 | AX94: 0.1 | AY94: 0.05 | AZ94: 0.05 | BA94: 1 | BB94: 0.1 | BC94: 0.05 | CJ94: =Measurements!A94 -> 2015-11-28 | CK94: 14100 | CL94: 11406900 | CM94: 738150 | CN94: 2030400 | CO94: 94430 | CP94: 365190 | CQ94: 47940 | CR94: 7.3 | CS94: 3694200 | CT94: 0 | CU94: 0 | CV94: 5521500 | CW94: 749250 | CX94: 1377000 | CY94: 71550 | CZ94: 351000 | DA94: 41850 | DB94: 1377000 | DC94: 0 | DD94: 61152 | DE94: 906108.125 | DF94: 398715.625 | DG94: 0 | DH94: 0 | DI94: 380700 | DJ94: 300800 | DK94: 2020-03-06T16:24:09.045
A95: =Measurements!A95 -> 2015-11-29 | B95: 20179 | C95: =IF(NOT(ISBLANK(Measurements!B95)),CL95/$CK95,"") -> 1023 | D95: 49.54026846 | E95: 266 | F95: 6.337583893 | G95: 27.7 | H95: 3.8 | I95: 7.1 | J95: 273 | K95: 0 | L95: 0 | M95: 370.5704698 | N95: 50.2852349 | O95: 92.41610738 | P95: 4.802013423 | Q95: 23.55704698 | R95: 2.808724832 | S95: 92.41610738 | T95: 0 | U95: 4.104161074 | V95: 60.81262584 | W95: 26.75943792 | X95: 0 | Y95: 0 | Z95: 103 | AA95: 20.18791946 | AB95: 2.946086137 | AC95: 1 | AD95: 1 | AE95: 0.1 | AF95: 1 | AG95: 0.1 | AH95: 1 | AI95: 1 | AJ95: 1 | AK95: 1 | AL95: 0.1 | AM95: 0.1 | AN95: 0.1 | AO95: 0.1 | AP95: 0.1 | AQ95: 0.1 | AR95: 0.1 | AS95: 0.1 | AT95: 0.05 | AU95: 0.1 | AV95: 0.1 | AW95: 0.1 | AX95: 0.1 | AY95: 0.05 | AZ95: 0.05 | BA95: 1 | BB95: 0.1 | BC95: 0.05 | CJ95: =Measurements!A95 -> 2015-11-29 | CK95: 14900 | CL95: 15242700 | CM95: 738150 | CN95: 3963400 | CO95: 94430 | CP95: 412730 | CQ95: 56620 | CR95: 7.1 | CS95: 4067700 | CT95: 0 | CU95: 0 | CV95: 5521500 | CW95: 749250 | CX95: 1377000 | CY95: 71550 | CZ95: 351000 | DA95: 41850 | DB95: 1377000 | DC95: 0 | DD95: 61152 | DE95: 906108.125 | DF95: 398715.625 | DG95: 0 | DH95: 0 | DI95: 1534700 | DJ95: 300800 | DK95: 2020-03-06T16:24:09.045
A96: =Measurements!A96 -> 2015-11-30 | B96: 20180 | C96: =IF(NOT(ISBLANK(Measurements!B96)),CL96/$CK96,"") -> 1133 | D96: 44.2005988 | E96: 274 | F96: 5.654491018 | G96: 25.4 | H96: 3.1 | I96: 7.3 | J96: 303 | K96: 0 | L96: 0 | M96: 503 | N96: 59.5 | O96: 97 | P96: 6 | Q96: 28.8 | R96: 3.6 | S96: 97 | T96: 0 | U96: 3.661796407 | V96: 54.25797156 | W96: 23.87518713 | X96: 0 | Y96: 0 | Z96: 19 | AA96: 18.01197605 | AB96: 2.628543918 | AC96: 1 | AD96: 1 | AE96: 0.1 | AF96: 1 | AG96: 0.1 | AH96: 1 | AI96: 1 | AJ96: 1 | AK96: 1 | AL96: 0.1 | AM96: 0.1 | AN96: 1 | AO96: 1 | AP96: 1 | AQ96: 1 | AR96: 1 | AS96: 1 | AT96: 0.5 | AU96: 0.1 | AV96: 0.1 | AW96: 0.1 | AX96: 0.1 | AY96: 0.05 | AZ96: 0.05 | BA96: 1 | BB96: 0.1 | BC96: 0.05 | CJ96: =Measurements!A96 -> 2015-11-30 | CK96: 16700 | CL96: 18921100 | CM96: 738150 | CN96: 4575800 | CO96: 94430 | CP96: 424180 | CQ96: 51770 | CR96: 7.3 | CS96: 5060100 | CT96: 0 | CU96: 0 | CV96: 8400100 | CW96: 993650 | CX96: 1619900 | CY96: 100200 | CZ96: 480960 | DA96: 60120 | DB96: 1619900 | DC96: 0 | DD96: 61152 | DE96: 906108.125 | DF96: 398715.625 | DG96: 0 | DH96: 0 | DI96: 317300 | DJ96: 300800 | DK96: 2020-03-06T16:24:09.045
A97: =Measurements!A97 -> 2015-12-01 | B97: 20181 | C97: =IF(NOT(ISBLANK(Measurements!B97)),CL97/$CK97,"") -> 1038 | D97: 44.2005988 | E97: 332 | F97: 5.654491018 | G97: 25.5 | H97: 3.1 | I97: 7.5 | J97: 277 | K97: 0 | L97: 0 | M97: 503 | N97: 59.5 | O97: 97 | P97: 6 | Q97: 28.8 | R97: 3.6 | S97: 97 | T97: 0 | U97: 3.661796407 | V97: 54.25797156 | W97: 23.87518713 | X97: 0 | Y97: 0 | Z97: 29 | AA97: 18.01197605 | AB97: 2.628543918 | AC97: 1 | AD97: 1 | AE97: 0.1 | AF97: 1 | AG97: 0.1 | AH97: 1 | AI97: 1 | AJ97: 1 | AK97: 1 | AL97: 0.1 | AM97: 0.1 | AN97: 0.1 | AO97: 0.1 | AP97: 0.1 | AQ97: 0.1 | AR97: 0.1 | AS97: 0.1 | AT97: 0.05 | AU97: 0.1 | AV97: 0.1 | AW97: 0.1 | AX97: 0.1 | AY97: 0.05 | AZ97: 0.05 | BA97: 1 | BB97: 0.1 | BC97: 0.05 | CJ97: =Measurements!A97 -> 2015-12-01 | CK97: 16700 | CL97: 17334600 | CM97: 738150 | CN97: 5544400 | CO97: 94430 | CP97: 425850 | CQ97: 51770 | CR97: 7.5 | CS97: 4625900 | CT97: 0 | CU97: 0 | CV97: 8400100 | CW97: 993650 | CX97: 1619900 | CY97: 100200 | CZ97: 480960 | DA97: 60120 | DB97: 1619900 | DC97: 0 | DD97: 61152 | DE97: 906108.125 | DF97: 398715.625 | DG97: 0 | DH97: 0 | DI97: 484300 | DJ97: 300800 | DK97: 2020-03-06T16:24:09.045
A98: =Measurements!A98 -> 2015-12-02 | B98: 20182 | C98: =IF(NOT(ISBLANK(Measurements!B98)),CL98/$CK98,"") -> 858 | D98: 66.5 | E98: 245 | F98: 7.5 | G98: 25.8 | H98: 2.9 | I98: 7.3 | J98: 265 | K98: 0 | L98: 0 | M98: 398.1090047 | N98: 47.09241706 | O98: 76.77251185 | P98: 4.748815166 | Q98: 22.7943128 | R98: 2.8492891 | S98: 76.77251185 | T98: 0 | U98: 2.898199052 | V98: 42.94351303 | W98: 18.89647512 | X98: 0 | Y98: 0 | Z98: 32 | AA98: 14.25592417 | AB98: 2.080411537 | AC98: 1 | AD98: 1 | AE98: 1 | AF98: 1 | AG98: 1 | AH98: 1 | AI98: 1 | AJ98: 1 | AK98: 1 | AL98: 0.1 | AM98: 0.1 | AN98: 0.1 | AO98: 0.1 | AP98: 0.1 | AQ98: 0.1 | AR98: 0.1 | AS98: 0.1 | AT98: 0.05 | AU98: 0.1 | AV98: 0.1 | AW98: 0.1 | AX98: 0.1 | AY98: 0.05 | AZ98: 0.05 | BA98: 1 | BB98: 0.1 | BC98: 0.05 | CJ98: =Measurements!A98 -> 2015-12-02 | CK98: 21100 | CL98: 18103800 | CM98: 1403150 | CN98: 5169500 | CO98: 158250 | CP98: 544380 | CQ98: 61190 | CR98: 7.3 | CS98: 5591500 | CT98: 0 | CU98: 0 | CV98: 8400100 | CW98: 993650 | CX98: 1619900 | CY98: 100200 | CZ98: 480960 | DA98: 60120 | DB98: 1619900 | DC98: 0 | DD98: 61152 | DE98: 906108.125 | DF98: 398715.625 | DG98: 0 | DH98: 0 | DI98: 675200 | DJ98: 300800 | DK98: 2020-03-06T16:24:09.045
A99: =Measurements!A99 -> 2015-12-03 | B99: 20183 | C99: =IF(NOT(ISBLANK(Measurements!B99)),CL99/$CK99,"") -> 1090 | D99: 76.67486339 | E99: 357 | F99: 8.647540984 | G99: 20.4 | H99: 2.5 | I99: 6.7 | J99: 254 | K99: 0 | L99: 0 | M99: 459.0218579 | N99: 54.29781421 | O99: 88.51912568 | P99: 5.475409836 | Q99: 26.28196721 | R99: 3.285245902 | S99: 88.51912568 | T99: 0 | U99: 3.341639344 | V99: 49.51410519 | W99: 21.78773907 | X99: 0 | Y99: 0 | Z99: 43 | AA99: 16.43715847 | AB99: 2.398725871 | AC99: 1 | AD99: 1 | AE99: 0.1 | AF99: 1 | AG99: 0.1 | AH99: 1 | AI99: 1 | AJ99: 1 | AK99: 1 | AL99: 0.1 | AM99: 0.1 | AN99: 0.1 | AO99: 0.1 | AP99: 0.1 | AQ99: 0.1 | AR99: 0.1 | AS99: 0.1 | AT99: 0.05 | AU99: 0.1 | AV99: 0.1 | AW99: 0.1 | AX99: 0.1 | AY99: 0.05 | AZ99: 0.05 | BA99: 1 | BB99: 0.1 | BC99: 0.05 | CJ99: =Measurements!A99 -> 2015-12-03 | CK99: 18300 | CL99: 19947000 | CM99: 1403150 | CN99: 6533100 | CO99: 158250 | CP99: 373320 | CQ99: 45750 | CR99: 6.7 | CS99: 4648200 | CT99: 0 | CU99: 0 | CV99: 8400100 | CW99: 993650 | CX99: 1619900 | CY99: 100200 | CZ99: 480960 | DA99: 60120 | DB99: 1619900 | DC99: 0 | DD99: 61152 | DE99: 906108.125 | DF99: 398715.625 | DG99: 0 | DH99: 0 | DI99: 786900 | DJ99: 300800 | DK99: 2020-03-06T16:24:09.045
A100: =Measurements!A100 -> 2015-12-04 | B100: 20184 | C100: =IF(NOT(ISBLANK(Measurements!B100)),CL100/$CK100,"") -> 554 | D100: 86.08282209 | E100: 115 | F100: 9.708588957 | G100: 24.8 | H100: 2.6 | I100: 7.4 | J100: 243 | K100: 0 | L100: 0 | M100: 515.3435583 | N100: 60.9601227 | O100: 99.3803681 | P100: 6.147239264 | Q100: 29.50674847 | R100: 3.688343558 | S100: 99.3803681 | T100: 0 | U100: 3.751656442 | V100: 55.58945552 | W100: 24.46108129 | X100: 0 | Y100: 0 | Z100: 34 | AA100: 18.45398773 | AB100: 2.693048064 | AC100: 1 | AD100: 1 | AE100: 0.1 | AF100: 1 | AG100: 0.1 | AH100: 1 | AI100: 1 | AJ100: 1 | AK100: 1 | AL100: 0.1 | AM100: 0.1 | AN100: 0.1 | AO100: 0.1 | AP100: 0.1 | AQ100: 0.1 | AR100: 0.1 | AS100: 0.1 | AT100: 0.05 | AU100: 0.1 | AV100: 0.1 | AW100: 0.1 | AX100: 0.1 | AY100: 0.05 | AZ100: 0.05 | BA100: 1 | BB100: 0.1 | BC100: 0.05 | CJ100: =Measurements!A100 -> 2015-12-04 | CK100: 16300 | CL100: 9030200 | CM100: 1403150 | CN100: 1874500 | CO100: 158250 | CP100: 404240 | CQ100: 42380 | CR100: 7.4 | CS100: 3960900 | CT100: 0 | CU100: 0 | CV100: 8400100 | CW100: 993650 | CX100: 1619900 | CY100: 100200 | CZ100: 480960 | DA100: 60120 | DB100: 1619900 | DC100: 0 | DD100: 61152 | DE100: 906108.125 | DF100: 398715.625 | DG100: 0 | DH100: 0 | DI100: 554200 | DJ100: 300800 | DK100: 2020-03-06T16:24:09.045
A101: =Measurements!A101 -> 2015-12-05 | B101: 20185 | C101: =IF(NOT(ISBLANK(Measurements!B101)),CL101/$CK101,"") -> 644 | D101: 85.03939394 | E101: 220 | F101: 9.590909091 | G101: 26.2 | H101: 3.1 | I101: 7.1 | J101: 274 | K101: 0 | L101: 0 | M101: 509.0969697 | N101: 60.22121212 | O101: 98.17575758 | P101: 6.072727273 | Q101: 29.14909091 | R101: 3.643636364 | S101: 98.17575758 | T101: 0 | U101: 3.706181818 | V101: 54.91564394 | W101: 24.16458333 | X101: 0 | Y101: 0 | Z101: 40 | AA101: 18.23030303 | AB101: 2.660405057 | AC101: 1 | AD101: 1 | AE101: 0.1 | AF101: 1 | AG101: 0.1 | AH101: 1 | AI101: 1 | AJ101: 1 | AK101: 1 | AL101: 0.1 | AM101: 0.1 | AN101: 0.1 | AO101: 0.1 | AP101: 0.1 | AQ101: 0.1 | AR101: 0.1 | AS101: 0.1 | AT101: 0.05 | AU101: 0.1 | AV101: 0.1 | AW101: 0.1 | AX101: 0.1 | AY101: 0.05 | AZ101: 0.05 | BA101: 1 | BB101: 0.1 | BC101: 0.05 | CJ101: =Measurements!A101 -> 2015-12-05 | CK101: 16500 | CL101: 10626000 | CM101: 1403150 | CN101: 3630000 | CO101: 158250 | CP101: 432300 | CQ101: 51150 | CR101: 7.1 | CS101: 4521000 | CT101: 0 | CU101: 0 | CV101: 8400100 | CW101: 993650 | CX101: 1619900 | CY101: 100200 | CZ101: 480960 | DA101: 60120 | DB101: 1619900 | DC101: 0 | DD101: 61152 | DE101: 906108.125 | DF101: 398715.625 | DG101: 0 | DH101: 0 | DI101: 660000 | DJ101: 300800 | DK101: 2020-03-06T16:24:09.045
A102: =Measurements!A102 -> 2015-12-06 | B102: 20186 | C102: =IF(NOT(ISBLANK(Measurements!B102)),CL102/$CK102,"") -> 616 | D102: 85.55792683 | E102: 271 | F102: 9.649390244 | G102: 24.5 | H102: 5.5 | I102: 7.3 | J102: 280 | K102: 0 | L102: 0 | M102: 512.2012195 | N102: 60.58841463 | O102: 98.77439024 | P102: 6.109756098 | Q102: 29.32682927 | R102: 3.665853659 | S102: 98.77439024 | T102: 0 | U102: 3.728780488 | V102: 55.25049543 | W102: 24.31192835 | X102: 0 | Y102: 0 | Z102: 18 | AA102: 18.34146341 | AB102: 2.676627039 | AC102: 1 | AD102: 1 | AE102: 0.1 | AF102: 1 | AG102: 0.1 | AH102: 1 | AI102: 1 | AJ102: 1 | AK102: 1 | AL102: 0.1 | AM102: 0.1 | AN102: 0.1 | AO102: 0.1 | AP102: 0.1 | AQ102: 0.1 | AR102: 0.1 | AS102: 0.1 | AT102: 0.05 | AU102: 0.1 | AV102: 0.1 | AW102: 0.1 | AX102: 0.1 | AY102: 0.05 | AZ102: 0.05 | BA102: 1 | BB102: 0.1 | BC102: 0.05 | CJ102: =Measurements!A102 -> 2015-12-06 | CK102: 16400 | CL102: 10102400 | CM102: 1403150 | CN102: 4444400 | CO102: 158250 | CP102: 401800 | CQ102: 90200 | CR102: 7.3 | CS102: 4592000 | CT102: 0 | CU102: 0 | CV102: 8400100 | CW102: 993650 | CX102: 1619900 | CY102: 100200 | CZ102: 480960 | DA102: 60120 | DB102: 1619900 | DC102: 0 | DD102: 61152 | DE102: 906108.125 | DF102: 398715.625 | DG102: 0 | DH102: 0 | DI102: 295200 | DJ102: 300800 | DK102: 2020-03-06T16:24:09.045
A103: =Measurements!A103 -> 2015-12-07 | B103: 20187 | C103: =IF(NOT(ISBLANK(Measurements!B103)),CL103/$CK103,"") -> 949 | D103: 56.57862903 | E103: 366 | F103: 6.381048387 | G103: 41.1 | H103: 5.2 | I103: 7.4 | J103: 300 | K103: 0 | L103: 0 | M103: 732 | N103: 48.1 | O103: 199 | P103: 8.3 | Q103: 30.3 | R103: 4.6 | S103: 199 | T103: 0 | U103: 2.465806452 | V103: 36.53661794 | W103: 16.07724294 | X103: 0 | Y103: 0 | Z103: 32 | AA103: 12.12903226 | AB103: 1.770027558 | AC103: 1 | AD103: 1 | AE103: 0.1 | AF103: 1 | AG103: 0.1 | AH103: 1 | AI103: 1 | AJ103: 1 | AK103: 1 | AL103: 0.1 | AM103: 0.1 | AN103: 1 | AO103: 1 | AP103: 1 | AQ103: 1 | AR103: 1 | AS103: 1 | AT103: 0.5 | AU103: 0.1 | AV103: 0.1 | AW103: 0.1 | AX103: 0.1 | AY103: 0.05 | AZ103: 0.05 | BA103: 1 | BB103: 0.1 | BC103: 0.05 | CJ103: =Measurements!A103 -> 2015-12-07 | CK103: 24800 | CL103: 23535200 | CM103: 1403150 | CN103: 9076800 | CO103: 158250 | CP103: 1019280 | CQ103: 128960 | CR103: 7.4 | CS103: 7440000 | CT103: 0 | CU103: 0 | CV103: 18153600 | CW103: 1192880 | CX103: 4935200 | CY103: 205840 | CZ103: 751440 | DA103: 114080 | DB103: 4935200 | DC103: 0 | DD103: 61152 | DE103: 906108.125 | DF103: 398715.625 | DG103: 0 | DH103: 0 | DI103: 793600 | DJ103: 300800 | DK103: 2020-03-06T16:24:09.045
A104: =Measurements!A104 -> 2015-12-08 | B104: 20188 | C104: =IF(NOT(ISBLANK(Measurements!B104)),CL104/$CK104,"") -> 680 | D104: 68.44634146 | E104: 270 | F104: 7.719512195 | G104: 28.9 | H104: 3.6 | I104: 7.4 | J104: 262 | K104: 0 | L104: 0 | M104: 885.5414634 | N104: 58.18926829 | O104: 240.7414634 | P104: 10.04097561 | Q104: 36.65560976 | R104: 5.564878049 | S104: 240.7414634 | T104: 0 | U104: 2.98302439 | V104: 44.20039634 | W104: 19.44954268 | X104: 0 | Y104: 0 | Z104: 21 | AA104: 14.67317073 | AB104: 2.141301631 | AC104: 1 | AD104: 1 | AE104: 0.1 | AF104: 1 | AG104: 0.1 | AH104: 1 | AI104: 1 | AJ104: 1 | AK104: 1 | AL104: 0.1 | AM104: 0.1 | AN104: 0.1 | AO104: 0.1 | AP104: 0.1 | AQ104: 0.1 | AR104: 0.1 | AS104: 0.1 | AT104: 0.05 | AU104: 0.1 | AV104: 0.1 | AW104: 0.1 | AX104: 0.1 | AY104: 0.05 | AZ104: 0.05 | BA104: 1 | BB104: 0.1 | BC104: 0.05 | CJ104: =Measurements!A104 -> 2015-12-08 | CK104: 20500 | CL104: 13940000 | CM104: 1403150 | CN104: 5535000 | CO104: 158250 | CP104: 592450 | CQ104: 73800 | CR104: 7.4 | CS104: 5371000 | CT104: 0 | CU104: 0 | CV104: 18153600 | CW104: 1192880 | CX104: 4935200 | CY104: 205840 | CZ104: 751440 | DA104: 114080 | DB104: 4935200 | DC104: 0 | DD104: 61152 | DE104: 906108.125 | DF104: 398715.625 | DG104: 0 | DH104: 0 | DI104: 430500 | DJ104: 300800 | DK104: 2020-03-06T16:24:09.045
A105: =Measurements!A105 -> 2015-12-09 | B105: 20189 | C105: =IF(NOT(ISBLANK(Measurements!B105)),CL105/$CK105,"") -> 762 | D105: 70.5 | E105: 197 | F105: 9.2 | G105: 32.9 | H105: 3.7 | I105: 6.6 | J105: 267 | K105: 0 | L105: 0 | M105: 828.9315068 | N105: 54.46940639 | O105: 225.3515982 | P105: 9.399086758 | Q105: 34.31232877 | R105: 5.20913242 | S105: 225.3515982 | T105: 0 | U105: 2.792328767 | V105: 41.37480023 | W105: 18.20619292 | X105: 0 | Y105: 0 | Z105: 28 | AA105: 11 | AB105: 11.73026435 | AC105: 1 | AD105: 1 | AE105: 1 | AF105: 1 | AG105: 1 | AH105: 1 | AI105: 1 | AJ105: 1 | AK105: 1 | AL105: 0.1 | AM105: 0.1 | AN105: 0.1 | AO105: 0.1 | AP105: 0.1 | AQ105: 0.1 | AR105: 0.1 | AS105: 0.1 | AT105: 0.05 | AU105: 0.1 | AV105: 0.1 | AW105: 0.1 | AX105: 0.1 | AY105: 0.05 | AZ105: 0.05 | BA105: 1 | BB105: 1 | BC105: 0.5 | CJ105: =Measurements!A105 -> 2015-12-09 | CK105: 21900 | CL105: 16687800 | CM105: 1543950 | CN105: 4314300 | CO105: 201480 | CP105: 720510 | CQ105: 81030 | CR105: 6.6 | CS105: 5847300 | CT105: 0 | CU105: 0 | CV105: 18153600 | CW105: 1192880 | CX105: 4935200 | CY105: 205840 | CZ105: 751440 | DA105: 114080 | DB105: 4935200 | DC105: 0 | DD105: 61152 | DE105: 906108.125 | DF105: 398715.625 | DG105: 0 | DH105: 0 | DI105: 613200 | DJ105: 240900 | DK105: 2603-05-06T18:56:41
A106: =Measurements!A106 -> 2015-12-10 | B106: 20190 | C106: =IF(NOT(ISBLANK(Measurements!B106)),CL106/$CK106,"") -> 581 | D106: 87.72443182 | E106: 150 | F106: 11.44772727 | G106: 30.7 | H106: 3.6 | I106: 6.7 | J106: 261 | K106: 0 | L106: 0 | M106: 1031.454545 | N106: 67.77727273 | O106: 280.4090909 | P106: 11.69545455 | Q106: 42.69545455 | R106: 6.481818182 | S106: 280.4090909 | T106: 0 | U106: 3.474545455 | V106: 51.48341619 | W106: 22.65429688 | X106: 0 | Y106: 0 | Z106: 44 | AA106: 13.6875 | AB106: 14.59618121 | AC106: 1 | AD106: 1 | AE106: 0.1 | AF106: 1 | AG106: 0.1 | AH106: 1 | AI106: 1 | AJ106: 1 | AK106: 1 | AL106: 0.1 | AM106: 0.1 | AN106: 0.1 | AO106: 0.1 | AP106: 0.1 | AQ106: 0.1 | AR106: 0.1 | AS106: 0.1 | AT106: 0.05 | AU106: 0.1 | AV106: 0.1 | AW106: 0.1 | AX106: 0.1 | AY106: 0.05 | AZ106: 0.05 | BA106: 1 | BB106: 0.1 | BC106: 0.05 | CJ106: =Measurements!A106 -> 2015-12-10 | CK106: 17600 | CL106: 10225600 | CM106: 1543950 | CN106: 2640000 | CO106: 201480 | CP106: 540320 | CQ106: 63360 | CR106: 6.7 | CS106: 4593600 | CT106: 0 | CU106: 0 | CV106: 18153600 | CW106: 1192880 | CX106: 4935200 | CY106: 205840 | CZ106: 751440 | DA106: 114080 | DB106: 4935200 | DC106: 0 | DD106: 61152 | DE106: 906108.125 | DF106: 398715.625 | DG106: 0 | DH106: 0 | DI106: 774400 | DJ106: 240900 | DK106: 2603-05-06T18:56:40.914
A107: =Measurements!A107 -> 2015-12-11 | B107: 20191 | C107: =IF(NOT(ISBLANK(Measurements!B107)),CL107/$CK107,"") -> 687 | D107: 89.76453488 | E107: 167 | F107: 11.71395349 | G107: 29.9 | H107: 4 | I107: 6.9 | J107: 258 | K107: 0 | L107: 0 | M107: 1055.44186 | N107: 69.35348837 | O107: 286.9302326 | P107: 11.96744186 | Q107: 43.68837209 | R107: 6.63255814 | S107: 286.9302326 | T107: 0 | U107: 3.555348837 | V107: 52.68070494 | W107: 23.18114099 | X107: 0 | Y107: 0 | Z107: 34 | AA107: 14.00581395 | AB107: 14.93562729 | AC107: 1 | AD107: 1 | AE107: 0.1 | AF107: 1 | AG107: 0.1 | AH107: 1 | AI107: 1 | AJ107: 1 | AK107: 1 | AL107: 0.1 | AM107: 0.1 | AN107: 0.1 | AO107: 0.1 | AP107: 0.1 | AQ107: 0.1 | AR107: 0.1 | AS107: 0.1 | AT107: 0.05 | AU107: 0.1 | AV107: 0.1 | AW107: 0.1 | AX107: 0.1 | AY107: 0.05 | AZ107: 0.05 | BA107: 1 | BB107: 0.1 | BC107: 0.05 | CJ107: =Measurements!A107 -> 2015-12-11 | CK107: 17200 | CL107: 11816400 | CM107: 1543950 | CN107: 2872400 | CO107: 201480 | CP107: 514280 | CQ107: 68800 | CR107: 6.9 | CS107: 4437600 | CT107: 0 | CU107: 0 | CV107: 18153600 | CW107: 1192880 | CX107: 4935200 | CY107: 205840 | CZ107: 751440 | DA107: 114080 | DB107: 4935200 | DC107: 0 | DD107: 61152 | DE107: 906108.125 | DF107: 398715.625 | DG107: 0 | DH107: 0 | DI107: 584800 | DJ107: 240900 | DK107: 2603-05-06T18:56:40.914
A108: =Measurements!A108 -> 2015-12-12 | B108: 20192 | C108: =IF(NOT(ISBLANK(Measurements!B108)),CL108/$CK108,"") -> 728 | D108: 97.10377358 | E108: 240 | F108: 12.67169811 | G108: 25.8 | H108: 4.6 | I108: 6.5 | J108: 256 | K108: 0 | L108: 0 | M108: 1141.735849 | N108: 75.02389937 | O108: 310.3899371 | P108: 12.94591195 | Q108: 47.26037736 | R108: 7.174842767 | S108: 310.3899371 | T108: 0 | U108: 3.846037736 | V108: 56.98793239 | W108: 25.0764544 | X108: 0 | Y108: 0 | Z108: 33 | AA108: 15.1509434 | AB108: 16.15677921 | AC108: 1 | AD108: 1 | AE108: 0.1 | AF108: 1 | AG108: 0.1 | AH108: 1 | AI108: 1 | AJ108: 1 | AK108: 1 | AL108: 0.1 | AM108: 0.1 | AN108: 0.1 | AO108: 0.1 | AP108: 0.1 | AQ108: 0.1 | AR108: 0.1 | AS108: 0.1 | AT108: 0.05 | AU108: 0.1 | AV108: 0.1 | AW108: 0.1 | AX108: 0.1 | AY108: 0.05 | AZ108: 0.05 | BA108: 1 | BB108: 0.1 | BC108: 0.05 | CJ108: =Measurements!A108 -> 2015-12-12 | CK108: 15900 | CL108: 11575200 | CM108: 1543950 | CN108: 3816000 | CO108: 201480 | CP108: 410220 | CQ108: 73140 | CR108: 6.5 | CS108: 4070400 | CT108: 0 | CU108: 0 | CV108: 18153600 | CW108: 1192880 | CX108: 4935200 | CY108: 205840 | CZ108: 751440 | DA108: 114080 | DB108: 4935200 | DC108: 0 | DD108: 61152 | DE108: 906108.125 | DF108: 398715.625 | DG108: 0 | DH108: 0 | DI108: 524700 | DJ108: 240900 | DK108: 2603-05-06T18:56:40.914
A109: =Measurements!A109 -> 2015-12-13 | B109: 20193 | C109: =IF(NOT(ISBLANK(Measurements!B109)),CL109/$CK109,"") -> 1092 | D109: 110.2821429 | E109: 188 | F109: 14.39142857 | G109: 30.3 | H109: 5.4 | I109: 7.3 | J109: 241 | K109: 0 | L109: 0 | M109: 1296.685714 | N109: 85.20571429 | O109: 352.5142857 | P109: 14.70285714 | Q109: 53.67428571 | R109: 8.148571429 | S109: 352.5142857 | T109: 0 | U109: 4.368 | V109: 64.72200893 | W109: 28.4796875 | X109: 0 | Y109: 0 | Z109: 27 | AA109: 16 | AB109: 3.33492997 | AC109: 1 | AD109: 1 | AE109: 0.1 | AF109: 1 | AG109: 0.1 | AH109: 1 | AI109: 1 | AJ109: 1 | AK109: 1 | AL109: 0.1 | AM109: 0.1 | AN109: 0.1 | AO109: 0.1 | AP109: 0.1 | AQ109: 0.1 | AR109: 0.1 | AS109: 0.1 | AT109: 0.05 | AU109: 0.1 | AV109: 0.1 | AW109: 0.1 | AX109: 0.1 | AY109: 0.05 | AZ109: 0.05 | BA109: 1 | BB109: 1 | BC109: 0.5 | CJ109: =Measurements!A109 -> 2015-12-13 | CK109: 14000 | CL109: 15288000 | CM109: 1543950 | CN109: 2632000 | CO109: 201480 | CP109: 424200 | CQ109: 75600 | CR109: 7.3 | CS109: 3374000 | CT109: 0 | CU109: 0 | CV109: 18153600 | CW109: 1192880 | CX109: 4935200 | CY109: 205840 | CZ109: 751440 | DA109: 114080 | DB109: 4935200 | DC109: 0 | DD109: 61152 | DE109: 906108.125 | DF109: 398715.625 | DG109: 0 | DH109: 0 | DI109: 378000 | DJ109: 224000 | DK109: 2027-10-29T00:28:12
A110: =Measurements!A110 -> 2015-12-14 | B110: 20194 | C110: =IF(NOT(ISBLANK(Measurements!B110)),CL110/$CK110,"") -> 671 | D110: 53.609375 | E110: 151 | F110: 6.995833333 | G110: 29.5 | H110: 3.9 | I110: 7.4 | J110: 259 | K110: 0 | L110: 0 | M110: 498 | N110: 59 | O110: 45 | P110: 6.3 | Q110: 29.2 | R110: 4.5 | S110: 45 | T110: 0 | U110: 2.123333333 | V110: 31.46208767 | W110: 13.84429253 | X110: 0 | Y110: 0 | Z110: 28 | AA110: 7.777777778 | AB110: 1.621146513 | AC110: 1 | AD110: 1 | AE110: 0.1 | AF110: 1 | AG110: 0.1 | AH110: 1 | AI110: 1 | AJ110: 1 | AK110: 1 | AL110: 0.1 | AM110: 0.1 | AN110: 1 | AO110: 1 | AP110: 1 | AQ110: 1 | AR110: 1 | AS110: 1 | AT110: 0.5 | AU110: 0.1 | AV110: 0.1 | AW110: 0.1 | AX110: 0.1 | AY110: 0.05 | AZ110: 0.05 | BA110: 1 | BB110: 0.1 | BC110: 0.05 | CJ110: =Measurements!A110 -> 2015-12-14 | CK110: 28800 | CL110: 19324800 | CM110: 1543950 | CN110: 4348800 | CO110: 201480 | CP110: 849600 | CQ110: 112320 | CR110: 7.4 | CS110: 7459200 | CT110: 0 | CU110: 0 | CV110: 14342400 | CW110: 1699200 | CX110: 1296000 | CY110: 181440 | CZ110: 840960 | DA110: 129600 | DB110: 1296000 | DC110: 0 | DD110: 61152 | DE110: 906108.125 | DF110: 398715.625 | DG110: 0 | DH110: 0 | DI110: 806400 | DJ110: 224000 | DK110: 2027-10-29T00:28:11.842
A111: =Measurements!A111 -> 2015-12-15 | B111: 20195 | C111: =IF(NOT(ISBLANK(Measurements!B111)),CL111/$CK111,"") -> 785 | D111: 105.75 | E111: 294 | F111: 13.8 | G111: 26.9 | H111: 3.4 | I111: 6.7 | J111: 268 | K111: 0 | L111: 0 | M111: 982.3561644 | N111: 116.3835616 | O111: 88.76712329 | P111: 12.42739726 | Q111: 57.6 | R111: 8.876712329 | S111: 88.76712329 | T111: 0 | U111: 4.188493151 | V111: 62.06220034 | W111: 27.30928938 | X111: 0 | Y111: 0 | Z111: 26 | AA111: 15.34246575 | AB111: 3.197878054 | AC111: 1 | AD111: 1 | AE111: 0.1 | AF111: 1 | AG111: 0.1 | AH111: 1 | AI111: 1 | AJ111: 1 | AK111: 1 | AL111: 0.1 | AM111: 0.1 | AN111: 0.1 | AO111: 0.1 | AP111: 0.1 | AQ111: 0.1 | AR111: 0.1 | AS111: 0.1 | AT111: 0.05 | AU111: 0.1 | AV111: 0.1 | AW111: 0.1 | AX111: 0.1 | AY111: 0.05 | AZ111: 0.05 | BA111: 1 | BB111: 0.1 | BC111: 0.05 | CJ111: =Measurements!A111 -> 2015-12-15 | CK111: 14600 | CL111: 11461000 | CM111: 1543950 | CN111: 4292400 | CO111: 201480 | CP111: 392740 | CQ111: 49640 | CR111: 6.7 | CS111: 3912800 | CT111: 0 | CU111: 0 | CV111: 14342400 | CW111: 1699200 | CX111: 1296000 | CY111: 181440 | CZ111: 840960 | DA111: 129600 | DB111: 1296000 | DC111: 0 | DD111: 61152 | DE111: 906108.125 | DF111: 398715.625 | DG111: 0 | DH111: 0 | DI111: 379600 | DJ111: 224000 | DK111: 2027-10-29T00:28:11.842
A112: =Measurements!A112 -> 2015-12-16 | B112: 20196 | C112: =IF(NOT(ISBLANK(Measurements!B112)),CL112/$CK112,"") -> 593 | D112: 53.5 | E112: 198 | F112: 7.2 | G112: 18.2 | H112: 2.3 | I112: 5.8 | J112: 179 | K112: 0 | L112: 0 | M112: 788.043956 | N112: 93.36263736 | O112: 71.20879121 | P112: 9.969230769 | Q112: 46.20659341 | R112: 7.120879121 | S112: 71.20879121 | T112: 0 | U112: 3.36 | V112: 49.78616071 | W112: 21.90745192 | X112: 0 | Y112: 0 | Z112: 23 | AA112: 12.30769231 | AB112: 2.565330746 | AC112: 1 | AD112: 1 | AE112: 1 | AF112: 1 | AG112: 1 | AH112: 1 | AI112: 1 | AJ112: 1 | AK112: 1 | AL112: 0.1 | AM112: 0.1 | AN112: 0.1 | AO112: 0.1 | AP112: 0.1 | AQ112: 0.1 | AR112: 0.1 | AS112: 0.1 | AT112: 0.05 | AU112: 0.1 | AV112: 0.1 | AW112: 0.1 | AX112: 0.1 | AY112: 0.05 | AZ112: 0.05 | BA112: 1 | BB112: 0.1 | BC112: 0.05 | CJ112: =Measurements!A112 -> 2015-12-16 | CK112: 18200 | CL112: 10792600 | CM112: 973700 | CN112: 3603600 | CO112: 131040 | CP112: 331240 | CQ112: 41860 | CR112: 5.8 | CS112: 3257800 | CT112: 0 | CU112: 0 | CV112: 14342400 | CW112: 1699200 | CX112: 1296000 | CY112: 181440 | CZ112: 840960 | DA112: 129600 | DB112: 1296000 | DC112: 0 | DD112: 61152 | DE112: 906108.125 | DF112: 398715.625 | DG112: 0 | DH112: 0 | DI112: 418600 | DJ112: 224000 | DK112: 2027-10-29T00:28:11.842
A113: =Measurements!A113 -> 2015-12-17 | B113: 20197 | C113: =IF(NOT(ISBLANK(Measurements!B113)),CL113/$CK113,"") -> 611 | D113: 58.65662651 | E113: 212 | F113: 7.893975904 | G113: 29.4 | H113: 3.4 | I113: 7.2 | J113: 262 | K113: 0 | L113: 0 | M113: 864 | N113: 102.3614458 | O113: 78.07228916 | P113: 10.93012048 | Q113: 50.66024096 | R113: 7.807228916 | S113: 78.07228916 | T113: 0 | U113: 3.683855422 | V113: 54.58482681 | W113: 24.01901355 | X113: 0 | Y113: 0 | Z113: 23 | AA113: 13.4939759 | AB113: 2.812591541 | AC113: 1 | AD113: 1 | AE113: 0.1 | AF113: 1 | AG113: 0.1 | AH113: 1 | AI113: 1 | AJ113: 1 | AK113: 1 | AL113: 0.1 | AM113: 0.1 | AN113: 0.1 | AO113: 0.1 | AP113: 0.1 | AQ113: 0.1 | AR113: 0.1 | AS113: 0.1 | AT113: 0.05 | AU113: 0.1 | AV113: 0.1 | AW113: 0.1 | AX113: 0.1 | AY113: 0.05 | AZ113: 0.05 | BA113: 1 | BB113: 0.1 | BC113: 0.05 | CJ113: =Measurements!A113 -> 2015-12-17 | CK113: 16600 | CL113: 10142600 | CM113: 973700 | CN113: 3519200 | CO113: 131040 | CP113: 488040 | CQ113: 56440 | CR113: 7.2 | CS113: 4349200 | CT113: 0 | CU113: 0 | CV113: 14342400 | CW113: 1699200 | CX113: 1296000 | CY113: 181440 | CZ113: 840960 | DA113: 129600 | DB113: 1296000 | DC113: 0 | DD113: 61152 | DE113: 906108.125 | DF113: 398715.625 | DG113: 0 | DH113: 0 | DI113: 381800 | DJ113: 224000 | DK113: 2027-10-29T00:28:11.842
A114: =Measurements!A114 -> 2015-12-18 | B114: 20198 | C114: =IF(NOT(ISBLANK(Measurements!B114)),CL114/$CK114,"") -> 407 | D114: 67.61805556 | E114: 112 | F114: 9.1 | G114: 23.1 | H114: 2.7 | I114: 6.9 | J114: 257 | K114: 0 | L114: 0 | M114: 996 | N114: 118 | O114: 90 | P114: 12.6 | Q114: 58.4 | R114: 9 | S114: 90 | T114: 0 | U114: 4.246666667 | V114: 62.92417535 | W114: 27.68858507 | X114: 0 | Y114: 0 | Z114: 20 | AA114: 15.55555556 | AB114: 3.242293026 | AC114: 1 | AD114: 1 | AE114: 0.1 | AF114: 1 | AG114: 0.1 | AH114: 1 | AI114: 1 | AJ114: 1 | AK114: 1 | AL114: 0.1 | AM114: 0.1 | AN114: 0.1 | AO114: 0.1 | AP114: 0.1 | AQ114: 0.1 | AR114: 0.1 | AS114: 0.1 | AT114: 0.05 | AU114: 0.1 | AV114: 0.1 | AW114: 0.1 | AX114: 0.1 | AY114: 0.05 | AZ114: 0.05 | BA114: 1 | BB114: 0.1 | BC114: 0.05 | CJ114: =Measurements!A114 -> 2015-12-18 | CK114: 14400 | CL114: 5860800 | CM114: 973700 | CN114: 1612800 | CO114: 131040 | CP114: 332640 | CQ114: 38880 | CR114: 6.9 | CS114: 3700800 | CT114: 0 | CU114: 0 | CV114: 14342400 | CW114: 1699200 | CX114: 1296000 | CY114: 181440 | CZ114: 840960 | DA114: 129600 | DB114: 1296000 | DC114: 0 | DD114: 61152 | DE114: 906108.125 | DF114: 398715.625 | DG114: 0 | DH114: 0 | DI114: 288000 | DJ114: 224000 | DK114: 2027-10-29T00:28:11.842
A115: =Measurements!A115 -> 2015-12-19 | B115: 20199 | C115: =IF(NOT(ISBLANK(Measurements!B115)),CL115/$CK115,"") -> 636 | D115: 44.05882353 | E115: 220 | F115: 5.929411765 | G115: 27.5 | H115: 3.3 | I115: 6.6 | J115: 314 | K115: 0 | L115: 0 | M115: 648.9773756 | N115: 76.88687783 | O115: 58.64253394 | P115: 8.209954751 | Q115: 38.05248869 | R115: 5.864253394 | S115: 58.64253394 | T115: 0 | U115: 2.767058824 | V115: 41.00036765 | W115: 18.041431 | X115: 0 | Y115: 0 | Z115: 27 | AA115: 10.13574661 | AB115: 2.11262532 | AC115: 1 | AD115: 1 | AE115: 0.1 | AF115: 1 | AG115: 0.1 | AH115: 1 | AI115: 1 | AJ115: 1 | AK115: 1 | AL115: 0.1 | AM115: 0.1 | AN115: 0.1 | AO115: 0.1 | AP115: 0.1 | AQ115: 0.1 | AR115: 0.1 | AS115: 0.1 | AT115: 0.05 | AU115: 0.1 | AV115: 0.1 | AW115: 0.1 | AX115: 0.1 | AY115: 0.05 | AZ115: 0.05 | BA115: 1 | BB115: 0.1 | BC115: 0.05 | CJ115: =Measurements!A115 -> 2015-12-19 | CK115: 22100 | CL115: 14055600 | CM115: 973700 | CN115: 4862000 | CO115: 131040 | CP115: 607750 | CQ115: 72930 | CR115: 6.6 | CS115: 6939400 | CT115: 0 | CU115: 0 | CV115: 14342400 | CW115: 1699200 | CX115: 1296000 | CY115: 181440 | CZ115: 840960 | DA115: 129600 | DB115: 1296000 | DC115: 0 | DD115: 61152 | DE115: 906108.125 | DF115: 398715.625 | DG115: 0 | DH115: 0 | DI115: 596700 | DJ115: 224000 | DK115: 2027-10-29T00:28:11.842
A116: =Measurements!A116 -> 2015-12-20 | B116: 20200 | C116: =IF(NOT(ISBLANK(Measurements!B116)),CL116/$CK116,"") -> 606 | D116: 65.79054054 | E116: 158 | F116: 8.854054054 | G116: 26.9 | H116: 2.9 | I116: 7 | J116: 268 | K116: 0 | L116: 0 | M116: 969.0810811 | N116: 114.8108108 | O116: 87.56756757 | P116: 12.25945946 | Q116: 56.82162162 | R116: 8.756756757 | S116: 87.56756757 | T116: 0 | U116: 4.131891892 | V116: 61.22352196 | W116: 26.94024493 | X116: 0 | Y116: 0 | Z116: 37 | AA116: 15.13513514 | AB116: 3.154663485 | AC116: 1 | AD116: 1 | AE116: 0.1 | AF116: 1 | AG116: 0.1 | AH116: 1 | AI116: 1 | AJ116: 1 | AK116: 1 | AL116: 0.1 | AM116: 0.1 | AN116: 0.1 | AO116: 0.1 | AP116: 0.1 | AQ116: 0.1 | AR116: 0.1 | AS116: 0.1 | AT116: 0.05 | AU116: 0.1 | AV116: 0.1 | AW116: 0.1 | AX116: 0.1 | AY116: 0.05 | AZ116: 0.05 | BA116: 1 | BB116: 0.1 | BC116: 0.05 | CJ116: =Measurements!A116 -> 2015-12-20 | CK116: 14800 | CL116: 8968800 | CM116: 973700 | CN116: 2338400 | CO116: 131040 | CP116: 398120 | CQ116: 42920 | CR116: 7 | CS116: 3966400 | CT116: 0 | CU116: 0 | CV116: 14342400 | CW116: 1699200 | CX116: 1296000 | CY116: 181440 | CZ116: 840960 | DA116: 129600 | DB116: 1296000 | DC116: 0 | DD116: 61152 | DE116: 906108.125 | DF116: 398715.625 | DG116: 0 | DH116: 0 | DI116: 547600 | DJ116: 224000 | DK116: 2027-10-29T00:28:11.842
A117: =Measurements!A117 -> 2015-12-21 | B117: 20201 | C117: =IF(NOT(ISBLANK(Measurements!B117)),CL117/$CK117,"") -> 541 | D117: 53.79558011 | E117: 65 | F117: 7.239779006 | G117: 29.1 | H117: 3.3 | I117: 7.4 | J117: 294 | K117: 0 | L117: 0 | M117: 395 | N117: 54 | O117: 41 | P117: 5.3 | Q117: 26.7 | R117: 3.1 | S117: 41 | T117: 0 | U117: 3.378563536 | V117: 50.06122238 | W117: 22.02848757 | X117: 0 | Y117: 0 | Z117: 20 | AA117: 12.37569061 | AB117: 2.579503844 | AC117: 1 | AD117: 1 | AE117: 0.1 | AF117: 1 | AG117: 0.1 | AH117: 1 | AI117: 1 | AJ117: 1 | AK117: 1 | AL117: 0.1 | AM117: 0.1 | AN117: 1 | AO117: 1 | AP117: 1 | AQ117: 1 | AR117: 1 | AS117: 1 | AT117: 0.5 | AU117: 0.1 | AV117: 0.1 | AW117: 0.1 | AX117: 0.1 | AY117: 0.05 | AZ117: 0.05 | BA117: 1 | BB117: 0.1 | BC117: 0.05 | CJ117: =Measurements!A117 -> 2015-12-21 | CK117: 18100 | CL117: 9792100 | CM117: 973700 | CN117: 1176500 | CO117: 131040 | CP117: 526710 | CQ117: 59730 | CR117: 7.4 | CS117: 5321400 | CT117: 0 | CU117: 0 | CV117: 7149500 | CW117: 977400 | CX117: 742100 | CY117: 95930 | CZ117: 483270 | DA117: 56110 | DB117: 742100 | DC117: 0 | DD117: 61152 | DE117: 906108.125 | DF117: 398715.625 | DG117: 0 | DH117: 0 | DI117: 362000 | DJ117: 224000 | DK117: 2027-10-29T00:28:11.842
A118: =Measurements!A118 -> 2015-12-22 | B118: 20202 | C118: =IF(NOT(ISBLANK(Measurements!B118)),CL118/$CK118,"") -> 361 | D118: 60.47826087 | E118: 139 | F118: 8.139130435 | G118: 20.3 | H118: 2.3 | I118: 7 | J118: 214 | K118: 0 | L118: 0 | M118: 444.068323 | N118: 60.70807453 | O118: 46.0931677 | P118: 5.958385093 | Q118: 30.01677019 | R118: 3.485093168 | S118: 46.0931677 | T118: 0 | U118: 3.79826087 | V118: 56.28000776 | W118: 24.76494565 | X118: 0 | Y118: 0 | Z118: 16 | AA118: 13.91304348 | AB118: 2.899939104 | AC118: 1 | AD118: 1 | AE118: 0.1 | AF118: 1 | AG118: 0.1 | AH118: 1 | AI118: 1 | AJ118: 1 | AK118: 1 | AL118: 0.1 | AM118: 0.1 | AN118: 0.1 | AO118: 0.1 | AP118: 0.1 | AQ118: 0.1 | AR118: 0.1 | AS118: 0.1 | AT118: 0.05 | AU118: 0.1 | AV118: 0.1 | AW118: 0.1 | AX118: 0.1 | AY118: 0.05 | AZ118: 0.05 | BA118: 1 | BB118: 0.1 | BC118: 0.05 | CJ118: =Measurements!A118 -> 2015-12-22 | CK118: 16100 | CL118: 5812100 | CM118: 973700 | CN118: 2237900 | CO118: 131040 | CP118: 326830 | CQ118: 37030 | CR118: 7 | CS118: 3445400 | CT118: 0 | CU118: 0 | CV118: 7149500 | CW118: 977400 | CX118: 742100 | CY118: 95930 | CZ118: 483270 | DA118: 56110 | DB118: 742100 | DC118: 0 | DD118: 61152 | DE118: 906108.125 | DF118: 398715.625 | DG118: 0 | DH118: 0 | DI118: 257600 | DJ118: 224000 | DK118: 2027-10-29T00:28:11.842
A119: =Measurements!A119 -> 2015-12-23 | B119: 20203 | C119: =IF(NOT(ISBLANK(Measurements!B119)),CL119/$CK119,"") -> 643 | D119: 48.7 | E119: 98 | F119: 6.5 | G119: 23.2 | H119: 2.7 | I119: 7.1 | J119: 242 | K119: 0 | L119: 0 | M119: 473.4768212 | N119: 64.72847682 | O119: 49.14569536 | P119: 6.352980132 | Q119: 32.00463576 | R119: 3.71589404 | S119: 49.14569536 | T119: 0 | U119: 4.049801325 | V119: 60.0071606 | W119: 26.40500828 | X119: 0 | Y119: 0 | Z119: 27 | AA119: 14.83443709 | AB119: 3.091988052 | AC119: 1 | AD119: 1 | AE119: 1 | AF119: 1 | AG119: 1 | AH119: 1 | AI119: 1 | AJ119: 1 | AK119: 1 | AL119: 0.1 | AM119: 0.1 | AN119: 0.1 | AO119: 0.1 | AP119: 0.1 | AQ119: 0.1 | AR119: 0.1 | AS119: 0.1 | AT119: 0.05 | AU119: 0.1 | AV119: 0.1 | AW119: 0.1 | AX119: 0.1 | AY119: 0.05 | AZ119: 0.05 | BA119: 1 | BB119: 0.1 | BC119: 0.05 | CJ119: =Measurements!A119 -> 2015-12-23 | CK119: 15100 | CL119: 9709300 | CM119: 735370 | CN119: 1479800 | CO119: 98150 | CP119: 350320 | CQ119: 40770 | CR119: 7.1 | CS119: 3654200 | CT119: 0 | CU119: 0 | CV119: 7149500 | CW119: 977400 | CX119: 742100 | CY119: 95930 | CZ119: 483270 | DA119: 56110 | DB119: 742100 | DC119: 0 | DD119: 61152 | DE119: 906108.125 | DF119: 398715.625 | DG119: 0 | DH119: 0 | DI119: 407700 | DJ119: 224000 | DK119: 2027-10-29T00:28:11.842
A120: =Measurements!A120 -> 2015-12-24 | B120: 20204 | C120: =IF(NOT(ISBLANK(Measurements!B120)),CL120/$CK120,"") -> 538 | D120: 51.78661972 | E120: 149 | F120: 6.911971831 | G120: 24.7 | H120: 3.2 | I120: 6.9 | J120: 263 | K120: 0 | L120: 0 | M120: 503.4859155 | N120: 68.83098592 | O120: 52.26056338 | P120: 6.755633803 | Q120: 34.03309859 | R120: 3.951408451 | S120: 52.26056338 | T120: 0 | U120: 4.306478873 | V120: 63.81043134 | W120: 28.07856514 | X120: 0 | Y120: 0 | Z120: 10 | AA120: 15.77464789 | AB120: 3.287959125 | AC120: 1 | AD120: 1 | AE120: 0.1 | AF120: 1 | AG120: 0.1 | AH120: 1 | AI120: 1 | AJ120: 1 | AK120: 1 | AL120: 0.1 | AM120: 0.1 | AN120: 0.1 | AO120: 0.1 | AP120: 0.1 | AQ120: 0.1 | AR120: 0.1 | AS120: 0.1 | AT120: 0.05 | AU120: 0.1 | AV120: 0.1 | AW120: 0.1 | AX120: 0.1 | AY120: 0.05 | AZ120: 0.05 | BA120: 1 | BB120: 0.1 | BC120: 0.05 | CJ120: =Measurements!A120 -> 2015-12-24 | CK120: 14200 | CL120: 7639600 | CM120: 735370 | CN120: 2115800 | CO120: 98150 | CP120: 350740 | CQ120: 45440 | CR120: 6.9 | CS120: 3734600 | CT120: 0 | CU120: 0 | CV120: 7149500 | CW120: 977400 | CX120: 742100 | CY120: 95930 | CZ120: 483270 | DA120: 56110 | DB120: 742100 | DC120: 0 | DD120: 61152 | DE120: 906108.125 | DF120: 398715.625 | DG120: 0 | DH120: 0 | DI120: 142000 | DJ120: 224000 | DK120: 2027-10-29T00:28:11.842
A121: =Measurements!A121 -> 2015-12-25 | B121: 20205 | C121: =IF(NOT(ISBLANK(Measurements!B121)),CL121/$CK121,"") -> 389 | D121: 50.36780822 | E121: 224 | F121: 6.72260274 | G121: 20.3 | H121: 2.4 | I121: 7 | J121: 264 | K121: 0 | L121: 0 | M121: 489.6917808 | N121: 66.94520548 | O121: 50.82876712 | P121: 6.570547945 | Q121: 33.10068493 | R121: 3.843150685 | S121: 50.82876712 | T121: 0 | U121: 4.188493151 | V121: 62.06220034 | W121: 27.30928938 | X121: 0 | Y121: 0 | Z121: 28 | AA121: 15.34246575 | AB121: 3.197878054 | AC121: 1 | AD121: 1 | AE121: 0.1 | AF121: 1 | AG121: 0.1 | AH121: 1 | AI121: 1 | AJ121: 1 | AK121: 1 | AL121: 0.1 | AM121: 0.1 | AN121: 0.1 | AO121: 0.1 | AP121: 0.1 | AQ121: 0.1 | AR121: 0.1 | AS121: 0.1 | AT121: 0.05 | AU121: 0.1 | AV121: 0.1 | AW121: 0.1 | AX121: 0.1 | AY121: 0.05 | AZ121: 0.05 | BA121: 1 | BB121: 0.1 | BC121: 0.05 | CJ121: =Measurements!A121 -> 2015-12-25 | CK121: 14600 | CL121: 5679400 | CM121: 735370 | CN121: 3270400 | CO121: 98150 | CP121: 296380 | CQ121: 35040 | CR121: 7 | CS121: 3854400 | CT121: 0 | CU121: 0 | CV121: 7149500 | CW121: 977400 | CX121: 742100 | CY121: 95930 | CZ121: 483270 | DA121: 56110 | DB121: 742100 | DC121: 0 | DD121: 61152 | DE121: 906108.125 | DF121: 398715.625 | DG121: 0 | DH121: 0 | DI121: 408800 | DJ121: 224000 | DK121: 2027-10-29T00:28:11.842
A122: =Measurements!A122 -> 2015-12-26 | B122: 20206 | C122: =IF(NOT(ISBLANK(Measurements!B122)),CL122/$CK122,"") -> 422 | D122: 47.13910256 | E122: 158 | F122: 6.291666667 | G122: 21.4 | H122: 2.7 | I122: 6.9 | J122: 268 | K122: 0 | L122: 0 | M122: 458.3012821 | N122: 62.65384615 | O122: 47.57051282 | P122: 6.149358974 | Q122: 30.97884615 | R122: 3.596794872 | S122: 47.57051282 | T122: 0 | U122: 3.92 | V122: 58.08385417 | W122: 25.55869391 | X122: 0 | Y122: 0 | Z122: 24 | AA122: 14.35897436 | AB122: 2.992885871 | AC122: 1 | AD122: 1 | AE122: 0.1 | AF122: 1 | AG122: 0.1 | AH122: 1 | AI122: 1 | AJ122: 1 | AK122: 1 | AL122: 0.1 | AM122: 0.1 | AN122: 0.1 | AO122: 0.1 | AP122: 0.1 | AQ122: 0.1 | AR122: 0.1 | AS122: 0.1 | AT122: 0.05 | AU122: 0.1 | AV122: 0.1 | AW122: 0.1 | AX122: 0.1 | AY122: 0.05 | AZ122: 0.05 | BA122: 1 | BB122: 0.1 | BC122: 0.05 | CJ122: =Measurements!A122 -> 2015-12-26 | CK122: 15600 | CL122: 6583200 | CM122: 735370 | CN122: 2464800 | CO122: 98150 | CP122: 333840 | CQ122: 42120 | CR122: 6.9 | CS122: 4180800 | CT122: 0 | CU122: 0 | CV122: 7149500 | CW122: 977400 | CX122: 742100 | CY122: 95930 | CZ122: 483270 | DA122: 56110 | DB122: 742100 | DC122: 0 | DD122: 61152 | DE122: 906108.125 | DF122: 398715.625 | DG122: 0 | DH122: 0 | DI122: 374400 | DJ122: 224000 | DK122: 2027-10-29T00:28:11.842
A123: =Measurements!A123 -> 2015-12-27 | B123: 20207 | C123: =IF(NOT(ISBLANK(Measurements!B123)),CL123/$CK123,"") -> 325 | D123: 45.11472393 | E123: 149 | F123: 6.021472393 | G123: 18.9 | H123: 2.4 | I123: 7 | J123: 196 | K123: 0 | L123: 0 | M123: 438.6196319 | N123: 59.96319018 | O123: 45.52760736 | P123: 5.885276074 | Q123: 29.64846626 | R123: 3.442331288 | S123: 45.52760736 | T123: 0 | U123: 3.751656442 | V123: 55.58945552 | W123: 24.46108129 | X123: 0 | Y123: 0 | Z123: 19 | AA123: 13.74233129 | AB123: 2.86435703 | AC123: 1 | AD123: 1 | AE123: 0.1 | AF123: 1 | AG123: 0.1 | AH123: 1 | AI123: 1 | AJ123: 1 | AK123: 1 | AL123: 0.1 | AM123: 0.1 | AN123: 0.1 | AO123: 0.1 | AP123: 0.1 | AQ123: 0.1 | AR123: 0.1 | AS123: 0.1 | AT123: 0.05 | AU123: 0.1 | AV123: 0.1 | AW123: 0.1 | AX123: 0.1 | AY123: 0.05 | AZ123: 0.05 | BA123: 1 | BB123: 0.1 | BC123: 0.05 | CJ123: =Measurements!A123 -> 2015-12-27 | CK123: 16300 | CL123: 5297500 | CM123: 735370 | CN123: 2428700 | CO123: 98150 | CP123: 308070 | CQ123: 39120 | CR123: 7 | CS123: 3194800 | CT123: 0 | CU123: 0 | CV123: 7149500 | CW123: 977400 | CX123: 742100 | CY123: 95930 | CZ123: 483270 | DA123: 56110 | DB123: 742100 | DC123: 0 | DD123: 61152 | DE123: 906108.125 | DF123: 398715.625 | DG123: 0 | DH123: 0 | DI123: 309700 | DJ123: 224000 | DK123: 2027-10-29T00:28:11.842
A124: =Measurements!A124 -> 2015-12-28 | B124: 20208 | C124: =IF(NOT(ISBLANK(Measurements!B124)),CL124/$CK124,"") -> 255 | D124: 49.02466667 | E124: 126 | F124: 6.543333333 | G124: 18.7 | H124: 2 | I124: 7.2 | J124: 213 | K124: 0 | L124: 0 | M124: 476.6333333 | N124: 65.16 | O124: 49.47333333 | P124: 6.395333333 | Q124: 32.218 | R124: 3.740666667 | S124: 49.47333333 | T124: 0 | U124: 4.0768 | V124: 60.40720833 | W124: 26.58104167 | X124: 0 | Y124: 0 | Z124: 16 | AA124: 14.93333333 | AB124: 3.112601305 | AC124: 1 | AD124: 1 | AE124: 0.1 | AF124: 1 | AG124: 0.1 | AH124: 1 | AI124: 1 | AJ124: 1 | AK124: 1 | AL124: 0.1 | AM124: 0.1 | AN124: 0.1 | AO124: 0.1 | AP124: 0.1 | AQ124: 0.1 | AR124: 0.1 | AS124: 0.1 | AT124: 0.05 | AU124: 0.1 | AV124: 0.1 | AW124: 0.1 | AX124: 0.1 | AY124: 0.05 | AZ124: 0.05 | BA124: 1 | BB124: 0.1 | BC124: 0.05 | CJ124: =Measurements!A124 -> 2015-12-28 | CK124: 15000 | CL124: 3825000 | CM124: 735370 | CN124: 1890000 | CO124: 98150 | CP124: 280500 | CQ124: 30000 | CR124: 7.2 | CS124: 3195000 | CT124: 0 | CU124: 0 | CV124: 7149500 | CW124: 977400 | CX124: 742100 | CY124: 95930 | CZ124: 483270 | DA124: 56110 | DB124: 742100 | DC124: 0 | DD124: 61152 | DE124: 906108.125 | DF124: 398715.625 | DG124: 0 | DH124: 0 | DI124: 240000 | DJ124: 224000 | DK124: 2027-10-29T00:28:11.842
A125: =Measurements!A125 -> 2015-12-29 | B125: 20209 | C125: =IF(NOT(ISBLANK(Measurements!B125)),CL125/$CK125,"") -> 481 | D125: 49.68716216 | E125: 273 | F125: 6.631756757 | G125: 18.9 | H125: 2.3 | I125: 6.2 | J125: 230 | K125: 0 | L125: 0 | M125: 483.0743243 | N125: 66.04054054 | O125: 50.14189189 | P125: 6.481756757 | Q125: 32.65337838 | R125: 3.791216216 | S125: 50.14189189 | T125: 0 | U125: 4.131891892 | V125: 61.22352196 | W125: 26.94024493 | X125: 0 | Y125: 0 | Z125: 34 | AA125: 15.13513514 | AB125: 3.154663485 | AC125: 1 | AD125: 1 | AE125: 0.1 | AF125: 1 | AG125: 0.1 | AH125: 1 | AI125: 1 | AJ125: 1 | AK125: 1 | AL125: 0.1 | AM125: 0.1 | AN125: 0.1 | AO125: 0.1 | AP125: 0.1 | AQ125: 0.1 | AR125: 0.1 | AS125: 0.1 | AT125: 0.05 | AU125: 0.1 | AV125: 0.1 | AW125: 0.1 | AX125: 0.1 | AY125: 0.05 | AZ125: 0.05 | BA125: 1 | BB125: 0.1 | BC125: 0.05 | CJ125: =Measurements!A125 -> 2015-12-29 | CK125: 14800 | CL125: 7118800 | CM125: 735370 | CN125: 4040400 | CO125: 98150 | CP125: 279720 | CQ125: 34040 | CR125: 6.2 | CS125: 3404000 | CT125: 0 | CU125: 0 | CV125: 7149500 | CW125: 977400 | CX125: 742100 | CY125: 95930 | CZ125: 483270 | DA125: 56110 | DB125: 742100 | DC125: 0 | DD125: 61152 | DE125: 906108.125 | DF125: 398715.625 | DG125: 0 | DH125: 0 | DI125: 503200 | DJ125: 224000 | DK125: 2027-10-29T00:28:11.842
... 114 more rows

Sheet Estimation (hidden)
Z1: Measurements | AG1: Estimates | BK1: Based on available measurements
E2: Concentrations
AR3: Difference | BK3: f_tkn | BL3: f_tss | BM3: f_tp | BN3: f_fsa | BO3: f_tpf | BP3: f_codus
A4: Day | B4: Flow | C4: COD | D4: TKN | E4: TSS | F4: TP | G4: FSA | H4: OrthoP | J4: COD_us | K4: COD_up | L4: COD_bp | N4: ISS | O4: Flow_setsew | P4: COD_setsew | Q4: TSS_setsew | R4: TKN_setsew | S4: TPSetsew | T4: COD_bnset | U4: COD_unset | V4: PS flow m3/d | W4: Settlable solids | X4: Settlable IS | Z4: CODsetsew | AA4: TKNsetsew | AB4: TSSsetsew | AC4: Tpsetsew | AD4: PS %TS | AE4: PS %IS | AG4: CODsetsew | AH4: TKNsetsew | AI4: TSSsetsew | AJ4: Tpsetsew | AK4: PS %TS | AL4: PS %IS | AR4: CODsetsew | AS4: TKNsetsew | AT4: TSSsetsew | AU4: Tpsetsew | AV4: PS %TS | AW4: PS %IS | BI4: # of points | BK4: =COUNT(BK6:BK432) -> 43 | BL4: 46 | BM4: 45 | BN4: 0 | BO4: 0 | BP4: 0
A5: Average | B5: =AVERAGE(B6:B432) -> 16165.13661 | C5: =AVERAGE(C6:C432) -> 710.5920544 | D5: 56.84736435 | E5: 355.2960272 | F5: 12.79065698 | G5: 39.79315505 | H5: 7.674394187 | J5: =AVERAGE(J6:J432) -> 39.08256299 | K5: =AVERAGE(K6:K432) -> 82.44543361 | L5: =AVERAGE(L6:L432) -> 348.410975 | N5: =AVERAGE(N6:N432) -> 61.44410283 | O5: 16130.20691 | P5: 493.2672537 | Q5: 161.4931221 | R5: 50.3807874 | S5: 9.343259848 | T5: 225.9532811 | U5: 26.11503989 | V5: 0 | W5: 194.1518602 | X5: 56.80210643 | Y5: avgs | Z5: =AVERAGE(Z6:Z432) -> 544.25 | AA5: 46.05116279 | AB5: 90.41304348 | AC5: 5.288888889 | AD5: 4.74 | AE5: 30.1 | AG5: =AVERAGE(AG6:AG432) -> 457.9600803 | AH5: 47.53085169 | AI5: 150.8500053 | AJ5: 8.778268577 | AK5: 8.4980251 | AL5: 29.25653474 | AQ5: sumsq | AR5: =SUMPRODUCT(AR6:AR432,AR6:AR432) -> 1972793.956 | AS5: 11260.28683 | AT5: 330937.2937 | AU5: 1006.900237 | AV5: 264.1659873 | AW5: 165.6336033 | BK5: =AVERAGE(BK6:BK432) -> 0.08986868616 | BL5: =AVERAGE(BL6:BL432) -> 0.1663182897 | BM5: =AVERAGE(BM6:BM432) -> 0.0101168079 | BN5: =AVERAGE(BN6:BN432)/BK5 ->  | BO5: =AVERAGE(BO6:BO432)/BM5 ->  | BP5: =AVERAGE(BP6:BP432) -> 
A6: =Measurements!A6 -> 2015-09-01 | B6: =Measurements!B6 -> 21700 | C6: =Interpolation!C6 -> 1149 | D6: =Interpolation!C6*f_tkn -> 91.92 | E6: =Interpolation!C6*f_tss -> 574.5 | F6: =Interpolation!C6*f_tp -> 20.682 | G6: =Interpolation!C6*f_tkn*f_fsa -> 64.344 | H6: =Interpolation!C6*f_tp*f_tpf -> 12.4092 | J6: =C6*f_codus -> 63.195 | K6: =C6*f_codup -> 133.3110927 | L6: =C6*(1-f_codus-f_codup-f_codf) -> 563.3671355 | N6: =C6*f_tss*f_iss -> 99.35274918 | O6: =IF(ISNUMBER(Measurements!L6),Measurements!L6,B6*f_setsewflow) -> 21653.11053 | P6: =Interpolation!C6*(f_codf+B6/O6*(f_codup*f_up_ns+f_bp_ns*(1-f_codf-f_codup))) -> 797.5941626 | Q6: =Interpolation!C6*B6/O6*(f_tss*f_iss*f_iss_ns+f_up_ns*f_codup/x_Us_COD+f_bp_ns*(1-f_codup-f_codf)/x_B_COD) -> 261.1281623 | R6: =Interpolation!C6*(f_tkn*f_tknf+B6/O6*(f_up_ns*f_codup*x_U_N/x_U_COD+f_bp_ns*(1-f_codup-f_codf)*x_B_N/x_B_COD)) -> 81.46379399 | S6: =Interpolation!C6*(f_tp*f_tpf+B6/O6*(f_up_ns*f_codup*x_U_P/x_U_COD+f_bp_ns*(1-f_codup-f_codf)*x_B_P/x_B_COD)) -> 15.10769154 | T6: =Interpolation!C6*f_bp_ns*(1-f_codf-f_codup) -> 365.3577581 | U6: =Interpolation!C6*f_up_ns*f_codup -> 42.22701429 | V6: =IF(ISNUMBER(Measurements!A6),Measurements!AU6,Measurements!B6*(1-f_setsewflow)) ->  | W6: =Interpolation!C6*(f_tss*f_iss*(1-f_iss_ns)+(1-f_up_ns)*f_codup/x_U_COD+(1-f_bp_ns)*(1-f_codup-f_codf)/x_B_COD) -> 313.9360847 | X6: =Interpolation!C6*f_tss*f_iss*(1-f_iss_ns) -> 91.84681968 | Z6: =IF(ISNUMBER(Measurements!M6),Measurements!M6,"") ->  | AA6: =IF(ISNUMBER(Measurements!N6),Measurements!N6,"") ->  | AB6: =IF(ISNUMBER(Measurements!O6),Measurements!O6,"") ->  | AC6: =IF(ISNUMBER(Measurements!P6),Measurements!P6,"") ->  | AD6: =IF(ISNUMBER(Measurements!U6),Measurements!U6,"") ->  | AE6: =IF(ISNUMBER(Measurements!W6),Measurements!W6,"") ->  | AG6: =IF(ISNUMBER(Z6),Interpolation!C6*(f_codf+B6/O6*(f_codup*f_up_ns+f_bp_ns*(1-f_codf-f_codup))),"") ->  | AH6: =IF(ISNUMBER(AA6),Interpolation!C6*(f_tkn*f_tknf+B6/O6*(f_up_ns*f_codup*x_U_N/x_U_COD+f_bp_ns*(1-f_codup-f_codf)*x_B_N/x_B_COD)),"") ->  | AI6: =IF(ISNUMBER(AB6),Interpolation!C6*B6/O6*(f_tss*f_iss*f_iss_ns+(f_up_ns*f_codup/x_Us_COD+f_bp_ns*(1-f_codup-f_codf)/x_B_COD)),"") ->  | AJ6: =IF(ISNUMBER(AC6),Interpolation!C6*(f_tp*f_tpf+B6/O6*(f_up_ns*f_codup*x_U_P/x_U_COD+f_bp_ns*(1-f_codup-f_codf)*x_B_P/x_B_COD)),"") ->  | AK6: =IF(ISNUMBER(AD6),Interpolation!C6*(f_tss*f_iss*(1-f_iss_ns)+(1-f_up_ns)*f_codup/x_U_COD+(1-f_bp_ns)*(1-f_codup-f_codf)/x_B_COD)/(1-f_setsewflow)/10000,"") ->  | AL6: =IF(AND(ISNUMBER(AE6),ISNUMBER(AD6)),Interpolation!C6*f_tss*f_iss*(1-f_iss_ns)/(1-f_setsewflow)/10000/Estimation!AK6*100,"") ->  | AR6: =IF(ISNUMBER(Z6),AG6-Z6,"") ->  | AS6: =IF(ISNUMBER(AA6),AH6-AA6,"") ->  | AT6: =IF(ISNUMBER(AB6),AI6-AB6,"") ->  | AV6: =IF(ISNUMBER(AD6),AK6-AD6,"") ->  | AW6: =IF(AND(ISNUMBER(AE6),ISNUMBER(AD6)),AL6-AE6,"") ->  | BK6: =IF(AND(ISNUMBER($Z6),ISNUMBER(AA6)),AA6/$Z6,"") ->  | BN6: =IF(AND(ISNUMBER($Z6),ISNUMBER(#REF!)),#REF!/$Z6,"") ->  | BO6: =IF(AND(ISNUMBER($Z6),ISNUMBER(#REF!)),#REF!/$Z6,"") ->  | BP6: =IF(AND(ISNUMBER($Z6),ISNUMBER(AD6)),AD6/$Z6,"") -> 
A7: =Measurements!A7 -> 2015-09-02 | B7: =Measurements!B7 -> 23600 | C7: =Interpolation!C7 -> 1056.495763 | D7: =Interpolation!C7*f_tkn -> 84.51966102 | E7: =Interpolation!C7*f_tss -> 528.2478814 | F7: =Interpolation!C7*f_tp -> 19.01692373 | G7: =Interpolation!C7*f_tkn*f_fsa -> 59.16376271 | H7: =Interpolation!C7*f_tp*f_tpf -> 11.41015424 | J7: =C7*f_codus -> 58.10726695 | K7: =C7*f_codup -> 122.57842 | L7: =C7*(1-f_codus-f_codup-f_codf) -> 518.0113068 | N7: =C7*f_tss*f_iss -> 91.3540109 | O7: =IF(ISNUMBER(Measurements!L7),Measurements!L7,B7*f_setsewflow) -> 23549.005 | P7: =Interpolation!C7*(f_codf+B7/O7*(f_codup*f_up_ns+f_bp_ns*(1-f_codf-f_codup))) -> 733.3810732 | Q7: =Interpolation!C7*B7/O7*(f_tss*f_iss*f_iss_ns+f_up_ns*f_codup/x_Us_COD+f_bp_ns*(1-f_codup-f_codf)/x_B_COD) -> 240.1051323 | R7: =Interpolation!C7*(f_tkn*f_tknf+B7/O7*(f_up_ns*f_codup*x_U_N/x_U_COD+f_bp_ns*(1-f_codup-f_codf)*x_B_N/x_B_COD)) -> 74.9052682 | S7: =Interpolation!C7*(f_tp*f_tpf+B7/O7*(f_up_ns*f_codup*x_U_P/x_U_COD+f_bp_ns*(1-f_codup-f_codf)*x_B_P/x_B_COD)) -> 13.89139434 | T7: =Interpolation!C7*f_bp_ns*(1-f_codf-f_codup) -> 335.9433624 | U7: =Interpolation!C7*f_up_ns*f_codup -> 38.82738179 | V7: =IF(ISNUMBER(Measurements!A7),Measurements!AU7,Measurements!B7*(1-f_setsewflow)) ->  | W7: =Interpolation!C7*(f_tss*f_iss*(1-f_iss_ns)+(1-f_up_ns)*f_codup/x_U_COD+(1-f_bp_ns)*(1-f_codup-f_codf)/x_B_COD) -> 288.6615694 | X7: =Interpolation!C7*f_tss*f_iss*(1-f_iss_ns) -> 84.45237234 | Z7: =IF(ISNUMBER(Measurements!M7),Measurements!M7,"") ->  | AA7: =IF(ISNUMBER(Measurements!N7),Measurements!N7,"") ->  | AB7: =IF(ISNUMBER(Measurements!O7),Measurements!O7,"") ->  | AC7: =IF(ISNUMBER(Measurements!P7),Measurements!P7,"") ->  | AD7: =IF(ISNUMBER(Measurements!U7),Measurements!U7,"") ->  | AE7: =IF(ISNUMBER(Measurements!W7),Measurements!W7,"") ->  | AG7: =IF(ISNUMBER(Z7),Interpolation!C7*(f_codf+B7/O7*(f_codup*f_up_ns+f_bp_ns*(1-f_codf-f_codup))),"") ->  | AH7: =IF(ISNUMBER(AA7),Interpolation!C7*(f_tkn*f_tknf+B7/O7*(f_up_ns*f_codup*x_U_N/x_U_COD+f_bp_ns*(1-f_codup-f_codf)*x_B_N/x_B_COD)),"") ->  | AI7: =IF(ISNUMBER(AB7),Interpolation!C7*B7/O7*(f_tss*f_iss*f_iss_ns+(f_up_ns*f_codup/x_Us_COD+f_bp_ns*(1-f_codup-f_codf)/x_B_COD)),"") ->  | AJ7: =IF(ISNUMBER(AC7),Interpolation!C7*(f_tp*f_tpf+B7/O7*(f_up_ns*f_codup*x_U_P/x_U_COD+f_bp_ns*(1-f_codup-f_codf)*x_B_P/x_B_COD)),"") ->  | AK7: =IF(ISNUMBER(AD7),Interpolation!C7*(f_tss*f_iss*(1-f_iss_ns)+(1-f_up_ns)*f_codup/x_U_COD+(1-f_bp_ns)*(1-f_codup-f_codf)/x_B_COD)/(1-f_setsewflow)/10000,"") ->  | AL7: =IF(AND(ISNUMBER(AE7),ISNUMBER(AD7)),Interpolation!C7*f_tss*f_iss*(1-f_iss_ns)/(1-f_setsewflow)/10000/Estimation!AK7*100,"") ->  | AR7: =IF(ISNUMBER(Z7),AG7-Z7,"") ->  | AS7: =IF(ISNUMBER(AA7),AH7-AA7,"") ->  | AT7: =IF(ISNUMBER(AB7),AI7-AB7,"") ->  | AU7: =IF(ISNUMBER(AC7),AJ7-AC7,"") ->  | AV7: =IF(ISNUMBER(AD7),AK7-AD7,"") ->  | AW7: =IF(AND(ISNUMBER(AE7),ISNUMBER(AD7)),AL7-AE7,"") ->  | BK7: =IF(AND(ISNUMBER($Z7),ISNUMBER(AA7)),AA7/$Z7,"") ->  | BL7: =IF(AND(ISNUMBER($Z7),ISNUMBER(AB7)),AB7/$Z7,"") ->  | BM7: =IF(AND(ISNUMBER($Z7),ISNUMBER(AC7)),AC7/$Z7,"") ->  | BN7: =IF(AND(ISNUMBER($Z7),ISNUMBER(#REF!)),#REF!/$Z7,"") ->  | BO7: =IF(AND(ISNUMBER($Z7),ISNUMBER(#REF!)),#REF!/$Z7,"") ->  | BP7: =IF(AND(ISNUMBER($Z7),ISNUMBER(AD7)),AD7/$Z7,"") -> 
A8: =Measurements!A8 -> 2015-09-03 | B8: =Measurements!B8 -> 21000 | C8: =Interpolation!C8 -> 879 | D8: =Interpolation!C8*f_tkn -> 70.32 | E8: =Interpolation!C8*f_tss -> 439.5 | F8: =Interpolation!C8*f_tp -> 15.822 | G8: =Interpolation!C8*f_tkn*f_fsa -> 49.224 | H8: =Interpolation!C8*f_tp*f_tpf -> 9.4932 | J8: 48.345 | K8: 101.9847262 | L8: 430.9832133 | N8: 76.00615016 | O8: =IF(ISNUMBER(Measurements!L8),Measurements!L8,B8*f_setsewflow) -> 20954.6231 | P8: =Interpolation!C8*(f_codf+B8/O8*(f_codup*f_up_ns+f_bp_ns*(1-f_codf-f_codup))) -> 610.1699468 | Q8: =Interpolation!C8*B8/O8*(f_tss*f_iss*f_iss_ns+f_up_ns*f_codup/x_Us_COD+f_bp_ns*(1-f_codup-f_codf)/x_B_COD) -> 199.7664531 | R8: =Interpolation!C8*(f_tkn*f_tknf+B8/O8*(f_up_ns*f_codup*x_U_N/x_U_COD+f_bp_ns*(1-f_codup-f_codf)*x_B_N/x_B_COD)) -> 62.32086589 | S8: =Interpolation!C8*(f_tp*f_tpf+B8/O8*(f_up_ns*f_codup*x_U_P/x_U_COD+f_bp_ns*(1-f_codup-f_codf)*x_B_P/x_B_COD)) -> 11.55758125 | T8: =Interpolation!C8*f_bp_ns*(1-f_codf-f_codup) -> 279.5034547 | U8: =Interpolation!C8*f_up_ns*f_codup -> 32.3042172 | V8: =IF(ISNUMBER(Measurements!A8),Measurements!AU8,Measurements!B8*(1-f_setsewflow)) ->  | W8: =Interpolation!C8*(f_tss*f_iss*(1-f_iss_ns)+(1-f_up_ns)*f_codup/x_U_COD+(1-f_bp_ns)*(1-f_codup-f_codf)/x_B_COD) -> 240.1652032 | X8: =Interpolation!C8*f_tss*f_iss*(1-f_iss_ns) -> 70.2640161 | Z8: =IF(ISNUMBER(Measurements!M8),Measurements!M8,"") ->  | AA8: =IF(ISNUMBER(Measurements!N8),Measurements!N8,"") ->  | AB8: =IF(ISNUMBER(Measurements!O8),Measurements!O8,"") ->  | AC8: =IF(ISNUMBER(Measurements!P8),Measurements!P8,"") ->  | AD8: =IF(ISNUMBER(Measurements!U8),Measurements!U8,"") ->  | AE8: =IF(ISNUMBER(Measurements!W8),Measurements!W8,"") ->  | AG8: =IF(ISNUMBER(Z8),Interpolation!C8*(f_codf+B8/O8*(f_codup*f_up_ns+f_bp_ns*(1-f_codf-f_codup))),"") ->  | AH8: =IF(ISNUMBER(AA8),Interpolation!C8*(f_tkn*f_tknf+B8/O8*(f_up_ns*f_codup*x_U_N/x_U_COD+f_bp_ns*(1-f_codup-f_codf)*x_B_N/x_B_COD)),"") ->  | AI8: =IF(ISNUMBER(AB8),Interpolation!C8*B8/O8*(f_tss*f_iss*f_iss_ns+(f_up_ns*f_codup/x_Us_COD+f_bp_ns*(1-f_codup-f_codf)/x_B_COD)),"") ->  | AJ8: =IF(ISNUMBER(AC8),Interpolation!C8*(f_tp*f_tpf+B8/O8*(f_up_ns*f_codup*x_U_P/x_U_COD+f_bp_ns*(1-f_codup-f_codf)*x_B_P/x_B_COD)),"") ->  | AK8: =IF(ISNUMBER(AD8),Interpolation!C8*(f_tss*f_iss*(1-f_iss_ns)+(1-f_up_ns)*f_codup/x_U_COD+(1-f_bp_ns)*(1-f_codup-f_codf)/x_B_COD)/(1-f_setsewflow)/10000,"") ->  | AL8: =IF(AND(ISNUMBER(AE8),ISNUMBER(AD8)),Interpolation!C8*f_tss*f_iss*(1-f_iss_ns)/(1-f_setsewflow)/10000/Estimation!AK8*100,"") ->  | BN8: =IF(AND(ISNUMBER($Z8),ISNUMBER(#REF!)),#REF!/$Z8,"") ->  | BO8: =IF(AND(ISNUMBER($Z8),ISNUMBER(#REF!)),#REF!/$Z8,"") -> 
A9: =Measurements!A9 -> 2015-09-04 | B9: =Measurements!B9 -> 19800 | C9: =Interpolation!C9 -> 932.2727273 | D9: =Interpolation!C9*f_tkn -> 74.58181818 | E9: =Interpolation!C9*f_tss -> 466.1363636 | F9: =Interpolation!C9*f_tp -> 16.78090909 | G9: =Interpolation!C9*f_tkn*f_fsa -> 52.20727273 | H9: =Interpolation!C9*f_tp*f_tpf -> 10.06854545 | J9: 51.275 | K9: 108.1656187 | L9: 457.1034081 | N9: 80.6125835 | O9: =IF(ISNUMBER(Measurements!L9),Measurements!L9,B9*f_setsewflow) -> 19757.21606 | P9: =Interpolation!C9*(f_codf+B9/O9*(f_codup*f_up_ns+f_bp_ns*(1-f_codf-f_codup))) -> 647.1499436 | Q9: =Interpolation!C9*B9/O9*(f_tss*f_iss*f_iss_ns+f_up_ns*f_codup/x_Us_COD+f_bp_ns*(1-f_codup-f_codf)/x_B_COD) -> 211.8735109 | R9: =Interpolation!C9*(f_tkn*f_tknf+B9/O9*(f_up_ns*f_codup*x_U_N/x_U_COD+f_bp_ns*(1-f_codup-f_codf)*x_B_N/x_B_COD)) -> 66.09788807 | S9: =Interpolation!C9*(f_tp*f_tpf+B9/O9*(f_up_ns*f_codup*x_U_P/x_U_COD+f_bp_ns*(1-f_codup-f_codf)*x_B_P/x_B_COD)) -> 12.25804072 | T9: =Interpolation!C9*f_bp_ns*(1-f_codf-f_codup) -> 296.443058 | U9: =Interpolation!C9*f_up_ns*f_codup -> 34.26204855 | V9: =IF(ISNUMBER(Measurements!A9),Measurements!AU9,Measurements!B9*(1-f_setsewflow)) ->  | W9: =Interpolation!C9*(f_tss*f_iss*(1-f_iss_ns)+(1-f_up_ns)*f_codup/x_U_COD+(1-f_bp_ns)*(1-f_codup-f_codf)/x_B_COD) -> 254.7206701 | X9: =Interpolation!C9*f_tss*f_iss*(1-f_iss_ns) -> 74.52244132 | Z9: =IF(ISNUMBER(Measurements!M9),Measurements!M9,"") ->  | AA9: =IF(ISNUMBER(Measurements!N9),Measurements!N9,"") ->  | AB9: =IF(ISNUMBER(Measurements!O9),Measurements!O9,"") ->  | AC9: =IF(ISNUMBER(Measurements!P9),Measurements!P9,"") ->  | AD9: =IF(ISNUMBER(Measurements!U9),Measurements!U9,"") ->  | AE9: =IF(ISNUMBER(Measurements!W9),Measurements!W9,"") ->  | AG9: =IF(ISNUMBER(Z9),Interpolation!C9*(f_codf+B9/O9*(f_codup*f_up_ns+f_bp_ns*(1-f_codf-f_codup))),"") ->  | AH9: =IF(ISNUMBER(AA9),Interpolation!C9*(f_tkn*f_tknf+B9/O9*(f_up_ns*f_codup*x_U_N/x_U_COD+f_bp_ns*(1-f_codup-f_codf)*x_B_N/x_B_COD)),"") ->  | AI9: =IF(ISNUMBER(AB9),Interpolation!C9*B9/O9*(f_tss*f_iss*f_iss_ns+(f_up_ns*f_codup/x_Us_COD+f_bp_ns*(1-f_codup-f_codf)/x_B_COD)),"") ->  | AJ9: =IF(ISNUMBER(AC9),Interpolation!C9*(f_tp*f_tpf+B9/O9*(f_up_ns*f_codup*x_U_P/x_U_COD+f_bp_ns*(1-f_codup-f_codf)*x_B_P/x_B_COD)),"") ->  | AK9: =IF(ISNUMBER(AD9),Interpolation!C9*(f_tss*f_iss*(1-f_iss_ns)+(1-f_up_ns)*f_codup/x_U_COD+(1-f_bp_ns)*(1-f_codup-f_codf)/x_B_COD)/(1-f_setsewflow)/10000,"") ->  | AL9: =IF(AND(ISNUMBER(AE9),ISNUMBER(AD9)),Interpolation!C9*f_tss*f_iss*(1-f_iss_ns)/(1-f_setsewflow)/10000/Estimation!AK9*100,"") ->  | BN9: =IF(AND(ISNUMBER($Z9),ISNUMBER(#REF!)),#REF!/$Z9,"") ->  | BO9: =IF(AND(ISNUMBER($Z9),ISNUMBER(#REF!)),#REF!/$Z9,"") -> 
A10: =Measurements!A10 -> 2015-09-05 | B10: =Measurements!B10 -> 22900 | C10: =Interpolation!C10 -> 460 | D10: =Interpolation!C10*f_tkn -> 36.8 | E10: =Interpolation!C10*f_tss -> 230 | F10: =Interpolation!C10*f_tp -> 8.28 | G10: =Interpolation!C10*f_tkn*f_fsa -> 25.76 | H10: =Interpolation!C10*f_tp*f_tpf -> 4.968 | J10: 25.3 | K10: 53.3708465 | L10: 225.5429785 | N10: 39.77568723 | O10: =IF(ISNUMBER(Measurements!L10),Measurements!L10,B10*f_setsewflow) -> 22850.51757 | P10: =Interpolation!C10*(f_codf+B10/O10*(f_codup*f_up_ns+f_bp_ns*(1-f_codf-f_codup))) -> 319.3153305 | Q10: =Interpolation!C10*B10/O10*(f_tss*f_iss*f_iss_ns+f_up_ns*f_codup/x_Us_COD+f_bp_ns*(1-f_codup-f_codf)/x_B_COD) -> 104.5421711 | R10: =Interpolation!C10*(f_tkn*f_tknf+B10/O10*(f_up_ns*f_codup*x_U_N/x_U_COD+f_bp_ns*(1-f_codup-f_codf)*x_B_N/x_B_COD)) -> 32.61387749 | S10: =Interpolation!C10*(f_tp*f_tpf+B10/O10*(f_up_ns*f_codup*x_U_P/x_U_COD+f_bp_ns*(1-f_codup-f_codf)*x_B_P/x_B_COD)) -> 6.048336037 | T10: =Interpolation!C10*f_bp_ns*(1-f_codf-f_codup) -> 146.2702948 | U10: =Interpolation!C10*f_up_ns*f_codup -> 16.90550616 | V10: =IF(ISNUMBER(Measurements!A10),Measurements!AU10,Measurements!B10*(1-f_setsewflow)) ->  | W10: =Interpolation!C10*(f_tss*f_iss*(1-f_iss_ns)+(1-f_up_ns)*f_codup/x_U_COD+(1-f_bp_ns)*(1-f_codup-f_codf)/x_B_COD) -> 125.6837241 | X10: =Interpolation!C10*f_tss*f_iss*(1-f_iss_ns) -> 36.7707024 | Z10: =IF(ISNUMBER(Measurements!M10),Measurements!M10,"") ->  | AA10: =IF(ISNUMBER(Measurements!N10),Measurements!N10,"") ->  | AB10: =IF(ISNUMBER(Measurements!O10),Measurements!O10,"") ->  | AC10: =IF(ISNUMBER(Measurements!P10),Measurements!P10,"") ->  | AD10: =IF(ISNUMBER(Measurements!U10),Measurements!U10,"") ->  | AE10: =IF(ISNUMBER(Measurements!W10),Measurements!W10,"") ->  | AG10: =IF(ISNUMBER(Z10),Interpolation!C10*(f_codf+B10/O10*(f_codup*f_up_ns+f_bp_ns*(1-f_codf-f_codup))),"") ->  | AH10: =IF(ISNUMBER(AA10),Interpolation!C10*(f_tkn*f_tknf+B10/O10*(f_up_ns*f_codup*x_U_N/x_U_COD+f_bp_ns*(1-f_codup-f_codf)*x_B_N/x_B_COD)),"") ->  | AI10: =IF(ISNUMBER(AB10),Interpolation!C10*B10/O10*(f_tss*f_iss*f_iss_ns+(f_up_ns*f_codup/x_Us_COD+f_bp_ns*(1-f_codup-f_codf)/x_B_COD)),"") ->  | AJ10: =IF(ISNUMBER(AC10),Interpolation!C10*(f_tp*f_tpf+B10/O10*(f_up_ns*f_codup*x_U_P/x_U_COD+f_bp_ns*(1-f_codup-f_codf)*x_B_P/x_B_COD)),"") ->  | AK10: =IF(ISNUMBER(AD10),Interpolation!C10*(f_tss*f_iss*(1-f_iss_ns)+(1-f_up_ns)*f_codup/x_U_COD+(1-f_bp_ns)*(1-f_codup-f_codf)/x_B_COD)/(1-f_setsewflow)/10000,"") ->  | AL10: =IF(AND(ISNUMBER(AE10),ISNUMBER(AD10)),Interpolation!C10*f_tss*f_iss*(1-f_iss_ns)/(1-f_setsewflow)/10000/Estimation!AK10*100,"") ->  | BN10: =IF(AND(ISNUMBER($Z10),ISNUMBER(#REF!)),#REF!/$Z10,"") ->  | BO10: =IF(AND(ISNUMBER($Z10),ISNUMBER(#REF!)),#REF!/$Z10,"") -> 
A11: =Measurements!A11 -> 2015-09-06 | B11: =Measurements!B11 -> 24300 | C11: =Interpolation!C11 -> 809 | D11: =Interpolation!C11*f_tkn -> 64.72 | E11: =Interpolation!C11*f_tss -> 404.5 | F11: =Interpolation!C11*f_tp -> 14.562 | G11: =Interpolation!C11*f_tkn*f_fsa -> 45.304 | H11: =Interpolation!C11*f_tp*f_tpf -> 8.7372 | J11: 44.495 | K11: 93.86307569 | L11: 396.6614557 | N11: 69.95332819 | O11: =IF(ISNUMBER(Measurements!L11),Measurements!L11,B11*f_setsewflow) -> 24247.49244 | P11: =Interpolation!C11*(f_codf+B11/O11*(f_codup*f_up_ns+f_bp_ns*(1-f_codf-f_codup))) -> 561.5784835 | Q11: =Interpolation!C11*B11/O11*(f_tss*f_iss*f_iss_ns+f_up_ns*f_codup/x_Us_COD+f_bp_ns*(1-f_codup-f_codf)/x_B_COD) -> 183.8578619 | R11: =Interpolation!C11*(f_tkn*f_tknf+B11/O11*(f_up_ns*f_codup*x_U_N/x_U_COD+f_bp_ns*(1-f_codup-f_codf)*x_B_N/x_B_COD)) -> 57.35788454 | S11: =Interpolation!C11*(f_tp*f_tpf+B11/O11*(f_up_ns*f_codup*x_U_P/x_U_COD+f_bp_ns*(1-f_codup-f_codf)*x_B_P/x_B_COD)) -> 10.63718229 | T11: =Interpolation!C11*f_bp_ns*(1-f_codf-f_codup) -> 257.2449315 | U11: =Interpolation!C11*f_up_ns*f_codup -> 29.73164018 | V11: =IF(ISNUMBER(Measurements!A11),Measurements!AU11,Measurements!B11*(1-f_setsewflow)) ->  | W11: =Interpolation!C11*(f_tss*f_iss*(1-f_iss_ns)+(1-f_up_ns)*f_codup/x_U_COD+(1-f_bp_ns)*(1-f_codup-f_codf)/x_B_COD) -> 221.0394191 | X11: =Interpolation!C11*f_tss*f_iss*(1-f_iss_ns) -> 64.66847443 | Z11: =IF(ISNUMBER(Measurements!M11),Measurements!M11,"") ->  | AA11: =IF(ISNUMBER(Measurements!N11),Measurements!N11,"") ->  | AB11: =IF(ISNUMBER(Measurements!O11),Measurements!O11,"") ->  | AC11: =IF(ISNUMBER(Measurements!P11),Measurements!P11,"") ->  | AD11: =IF(ISNUMBER(Measurements!U11),Measurements!U11,"") ->  | AE11: =IF(ISNUMBER(Measurements!W11),Measurements!W11,"") ->  | AG11: =IF(ISNUMBER(Z11),Interpolation!C11*(f_codf+B11/O11*(f_codup*f_up_ns+f_bp_ns*(1-f_codf-f_codup))),"") ->  | AH11: =IF(ISNUMBER(AA11),Interpolation!C11*(f_tkn*f_tknf+B11/O11*(f_up_ns*f_codup*x_U_N/x_U_COD+f_bp_ns*(1-f_codup-f_codf)*x_B_N/x_B_COD)),"") ->  | AI11: =IF(ISNUMBER(AB11),Interpolation!C11*B11/O11*(f_tss*f_iss*f_iss_ns+(f_up_ns*f_codup/x_Us_COD+f_bp_ns*(1-f_codup-f_codf)/x_B_COD)),"") ->  | AJ11: =IF(ISNUMBER(AC11),Interpolation!C11*(f_tp*f_tpf+B11/O11*(f_up_ns*f_codup*x_U_P/x_U_COD+f_bp_ns*(1-f_codup-f_codf)*x_B_P/x_B_COD)),"") ->  | AK11: =IF(ISNUMBER(AD11),Interpolation!C11*(f_tss*f_iss*(1-f_iss_ns)+(1-f_up_ns)*f_codup/x_U_COD+(1-f_bp_ns)*(1-f_codup-f_codf)/x_B_COD)/(1-f_setsewflow)/10000,"") ->  | AL11: =IF(AND(ISNUMBER(AE11),ISNUMBER(AD11)),Interpolation!C11*f_tss*f_iss*(1-f_iss_ns)/(1-f_setsewflow)/10000/Estimation!AK11*100,"") ->  | BN11: =IF(AND(ISNUMBER($Z11),ISNUMBER(#REF!)),#REF!/$Z11,"") ->  | BO11: =IF(AND(ISNUMBER($Z11),ISNUMBER(#REF!)),#REF!/$Z11,"") -> 
A12: =Measurements!A12 -> 2015-09-07 | B12: =Measurements!B12 -> 19800 | C12: =Interpolation!C12 -> 992.8636364 | D12: =Interpolation!C12*f_tkn -> 79.42909091 | E12: =Interpolation!C12*f_tss -> 496.4318182 | F12: =Interpolation!C12*f_tp -> 17.87154545 | G12: =Interpolation!C12*f_tkn*f_fsa -> 55.60036364 | H12: =Interpolation!C12*f_tp*f_tpf -> 10.72292727 | J12: 54.6075 | K12: 115.1955929 | L12: 486.8117866 | N12: 85.85181187 | O12: =IF(ISNUMBER(Measurements!L12),Measurements!L12,B12*f_setsewflow) -> 19757.21606 | P12: =Interpolation!C12*(f_codf+B12/O12*(f_codup*f_up_ns+f_bp_ns*(1-f_codf-f_codup))) -> 689.209957 | Q12: =Interpolation!C12*B12/O12*(f_tss*f_iss*f_iss_ns+f_up_ns*f_codup/x_Us_COD+f_bp_ns*(1-f_codup-f_codf)/x_B_COD) -> 225.6437396 | R12: =Interpolation!C12*(f_tkn*f_tknf+B12/O12*(f_up_ns*f_codup*x_U_N/x_U_COD+f_bp_ns*(1-f_codup-f_codf)*x_B_N/x_B_COD)) -> 70.39376739 | S12: =Interpolation!C12*(f_tp*f_tpf+B12/O12*(f_up_ns*f_codup*x_U_P/x_U_COD+f_bp_ns*(1-f_codup-f_codf)*x_B_P/x_B_COD)) -> 13.05472372 | T12: =Interpolation!C12*f_bp_ns*(1-f_codf-f_codup) -> 315.7096887 | U12: =Interpolation!C12*f_up_ns*f_codup -> 36.48883113 | V12: =IF(ISNUMBER(Measurements!A12),Measurements!AU12,Measurements!B12*(1-f_setsewflow)) ->  | W12: =Interpolation!C12*(f_tss*f_iss*(1-f_iss_ns)+(1-f_up_ns)*f_codup/x_U_COD+(1-f_bp_ns)*(1-f_codup-f_codf)/x_B_COD) -> 271.2756507 | X12: =Interpolation!C12*f_tss*f_iss*(1-f_iss_ns) -> 79.36585499 | Z12: =IF(ISNUMBER(Measurements!M12),Measurements!M12,"") ->  | AA12: =IF(ISNUMBER(Measurements!N12),Measurements!N12,"") ->  | AB12: =IF(ISNUMBER(Measurements!O12),Measurements!O12,"") ->  | AC12: =IF(ISNUMBER(Measurements!P12),Measurements!P12,"") ->  | AD12: =IF(ISNUMBER(Measurements!U12),Measurements!U12,"") ->  | AE12: =IF(ISNUMBER(Measurements!W12),Measurements!W12,"") ->  | AG12: =IF(ISNUMBER(Z12),Interpolation!C12*(f_codf+B12/O12*(f_codup*f_up_ns+f_bp_ns*(1-f_codf-f_codup))),"") ->  | AH12: =IF(ISNUMBER(AA12),Interpolation!C12*(f_tkn*f_tknf+B12/O12*(f_up_ns*f_codup*x_U_N/x_U_COD+f_bp_ns*(1-f_codup-f_codf)*x_B_N/x_B_COD)),"") ->  | AI12: =IF(ISNUMBER(AB12),Interpolation!C12*B12/O12*(f_tss*f_iss*f_iss_ns+(f_up_ns*f_codup/x_Us_COD+f_bp_ns*(1-f_codup-f_codf)/x_B_COD)),"") ->  | AJ12: =IF(ISNUMBER(AC12),Interpolation!C12*(f_tp*f_tpf+B12/O12*(f_up_ns*f_codup*x_U_P/x_U_COD+f_bp_ns*(1-f_codup-f_codf)*x_B_P/x_B_COD)),"") ->  | AK12: =IF(ISNUMBER(AD12),Interpolation!C12*(f_tss*f_iss*(1-f_iss_ns)+(1-f_up_ns)*f_codup/x_U_COD+(1-f_bp_ns)*(1-f_codup-f_codf)/x_B_COD)/(1-f_setsewflow)/10000,"") ->  | AL12: =IF(AND(ISNUMBER(AE12),ISNUMBER(AD12)),Interpolation!C12*f_tss*f_iss*(1-f_iss_ns)/(1-f_setsewflow)/10000/Estimation!AK12*100,"") ->  | BN12: =IF(AND(ISNUMBER($Z12),ISNUMBER(#REF!)),#REF!/$Z12,"") ->  | BO12: =IF(AND(ISNUMBER($Z12),ISNUMBER(#REF!)),#REF!/$Z12,"") -> 
A13: =Measurements!A13 -> 2015-09-08 | B13: =Measurements!B13 -> 16400 | C13: =Interpolation!C13 -> 761 | D13: =Interpolation!C13*f_tkn -> 60.88 | E13: =Interpolation!C13*f_tss -> 380.5 | F13: =Interpolation!C13*f_tp -> 13.698 | G13: =Interpolation!C13*f_tkn*f_fsa -> 42.616 | H13: =Interpolation!C13*f_tp*f_tpf -> 8.2188 | J13: 41.855 | K13: 88.29394388 | L13: 373.1265362 | N13: 65.8028217 | O13: =IF(ISNUMBER(Measurements!L13),Measurements!L13,B13*f_setsewflow) -> 16364.5628 | P13: =Interpolation!C13*(f_codf+B13/O13*(f_codup*f_up_ns+f_bp_ns*(1-f_codf-f_codup))) -> 528.2586229 | Q13: =Interpolation!C13*B13/O13*(f_tss*f_iss*f_iss_ns+f_up_ns*f_codup/x_Us_COD+f_bp_ns*(1-f_codup-f_codf)/x_B_COD) -> 172.9491136 | R13: =Interpolation!C13*(f_tkn*f_tknf+B13/O13*(f_up_ns*f_codup*x_U_N/x_U_COD+f_bp_ns*(1-f_codup-f_codf)*x_B_N/x_B_COD)) -> 53.95469732 | S13: =Interpolation!C13*(f_tp*f_tpf+B13/O13*(f_up_ns*f_codup*x_U_P/x_U_COD+f_bp_ns*(1-f_codup-f_codf)*x_B_P/x_B_COD)) -> 10.00605157 | T13: =Interpolation!C13*f_bp_ns*(1-f_codf-f_codup) -> 241.9819443 | U13: =Interpolation!C13*f_up_ns*f_codup -> 27.96758736 | V13: =IF(ISNUMBER(Measurements!A13),Measurements!AU13,Measurements!B13*(1-f_setsewflow)) ->  | W13: =Interpolation!C13*(f_tss*f_iss*(1-f_iss_ns)+(1-f_up_ns)*f_codup/x_U_COD+(1-f_bp_ns)*(1-f_codup-f_codf)/x_B_COD) -> 207.9245957 | X13: =Interpolation!C13*f_tss*f_iss*(1-f_iss_ns) -> 60.83153157 | Z13: =IF(ISNUMBER(Measurements!M13),Measurements!M13,"") ->  | AA13: =IF(ISNUMBER(Measurements!N13),Measurements!N13,"") ->  | AB13: =IF(ISNUMBER(Measurements!O13),Measurements!O13,"") ->  | AC13: =IF(ISNUMBER(Measurements!P13),Measurements!P13,"") ->  | AD13: =IF(ISNUMBER(Measurements!U13),Measurements!U13,"") ->  | AE13: =IF(ISNUMBER(Measurements!W13),Measurements!W13,"") ->  | AG13: =IF(ISNUMBER(Z13),Interpolation!C13*(f_codf+B13/O13*(f_codup*f_up_ns+f_bp_ns*(1-f_codf-f_codup))),"") ->  | AH13: =IF(ISNUMBER(AA13),Interpolation!C13*(f_tkn*f_tknf+B13/O13*(f_up_ns*f_codup*x_U_N/x_U_COD+f_bp_ns*(1-f_codup-f_codf)*x_B_N/x_B_COD)),"") ->  | AI13: =IF(ISNUMBER(AB13),Interpolation!C13*B13/O13*(f_tss*f_iss*f_iss_ns+(f_up_ns*f_codup/x_Us_COD+f_bp_ns*(1-f_codup-f_codf)/x_B_COD)),"") ->  | AJ13: =IF(ISNUMBER(AC13),Interpolation!C13*(f_tp*f_tpf+B13/O13*(f_up_ns*f_codup*x_U_P/x_U_COD+f_bp_ns*(1-f_codup-f_codf)*x_B_P/x_B_COD)),"") ->  | AK13: =IF(ISNUMBER(AD13),Interpolation!C13*(f_tss*f_iss*(1-f_iss_ns)+(1-f_up_ns)*f_codup/x_U_COD+(1-f_bp_ns)*(1-f_codup-f_codf)/x_B_COD)/(1-f_setsewflow)/10000,"") ->  | AL13: =IF(AND(ISNUMBER(AE13),ISNUMBER(AD13)),Interpolation!C13*f_tss*f_iss*(1-f_iss_ns)/(1-f_setsewflow)/10000/Estimation!AK13*100,"") ->  | BN13: =IF(AND(ISNUMBER($Z13),ISNUMBER(#REF!)),#REF!/$Z13,"") ->  | BO13: =IF(AND(ISNUMBER($Z13),ISNUMBER(#REF!)),#REF!/$Z13,"") -> 
A14: =Measurements!A14 -> 2015-09-09 | B14: =Measurements!B14 -> 18400 | C14: =Interpolation!C14 -> 977 | D14: =Interpolation!C14*f_tkn -> 78.16 | E14: =Interpolation!C14*f_tss -> 488.5 | F14: =Interpolation!C14*f_tp -> 17.586 | G14: =Interpolation!C14*f_tkn*f_fsa -> 54.712 | H14: =Interpolation!C14*f_tp*f_tpf -> 10.5516 | J14: 53.735 | K14: 113.355037 | L14: 479.033674 | N14: 84.48010092 | O14: =IF(ISNUMBER(Measurements!L14),Measurements!L14,B14*f_setsewflow) -> 18360.24119 | P14: =Interpolation!C14*(f_codf+B14/O14*(f_codup*f_up_ns+f_bp_ns*(1-f_codf-f_codup))) -> 678.1979955 | Q14: =Interpolation!C14*B14/O14*(f_tss*f_iss*f_iss_ns+f_up_ns*f_codup/x_Us_COD+f_bp_ns*(1-f_codup-f_codf)/x_B_COD) -> 222.0384809 | R14: =Interpolation!C14*(f_tkn*f_tknf+B14/O14*(f_up_ns*f_codup*x_U_N/x_U_COD+f_bp_ns*(1-f_codup-f_codf)*x_B_N/x_B_COD)) -> 69.26903979 | S14: =Interpolation!C14*(f_tp*f_tpf+B14/O14*(f_up_ns*f_codup*x_U_P/x_U_COD+f_bp_ns*(1-f_codup-f_codf)*x_B_P/x_B_COD)) -> 12.8461398 | T14: =Interpolation!C14*f_bp_ns*(1-f_codf-f_codup) -> 310.665387 | U14: =Interpolation!C14*f_up_ns*f_codup -> 35.90582504 | V14: =IF(ISNUMBER(Measurements!A14),Measurements!AU14,Measurements!B14*(1-f_setsewflow)) ->  | W14: =Interpolation!C14*(f_tss*f_iss*(1-f_iss_ns)+(1-f_up_ns)*f_codup/x_U_COD+(1-f_bp_ns)*(1-f_codup-f_codf)/x_B_COD) -> 266.9413009 | X14: =Interpolation!C14*f_tss*f_iss*(1-f_iss_ns) -> 78.09777444 | Z14: =IF(ISNUMBER(Measurements!M14),Measurements!M14,"") ->  | AA14: =IF(ISNUMBER(Measurements!N14),Measurements!N14,"") ->  | AB14: =IF(ISNUMBER(Measurements!O14),Measurements!O14,"") ->  | AC14: =IF(ISNUMBER(Measurements!P14),Measurements!P14,"") ->  | AD14: =IF(ISNUMBER(Measurements!U14),Measurements!U14,"") ->  | AE14: =IF(ISNUMBER(Measurements!W14),Measurements!W14,"") ->  | AG14: =IF(ISNUMBER(Z14),Interpolation!C14*(f_codf+B14/O14*(f_codup*f_up_ns+f_bp_ns*(1-f_codf-f_codup))),"") ->  | AH14: =IF(ISNUMBER(AA14),Interpolation!C14*(f_tkn*f_tknf+B14/O14*(f_up_ns*f_codup*x_U_N/x_U_COD+f_bp_ns*(1-f_codup-f_codf)*x_B_N/x_B_COD)),"") ->  | AI14: =IF(ISNUMBER(AB14),Interpolation!C14*B14/O14*(f_tss*f_iss*f_iss_ns+(f_up_ns*f_codup/x_Us_COD+f_bp_ns*(1-f_codup-f_codf)/x_B_COD)),"") ->  | AJ14: =IF(ISNUMBER(AC14),Interpolation!C14*(f_tp*f_tpf+B14/O14*(f_up_ns*f_codup*x_U_P/x_U_COD+f_bp_ns*(1-f_codup-f_codf)*x_B_P/x_B_COD)),"") ->  | AK14: =IF(ISNUMBER(AD14),Interpolation!C14*(f_tss*f_iss*(1-f_iss_ns)+(1-f_up_ns)*f_codup/x_U_COD+(1-f_bp_ns)*(1-f_codup-f_codf)/x_B_COD)/(1-f_setsewflow)/10000,"") ->  | AL14: =IF(AND(ISNUMBER(AE14),ISNUMBER(AD14)),Interpolation!C14*f_tss*f_iss*(1-f_iss_ns)/(1-f_setsewflow)/10000/Estimation!AK14*100,"") ->  | BN14: =IF(AND(ISNUMBER($Z14),ISNUMBER(#REF!)),#REF!/$Z14,"") ->  | BO14: =IF(AND(ISNUMBER($Z14),ISNUMBER(#REF!)),#REF!/$Z14,"") -> 
A15: =Measurements!A15 -> 2015-09-10 | B15: =Measurements!B15 -> 18300 | C15: =Interpolation!C15 -> 755 | D15: =Interpolation!C15*f_tkn -> 60.4 | E15: =Interpolation!C15*f_tss -> 377.5 | F15: =Interpolation!C15*f_tp -> 13.59 | G15: =Interpolation!C15*f_tkn*f_fsa -> 42.28 | H15: =Interpolation!C15*f_tp*f_tpf -> 8.154 | J15: 41.525 | K15: 87.59780241 | L15: 370.1846713 | N15: 65.28400838 | O15: =IF(ISNUMBER(Measurements!L15),Measurements!L15,B15*f_setsewflow) -> 18260.45727 | P15: =Interpolation!C15*(f_codf+B15/O15*(f_codup*f_up_ns+f_bp_ns*(1-f_codf-f_codup))) -> 524.0936403 | Q15: =Interpolation!C15*B15/O15*(f_tss*f_iss*f_iss_ns+f_up_ns*f_codup/x_Us_COD+f_bp_ns*(1-f_codup-f_codf)/x_B_COD) -> 171.58552 | R15: =Interpolation!C15*(f_tkn*f_tknf+B15/O15*(f_up_ns*f_codup*x_U_N/x_U_COD+f_bp_ns*(1-f_codup-f_codf)*x_B_N/x_B_COD)) -> 53.52929892 | S15: =Interpolation!C15*(f_tp*f_tpf+B15/O15*(f_up_ns*f_codup*x_U_P/x_U_COD+f_bp_ns*(1-f_codup-f_codf)*x_B_P/x_B_COD)) -> 9.927160234 | T15: =Interpolation!C15*f_bp_ns*(1-f_codf-f_codup) -> 240.0740708 | U15: =Interpolation!C15*f_up_ns*f_codup -> 27.74708076 | V15: =IF(ISNUMBER(Measurements!A15),Measurements!AU15,Measurements!B15*(1-f_setsewflow)) ->  | W15: =Interpolation!C15*(f_tss*f_iss*(1-f_iss_ns)+(1-f_up_ns)*f_codup/x_U_COD+(1-f_bp_ns)*(1-f_codup-f_codf)/x_B_COD) -> 206.2852428 | X15: =Interpolation!C15*f_tss*f_iss*(1-f_iss_ns) -> 60.35191372 | Z15: =IF(ISNUMBER(Measurements!M15),Measurements!M15,"") ->  | AA15: =IF(ISNUMBER(Measurements!N15),Measurements!N15,"") ->  | AB15: =IF(ISNUMBER(Measurements!O15),Measurements!O15,"") ->  | AC15: =IF(ISNUMBER(Measurements!P15),Measurements!P15,"") ->  | AD15: =IF(ISNUMBER(Measurements!U15),Measurements!U15,"") ->  | AE15: =IF(ISNUMBER(Measurements!W15),Measurements!W15,"") ->  | AG15: =IF(ISNUMBER(Z15),Interpolation!C15*(f_codf+B15/O15*(f_codup*f_up_ns+f_bp_ns*(1-f_codf-f_codup))),"") ->  | AH15: =IF(ISNUMBER(AA15),Interpolation!C15*(f_tkn*f_tknf+B15/O15*(f_up_ns*f_codup*x_U_N/x_U_COD+f_bp_ns*(1-f_codup-f_codf)*x_B_N/x_B_COD)),"") ->  | AI15: =IF(ISNUMBER(AB15),Interpolation!C15*B15/O15*(f_tss*f_iss*f_iss_ns+(f_up_ns*f_codup/x_Us_COD+f_bp_ns*(1-f_codup-f_codf)/x_B_COD)),"") ->  | AJ15: =IF(ISNUMBER(AC15),Interpolation!C15*(f_tp*f_tpf+B15/O15*(f_up_ns*f_codup*x_U_P/x_U_COD+f_bp_ns*(1-f_codup-f_codf)*x_B_P/x_B_COD)),"") ->  | AK15: =IF(ISNUMBER(AD15),Interpolation!C15*(f_tss*f_iss*(1-f_iss_ns)+(1-f_up_ns)*f_codup/x_U_COD+(1-f_bp_ns)*(1-f_codup-f_codf)/x_B_COD)/(1-f_setsewflow)/10000,"") ->  | AL15: =IF(AND(ISNUMBER(AE15),ISNUMBER(AD15)),Interpolation!C15*f_tss*f_iss*(1-f_iss_ns)/(1-f_setsewflow)/10000/Estimation!AK15*100,"") ->  | BN15: =IF(AND(ISNUMBER($Z15),ISNUMBER(#REF!)),#REF!/$Z15,"") ->  | BO15: =IF(AND(ISNUMBER($Z15),ISNUMBER(#REF!)),#REF!/$Z15,"") -> 
A16: =Measurements!A16 -> 2015-09-11 | B16: =Measurements!B16 -> 18800 | C16: =Interpolation!C16 -> 1381 | D16: =Interpolation!C16*f_tkn -> 110.48 | E16: =Interpolation!C16*f_tss -> 690.5 | F16: =Interpolation!C16*f_tp -> 24.858 | G16: =Interpolation!C16*f_tkn*f_fsa -> 77.336 | H16: =Interpolation!C16*f_tp*f_tpf -> 14.9148 | J16: 75.955 | K16: 160.2285631 | L16: 677.1192465 | N16: 119.4135306 | O16: =IF(ISNUMBER(Measurements!L16),Measurements!L16,B16*f_setsewflow) -> 18759.37687 | P16: =Interpolation!C16*(f_codf+B16/O16*(f_codup*f_up_ns+f_bp_ns*(1-f_codf-f_codup))) -> 958.6401554 | Q16: =Interpolation!C16*B16/O16*(f_tss*f_iss*f_iss_ns+f_up_ns*f_codup/x_Us_COD+f_bp_ns*(1-f_codup-f_codf)/x_B_COD) -> 313.853779 | R16: =Interpolation!C16*(f_tkn*f_tknf+B16/O16*(f_up_ns*f_codup*x_U_N/x_U_COD+f_bp_ns*(1-f_codup-f_codf)*x_B_N/x_B_COD)) -> 97.9125322 | S16: =Interpolation!C16*(f_tp*f_tpf+B16/O16*(f_up_ns*f_codup*x_U_P/x_U_COD+f_bp_ns*(1-f_codup-f_codf)*x_B_P/x_B_COD)) -> 18.15815667 | T16: =Interpolation!C16*f_bp_ns*(1-f_codf-f_codup) -> 439.1288634 | U16: =Interpolation!C16*f_up_ns*f_codup -> 50.75326957 | V16: =IF(ISNUMBER(Measurements!A16),Measurements!AU16,Measurements!B16*(1-f_setsewflow)) ->  | W16: =Interpolation!C16*(f_tss*f_iss*(1-f_iss_ns)+(1-f_up_ns)*f_codup/x_U_COD+(1-f_bp_ns)*(1-f_codup-f_codf)/x_B_COD) -> 377.3243978 | X16: =Interpolation!C16*f_tss*f_iss*(1-f_iss_ns) -> 110.3920435 | Z16: =IF(ISNUMBER(Measurements!M16),Measurements!M16,"") ->  | AA16: =IF(ISNUMBER(Measurements!N16),Measurements!N16,"") ->  | AB16: =IF(ISNUMBER(Measurements!O16),Measurements!O16,"") ->  | AC16: =IF(ISNUMBER(Measurements!P16),Measurements!P16,"") ->  | AD16: =IF(ISNUMBER(Measurements!U16),Measurements!U16,"") ->  | AE16: =IF(ISNUMBER(Measurements!W16),Measurements!W16,"") ->  | AG16: =IF(ISNUMBER(Z16),Interpolation!C16*(f_codf+B16/O16*(f_codup*f_up_ns+f_bp_ns*(1-f_codf-f_codup))),"") ->  | AH16: =IF(ISNUMBER(AA16),Interpolation!C16*(f_tkn*f_tknf+B16/O16*(f_up_ns*f_codup*x_U_N/x_U_COD+f_bp_ns*(1-f_codup-f_codf)*x_B_N/x_B_COD)),"") ->  | AI16: =IF(ISNUMBER(AB16),Interpolation!C16*B16/O16*(f_tss*f_iss*f_iss_ns+(f_up_ns*f_codup/x_Us_COD+f_bp_ns*(1-f_codup-f_codf)/x_B_COD)),"") ->  | AJ16: =IF(ISNUMBER(AC16),Interpolation!C16*(f_tp*f_tpf+B16/O16*(f_up_ns*f_codup*x_U_P/x_U_COD+f_bp_ns*(1-f_codup-f_codf)*x_B_P/x_B_COD)),"") ->  | AK16: =IF(ISNUMBER(AD16),Interpolation!C16*(f_tss*f_iss*(1-f_iss_ns)+(1-f_up_ns)*f_codup/x_U_COD+(1-f_bp_ns)*(1-f_codup-f_codf)/x_B_COD)/(1-f_setsewflow)/10000,"") ->  | AL16: =IF(AND(ISNUMBER(AE16),ISNUMBER(AD16)),Interpolation!C16*f_tss*f_iss*(1-f_iss_ns)/(1-f_setsewflow)/10000/Estimation!AK16*100,"") ->  | BN16: =IF(AND(ISNUMBER($Z16),ISNUMBER(#REF!)),#REF!/$Z16,"") ->  | BO16: =IF(AND(ISNUMBER($Z16),ISNUMBER(#REF!)),#REF!/$Z16,"") -> 
A17: =Measurements!A17 -> 2015-09-12 | B17: =Measurements!B17 -> 16500 | C17: =Interpolation!C17 -> 1248 | D17: =Interpolation!C17*f_tkn -> 99.84 | E17: =Interpolation!C17*f_tss -> 624 | F17: =Interpolation!C17*f_tp -> 22.464 | G17: =Interpolation!C17*f_tkn*f_fsa -> 69.888 | H17: =Interpolation!C17*f_tp*f_tpf -> 13.4784 | J17: 68.64 | K17: 144.797427 | L17: 611.907907 | N17: 107.9131688 | O17: =IF(ISNUMBER(Measurements!L17),Measurements!L17,B17*f_setsewflow) -> 16464.34672 | P17: =Interpolation!C17*(f_codf+B17/O17*(f_codup*f_up_ns+f_bp_ns*(1-f_codf-f_codup))) -> 866.316375 | Q17: =Interpolation!C17*B17/O17*(f_tss*f_iss*f_iss_ns+f_up_ns*f_codup/x_Us_COD+f_bp_ns*(1-f_codup-f_codf)/x_B_COD) -> 283.6274556 | R17: =Interpolation!C17*(f_tkn*f_tknf+B17/O17*(f_up_ns*f_codup*x_U_N/x_U_COD+f_bp_ns*(1-f_codup-f_codf)*x_B_N/x_B_COD)) -> 88.48286762 | S17: =Interpolation!C17*(f_tp*f_tpf+B17/O17*(f_up_ns*f_codup*x_U_P/x_U_COD+f_bp_ns*(1-f_codup-f_codf)*x_B_P/x_B_COD)) -> 16.40939864 | T17: =Interpolation!C17*f_bp_ns*(1-f_codf-f_codup) -> 396.8376694 | U17: =Interpolation!C17*f_up_ns*f_codup -> 45.86537323 | V17: =IF(ISNUMBER(Measurements!A17),Measurements!AU17,Measurements!B17*(1-f_setsewflow)) ->  | W17: =Interpolation!C17*(f_tss*f_iss*(1-f_iss_ns)+(1-f_up_ns)*f_codup/x_U_COD+(1-f_bp_ns)*(1-f_codup-f_codf)/x_B_COD) -> 340.985408 | X17: =Interpolation!C17*f_tss*f_iss*(1-f_iss_ns) -> 99.76051433 | Z17: =IF(ISNUMBER(Measurements!M17),Measurements!M17,"") ->  | AA17: =IF(ISNUMBER(Measurements!N17),Measurements!N17,"") ->  | AB17: =IF(ISNUMBER(Measurements!O17),Measurements!O17,"") ->  | AC17: =IF(ISNUMBER(Measurements!P17),Measurements!P17,"") ->  | AD17: =IF(ISNUMBER(Measurements!U17),Measurements!U17,"") ->  | AE17: =IF(ISNUMBER(Measurements!W17),Measurements!W17,"") ->  | AG17: =IF(ISNUMBER(Z17),Interpolation!C17*(f_codf+B17/O17*(f_codup*f_up_ns+f_bp_ns*(1-f_codf-f_codup))),"") ->  | AH17: =IF(ISNUMBER(AA17),Interpolation!C17*(f_tkn*f_tknf+B17/O17*(f_up_ns*f_codup*x_U_N/x_U_COD+f_bp_ns*(1-f_codup-f_codf)*x_B_N/x_B_COD)),"") ->  | AI17: =IF(ISNUMBER(AB17),Interpolation!C17*B17/O17*(f_tss*f_iss*f_iss_ns+(f_up_ns*f_codup/x_Us_COD+f_bp_ns*(1-f_codup-f_codf)/x_B_COD)),"") ->  | AJ17: =IF(ISNUMBER(AC17),Interpolation!C17*(f_tp*f_tpf+B17/O17*(f_up_ns*f_codup*x_U_P/x_U_COD+f_bp_ns*(1-f_codup-f_codf)*x_B_P/x_B_COD)),"") ->  | AK17: =IF(ISNUMBER(AD17),Interpolation!C17*(f_tss*f_iss*(1-f_iss_ns)+(1-f_up_ns)*f_codup/x_U_COD+(1-f_bp_ns)*(1-f_codup-f_codf)/x_B_COD)/(1-f_setsewflow)/10000,"") ->  | AL17: =IF(AND(ISNUMBER(AE17),ISNUMBER(AD17)),Interpolation!C17*f_tss*f_iss*(1-f_iss_ns)/(1-f_setsewflow)/10000/Estimation!AK17*100,"") ->  | BN17: =IF(AND(ISNUMBER($Z17),ISNUMBER(#REF!)),#REF!/$Z17,"") ->  | BO17: =IF(AND(ISNUMBER($Z17),ISNUMBER(#REF!)),#REF!/$Z17,"") -> 
A18: =Measurements!A18 -> 2015-09-13 | B18: =Measurements!B18 -> 19200 | C18: =Interpolation!C18 -> 744 | D18: =Interpolation!C18*f_tkn -> 59.52 | E18: =Interpolation!C18*f_tss -> 372 | F18: =Interpolation!C18*f_tp -> 13.392 | G18: =Interpolation!C18*f_tkn*f_fsa -> 41.664 | H18: =Interpolation!C18*f_tp*f_tpf -> 8.0352 | J18: 40.92 | K18: 86.32154303 | L18: 364.7912523 | N18: 64.33285065 | O18: =IF(ISNUMBER(Measurements!L18),Measurements!L18,B18*f_setsewflow) -> 19158.51255 | P18: =Interpolation!C18*(f_codf+B18/O18*(f_codup*f_up_ns+f_bp_ns*(1-f_codf-f_codup))) -> 516.457839 | Q18: =Interpolation!C18*B18/O18*(f_tss*f_iss*f_iss_ns+f_up_ns*f_codup/x_Us_COD+f_bp_ns*(1-f_codup-f_codf)/x_B_COD) -> 169.0855986 | R18: =Interpolation!C18*(f_tkn*f_tknf+B18/O18*(f_up_ns*f_codup*x_U_N/x_U_COD+f_bp_ns*(1-f_codup-f_codf)*x_B_N/x_B_COD)) -> 52.74940185 | S18: =Interpolation!C18*(f_tp*f_tpf+B18/O18*(f_up_ns*f_codup*x_U_P/x_U_COD+f_bp_ns*(1-f_codup-f_codf)*x_B_P/x_B_COD)) -> 9.782526112 | T18: =Interpolation!C18*f_bp_ns*(1-f_codf-f_codup) -> 236.5763029 | U18: =Interpolation!C18*f_up_ns*f_codup -> 27.34281866 | V18: =IF(ISNUMBER(Measurements!A18),Measurements!AU18,Measurements!B18*(1-f_setsewflow)) ->  | W18: =Interpolation!C18*(f_tss*f_iss*(1-f_iss_ns)+(1-f_up_ns)*f_codup/x_U_COD+(1-f_bp_ns)*(1-f_codup-f_codf)/x_B_COD) -> 203.2797624 | X18: =Interpolation!C18*f_tss*f_iss*(1-f_iss_ns) -> 59.47261431 | Z18: =IF(ISNUMBER(Measurements!M18),Measurements!M18,"") ->  | AA18: =IF(ISNUMBER(Measurements!N18),Measurements!N18,"") ->  | AB18: =IF(ISNUMBER(Measurements!O18),Measurements!O18,"") ->  | AC18: =IF(ISNUMBER(Measurements!P18),Measurements!P18,"") ->  | AD18: =IF(ISNUMBER(Measurements!U18),Measurements!U18,"") ->  | AE18: =IF(ISNUMBER(Measurements!W18),Measurements!W18,"") ->  | AG18: =IF(ISNUMBER(Z18),Interpolation!C18*(f_codf+B18/O18*(f_codup*f_up_ns+f_bp_ns*(1-f_codf-f_codup))),"") ->  | AH18: =IF(ISNUMBER(AA18),Interpolation!C18*(f_tkn*f_tknf+B18/O18*(f_up_ns*f_codup*x_U_N/x_U_COD+f_bp_ns*(1-f_codup-f_codf)*x_B_N/x_B_COD)),"") ->  | AI18: =IF(ISNUMBER(AB18),Interpolation!C18*B18/O18*(f_tss*f_iss*f_iss_ns+(f_up_ns*f_codup/x_Us_COD+f_bp_ns*(1-f_codup-f_codf)/x_B_COD)),"") ->  | AJ18: =IF(ISNUMBER(AC18),Interpolation!C18*(f_tp*f_tpf+B18/O18*(f_up_ns*f_codup*x_U_P/x_U_COD+f_bp_ns*(1-f_codup-f_codf)*x_B_P/x_B_COD)),"") ->  | AK18: =IF(ISNUMBER(AD18),Interpolation!C18*(f_tss*f_iss*(1-f_iss_ns)+(1-f_up_ns)*f_codup/x_U_COD+(1-f_bp_ns)*(1-f_codup-f_codf)/x_B_COD)/(1-f_setsewflow)/10000,"") ->  | AL18: =IF(AND(ISNUMBER(AE18),ISNUMBER(AD18)),Interpolation!C18*f_tss*f_iss*(1-f_iss_ns)/(1-f_setsewflow)/10000/Estimation!AK18*100,"") ->  | BN18: =IF(AND(ISNUMBER($Z18),ISNUMBER(#REF!)),#REF!/$Z18,"") ->  | BO18: =IF(AND(ISNUMBER($Z18),ISNUMBER(#REF!)),#REF!/$Z18,"") -> 
A19: =Measurements!A19 -> 2015-09-14 | B19: =Measurements!B19 -> 20300 | C19: =Interpolation!C19 -> 487 | D19: =Interpolation!C19*f_tkn -> 38.96 | E19: =Interpolation!C19*f_tss -> 243.5 | F19: =Interpolation!C19*f_tp -> 8.766 | G19: =Interpolation!C19*f_tkn*f_fsa -> 27.272 | H19: =Interpolation!C19*f_tp*f_tpf -> 5.2596 | J19: 26.785 | K19: 56.50348314 | L19: 238.7813708 | N19: 42.11034713 | O19: =IF(ISNUMBER(Measurements!L19),Measurements!L19,B19*f_setsewflow) -> 20256.13566 | P19: =Interpolation!C19*(f_codf+B19/O19*(f_codup*f_up_ns+f_bp_ns*(1-f_codf-f_codup))) -> 338.0577521 | Q19: =Interpolation!C19*B19/O19*(f_tss*f_iss*f_iss_ns+f_up_ns*f_codup/x_Us_COD+f_bp_ns*(1-f_codup-f_codf)/x_B_COD) -> 110.6783421 | R19: =Interpolation!C19*(f_tkn*f_tknf+B19/O19*(f_up_ns*f_codup*x_U_N/x_U_COD+f_bp_ns*(1-f_codup-f_codf)*x_B_N/x_B_COD)) -> 34.5281703 | S19: =Interpolation!C19*(f_tp*f_tpf+B19/O19*(f_up_ns*f_codup*x_U_P/x_U_COD+f_bp_ns*(1-f_codup-f_codf)*x_B_P/x_B_COD)) -> 6.403347065 | T19: =Interpolation!C19*f_bp_ns*(1-f_codf-f_codup) -> 154.8557252 | U19: =Interpolation!C19*f_up_ns*f_codup -> 17.89778587 | V19: =IF(ISNUMBER(Measurements!A19),Measurements!AU19,Measurements!B19*(1-f_setsewflow)) ->  | W19: =Interpolation!C19*(f_tss*f_iss*(1-f_iss_ns)+(1-f_up_ns)*f_codup/x_U_COD+(1-f_bp_ns)*(1-f_codup-f_codf)/x_B_COD) -> 133.0608122 | X19: =Interpolation!C19*f_tss*f_iss*(1-f_iss_ns) -> 38.92898276 | Z19: =IF(ISNUMBER(Measurements!M19),Measurements!M19,"") -> 782 | AA19: =IF(ISNUMBER(Measurements!N19),Measurements!N19,"") -> 40.9 | AB19: =IF(ISNUMBER(Measurements!O19),Measurements!O19,"") -> 204 | AC19: =IF(ISNUMBER(Measurements!P19),Measurements!P19,"") -> 3.8 | AD19: =IF(ISNUMBER(Measurements!U19),Measurements!U19,"") ->  | AE19: =IF(ISNUMBER(Measurements!W19),Measurements!W19,"") ->  | AG19: =IF(ISNUMBER(Z19),Interpolation!C19*(f_codf+B19/O19*(f_codup*f_up_ns+f_bp_ns*(1-f_codf-f_codup))),"") -> 338.0577521 | AH19: =IF(ISNUMBER(AA19),Interpolation!C19*(f_tkn*f_tknf+B19/O19*(f_up_ns*f_codup*x_U_N/x_U_COD+f_bp_ns*(1-f_codup-f_codf)*x_B_N/x_B_COD)),"") -> 34.5281703 | AI19: =IF(ISNUMBER(AB19),Interpolation!C19*B19/O19*(f_tss*f_iss*f_iss_ns+(f_up_ns*f_codup/x_Us_COD+f_bp_ns*(1-f_codup-f_codf)/x_B_COD)),"") -> 110.6783421 | AJ19: =IF(ISNUMBER(AC19),Interpolation!C19*(f_tp*f_tpf+B19/O19*(f_up_ns*f_codup*x_U_P/x_U_COD+f_bp_ns*(1-f_codup-f_codf)*x_B_P/x_B_COD)),"") -> 6.403347065 | AK19: =IF(ISNUMBER(AD19),Interpolation!C19*(f_tss*f_iss*(1-f_iss_ns)+(1-f_up_ns)*f_codup/x_U_COD+(1-f_bp_ns)*(1-f_codup-f_codf)/x_B_COD)/(1-f_setsewflow)/10000,"") ->  | AL19: =IF(AND(ISNUMBER(AE19),ISNUMBER(AD19)),Interpolation!C19*f_tss*f_iss*(1-f_iss_ns)/(1-f_setsewflow)/10000/Estimation!AK19*100,"") ->  | AR19: -443.9422479 | AS19: -6.371829703 | AT19: -93.32165794 | AU19: 2.603347065 | BK19: 0.05230179028 | BL19: 0.2608695652 | BM19: 0.004859335038 | BN19: =IF(AND(ISNUMBER($Z19),ISNUMBER(#REF!)),#REF!/$Z19,"") ->  | BO19: =IF(AND(ISNUMBER($Z19),ISNUMBER(#REF!)),#REF!/$Z19,"") -> 
A20: =Measurements!A20 -> 2015-09-15 | B20: =Measurements!B20 -> 19800 | C20: =Interpolation!C20 -> 1070 | D20: =Interpolation!C20*f_tkn -> 85.6 | E20: =Interpolation!C20*f_tss -> 535 | F20: =Interpolation!C20*f_tp -> 19.26 | G20: =Interpolation!C20*f_tkn*f_fsa -> 59.92 | H20: =Interpolation!C20*f_tp*f_tpf -> 11.556 | J20: 58.85 | K20: 124.1452299 | L20: 524.6325805 | N20: 92.52170725 | O20: =IF(ISNUMBER(Measurements!L20),Measurements!L20,B20*f_setsewflow) -> 19757.21606 | P20: =Interpolation!C20*(f_codf+B20/O20*(f_codup*f_up_ns+f_bp_ns*(1-f_codf-f_codup))) -> 742.7552254 | Q20: =Interpolation!C20*B20/O20*(f_tss*f_iss*f_iss_ns+f_up_ns*f_codup/x_Us_COD+f_bp_ns*(1-f_codup-f_codf)/x_B_COD) -> 243.1741807 | R20: =Interpolation!C20*(f_tkn*f_tknf+B20/O20*(f_up_ns*f_codup*x_U_N/x_U_COD+f_bp_ns*(1-f_codup-f_codf)*x_B_N/x_B_COD)) -> 75.86271503 | S20: =Interpolation!C20*(f_tp*f_tpf+B20/O20*(f_up_ns*f_codup*x_U_P/x_U_COD+f_bp_ns*(1-f_codup-f_codf)*x_B_P/x_B_COD)) -> 14.06895556 | T20: =Interpolation!C20*f_bp_ns*(1-f_codf-f_codup) -> 340.2374249 | U20: =Interpolation!C20*f_up_ns*f_codup -> 39.32367737 | V20: =IF(ISNUMBER(Measurements!A20),Measurements!AU20,Measurements!B20*(1-f_setsewflow)) ->  | W20: =Interpolation!C20*(f_tss*f_iss*(1-f_iss_ns)+(1-f_up_ns)*f_codup/x_U_COD+(1-f_bp_ns)*(1-f_codup-f_codf)/x_B_COD) -> 292.3512712 | X20: =Interpolation!C20*f_tss*f_iss*(1-f_iss_ns) -> 85.53185123 | Z20: =IF(ISNUMBER(Measurements!M20),Measurements!M20,"") ->  | AA20: =IF(ISNUMBER(Measurements!N20),Measurements!N20,"") ->  | AB20: =IF(ISNUMBER(Measurements!O20),Measurements!O20,"") ->  | AC20: =IF(ISNUMBER(Measurements!P20),Measurements!P20,"") ->  | AD20: =IF(ISNUMBER(Measurements!U20),Measurements!U20,"") ->  | AE20: =IF(ISNUMBER(Measurements!W20),Measurements!W20,"") ->  | AG20: =IF(ISNUMBER(Z20),Interpolation!C20*(f_codf+B20/O20*(f_codup*f_up_ns+f_bp_ns*(1-f_codf-f_codup))),"") ->  | AH20: =IF(ISNUMBER(AA20),Interpolation!C20*(f_tkn*f_tknf+B20/O20*(f_up_ns*f_codup*x_U_N/x_U_COD+f_bp_ns*(1-f_codup-f_codf)*x_B_N/x_B_COD)),"") ->  | AI20: =IF(ISNUMBER(AB20),Interpolation!C20*B20/O20*(f_tss*f_iss*f_iss_ns+(f_up_ns*f_codup/x_Us_COD+f_bp_ns*(1-f_codup-f_codf)/x_B_COD)),"") ->  | AJ20: =IF(ISNUMBER(AC20),Interpolation!C20*(f_tp*f_tpf+B20/O20*(f_up_ns*f_codup*x_U_P/x_U_COD+f_bp_ns*(1-f_codup-f_codf)*x_B_P/x_B_COD)),"") ->  | AK20: =IF(ISNUMBER(AD20),Interpolation!C20*(f_tss*f_iss*(1-f_iss_ns)+(1-f_up_ns)*f_codup/x_U_COD+(1-f_bp_ns)*(1-f_codup-f_codf)/x_B_COD)/(1-f_setsewflow)/10000,"") ->  | AL20: =IF(AND(ISNUMBER(AE20),ISNUMBER(AD20)),Interpolation!C20*f_tss*f_iss*(1-f_iss_ns)/(1-f_setsewflow)/10000/Estimation!AK20*100,"") ->  | BN20: =IF(AND(ISNUMBER($Z20),ISNUMBER(#REF!)),#REF!/$Z20,"") ->  | BO20: =IF(AND(ISNUMBER($Z20),ISNUMBER(#REF!)),#REF!/$Z20,"") -> 
A21: =Measurements!A21 -> 2015-09-16 | B21: =Measurements!B21 -> 21800 | C21: =Interpolation!C21 -> 1326 | D21: =Interpolation!C21*f_tkn -> 106.08 | E21: =Interpolation!C21*f_tss -> 663 | F21: =Interpolation!C21*f_tp -> 23.868 | G21: =Interpolation!C21*f_tkn*f_fsa -> 74.256 | H21: =Interpolation!C21*f_tp*f_tpf -> 14.3208 | J21: 72.93 | K21: 153.8472662 | L21: 650.1521512 | N21: 114.6577419 | O21: =IF(ISNUMBER(Measurements!L21),Measurements!L21,B21*f_setsewflow) -> 21752.89445 | P21: =Interpolation!C21*(f_codf+B21/O21*(f_codup*f_up_ns+f_bp_ns*(1-f_codf-f_codup))) -> 920.4611485 | Q21: =Interpolation!C21*B21/O21*(f_tss*f_iss*f_iss_ns+f_up_ns*f_codup/x_Us_COD+f_bp_ns*(1-f_codup-f_codf)/x_B_COD) -> 301.3541716 | R21: =Interpolation!C21*(f_tkn*f_tknf+B21/O21*(f_up_ns*f_codup*x_U_N/x_U_COD+f_bp_ns*(1-f_codup-f_codf)*x_B_N/x_B_COD)) -> 94.01304684 | S21: =Interpolation!C21*(f_tp*f_tpf+B21/O21*(f_up_ns*f_codup*x_U_P/x_U_COD+f_bp_ns*(1-f_codup-f_codf)*x_B_P/x_B_COD)) -> 17.43498605 | T21: =Interpolation!C21*f_bp_ns*(1-f_codf-f_codup) -> 421.6400238 | U21: =Interpolation!C21*f_up_ns*f_codup -> 48.73195906 | V21: =IF(ISNUMBER(Measurements!A21),Measurements!AU21,Measurements!B21*(1-f_setsewflow)) ->  | W21: =Interpolation!C21*(f_tss*f_iss*(1-f_iss_ns)+(1-f_up_ns)*f_codup/x_U_COD+(1-f_bp_ns)*(1-f_codup-f_codf)/x_B_COD) -> 362.296996 | X21: =Interpolation!C21*f_tss*f_iss*(1-f_iss_ns) -> 105.9955465 | Z21: =IF(ISNUMBER(Measurements!M21),Measurements!M21,"") ->  | AA21: =IF(ISNUMBER(Measurements!N21),Measurements!N21,"") ->  | AB21: =IF(ISNUMBER(Measurements!O21),Measurements!O21,"") ->  | AC21: =IF(ISNUMBER(Measurements!P21),Measurements!P21,"") ->  | AD21: =IF(ISNUMBER(Measurements!U21),Measurements!U21,"") ->  | AE21: =IF(ISNUMBER(Measurements!W21),Measurements!W21,"") ->  | AG21: =IF(ISNUMBER(Z21),Interpolation!C21*(f_codf+B21/O21*(f_codup*f_up_ns+f_bp_ns*(1-f_codf-f_codup))),"") ->  | AH21: =IF(ISNUMBER(AA21),Interpolation!C21*(f_tkn*f_tknf+B21/O21*(f_up_ns*f_codup*x_U_N/x_U_COD+f_bp_ns*(1-f_codup-f_codf)*x_B_N/x_B_COD)),"") ->  | AI21: =IF(ISNUMBER(AB21),Interpolation!C21*B21/O21*(f_tss*f_iss*f_iss_ns+(f_up_ns*f_codup/x_Us_COD+f_bp_ns*(1-f_codup-f_codf)/x_B_COD)),"") ->  | AJ21: =IF(ISNUMBER(AC21),Interpolation!C21*(f_tp*f_tpf+B21/O21*(f_up_ns*f_codup*x_U_P/x_U_COD+f_bp_ns*(1-f_codup-f_codf)*x_B_P/x_B_COD)),"") ->  | AK21: =IF(ISNUMBER(AD21),Interpolation!C21*(f_tss*f_iss*(1-f_iss_ns)+(1-f_up_ns)*f_codup/x_U_COD+(1-f_bp_ns)*(1-f_codup-f_codf)/x_B_COD)/(1-f_setsewflow)/10000,"") ->  | AL21: =IF(AND(ISNUMBER(AE21),ISNUMBER(AD21)),Interpolation!C21*f_tss*f_iss*(1-f_iss_ns)/(1-f_setsewflow)/10000/Estimation!AK21*100,"") ->  | BN21: =IF(AND(ISNUMBER($Z21),ISNUMBER(#REF!)),#REF!/$Z21,"") ->  | BO21: =IF(AND(ISNUMBER($Z21),ISNUMBER(#REF!)),#REF!/$Z21,"") -> 
A22: =Measurements!A22 -> 2015-09-17 | B22: =Measurements!B22 -> 24400 | C22: =Interpolation!C22 -> 876 | D22: =Interpolation!C22*f_tkn -> 70.08 | E22: =Interpolation!C22*f_tss -> 438 | F22: =Interpolation!C22*f_tp -> 15.768 | G22: =Interpolation!C22*f_tkn*f_fsa -> 49.056 | H22: =Interpolation!C22*f_tp*f_tpf -> 9.4608 | J22: 48.18 | K22: 101.6366555 | L22: 429.5122809 | N22: 75.7467435 | O22: =IF(ISNUMBER(Measurements!L22),Measurements!L22,B22*f_setsewflow) -> 24347.27636 | P22: =Interpolation!C22*(f_codf+B22/O22*(f_codup*f_up_ns+f_bp_ns*(1-f_codf-f_codup))) -> 608.0874555 | Q22: =Interpolation!C22*B22/O22*(f_tss*f_iss*f_iss_ns+f_up_ns*f_codup/x_Us_COD+f_bp_ns*(1-f_codup-f_codf)/x_B_COD) -> 199.0846564 | R22: =Interpolation!C22*(f_tkn*f_tknf+B22/O22*(f_up_ns*f_codup*x_U_N/x_U_COD+f_bp_ns*(1-f_codup-f_codf)*x_B_N/x_B_COD)) -> 62.10816669 | S22: =Interpolation!C22*(f_tp*f_tpf+B22/O22*(f_up_ns*f_codup*x_U_P/x_U_COD+f_bp_ns*(1-f_codup-f_codf)*x_B_P/x_B_COD)) -> 11.51813558 | T22: =Interpolation!C22*f_bp_ns*(1-f_codf-f_codup) -> 278.549518 | U22: =Interpolation!C22*f_up_ns*f_codup -> 32.1939639 | V22: =IF(ISNUMBER(Measurements!A22),Measurements!AU22,Measurements!B22*(1-f_setsewflow)) ->  | W22: =Interpolation!C22*(f_tss*f_iss*(1-f_iss_ns)+(1-f_up_ns)*f_codup/x_U_COD+(1-f_bp_ns)*(1-f_codup-f_codf)/x_B_COD) -> 239.3455267 | X22: =Interpolation!C22*f_tss*f_iss*(1-f_iss_ns) -> 70.02420717 | Z22: =IF(ISNUMBER(Measurements!M22),Measurements!M22,"") ->  | AA22: =IF(ISNUMBER(Measurements!N22),Measurements!N22,"") ->  | AB22: =IF(ISNUMBER(Measurements!O22),Measurements!O22,"") ->  | AC22: =IF(ISNUMBER(Measurements!P22),Measurements!P22,"") ->  | AD22: =IF(ISNUMBER(Measurements!U22),Measurements!U22,"") ->  | AE22: =IF(ISNUMBER(Measurements!W22),Measurements!W22,"") ->  | AG22: =IF(ISNUMBER(Z22),Interpolation!C22*(f_codf+B22/O22*(f_codup*f_up_ns+f_bp_ns*(1-f_codf-f_codup))),"") ->  | AH22: =IF(ISNUMBER(AA22),Interpolation!C22*(f_tkn*f_tknf+B22/O22*(f_up_ns*f_codup*x_U_N/x_U_COD+f_bp_ns*(1-f_codup-f_codf)*x_B_N/x_B_COD)),"") ->  | AI22: =IF(ISNUMBER(AB22),Interpolation!C22*B22/O22*(f_tss*f_iss*f_iss_ns+(f_up_ns*f_codup/x_Us_COD+f_bp_ns*(1-f_codup-f_codf)/x_B_COD)),"") ->  | AJ22: =IF(ISNUMBER(AC22),Interpolation!C22*(f_tp*f_tpf+B22/O22*(f_up_ns*f_codup*x_U_P/x_U_COD+f_bp_ns*(1-f_codup-f_codf)*x_B_P/x_B_COD)),"") ->  | AK22: =IF(ISNUMBER(AD22),Interpolation!C22*(f_tss*f_iss*(1-f_iss_ns)+(1-f_up_ns)*f_codup/x_U_COD+(1-f_bp_ns)*(1-f_codup-f_codf)/x_B_COD)/(1-f_setsewflow)/10000,"") ->  | AL22: =IF(AND(ISNUMBER(AE22),ISNUMBER(AD22)),Interpolation!C22*f_tss*f_iss*(1-f_iss_ns)/(1-f_setsewflow)/10000/Estimation!AK22*100,"") ->  | BN22: =IF(AND(ISNUMBER($Z22),ISNUMBER(#REF!)),#REF!/$Z22,"") ->  | BO22: =IF(AND(ISNUMBER($Z22),ISNUMBER(#REF!)),#REF!/$Z22,"") -> 
A23: =Measurements!A23 -> 2015-09-18 | B23: =Measurements!B23 -> 23300 | C23: =Interpolation!C23 -> 722 | D23: =Interpolation!C23*f_tkn -> 57.76 | E23: =Interpolation!C23*f_tss -> 361 | F23: =Interpolation!C23*f_tp -> 12.996 | G23: =Interpolation!C23*f_tkn*f_fsa -> 40.432 | H23: =Interpolation!C23*f_tp*f_tpf -> 7.7976 | J23: 39.71 | K23: 83.76902429 | L23: 354.0044141 | N23: 62.43053517 | O23: =IF(ISNUMBER(Measurements!L23),Measurements!L23,B23*f_setsewflow) -> 23249.65325 | P23: =Interpolation!C23*(f_codf+B23/O23*(f_codup*f_up_ns+f_bp_ns*(1-f_codf-f_codup))) -> 501.1862362 | Q23: =Interpolation!C23*B23/O23*(f_tss*f_iss*f_iss_ns+f_up_ns*f_codup/x_Us_COD+f_bp_ns*(1-f_codup-f_codf)/x_B_COD) -> 164.0857556 | R23: =Interpolation!C23*(f_tkn*f_tknf+B23/O23*(f_up_ns*f_codup*x_U_N/x_U_COD+f_bp_ns*(1-f_codup-f_codf)*x_B_N/x_B_COD)) -> 51.18960771 | S23: =Interpolation!C23*(f_tp*f_tpf+B23/O23*(f_up_ns*f_codup*x_U_P/x_U_COD+f_bp_ns*(1-f_codup-f_codf)*x_B_P/x_B_COD)) -> 9.493257866 | T23: =Interpolation!C23*f_bp_ns*(1-f_codf-f_codup) -> 229.5807671 | U23: =Interpolation!C23*f_up_ns*f_codup -> 26.53429445 | V23: =IF(ISNUMBER(Measurements!A23),Measurements!AU23,Measurements!B23*(1-f_setsewflow)) ->  | W23: =Interpolation!C23*(f_tss*f_iss*(1-f_iss_ns)+(1-f_up_ns)*f_codup/x_U_COD+(1-f_bp_ns)*(1-f_codup-f_codf)/x_B_COD) -> 197.2688017 | X23: =Interpolation!C23*f_tss*f_iss*(1-f_iss_ns) -> 57.7140155 | Z23: =IF(ISNUMBER(Measurements!M23),Measurements!M23,"") ->  | AA23: =IF(ISNUMBER(Measurements!N23),Measurements!N23,"") ->  | AB23: =IF(ISNUMBER(Measurements!O23),Measurements!O23,"") ->  | AC23: =IF(ISNUMBER(Measurements!P23),Measurements!P23,"") ->  | AD23: =IF(ISNUMBER(Measurements!U23),Measurements!U23,"") ->  | AE23: =IF(ISNUMBER(Measurements!W23),Measurements!W23,"") ->  | AG23: =IF(ISNUMBER(Z23),Interpolation!C23*(f_codf+B23/O23*(f_codup*f_up_ns+f_bp_ns*(1-f_codf-f_codup))),"") ->  | AH23: =IF(ISNUMBER(AA23),Interpolation!C23*(f_tkn*f_tknf+B23/O23*(f_up_ns*f_codup*x_U_N/x_U_COD+f_bp_ns*(1-f_codup-f_codf)*x_B_N/x_B_COD)),"") ->  | AI23: =IF(ISNUMBER(AB23),Interpolation!C23*B23/O23*(f_tss*f_iss*f_iss_ns+(f_up_ns*f_codup/x_Us_COD+f_bp_ns*(1-f_codup-f_codf)/x_B_COD)),"") ->  | AJ23: =IF(ISNUMBER(AC23),Interpolation!C23*(f_tp*f_tpf+B23/O23*(f_up_ns*f_codup*x_U_P/x_U_COD+f_bp_ns*(1-f_codup-f_codf)*x_B_P/x_B_COD)),"") ->  | AK23: =IF(ISNUMBER(AD23),Interpolation!C23*(f_tss*f_iss*(1-f_iss_ns)+(1-f_up_ns)*f_codup/x_U_COD+(1-f_bp_ns)*(1-f_codup-f_codf)/x_B_COD)/(1-f_setsewflow)/10000,"") ->  | AL23: =IF(AND(ISNUMBER(AE23),ISNUMBER(AD23)),Interpolation!C23*f_tss*f_iss*(1-f_iss_ns)/(1-f_setsewflow)/10000/Estimation!AK23*100,"") ->  | BN23: =IF(AND(ISNUMBER($Z23),ISNUMBER(#REF!)),#REF!/$Z23,"") ->  | BO23: =IF(AND(ISNUMBER($Z23),ISNUMBER(#REF!)),#REF!/$Z23,"") -> 
A24: =Measurements!A24 -> 2015-09-19 | B24: =Measurements!B24 -> 22100 | C24: =Interpolation!C24 -> 1331 | D24: =Interpolation!C24*f_tkn -> 106.48 | E24: =Interpolation!C24*f_tss -> 665.5 | F24: =Interpolation!C24*f_tp -> 23.958 | G24: =Interpolation!C24*f_tkn*f_fsa -> 74.536 | H24: =Interpolation!C24*f_tp*f_tpf -> 14.3748 | J24: 73.205 | K24: 154.4273841 | L24: 652.6037053 | N24: 115.0900863 | O24: =IF(ISNUMBER(Measurements!L24),Measurements!L24,B24*f_setsewflow) -> 22052.24621 | P24: =Interpolation!C24*(f_codf+B24/O24*(f_codup*f_up_ns+f_bp_ns*(1-f_codf-f_codup))) -> 923.9319673 | Q24: =Interpolation!C24*B24/O24*(f_tss*f_iss*f_iss_ns+f_up_ns*f_codup/x_Us_COD+f_bp_ns*(1-f_codup-f_codf)/x_B_COD) -> 302.4904996 | R24: =Interpolation!C24*(f_tkn*f_tknf+B24/O24*(f_up_ns*f_codup*x_U_N/x_U_COD+f_bp_ns*(1-f_codup-f_codf)*x_B_N/x_B_COD)) -> 94.36754551 | S24: =Interpolation!C24*(f_tp*f_tpf+B24/O24*(f_up_ns*f_codup*x_U_P/x_U_COD+f_bp_ns*(1-f_codup-f_codf)*x_B_P/x_B_COD)) -> 17.50072884 | T24: =Interpolation!C24*f_bp_ns*(1-f_codf-f_codup) -> 423.2299183 | U24: =Interpolation!C24*f_up_ns*f_codup -> 48.91571456 | V24: =IF(ISNUMBER(Measurements!A24),Measurements!AU24,Measurements!B24*(1-f_setsewflow)) ->  | W24: =Interpolation!C24*(f_tss*f_iss*(1-f_iss_ns)+(1-f_up_ns)*f_codup/x_U_COD+(1-f_bp_ns)*(1-f_codup-f_codf)/x_B_COD) -> 363.6631234 | X24: =Interpolation!C24*f_tss*f_iss*(1-f_iss_ns) -> 106.395228 | Z24: =IF(ISNUMBER(Measurements!M24),Measurements!M24,"") ->  | AA24: =IF(ISNUMBER(Measurements!N24),Measurements!N24,"") ->  | AB24: =IF(ISNUMBER(Measurements!O24),Measurements!O24,"") ->  | AC24: =IF(ISNUMBER(Measurements!P24),Measurements!P24,"") ->  | AD24: =IF(ISNUMBER(Measurements!U24),Measurements!U24,"") ->  | AE24: =IF(ISNUMBER(Measurements!W24),Measurements!W24,"") ->  | AG24: =IF(ISNUMBER(Z24),Interpolation!C24*(f_codf+B24/O24*(f_codup*f_up_ns+f_bp_ns*(1-f_codf-f_codup))),"") ->  | AH24: =IF(ISNUMBER(AA24),Interpolation!C24*(f_tkn*f_tknf+B24/O24*(f_up_ns*f_codup*x_U_N/x_U_COD+f_bp_ns*(1-f_codup-f_codf)*x_B_N/x_B_COD)),"") ->  | AI24: =IF(ISNUMBER(AB24),Interpolation!C24*B24/O24*(f_tss*f_iss*f_iss_ns+(f_up_ns*f_codup/x_Us_COD+f_bp_ns*(1-f_codup-f_codf)/x_B_COD)),"") ->  | AJ24: =IF(ISNUMBER(AC24),Interpolation!C24*(f_tp*f_tpf+B24/O24*(f_up_ns*f_codup*x_U_P/x_U_COD+f_bp_ns*(1-f_codup-f_codf)*x_B_P/x_B_COD)),"") ->  | AK24: =IF(ISNUMBER(AD24),Interpolation!C24*(f_tss*f_iss*(1-f_iss_ns)+(1-f_up_ns)*f_codup/x_U_COD+(1-f_bp_ns)*(1-f_codup-f_codf)/x_B_COD)/(1-f_setsewflow)/10000,"") ->  | AL24: =IF(AND(ISNUMBER(AE24),ISNUMBER(AD24)),Interpolation!C24*f_tss*f_iss*(1-f_iss_ns)/(1-f_setsewflow)/10000/Estimation!AK24*100,"") ->  | BN24: =IF(AND(ISNUMBER($Z24),ISNUMBER(#REF!)),#REF!/$Z24,"") ->  | BO24: =IF(AND(ISNUMBER($Z24),ISNUMBER(#REF!)),#REF!/$Z24,"") -> 
A25: =Measurements!A25 -> 2015-09-20 | B25: =Measurements!B25 -> 22100 | C25: =Interpolation!C25 -> 1496 | D25: =Interpolation!C25*f_tkn -> 119.68 | E25: =Interpolation!C25*f_tss -> 748 | F25: =Interpolation!C25*f_tp -> 26.928 | G25: =Interpolation!C25*f_tkn*f_fsa -> 83.776 | H25: =Interpolation!C25*f_tp*f_tpf -> 16.1568 | J25: 82.28 | K25: 173.5712747 | L25: 733.5049911 | N25: 129.3574524 | O25: =IF(ISNUMBER(Measurements!L25),Measurements!L25,B25*f_setsewflow) -> 22052.24621 | P25: =Interpolation!C25*(f_codf+B25/O25*(f_codup*f_up_ns+f_bp_ns*(1-f_codf-f_codup))) -> 1038.468988 | Q25: =Interpolation!C25*B25/O25*(f_tss*f_iss*f_iss_ns+f_up_ns*f_codup/x_Us_COD+f_bp_ns*(1-f_codup-f_codf)/x_B_COD) -> 339.9893218 | R25: =Interpolation!C25*(f_tkn*f_tknf+B25/O25*(f_up_ns*f_codup*x_U_N/x_U_COD+f_bp_ns*(1-f_codup-f_codf)*x_B_N/x_B_COD)) -> 106.0660016 | S25: =Interpolation!C25*(f_tp*f_tpf+B25/O25*(f_up_ns*f_codup*x_U_P/x_U_COD+f_bp_ns*(1-f_codup-f_codf)*x_B_P/x_B_COD)) -> 19.67024068 | T25: =Interpolation!C25*f_bp_ns*(1-f_codf-f_codup) -> 475.6964371 | U25: =Interpolation!C25*f_up_ns*f_codup -> 54.97964611 | V25: =IF(ISNUMBER(Measurements!A25),Measurements!AU25,Measurements!B25*(1-f_setsewflow)) ->  | W25: =Interpolation!C25*(f_tss*f_iss*(1-f_iss_ns)+(1-f_up_ns)*f_codup/x_U_COD+(1-f_bp_ns)*(1-f_codup-f_codf)/x_B_COD) -> 408.7453288 | X25: =Interpolation!C25*f_tss*f_iss*(1-f_iss_ns) -> 119.5847191 | Z25: =IF(ISNUMBER(Measurements!M25),Measurements!M25,"") ->  | AA25: =IF(ISNUMBER(Measurements!N25),Measurements!N25,"") ->  | AB25: =IF(ISNUMBER(Measurements!O25),Measurements!O25,"") ->  | AC25: =IF(ISNUMBER(Measurements!P25),Measurements!P25,"") ->  | AD25: =IF(ISNUMBER(Measurements!U25),Measurements!U25,"") ->  | AE25: =IF(ISNUMBER(Measurements!W25),Measurements!W25,"") ->  | AG25: =IF(ISNUMBER(Z25),Interpolation!C25*(f_codf+B25/O25*(f_codup*f_up_ns+f_bp_ns*(1-f_codf-f_codup))),"") ->  | AH25: =IF(ISNUMBER(AA25),Interpolation!C25*(f_tkn*f_tknf+B25/O25*(f_up_ns*f_codup*x_U_N/x_U_COD+f_bp_ns*(1-f_codup-f_codf)*x_B_N/x_B_COD)),"") ->  | AI25: =IF(ISNUMBER(AB25),Interpolation!C25*B25/O25*(f_tss*f_iss*f_iss_ns+(f_up_ns*f_codup/x_Us_COD+f_bp_ns*(1-f_codup-f_codf)/x_B_COD)),"") ->  | AJ25: =IF(ISNUMBER(AC25),Interpolation!C25*(f_tp*f_tpf+B25/O25*(f_up_ns*f_codup*x_U_P/x_U_COD+f_bp_ns*(1-f_codup-f_codf)*x_B_P/x_B_COD)),"") ->  | AK25: =IF(ISNUMBER(AD25),Interpolation!C25*(f_tss*f_iss*(1-f_iss_ns)+(1-f_up_ns)*f_codup/x_U_COD+(1-f_bp_ns)*(1-f_codup-f_codf)/x_B_COD)/(1-f_setsewflow)/10000,"") ->  | AL25: =IF(AND(ISNUMBER(AE25),ISNUMBER(AD25)),Interpolation!C25*f_tss*f_iss*(1-f_iss_ns)/(1-f_setsewflow)/10000/Estimation!AK25*100,"") ->  | BN25: =IF(AND(ISNUMBER($Z25),ISNUMBER(#REF!)),#REF!/$Z25,"") ->  | BO25: =IF(AND(ISNUMBER($Z25),ISNUMBER(#REF!)),#REF!/$Z25,"") -> 
A26: =Measurements!A26 -> 2015-09-21 | B26: =Measurements!B26 -> 21800 | C26: =Interpolation!C26 -> 1237 | D26: =Interpolation!C26*f_tkn -> 98.96 | E26: =Interpolation!C26*f_tss -> 618.5 | F26: =Interpolation!C26*f_tp -> 22.266 | G26: =Interpolation!C26*f_tkn*f_fsa -> 69.272 | H26: =Interpolation!C26*f_tp*f_tpf -> 13.3596 | J26: 68.035 | K26: 143.5211676 | L26: 606.514488 | N26: 106.9620111 | O26: =IF(ISNUMBER(Measurements!L26),Measurements!L26,B26*f_setsewflow) -> 21752.89445 | P26: =Interpolation!C26*(f_codf+B26/O26*(f_codup*f_up_ns+f_bp_ns*(1-f_codf-f_codup))) -> 858.6805736 | Q26: =Interpolation!C26*B26/O26*(f_tss*f_iss*f_iss_ns+f_up_ns*f_codup/x_Us_COD+f_bp_ns*(1-f_codup-f_codf)/x_B_COD) -> 281.1275342 | R26: =Interpolation!C26*(f_tkn*f_tknf+B26/O26*(f_up_ns*f_codup*x_U_N/x_U_COD+f_bp_ns*(1-f_codup-f_codf)*x_B_N/x_B_COD)) -> 87.70297055 | S26: =Interpolation!C26*(f_tp*f_tpf+B26/O26*(f_up_ns*f_codup*x_U_P/x_U_COD+f_bp_ns*(1-f_codup-f_codf)*x_B_P/x_B_COD)) -> 16.26476452 | T26: =Interpolation!C26*f_bp_ns*(1-f_codf-f_codup) -> 393.3399015 | U26: =Interpolation!C26*f_up_ns*f_codup -> 45.46111113 | V26: =IF(ISNUMBER(Measurements!A26),Measurements!AU26,Measurements!B26*(1-f_setsewflow)) ->  | W26: =Interpolation!C26*(f_tss*f_iss*(1-f_iss_ns)+(1-f_up_ns)*f_codup/x_U_COD+(1-f_bp_ns)*(1-f_codup-f_codf)/x_B_COD) -> 337.9799276 | X26: =Interpolation!C26*f_tss*f_iss*(1-f_iss_ns) -> 98.88121493 | Z26: =IF(ISNUMBER(Measurements!M26),Measurements!M26,"") -> 1106 | AA26: =IF(ISNUMBER(Measurements!N26),Measurements!N26,"") -> 59 | AB26: =IF(ISNUMBER(Measurements!O26),Measurements!O26,"") -> 286 | AC26: =IF(ISNUMBER(Measurements!P26),Measurements!P26,"") -> 2.8 | AD26: =IF(ISNUMBER(Measurements!U26),Measurements!U26,"") ->  | AE26: =IF(ISNUMBER(Measurements!W26),Measurements!W26,"") ->  | AG26: =IF(ISNUMBER(Z26),Interpolation!C26*(f_codf+B26/O26*(f_codup*f_up_ns+f_bp_ns*(1-f_codf-f_codup))),"") -> 858.6805736 | AH26: =IF(ISNUMBER(AA26),Interpolation!C26*(f_tkn*f_tknf+B26/O26*(f_up_ns*f_codup*x_U_N/x_U_COD+f_bp_ns*(1-f_codup-f_codf)*x_B_N/x_B_COD)),"") -> 87.70297055 | AI26: =IF(ISNUMBER(AB26),Interpolation!C26*B26/O26*(f_tss*f_iss*f_iss_ns+(f_up_ns*f_codup/x_Us_COD+f_bp_ns*(1-f_codup-f_codf)/x_B_COD)),"") -> 281.1275342 | AJ26: =IF(ISNUMBER(AC26),Interpolation!C26*(f_tp*f_tpf+B26/O26*(f_up_ns*f_codup*x_U_P/x_U_COD+f_bp_ns*(1-f_codup-f_codf)*x_B_P/x_B_COD)),"") -> 16.26476452 | AK26: =IF(ISNUMBER(AD26),Interpolation!C26*(f_tss*f_iss*(1-f_iss_ns)+(1-f_up_ns)*f_codup/x_U_COD+(1-f_bp_ns)*(1-f_codup-f_codf)/x_B_COD)/(1-f_setsewflow)/10000,"") ->  | AL26: =IF(AND(ISNUMBER(AE26),ISNUMBER(AD26)),Interpolation!C26*f_tss*f_iss*(1-f_iss_ns)/(1-f_setsewflow)/10000/Estimation!AK26*100,"") ->  | AR26: -247.3194264 | AS26: 28.70297055 | AT26: -4.872465849 | AU26: 13.46476452 | BK26: 0.05334538879 | BL26: 0.2585895118 | BM26: 0.00253164557 | BN26: =IF(AND(ISNUMBER($Z26),ISNUMBER(#REF!)),#REF!/$Z26,"") ->  | BO26: =IF(AND(ISNUMBER($Z26),ISNUMBER(#REF!)),#REF!/$Z26,"") -> 
A27: =Measurements!A27 -> 2015-09-22 | B27: =Measurements!B27 -> 16600 | C27: =Interpolation!C27 -> 872 | D27: =Interpolation!C27*f_tkn -> 69.76 | E27: =Interpolation!C27*f_tss -> 436 | F27: =Interpolation!C27*f_tp -> 15.696 | G27: =Interpolation!C27*f_tkn*f_fsa -> 48.832 | H27: =Interpolation!C27*f_tp*f_tpf -> 9.4176 | J27: 47.96 | K27: 101.1725612 | L27: 427.5510376 | N27: 75.40086796 | O27: =IF(ISNUMBER(Measurements!L27),Measurements!L27,B27*f_setsewflow) -> 16564.13064 | P27: =Interpolation!C27*(f_codf+B27/O27*(f_codup*f_up_ns+f_bp_ns*(1-f_codf-f_codup))) -> 605.3108005 | Q27: =Interpolation!C27*B27/O27*(f_tss*f_iss*f_iss_ns+f_up_ns*f_codup/x_Us_COD+f_bp_ns*(1-f_codup-f_codf)/x_B_COD) -> 198.175594 | R27: =Interpolation!C27*(f_tkn*f_tknf+B27/O27*(f_up_ns*f_codup*x_U_N/x_U_COD+f_bp_ns*(1-f_codup-f_codf)*x_B_N/x_B_COD)) -> 61.82456776 | S27: =Interpolation!C27*(f_tp*f_tpf+B27/O27*(f_up_ns*f_codup*x_U_P/x_U_COD+f_bp_ns*(1-f_codup-f_codf)*x_B_P/x_B_COD)) -> 11.46554136 | T27: =Interpolation!C27*f_bp_ns*(1-f_codf-f_codup) -> 277.2776024 | U27: =Interpolation!C27*f_up_ns*f_codup -> 32.0469595 | V27: =IF(ISNUMBER(Measurements!A27),Measurements!AU27,Measurements!B27*(1-f_setsewflow)) ->  | W27: =Interpolation!C27*(f_tss*f_iss*(1-f_iss_ns)+(1-f_up_ns)*f_codup/x_U_COD+(1-f_bp_ns)*(1-f_codup-f_codf)/x_B_COD) -> 238.2526248 | X27: =Interpolation!C27*f_tss*f_iss*(1-f_iss_ns) -> 69.70446194 | Z27: =IF(ISNUMBER(Measurements!M27),Measurements!M27,"") ->  | AA27: =IF(ISNUMBER(Measurements!N27),Measurements!N27,"") ->  | AB27: =IF(ISNUMBER(Measurements!O27),Measurements!O27,"") ->  | AC27: =IF(ISNUMBER(Measurements!P27),Measurements!P27,"") ->  | AD27: =IF(ISNUMBER(Measurements!U27),Measurements!U27,"") ->  | AE27: =IF(ISNUMBER(Measurements!W27),Measurements!W27,"") ->  | AG27: =IF(ISNUMBER(Z27),Interpolation!C27*(f_codf+B27/O27*(f_codup*f_up_ns+f_bp_ns*(1-f_codf-f_codup))),"") ->  | AH27: =IF(ISNUMBER(AA27),Interpolation!C27*(f_tkn*f_tknf+B27/O27*(f_up_ns*f_codup*x_U_N/x_U_COD+f_bp_ns*(1-f_codup-f_codf)*x_B_N/x_B_COD)),"") ->  | AI27: =IF(ISNUMBER(AB27),Interpolation!C27*B27/O27*(f_tss*f_iss*f_iss_ns+(f_up_ns*f_codup/x_Us_COD+f_bp_ns*(1-f_codup-f_codf)/x_B_COD)),"") ->  | AJ27: =IF(ISNUMBER(AC27),Interpolation!C27*(f_tp*f_tpf+B27/O27*(f_up_ns*f_codup*x_U_P/x_U_COD+f_bp_ns*(1-f_codup-f_codf)*x_B_P/x_B_COD)),"") ->  | AK27: =IF(ISNUMBER(AD27),Interpolation!C27*(f_tss*f_iss*(1-f_iss_ns)+(1-f_up_ns)*f_codup/x_U_COD+(1-f_bp_ns)*(1-f_codup-f_codf)/x_B_COD)/(1-f_setsewflow)/10000,"") ->  | AL27: =IF(AND(ISNUMBER(AE27),ISNUMBER(AD27)),Interpolation!C27*f_tss*f_iss*(1-f_iss_ns)/(1-f_setsewflow)/10000/Estimation!AK27*100,"") ->  | BN27: =IF(AND(ISNUMBER($Z27),ISNUMBER(#REF!)),#REF!/$Z27,"") ->  | BO27: =IF(AND(ISNUMBER($Z27),ISNUMBER(#REF!)),#REF!/$Z27,"") -> 
A28: =Measurements!A28 -> 2015-09-23 | B28: =Measurements!B28 -> 16400 | C28: =Interpolation!C28 -> 952 | D28: =Interpolation!C28*f_tkn -> 76.16 | E28: =Interpolation!C28*f_tss -> 476 | F28: =Interpolation!C28*f_tp -> 17.136 | G28: =Interpolation!C28*f_tkn*f_fsa -> 53.312 | H28: =Interpolation!C28*f_tp*f_tpf -> 10.2816 | J28: 52.36 | K28: 110.4544475 | L28: 466.7759034 | N28: 82.31837878 | O28: =IF(ISNUMBER(Measurements!L28),Measurements!L28,B28*f_setsewflow) -> 16364.5628 | P28: =Interpolation!C28*(f_codf+B28/O28*(f_codup*f_up_ns+f_bp_ns*(1-f_codf-f_codup))) -> 660.8439015 | Q28: =Interpolation!C28*B28/O28*(f_tss*f_iss*f_iss_ns+f_up_ns*f_codup/x_Us_COD+f_bp_ns*(1-f_codup-f_codf)/x_B_COD) -> 216.3568412 | R28: =Interpolation!C28*(f_tkn*f_tknf+B28/O28*(f_up_ns*f_codup*x_U_N/x_U_COD+f_bp_ns*(1-f_codup-f_codf)*x_B_N/x_B_COD)) -> 67.49654645 | S28: =Interpolation!C28*(f_tp*f_tpf+B28/O28*(f_up_ns*f_codup*x_U_P/x_U_COD+f_bp_ns*(1-f_codup-f_codf)*x_B_P/x_B_COD)) -> 12.51742588 | T28: =Interpolation!C28*f_bp_ns*(1-f_codf-f_codup) -> 302.7159145 | U28: =Interpolation!C28*f_up_ns*f_codup -> 34.98704753 | V28: =IF(ISNUMBER(Measurements!A28),Measurements!AU28,Measurements!B28*(1-f_setsewflow)) ->  | W28: =Interpolation!C28*(f_tss*f_iss*(1-f_iss_ns)+(1-f_up_ns)*f_codup/x_U_COD+(1-f_bp_ns)*(1-f_codup-f_codf)/x_B_COD) -> 260.1106638 | X28: =Interpolation!C28*f_tss*f_iss*(1-f_iss_ns) -> 76.0993667 | Z28: =IF(ISNUMBER(Measurements!M28),Measurements!M28,"") ->  | AA28: =IF(ISNUMBER(Measurements!N28),Measurements!N28,"") ->  | AB28: =IF(ISNUMBER(Measurements!O28),Measurements!O28,"") ->  | AC28: =IF(ISNUMBER(Measurements!P28),Measurements!P28,"") ->  | AD28: =IF(ISNUMBER(Measurements!U28),Measurements!U28,"") ->  | AE28: =IF(ISNUMBER(Measurements!W28),Measurements!W28,"") ->  | AG28: =IF(ISNUMBER(Z28),Interpolation!C28*(f_codf+B28/O28*(f_codup*f_up_ns+f_bp_ns*(1-f_codf-f_codup))),"") ->  | AH28: =IF(ISNUMBER(AA28),Interpolation!C28*(f_tkn*f_tknf+B28/O28*(f_up_ns*f_codup*x_U_N/x_U_COD+f_bp_ns*(1-f_codup-f_codf)*x_B_N/x_B_COD)),"") ->  | AI28: =IF(ISNUMBER(AB28),Interpolation!C28*B28/O28*(f_tss*f_iss*f_iss_ns+(f_up_ns*f_codup/x_Us_COD+f_bp_ns*(1-f_codup-f_codf)/x_B_COD)),"") ->  | AJ28: =IF(ISNUMBER(AC28),Interpolation!C28*(f_tp*f_tpf+B28/O28*(f_up_ns*f_codup*x_U_P/x_U_COD+f_bp_ns*(1-f_codup-f_codf)*x_B_P/x_B_COD)),"") ->  | AK28: =IF(ISNUMBER(AD28),Interpolation!C28*(f_tss*f_iss*(1-f_iss_ns)+(1-f_up_ns)*f_codup/x_U_COD+(1-f_bp_ns)*(1-f_codup-f_codf)/x_B_COD)/(1-f_setsewflow)/10000,"") ->  | AL28: =IF(AND(ISNUMBER(AE28),ISNUMBER(AD28)),Interpolation!C28*f_tss*f_iss*(1-f_iss_ns)/(1-f_setsewflow)/10000/Estimation!AK28*100,"") ->  | BN28: =IF(AND(ISNUMBER($Z28),ISNUMBER(#REF!)),#REF!/$Z28,"") ->  | BO28: =IF(AND(ISNUMBER($Z28),ISNUMBER(#REF!)),#REF!/$Z28,"") -> 
A29: =Measurements!A29 -> 2015-09-24 | B29: =Measurements!B29 -> 17900 | C29: =Interpolation!C29 -> 963 | D29: =Interpolation!C29*f_tkn -> 77.04 | E29: =Interpolation!C29*f_tss -> 481.5 | F29: =Interpolation!C29*f_tp -> 17.334 | G29: =Interpolation!C29*f_tkn*f_fsa -> 53.928 | H29: =Interpolation!C29*f_tp*f_tpf -> 10.4004 | J29: 52.965 | K29: 111.7307069 | L29: 472.1693225 | N29: 83.26953652 | O29: =IF(ISNUMBER(Measurements!L29),Measurements!L29,B29*f_setsewflow) -> 17861.32159 | P29: =Interpolation!C29*(f_codf+B29/O29*(f_codup*f_up_ns+f_bp_ns*(1-f_codf-f_codup))) -> 668.4797028 | Q29: =Interpolation!C29*B29/O29*(f_tss*f_iss*f_iss_ns+f_up_ns*f_codup/x_Us_COD+f_bp_ns*(1-f_codup-f_codf)/x_B_COD) -> 218.8567626 | R29: =Interpolation!C29*(f_tkn*f_tknf+B29/O29*(f_up_ns*f_codup*x_U_N/x_U_COD+f_bp_ns*(1-f_codup-f_codf)*x_B_N/x_B_COD)) -> 68.27644352 | S29: =Interpolation!C29*(f_tp*f_tpf+B29/O29*(f_up_ns*f_codup*x_U_P/x_U_COD+f_bp_ns*(1-f_codup-f_codf)*x_B_P/x_B_COD)) -> 12.66206001 | T29: =Interpolation!C29*f_bp_ns*(1-f_codf-f_codup) -> 306.2136824 | U29: =Interpolation!C29*f_up_ns*f_codup -> 35.39130963 | V29: =IF(ISNUMBER(Measurements!A29),Measurements!AU29,Measurements!B29*(1-f_setsewflow)) ->  | W29: =Interpolation!C29*(f_tss*f_iss*(1-f_iss_ns)+(1-f_up_ns)*f_codup/x_U_COD+(1-f_bp_ns)*(1-f_codup-f_codf)/x_B_COD) -> 263.1161441 | X29: =Interpolation!C29*f_tss*f_iss*(1-f_iss_ns) -> 76.97866611 | Z29: =IF(ISNUMBER(Measurements!M29),Measurements!M29,"") ->  | AA29: =IF(ISNUMBER(Measurements!N29),Measurements!N29,"") ->  | AB29: =IF(ISNUMBER(Measurements!O29),Measurements!O29,"") ->  | AC29: =IF(ISNUMBER(Measurements!P29),Measurements!P29,"") ->  | AD29: =IF(ISNUMBER(Measurements!U29),Measurements!U29,"") ->  | AE29: =IF(ISNUMBER(Measurements!W29),Measurements!W29,"") ->  | AG29: =IF(ISNUMBER(Z29),Interpolation!C29*(f_codf+B29/O29*(f_codup*f_up_ns+f_bp_ns*(1-f_codf-f_codup))),"") ->  | AH29: =IF(ISNUMBER(AA29),Interpolation!C29*(f_tkn*f_tknf+B29/O29*(f_up_ns*f_codup*x_U_N/x_U_COD+f_bp_ns*(1-f_codup-f_codf)*x_B_N/x_B_COD)),"") ->  | AI29: =IF(ISNUMBER(AB29),Interpolation!C29*B29/O29*(f_tss*f_iss*f_iss_ns+(f_up_ns*f_codup/x_Us_COD+f_bp_ns*(1-f_codup-f_codf)/x_B_COD)),"") ->  | AJ29: =IF(ISNUMBER(AC29),Interpolation!C29*(f_tp*f_tpf+B29/O29*(f_up_ns*f_codup*x_U_P/x_U_COD+f_bp_ns*(1-f_codup-f_codf)*x_B_P/x_B_COD)),"") ->  | AK29: =IF(ISNUMBER(AD29),Interpolation!C29*(f_tss*f_iss*(1-f_iss_ns)+(1-f_up_ns)*f_codup/x_U_COD+(1-f_bp_ns)*(1-f_codup-f_codf)/x_B_COD)/(1-f_setsewflow)/10000,"") ->  | AL29: =IF(AND(ISNUMBER(AE29),ISNUMBER(AD29)),Interpolation!C29*f_tss*f_iss*(1-f_iss_ns)/(1-f_setsewflow)/10000/Estimation!AK29*100,"") ->  | BN29: =IF(AND(ISNUMBER($Z29),ISNUMBER(#REF!)),#REF!/$Z29,"") ->  | BO29: =IF(AND(ISNUMBER($Z29),ISNUMBER(#REF!)),#REF!/$Z29,"") -> 
A30: =Measurements!A30 -> 2015-09-25 | B30: =Measurements!B30 -> 31900 | C30: =Interpolation!C30 -> 648 | D30: =Interpolation!C30*f_tkn -> 51.84 | E30: =Interpolation!C30*f_tss -> 324 | F30: =Interpolation!C30*f_tp -> 11.664 | G30: =Interpolation!C30*f_tkn*f_fsa -> 36.288 | H30: =Interpolation!C30*f_tp*f_tpf -> 6.9984 | J30: 35.64 | K30: 75.18327942 | L30: 317.7214133 | N30: 56.03183766 | O30: =IF(ISNUMBER(Measurements!L30),Measurements!L30,B30*f_setsewflow) -> 31831.07032 | P30: =Interpolation!C30*(f_codf+B30/O30*(f_codup*f_up_ns+f_bp_ns*(1-f_codf-f_codup))) -> 449.8181178 | Q30: =Interpolation!C30*B30/O30*(f_tss*f_iss*f_iss_ns+f_up_ns*f_codup/x_Us_COD+f_bp_ns*(1-f_codup-f_codf)/x_B_COD) -> 147.268102 | R30: =Interpolation!C30*(f_tkn*f_tknf+B30/O30*(f_up_ns*f_codup*x_U_N/x_U_COD+f_bp_ns*(1-f_codup-f_codf)*x_B_N/x_B_COD)) -> 45.94302742 | S30: =Interpolation!C30*(f_tp*f_tpf+B30/O30*(f_up_ns*f_codup*x_U_P/x_U_COD+f_bp_ns*(1-f_codup-f_codf)*x_B_P/x_B_COD)) -> 8.520264678 | T30: =Interpolation!C30*f_bp_ns*(1-f_codf-f_codup) -> 206.0503284 | U30: =Interpolation!C30*f_up_ns*f_codup -> 23.81471302 | V30: =IF(ISNUMBER(Measurements!A30),Measurements!AU30,Measurements!B30*(1-f_setsewflow)) ->  | W30: =Interpolation!C30*(f_tss*f_iss*(1-f_iss_ns)+(1-f_up_ns)*f_codup/x_U_COD+(1-f_bp_ns)*(1-f_codup-f_codf)/x_B_COD) -> 177.0501157 | X30: =Interpolation!C30*f_tss*f_iss*(1-f_iss_ns) -> 51.79872859 | Z30: =IF(ISNUMBER(Measurements!M30),Measurements!M30,"") ->  | AA30: =IF(ISNUMBER(Measurements!N30),Measurements!N30,"") ->  | AB30: =IF(ISNUMBER(Measurements!O30),Measurements!O30,"") ->  | AC30: =IF(ISNUMBER(Measurements!P30),Measurements!P30,"") ->  | AD30: =IF(ISNUMBER(Measurements!U30),Measurements!U30,"") ->  | AE30: =IF(ISNUMBER(Measurements!W30),Measurements!W30,"") ->  | AG30: =IF(ISNUMBER(Z30),Interpolation!C30*(f_codf+B30/O30*(f_codup*f_up_ns+f_bp_ns*(1-f_codf-f_codup))),"") ->  | AH30: =IF(ISNUMBER(AA30),Interpolation!C30*(f_tkn*f_tknf+B30/O30*(f_up_ns*f_codup*x_U_N/x_U_COD+f_bp_ns*(1-f_codup-f_codf)*x_B_N/x_B_COD)),"") ->  | AI30: =IF(ISNUMBER(AB30),Interpolation!C30*B30/O30*(f_tss*f_iss*f_iss_ns+(f_up_ns*f_codup/x_Us_COD+f_bp_ns*(1-f_codup-f_codf)/x_B_COD)),"") ->  | AJ30: =IF(ISNUMBER(AC30),Interpolation!C30*(f_tp*f_tpf+B30/O30*(f_up_ns*f_codup*x_U_P/x_U_COD+f_bp_ns*(1-f_codup-f_codf)*x_B_P/x_B_COD)),"") ->  | AK30: =IF(ISNUMBER(AD30),Interpolation!C30*(f_tss*f_iss*(1-f_iss_ns)+(1-f_up_ns)*f_codup/x_U_COD+(1-f_bp_ns)*(1-f_codup-f_codf)/x_B_COD)/(1-f_setsewflow)/10000,"") ->  | AL30: =IF(AND(ISNUMBER(AE30),ISNUMBER(AD30)),Interpolation!C30*f_tss*f_iss*(1-f_iss_ns)/(1-f_setsewflow)/10000/Estimation!AK30*100,"") ->  | BN30: =IF(AND(ISNUMBER($Z30),ISNUMBER(#REF!)),#REF!/$Z30,"") ->  | BO30: =IF(AND(ISNUMBER($Z30),ISNUMBER(#REF!)),#REF!/$Z30,"") -> 
A31: =Measurements!A31 -> 2015-09-26 | B31: =Measurements!B31 -> 26800 | C31: =Interpolation!C31 -> 630 | D31: =Interpolation!C31*f_tkn -> 50.4 | E31: =Interpolation!C31*f_tss -> 315 | F31: =Interpolation!C31*f_tp -> 11.34 | G31: =Interpolation!C31*f_tkn*f_fsa -> 35.28 | H31: =Interpolation!C31*f_tp*f_tpf -> 6.804 | J31: 34.65 | K31: 73.09485499 | L31: 308.8958184 | N31: 54.47539772 | O31: =IF(ISNUMBER(Measurements!L31),Measurements!L31,B31*f_setsewflow) -> 26742.09043 | P31: =Interpolation!C31*(f_codf+B31/O31*(f_codup*f_up_ns+f_bp_ns*(1-f_codf-f_codup))) -> 437.3231701 | Q31: =Interpolation!C31*B31/O31*(f_tss*f_iss*f_iss_ns+f_up_ns*f_codup/x_Us_COD+f_bp_ns*(1-f_codup-f_codf)/x_B_COD) -> 143.1773214 | R31: =Interpolation!C31*(f_tkn*f_tknf+B31/O31*(f_up_ns*f_codup*x_U_N/x_U_COD+f_bp_ns*(1-f_codup-f_codf)*x_B_N/x_B_COD)) -> 44.66683221 | S31: =Interpolation!C31*(f_tp*f_tpf+B31/O31*(f_up_ns*f_codup*x_U_P/x_U_COD+f_bp_ns*(1-f_codup-f_codf)*x_B_P/x_B_COD)) -> 8.283590659 | T31: =Interpolation!C31*f_bp_ns*(1-f_codf-f_codup) -> 200.3267081 | U31: =Interpolation!C31*f_up_ns*f_codup -> 23.15319322 | V31: =IF(ISNUMBER(Measurements!A31),Measurements!AU31,Measurements!B31*(1-f_setsewflow)) ->  | W31: =Interpolation!C31*(f_tss*f_iss*(1-f_iss_ns)+(1-f_up_ns)*f_codup/x_U_COD+(1-f_bp_ns)*(1-f_codup-f_codf)/x_B_COD) -> 172.1320569 | X31: =Interpolation!C31*f_tss*f_iss*(1-f_iss_ns) -> 50.35987502 | Z31: =IF(ISNUMBER(Measurements!M31),Measurements!M31,"") ->  | AA31: =IF(ISNUMBER(Measurements!N31),Measurements!N31,"") ->  | AB31: =IF(ISNUMBER(Measurements!O31),Measurements!O31,"") ->  | AC31: =IF(ISNUMBER(Measurements!P31),Measurements!P31,"") ->  | AD31: =IF(ISNUMBER(Measurements!U31),Measurements!U31,"") ->  | AE31: =IF(ISNUMBER(Measurements!W31),Measurements!W31,"") ->  | AG31: =IF(ISNUMBER(Z31),Interpolation!C31*(f_codf+B31/O31*(f_codup*f_up_ns+f_bp_ns*(1-f_codf-f_codup))),"") ->  | AH31: =IF(ISNUMBER(AA31),Interpolation!C31*(f_tkn*f_tknf+B31/O31*(f_up_ns*f_codup*x_U_N/x_U_COD+f_bp_ns*(1-f_codup-f_codf)*x_B_N/x_B_COD)),"") ->  | AI31: =IF(ISNUMBER(AB31),Interpolation!C31*B31/O31*(f_tss*f_iss*f_iss_ns+(f_up_ns*f_codup/x_Us_COD+f_bp_ns*(1-f_codup-f_codf)/x_B_COD)),"") ->  | AJ31: =IF(ISNUMBER(AC31),Interpolation!C31*(f_tp*f_tpf+B31/O31*(f_up_ns*f_codup*x_U_P/x_U_COD+f_bp_ns*(1-f_codup-f_codf)*x_B_P/x_B_COD)),"") ->  | AK31: =IF(ISNUMBER(AD31),Interpolation!C31*(f_tss*f_iss*(1-f_iss_ns)+(1-f_up_ns)*f_codup/x_U_COD+(1-f_bp_ns)*(1-f_codup-f_codf)/x_B_COD)/(1-f_setsewflow)/10000,"") ->  | AL31: =IF(AND(ISNUMBER(AE31),ISNUMBER(AD31)),Interpolation!C31*f_tss*f_iss*(1-f_iss_ns)/(1-f_setsewflow)/10000/Estimation!AK31*100,"") ->  | BN31: =IF(AND(ISNUMBER($Z31),ISNUMBER(#REF!)),#REF!/$Z31,"") ->  | BO31: =IF(AND(ISNUMBER($Z31),ISNUMBER(#REF!)),#REF!/$Z31,"") -> 
A32: =Measurements!A32 -> 2015-09-27 | B32: =Measurements!B32 -> 17600 | C32: =Interpolation!C32 -> 1057 | D32: =Interpolation!C32*f_tkn -> 84.56 | E32: =Interpolation!C32*f_tss -> 528.5 | F32: =Interpolation!C32*f_tp -> 19.026 | G32: =Interpolation!C32*f_tkn*f_fsa -> 59.192 | H32: =Interpolation!C32*f_tp*f_tpf -> 11.4156 | J32: 58.135 | K32: 122.6369234 | L32: 518.2585398 | N32: 91.39761174 | O32: =IF(ISNUMBER(Measurements!L32),Measurements!L32,B32*f_setsewflow) -> 17561.96983 | P32: =Interpolation!C32*(f_codf+B32/O32*(f_codup*f_up_ns+f_bp_ns*(1-f_codf-f_codup))) -> 733.7310965 | Q32: =Interpolation!C32*B32/O32*(f_tss*f_iss*f_iss_ns+f_up_ns*f_codup/x_Us_COD+f_bp_ns*(1-f_codup-f_codf)/x_B_COD) -> 240.219728 | R32: =Interpolation!C32*(f_tkn*f_tknf+B32/O32*(f_up_ns*f_codup*x_U_N/x_U_COD+f_bp_ns*(1-f_codup-f_codf)*x_B_N/x_B_COD)) -> 74.94101849 | S32: =Interpolation!C32*(f_tp*f_tpf+B32/O32*(f_up_ns*f_codup*x_U_P/x_U_COD+f_bp_ns*(1-f_codup-f_codf)*x_B_P/x_B_COD)) -> 13.89802433 | T32: =Interpolation!C32*f_bp_ns*(1-f_codf-f_codup) -> 336.1036992 | U32: =Interpolation!C32*f_up_ns*f_codup -> 38.84591306 | V32: =IF(ISNUMBER(Measurements!A32),Measurements!AU32,Measurements!B32*(1-f_setsewflow)) ->  | W32: =Interpolation!C32*(f_tss*f_iss*(1-f_iss_ns)+(1-f_up_ns)*f_codup/x_U_COD+(1-f_bp_ns)*(1-f_codup-f_codf)/x_B_COD) -> 288.7993399 | X32: =Interpolation!C32*f_tss*f_iss*(1-f_iss_ns) -> 84.4926792 | Z32: =IF(ISNUMBER(Measurements!M32),Measurements!M32,"") ->  | AA32: =IF(ISNUMBER(Measurements!N32),Measurements!N32,"") ->  | AB32: =IF(ISNUMBER(Measurements!O32),Measurements!O32,"") ->  | AC32: =IF(ISNUMBER(Measurements!P32),Measurements!P32,"") ->  | AD32: =IF(ISNUMBER(Measurements!U32),Measurements!U32,"") ->  | AE32: =IF(ISNUMBER(Measurements!W32),Measurements!W32,"") ->  | AG32: =IF(ISNUMBER(Z32),Interpolation!C32*(f_codf+B32/O32*(f_codup*f_up_ns+f_bp_ns*(1-f_codf-f_codup))),"") ->  | AH32: =IF(ISNUMBER(AA32),Interpolation!C32*(f_tkn*f_tknf+B32/O32*(f_up_ns*f_codup*x_U_N/x_U_COD+f_bp_ns*(1-f_codup-f_codf)*x_B_N/x_B_COD)),"") ->  | AI32: =IF(ISNUMBER(AB32),Interpolation!C32*B32/O32*(f_tss*f_iss*f_iss_ns+(f_up_ns*f_codup/x_Us_COD+f_bp_ns*(1-f_codup-f_codf)/x_B_COD)),"") ->  | AJ32: =IF(ISNUMBER(AC32),Interpolation!C32*(f_tp*f_tpf+B32/O32*(f_up_ns*f_codup*x_U_P/x_U_COD+f_bp_ns*(1-f_codup-f_codf)*x_B_P/x_B_COD)),"") ->  | AK32: =IF(ISNUMBER(AD32),Interpolation!C32*(f_tss*f_iss*(1-f_iss_ns)+(1-f_up_ns)*f_codup/x_U_COD+(1-f_bp_ns)*(1-f_codup-f_codf)/x_B_COD)/(1-f_setsewflow)/10000,"") ->  | AL32: =IF(AND(ISNUMBER(AE32),ISNUMBER(AD32)),Interpolation!C32*f_tss*f_iss*(1-f_iss_ns)/(1-f_setsewflow)/10000/Estimation!AK32*100,"") ->  | BN32: =IF(AND(ISNUMBER($Z32),ISNUMBER(#REF!)),#REF!/$Z32,"") ->  | BO32: =IF(AND(ISNUMBER($Z32),ISNUMBER(#REF!)),#REF!/$Z32,"") -> 
